Workbook

Sheet Auto Team results (hidden)
A1: SAMF 2006 National Sea League Final - Day 1
A2: Team Name | B2: Team No. | C2: Zone A | E2: Zone B | G2: Zone C | I2: Zone D | K2: Zone E | M2: Day 1 Points | N2: Day 1 Position
C3: Peg | D3: Points & Position | E3: Peg | F3: Points & Position | G3: Peg | H3: Points & Position | I3: Peg | J3: Points & Position | K3: Peg | L3: Points & Position
A4: =IF(ISNA(VLOOKUP(B4,#REF!,3,FALSE))=TRUE,"",VLOOKUP(B4,#REF!,3,FALSE)) ->  | B4: 12 | C4: =B4 -> 12 | D4: =IF(C4="","",VLOOKUP(C4,#REF!,7,FALSE)) ->  | E4: =IF(C4="","",IF((C4+NpZ+ZP)>2*NpZ,(((C4+NpZ+ZP)-2*NpZ)+NpZ),(C4+NpZ+ZP))) ->  | F4: =IF(E4="","",VLOOKUP(E4,#REF!,7,FALSE)) ->  | G4: =IF(E4="","",IF((E4+NpZ+ZP)>3*NpZ,(((E4+NpZ+ZP)-2*NpZ)+NpZ),(E4+NpZ+ZP))) ->  | H4: =IF(G4="","",VLOOKUP(G4,#REF!,7,FALSE)) ->  | I4: =IF(G4="","",IF((G4+NpZ+ZP)>4*NpZ,(((G4+NpZ+ZP)-2*NpZ)+NpZ),(G4+NpZ+ZP))) ->  | J4: =IF(I4="","",VLOOKUP(I4,#REF!,7,FALSE)) ->  | K4: =IF(I4="","",IF((I4+NpZ+ZP)>5*NpZ,(((I4+NpZ+ZP)-2*NpZ)+NpZ),(I4+NpZ+ZP))) ->  | L4: =IF(K4="","",VLOOKUP(K4,#REF!,7,FALSE)) ->  | M4: =IF(B4="","",(D4+F4+H4+J4+L4)) ->  | N4: =IF(M4="","",IF(M4=M3,N3,ROW()-3)) -> 
A5: =IF(ISNA(VLOOKUP(B5,#REF!,3,FALSE))=TRUE,"",VLOOKUP(B5,#REF!,3,FALSE)) ->  | B5: 10 | C5: 10 | D5: =IF(C5="","",VLOOKUP(C5,#REF!,7,FALSE)) ->  | F5: =IF(E5="","",VLOOKUP(E5,#REF!,7,FALSE)) ->  | H5: =IF(G5="","",VLOOKUP(G5,#REF!,7,FALSE)) ->  | J5: =IF(I5="","",VLOOKUP(I5,#REF!,7,FALSE)) ->  | L5: =IF(K5="","",VLOOKUP(K5,#REF!,7,FALSE)) -> 
A6: =IF(ISNA(VLOOKUP(B6,#REF!,3,FALSE))=TRUE,"",VLOOKUP(B6,#REF!,3,FALSE)) ->  | B6: 9 | C6: 9 | D6: =IF(C6="","",VLOOKUP(C6,#REF!,7,FALSE)) ->  | F6: =IF(E6="","",VLOOKUP(E6,#REF!,7,FALSE)) ->  | H6: =IF(G6="","",VLOOKUP(G6,#REF!,7,FALSE)) ->  | J6: =IF(I6="","",VLOOKUP(I6,#REF!,7,FALSE)) ->  | L6: =IF(K6="","",VLOOKUP(K6,#REF!,7,FALSE)) -> 
A7: =IF(ISNA(VLOOKUP(B7,#REF!,3,FALSE))=TRUE,"",VLOOKUP(B7,#REF!,3,FALSE)) ->  | B7: 26 | C7: 26 | D7: =IF(C7="","",VLOOKUP(C7,#REF!,7,FALSE)) ->  | F7: =IF(E7="","",VLOOKUP(E7,#REF!,7,FALSE)) ->  | H7: =IF(G7="","",VLOOKUP(G7,#REF!,7,FALSE)) ->  | J7: =IF(I7="","",VLOOKUP(I7,#REF!,7,FALSE)) ->  | L7: =IF(K7="","",VLOOKUP(K7,#REF!,7,FALSE)) -> 
A8: =IF(ISNA(VLOOKUP(B8,#REF!,3,FALSE))=TRUE,"",VLOOKUP(B8,#REF!,3,FALSE)) ->  | B8: 4 | C8: 4 | D8: =IF(C8="","",VLOOKUP(C8,#REF!,7,FALSE)) ->  | F8: =IF(E8="","",VLOOKUP(E8,#REF!,7,FALSE)) ->  | H8: =IF(G8="","",VLOOKUP(G8,#REF!,7,FALSE)) ->  | J8: =IF(I8="","",VLOOKUP(I8,#REF!,7,FALSE)) ->  | L8: =IF(K8="","",VLOOKUP(K8,#REF!,7,FALSE)) -> 
A9: =IF(ISNA(VLOOKUP(B9,#REF!,3,FALSE))=TRUE,"",VLOOKUP(B9,#REF!,3,FALSE)) ->  | B9: 11 | C9: 11 | D9: =IF(C9="","",VLOOKUP(C9,#REF!,7,FALSE)) ->  | F9: =IF(E9="","",VLOOKUP(E9,#REF!,7,FALSE)) ->  | H9: =IF(G9="","",VLOOKUP(G9,#REF!,7,FALSE)) ->  | J9: =IF(I9="","",VLOOKUP(I9,#REF!,7,FALSE)) ->  | L9: =IF(K9="","",VLOOKUP(K9,#REF!,7,FALSE)) -> 
A10: =IF(ISNA(VLOOKUP(B10,#REF!,3,FALSE))=TRUE,"",VLOOKUP(B10,#REF!,3,FALSE)) ->  | B10: 22 | C10: 22 | D10: =IF(C10="","",VLOOKUP(C10,#REF!,7,FALSE)) ->  | F10: =IF(E10="","",VLOOKUP(E10,#REF!,7,FALSE)) ->  | H10: =IF(G10="","",VLOOKUP(G10,#REF!,7,FALSE)) ->  | J10: =IF(I10="","",VLOOKUP(I10,#REF!,7,FALSE)) ->  | L10: =IF(K10="","",VLOOKUP(K10,#REF!,7,FALSE)) -> 
A11: =IF(ISNA(VLOOKUP(B11,#REF!,3,FALSE))=TRUE,"",VLOOKUP(B11,#REF!,3,FALSE)) ->  | B11: 20 | C11: 20 | D11: =IF(C11="","",VLOOKUP(C11,#REF!,7,FALSE)) ->  | F11: =IF(E11="","",VLOOKUP(E11,#REF!,7,FALSE)) ->  | H11: =IF(G11="","",VLOOKUP(G11,#REF!,7,FALSE)) ->  | J11: =IF(I11="","",VLOOKUP(I11,#REF!,7,FALSE)) ->  | L11: =IF(K11="","",VLOOKUP(K11,#REF!,7,FALSE)) -> 
A12: =IF(ISNA(VLOOKUP(B12,#REF!,3,FALSE))=TRUE,"",VLOOKUP(B12,#REF!,3,FALSE)) ->  | B12: 21 | C12: 21 | D12: =IF(C12="","",VLOOKUP(C12,#REF!,7,FALSE)) ->  | F12: =IF(E12="","",VLOOKUP(E12,#REF!,7,FALSE)) ->  | H12: =IF(G12="","",VLOOKUP(G12,#REF!,7,FALSE)) ->  | J12: =IF(I12="","",VLOOKUP(I12,#REF!,7,FALSE)) ->  | L12: =IF(K12="","",VLOOKUP(K12,#REF!,7,FALSE)) -> 
A13: =IF(ISNA(VLOOKUP(B13,#REF!,3,FALSE))=TRUE,"",VLOOKUP(B13,#REF!,3,FALSE)) ->  | B13: 27 | C13: 27 | D13: =IF(C13="","",VLOOKUP(C13,#REF!,7,FALSE)) ->  | F13: =IF(E13="","",VLOOKUP(E13,#REF!,7,FALSE)) ->  | H13: =IF(G13="","",VLOOKUP(G13,#REF!,7,FALSE)) ->  | J13: =IF(I13="","",VLOOKUP(I13,#REF!,7,FALSE)) ->  | L13: =IF(K13="","",VLOOKUP(K13,#REF!,7,FALSE)) -> 
A14: =IF(ISNA(VLOOKUP(B14,#REF!,3,FALSE))=TRUE,"",VLOOKUP(B14,#REF!,3,FALSE)) ->  | B14: 28 | C14: 28 | D14: =IF(C14="","",VLOOKUP(C14,#REF!,7,FALSE)) ->  | F14: =IF(E14="","",VLOOKUP(E14,#REF!,7,FALSE)) ->  | H14: =IF(G14="","",VLOOKUP(G14,#REF!,7,FALSE)) ->  | J14: =IF(I14="","",VLOOKUP(I14,#REF!,7,FALSE)) ->  | L14: =IF(K14="","",VLOOKUP(K14,#REF!,7,FALSE)) -> 
A15: =IF(ISNA(VLOOKUP(B15,#REF!,3,FALSE))=TRUE,"",VLOOKUP(B15,#REF!,3,FALSE)) ->  | B15: 30 | C15: =B15 -> 30 | D15: =IF(C15="","",VLOOKUP(C15,#REF!,7,FALSE)) ->  | F15: =IF(E15="","",VLOOKUP(E15,#REF!,7,FALSE)) ->  | H15: =IF(G15="","",VLOOKUP(G15,#REF!,7,FALSE)) ->  | J15: =IF(I15="","",VLOOKUP(I15,#REF!,7,FALSE)) ->  | L15: =IF(K15="","",VLOOKUP(K15,#REF!,7,FALSE)) ->  | N15: =IF(M15="","",IF(M15=M14,N14,ROW()-3)) -> 
A16: =IF(ISNA(VLOOKUP(B16,#REF!,3,FALSE))=TRUE,"",VLOOKUP(B16,#REF!,3,FALSE)) ->  | B16: 25 | C16: 25 | D16: =IF(C16="","",VLOOKUP(C16,#REF!,7,FALSE)) ->  | F16: =IF(E16="","",VLOOKUP(E16,#REF!,7,FALSE)) ->  | H16: =IF(G16="","",VLOOKUP(G16,#REF!,7,FALSE)) ->  | J16: =IF(I16="","",VLOOKUP(I16,#REF!,7,FALSE)) ->  | L16: =IF(K16="","",VLOOKUP(K16,#REF!,7,FALSE)) -> 
A17: =IF(ISNA(VLOOKUP(B17,#REF!,3,FALSE))=TRUE,"",VLOOKUP(B17,#REF!,3,FALSE)) ->  | B17: 17 | C17: 17 | D17: =IF(C17="","",VLOOKUP(C17,#REF!,7,FALSE)) ->  | F17: =IF(E17="","",VLOOKUP(E17,#REF!,7,FALSE)) ->  | H17: =IF(G17="","",VLOOKUP(G17,#REF!,7,FALSE)) ->  | J17: =IF(I17="","",VLOOKUP(I17,#REF!,7,FALSE)) ->  | L17: =IF(K17="","",VLOOKUP(K17,#REF!,7,FALSE)) -> 
A18: =IF(ISNA(VLOOKUP(B18,#REF!,3,FALSE))=TRUE,"",VLOOKUP(B18,#REF!,3,FALSE)) ->  | B18: 2 | C18: 2 | D18: =IF(C18="","",VLOOKUP(C18,#REF!,7,FALSE)) ->  | F18: =IF(E18="","",VLOOKUP(E18,#REF!,7,FALSE)) ->  | H18: =IF(G18="","",VLOOKUP(G18,#REF!,7,FALSE)) ->  | J18: =IF(I18="","",VLOOKUP(I18,#REF!,7,FALSE)) ->  | L18: =IF(K18="","",VLOOKUP(K18,#REF!,7,FALSE)) -> 
A19: =IF(ISNA(VLOOKUP(B19,#REF!,3,FALSE))=TRUE,"",VLOOKUP(B19,#REF!,3,FALSE)) ->  | B19: 6 | C19: 6 | D19: =IF(C19="","",VLOOKUP(C19,#REF!,7,FALSE)) ->  | F19: =IF(E19="","",VLOOKUP(E19,#REF!,7,FALSE)) ->  | H19: =IF(G19="","",VLOOKUP(G19,#REF!,7,FALSE)) ->  | J19: =IF(I19="","",VLOOKUP(I19,#REF!,7,FALSE)) ->  | L19: =IF(K19="","",VLOOKUP(K19,#REF!,7,FALSE)) -> 
A20: =IF(ISNA(VLOOKUP(B20,#REF!,3,FALSE))=TRUE,"",VLOOKUP(B20,#REF!,3,FALSE)) ->  | B20: 1 | C20: =B20 -> 1 | D20: =IF(C20="","",VLOOKUP(C20,#REF!,7,FALSE)) ->  | E20: =IF(C20="","",IF((C20+NpZ+ZP)>2*NpZ,(((C20+NpZ+ZP)-2*NpZ)+NpZ),(C20+NpZ+ZP))) ->  | F20: =IF(E20="","",VLOOKUP(E20,#REF!,7,FALSE)) ->  | G20: =IF(E20="","",IF((E20+NpZ+ZP)>3*NpZ,(((E20+NpZ+ZP)-2*NpZ)+NpZ),(E20+NpZ+ZP))) ->  | H20: =IF(G20="","",VLOOKUP(G20,#REF!,7,FALSE)) ->  | I20: =IF(G20="","",IF((G20+NpZ+ZP)>4*NpZ,(((G20+NpZ+ZP)-2*NpZ)+NpZ),(G20+NpZ+ZP))) ->  | J20: =IF(I20="","",VLOOKUP(I20,#REF!,7,FALSE)) ->  | K20: =IF(I20="","",IF((I20+NpZ+ZP)>5*NpZ,(((I20+NpZ+ZP)-2*NpZ)+NpZ),(I20+NpZ+ZP))) ->  | L20: =IF(K20="","",VLOOKUP(K20,#REF!,7,FALSE)) ->  | M20: =IF(B20="","",(D20+F20+H20+J20+L20)) ->  | N20: =IF(M20="","",IF(M20=M19,N19,ROW()-3)) -> 
A21: =IF(ISNA(VLOOKUP(B21,#REF!,3,FALSE))=TRUE,"",VLOOKUP(B21,#REF!,3,FALSE)) ->  | B21: 29 | C21: =B21 -> 29 | D21: =IF(C21="","",VLOOKUP(C21,#REF!,7,FALSE)) ->  | F21: =IF(E21="","",VLOOKUP(E21,#REF!,7,FALSE)) ->  | H21: =IF(G21="","",VLOOKUP(G21,#REF!,7,FALSE)) ->  | J21: =IF(I21="","",VLOOKUP(I21,#REF!,7,FALSE)) ->  | L21: =IF(K21="","",VLOOKUP(K21,#REF!,7,FALSE)) ->  | N21: =IF(M21="","",IF(M21=M20,N20,ROW()-3)) -> 
A22: =IF(ISNA(VLOOKUP(B22,#REF!,3,FALSE))=TRUE,"",VLOOKUP(B22,#REF!,3,FALSE)) ->  | B22: 23 | C22: 23 | D22: =IF(C22="","",VLOOKUP(C22,#REF!,7,FALSE)) ->  | F22: =IF(E22="","",VLOOKUP(E22,#REF!,7,FALSE)) ->  | H22: =IF(G22="","",VLOOKUP(G22,#REF!,7,FALSE)) ->  | J22: =IF(I22="","",VLOOKUP(I22,#REF!,7,FALSE)) ->  | L22: =IF(K22="","",VLOOKUP(K22,#REF!,7,FALSE)) -> 
A23: =IF(ISNA(VLOOKUP(B23,#REF!,3,FALSE))=TRUE,"",VLOOKUP(B23,#REF!,3,FALSE)) ->  | B23: 16 | C23: 16 | D23: =IF(C23="","",VLOOKUP(C23,#REF!,7,FALSE)) ->  | F23: =IF(E23="","",VLOOKUP(E23,#REF!,7,FALSE)) ->  | H23: =IF(G23="","",VLOOKUP(G23,#REF!,7,FALSE)) ->  | J23: =IF(I23="","",VLOOKUP(I23,#REF!,7,FALSE)) ->  | L23: =IF(K23="","",VLOOKUP(K23,#REF!,7,FALSE)) -> 
A24: =IF(ISNA(VLOOKUP(B24,#REF!,3,FALSE))=TRUE,"",VLOOKUP(B24,#REF!,3,FALSE)) ->  | B24: 14 | C24: 14 | D24: =IF(C24="","",VLOOKUP(C24,#REF!,7,FALSE)) ->  | F24: =IF(E24="","",VLOOKUP(E24,#REF!,7,FALSE)) ->  | H24: =IF(G24="","",VLOOKUP(G24,#REF!,7,FALSE)) ->  | J24: =IF(I24="","",VLOOKUP(I24,#REF!,7,FALSE)) ->  | L24: =IF(K24="","",VLOOKUP(K24,#REF!,7,FALSE)) -> 
A25: =IF(ISNA(VLOOKUP(B25,#REF!,3,FALSE))=TRUE,"",VLOOKUP(B25,#REF!,3,FALSE)) ->  | B25: 24 | C25: 24 | D25: =IF(C25="","",VLOOKUP(C25,#REF!,7,FALSE)) ->  | F25: =IF(E25="","",VLOOKUP(E25,#REF!,7,FALSE)) ->  | H25: =IF(G25="","",VLOOKUP(G25,#REF!,7,FALSE)) ->  | J25: =IF(I25="","",VLOOKUP(I25,#REF!,7,FALSE)) ->  | L25: =IF(K25="","",VLOOKUP(K25,#REF!,7,FALSE)) -> 
A26: =IF(ISNA(VLOOKUP(B26,#REF!,3,FALSE))=TRUE,"",VLOOKUP(B26,#REF!,3,FALSE)) ->  | B26: 15 | C26: 15 | D26: =IF(C26="","",VLOOKUP(C26,#REF!,7,FALSE)) ->  | F26: =IF(E26="","",VLOOKUP(E26,#REF!,7,FALSE)) ->  | H26: =IF(G26="","",VLOOKUP(G26,#REF!,7,FALSE)) ->  | J26: =IF(I26="","",VLOOKUP(I26,#REF!,7,FALSE)) ->  | L26: =IF(K26="","",VLOOKUP(K26,#REF!,7,FALSE)) -> 
A27: =IF(ISNA(VLOOKUP(B27,#REF!,3,FALSE))=TRUE,"",VLOOKUP(B27,#REF!,3,FALSE)) ->  | B27: 19 | C27: 19 | D27: =IF(C27="","",VLOOKUP(C27,#REF!,7,FALSE)) ->  | F27: =IF(E27="","",VLOOKUP(E27,#REF!,7,FALSE)) ->  | H27: =IF(G27="","",VLOOKUP(G27,#REF!,7,FALSE)) ->  | J27: =IF(I27="","",VLOOKUP(I27,#REF!,7,FALSE)) ->  | L27: =IF(K27="","",VLOOKUP(K27,#REF!,7,FALSE)) -> 
A28: =IF(ISNA(VLOOKUP(B28,#REF!,3,FALSE))=TRUE,"",VLOOKUP(B28,#REF!,3,FALSE)) ->  | B28: 18 | C28: 18 | D28: =IF(C28="","",VLOOKUP(C28,#REF!,7,FALSE)) ->  | F28: =IF(E28="","",VLOOKUP(E28,#REF!,7,FALSE)) ->  | H28: =IF(G28="","",VLOOKUP(G28,#REF!,7,FALSE)) ->  | J28: =IF(I28="","",VLOOKUP(I28,#REF!,7,FALSE)) ->  | L28: =IF(K28="","",VLOOKUP(K28,#REF!,7,FALSE)) -> 
A29: =IF(ISNA(VLOOKUP(B29,#REF!,3,FALSE))=TRUE,"",VLOOKUP(B29,#REF!,3,FALSE)) ->  | B29: 7 | C29: 7 | D29: =IF(C29="","",VLOOKUP(C29,#REF!,7,FALSE)) ->  | F29: =IF(E29="","",VLOOKUP(E29,#REF!,7,FALSE)) ->  | H29: =IF(G29="","",VLOOKUP(G29,#REF!,7,FALSE)) ->  | J29: =IF(I29="","",VLOOKUP(I29,#REF!,7,FALSE)) ->  | L29: =IF(K29="","",VLOOKUP(K29,#REF!,7,FALSE)) -> 
A30: =IF(ISNA(VLOOKUP(B30,#REF!,3,FALSE))=TRUE,"",VLOOKUP(B30,#REF!,3,FALSE)) ->  | B30: 3 | C30: 3 | D30: =IF(C30="","",VLOOKUP(C30,#REF!,7,FALSE)) ->  | F30: =IF(E30="","",VLOOKUP(E30,#REF!,7,FALSE)) ->  | H30: =IF(G30="","",VLOOKUP(G30,#REF!,7,FALSE)) ->  | J30: =IF(I30="","",VLOOKUP(I30,#REF!,7,FALSE)) ->  | L30: =IF(K30="","",VLOOKUP(K30,#REF!,7,FALSE)) -> 
A31: =IF(ISNA(VLOOKUP(B31,#REF!,3,FALSE))=TRUE,"",VLOOKUP(B31,#REF!,3,FALSE)) ->  | B31: 5 | C31: 5 | D31: =IF(C31="","",VLOOKUP(C31,#REF!,7,FALSE)) ->  | F31: =IF(E31="","",VLOOKUP(E31,#REF!,7,FALSE)) ->  | H31: =IF(G31="","",VLOOKUP(G31,#REF!,7,FALSE)) ->  | J31: =IF(I31="","",VLOOKUP(I31,#REF!,7,FALSE)) ->  | L31: =IF(K31="","",VLOOKUP(K31,#REF!,7,FALSE)) -> 
A32: =IF(ISNA(VLOOKUP(B32,#REF!,2,FALSE))=TRUE,"",VLOOKUP(B32,#REF!,2,FALSE)) ->  | B32: 8 | C32: 8 | D32: =IF(C32="","",VLOOKUP(C32,#REF!,7,FALSE)) ->  | F32: =IF(E32="","",VLOOKUP(E32,#REF!,7,FALSE)) ->  | H32: =IF(G32="","",VLOOKUP(G32,#REF!,7,FALSE)) ->  | J32: =IF(I32="","",VLOOKUP(I32,#REF!,7,FALSE)) ->  | L32: =IF(K32="","",VLOOKUP(K32,#REF!,7,FALSE)) -> 
A33: =IF(ISNA(VLOOKUP(B33,#REF!,2,FALSE))=TRUE,"",VLOOKUP(B33,#REF!,2,FALSE)) ->  | B33: 13 | C33: 13 | D33: =IF(C33="","",VLOOKUP(C33,#REF!,7,FALSE)) ->  | F33: =IF(E33="","",VLOOKUP(E33,#REF!,7,FALSE)) ->  | H33: =IF(G33="","",VLOOKUP(G33,#REF!,7,FALSE)) ->  | J33: =IF(I33="","",VLOOKUP(I33,#REF!,7,FALSE)) ->  | L33: =IF(K33="","",VLOOKUP(K33,#REF!,7,FALSE)) -> 
A34: Day 1 Zone Winner | C34: IAN LAMBERT | E34: IVOR SMITH | G34: WAYNE PERRING | I34: JOE ARCH | K34: KEN SHOVE
A35: Day 1 Zone Second | C35: ALAN PRICE | E35: SIMON DRAYTON | G35: ROB TUCK | I35: JOHN VAN CRUGTEN | K35: LEE CULLEN
A36: Day 1 Zone Third | C36: NEIL CUTLER | E36: MIKE KEMPSTER | G36: TONY THOMAS | I36: JIM GROSS | K36: TONY ANDERSON
A37: Day 1 Zone Third | K37: C. READ
A38: SAMF 2006 National Sea League Final - Day 2
A39: Team Name | B39: Team No. | C39: Zone A | E39: Zone B | G39: Zone C | I39: Zone D | K39: Zone E | M39: Day 2 Points | N39: Day 2 Position
C40: Peg | D40: Points & Position | E40: Peg | F40: Points & Position | G40: Peg | H40: Points & Position | I40: Peg | J40: Points & Position | K40: Peg | L40: Points & Position
A41: =IF(ISNA(VLOOKUP(B41,#REF!,3,FALSE))=TRUE,"",VLOOKUP(B41,#REF!,3,FALSE)) ->  | B41: 11 | C41: =VLOOKUP(B41,#REF!,6,FALSE) ->  | D41: =IF(C41="","",VLOOKUP(C41,#REF!,7,FALSE)) ->  | E41: =IF(C41="","",IF((C41+NpZ+ZP)>2*NpZ,(((C41+NpZ+ZP)-2*NpZ)+NpZ),(C41+NpZ+ZP))) ->  | F41: =IF(E41="","",VLOOKUP(E41,#REF!,7,FALSE)) ->  | G41: =IF(E41="","",IF((E41+NpZ+ZP)>3*NpZ,(((E41+NpZ+ZP)-2*NpZ)+NpZ),(E41+NpZ+ZP))) ->  | H41: =IF(G41="","",VLOOKUP(G41,#REF!,7,FALSE)) ->  | I41: =IF(G41="","",IF((G41+NpZ+ZP)>4*NpZ,(((G41+NpZ+ZP)-2*NpZ)+NpZ),(G41+NpZ+ZP))) ->  | J41: =IF(I41="","",VLOOKUP(I41,#REF!,7,FALSE)) ->  | K41: =IF(I41="","",IF((I41+NpZ+ZP)>5*NpZ,(((I41+NpZ+ZP)-2*NpZ)+NpZ),(I41+NpZ+ZP))) ->  | L41: =IF(K41="","",VLOOKUP(K41,#REF!,7,FALSE)) ->  | M41: =IF(B41="","",(D41+F41+H41+J41+L41)) ->  | N41: =IF(M41="","",IF(M41=M40,N40,ROW()-40)) -> 
A42: =IF(ISNA(VLOOKUP(B42,#REF!,3,FALSE))=TRUE,"",VLOOKUP(B42,#REF!,3,FALSE)) ->  | B42: 30 | C42: =VLOOKUP(B42,#REF!,6,FALSE) ->  | D42: =IF(C42="","",VLOOKUP(C42,#REF!,7,FALSE)) ->  | E42: =IF(C42="","",IF((C42+NpZ+ZP)>2*NpZ,(((C42+NpZ+ZP)-2*NpZ)+NpZ),(C42+NpZ+ZP))) ->  | F42: =IF(E42="","",VLOOKUP(E42,#REF!,7,FALSE)) ->  | G42: =IF(E42="","",IF((E42+NpZ+ZP)>3*NpZ,(((E42+NpZ+ZP)-2*NpZ)+NpZ),(E42+NpZ+ZP))) ->  | H42: =IF(G42="","",VLOOKUP(G42,#REF!,7,FALSE)) ->  | I42: =IF(G42="","",IF((G42+NpZ+ZP)>4*NpZ,(((G42+NpZ+ZP)-2*NpZ)+NpZ),(G42+NpZ+ZP))) ->  | J42: =IF(I42="","",VLOOKUP(I42,#REF!,7,FALSE)) ->  | K42: =IF(I42="","",IF((I42+NpZ+ZP)>5*NpZ,(((I42+NpZ+ZP)-2*NpZ)+NpZ),(I42+NpZ+ZP))) ->  | L42: =IF(K42="","",VLOOKUP(K42,#REF!,7,FALSE)) ->  | N42: =IF(M42="","",IF(M42=M41,N41,ROW()-40)) -> 
A43: =IF(ISNA(VLOOKUP(B43,#REF!,3,FALSE))=TRUE,"",VLOOKUP(B43,#REF!,3,FALSE)) ->  | B43: 12 | C43: =VLOOKUP(B43,#REF!,6,FALSE) ->  | D43: =IF(C43="","",VLOOKUP(C43,#REF!,7,FALSE)) ->  | F43: =IF(E43="","",VLOOKUP(E43,#REF!,7,FALSE)) ->  | H43: =IF(G43="","",VLOOKUP(G43,#REF!,7,FALSE)) ->  | J43: =IF(I43="","",VLOOKUP(I43,#REF!,7,FALSE)) ->  | L43: =IF(K43="","",VLOOKUP(K43,#REF!,7,FALSE)) -> 
A44: =IF(ISNA(VLOOKUP(B44,#REF!,3,FALSE))=TRUE,"",VLOOKUP(B44,#REF!,3,FALSE)) ->  | B44: 9 | C44: =VLOOKUP(B44,#REF!,6,FALSE) ->  | D44: =IF(C44="","",VLOOKUP(C44,#REF!,7,FALSE)) ->  | F44: =IF(E44="","",VLOOKUP(E44,#REF!,7,FALSE)) ->  | H44: =IF(G44="","",VLOOKUP(G44,#REF!,7,FALSE)) ->  | J44: =IF(I44="","",VLOOKUP(I44,#REF!,7,FALSE)) ->  | L44: =IF(K44="","",VLOOKUP(K44,#REF!,7,FALSE)) ->  | N44: =IF(M44="","",IF(M44=M43,N43,ROW()-40)) -> 
A45: =IF(ISNA(VLOOKUP(B45,#REF!,3,FALSE))=TRUE,"",VLOOKUP(B45,#REF!,3,FALSE)) ->  | B45: 20 | C45: =VLOOKUP(B45,#REF!,6,FALSE) ->  | D45: =IF(C45="","",VLOOKUP(C45,#REF!,7,FALSE)) ->  | F45: =IF(E45="","",VLOOKUP(E45,#REF!,7,FALSE)) ->  | H45: =IF(G45="","",VLOOKUP(G45,#REF!,7,FALSE)) ->  | J45: =IF(I45="","",VLOOKUP(I45,#REF!,7,FALSE)) ->  | L45: =IF(K45="","",VLOOKUP(K45,#REF!,7,FALSE)) -> 
A46: =IF(ISNA(VLOOKUP(B46,#REF!,3,FALSE))=TRUE,"",VLOOKUP(B46,#REF!,3,FALSE)) ->  | B46: 10 | C46: =VLOOKUP(B46,#REF!,6,FALSE) ->  | D46: =IF(C46="","",VLOOKUP(C46,#REF!,7,FALSE)) ->  | F46: =IF(E46="","",VLOOKUP(E46,#REF!,7,FALSE)) ->  | H46: =IF(G46="","",VLOOKUP(G46,#REF!,7,FALSE)) ->  | J46: =IF(I46="","",VLOOKUP(I46,#REF!,7,FALSE)) ->  | L46: =IF(K46="","",VLOOKUP(K46,#REF!,7,FALSE)) -> 
A47: =IF(ISNA(VLOOKUP(B47,#REF!,3,FALSE))=TRUE,"",VLOOKUP(B47,#REF!,3,FALSE)) ->  | B47: 2 | C47: =VLOOKUP(B47,#REF!,6,FALSE) ->  | D47: =IF(C47="","",VLOOKUP(C47,#REF!,7,FALSE)) ->  | F47: =IF(E47="","",VLOOKUP(E47,#REF!,7,FALSE)) ->  | H47: =IF(G47="","",VLOOKUP(G47,#REF!,7,FALSE)) ->  | J47: =IF(I47="","",VLOOKUP(I47,#REF!,7,FALSE)) ->  | L47: =IF(K47="","",VLOOKUP(K47,#REF!,7,FALSE)) -> 
A48: =IF(ISNA(VLOOKUP(B48,#REF!,3,FALSE))=TRUE,"",VLOOKUP(B48,#REF!,3,FALSE)) ->  | B48: 27 | C48: =VLOOKUP(B48,#REF!,6,FALSE) ->  | D48: =IF(C48="","",VLOOKUP(C48,#REF!,7,FALSE)) ->  | F48: =IF(E48="","",VLOOKUP(E48,#REF!,7,FALSE)) ->  | H48: =IF(G48="","",VLOOKUP(G48,#REF!,7,FALSE)) ->  | J48: =IF(I48="","",VLOOKUP(I48,#REF!,7,FALSE)) ->  | L48: =IF(K48="","",VLOOKUP(K48,#REF!,7,FALSE)) -> 
A49: =IF(ISNA(VLOOKUP(B49,#REF!,3,FALSE))=TRUE,"",VLOOKUP(B49,#REF!,3,FALSE)) ->  | B49: 22 | C49: =VLOOKUP(B49,#REF!,6,FALSE) ->  | D49: =IF(C49="","",VLOOKUP(C49,#REF!,7,FALSE)) ->  | F49: =IF(E49="","",VLOOKUP(E49,#REF!,7,FALSE)) ->  | H49: =IF(G49="","",VLOOKUP(G49,#REF!,7,FALSE)) ->  | J49: =IF(I49="","",VLOOKUP(I49,#REF!,7,FALSE)) ->  | L49: =IF(K49="","",VLOOKUP(K49,#REF!,7,FALSE)) -> 
A50: =IF(ISNA(VLOOKUP(B50,#REF!,3,FALSE))=TRUE,"",VLOOKUP(B50,#REF!,3,FALSE)) ->  | B50: 15 | C50: =VLOOKUP(B50,#REF!,6,FALSE) ->  | D50: =IF(C50="","",VLOOKUP(C50,#REF!,7,FALSE)) ->  | F50: =IF(E50="","",VLOOKUP(E50,#REF!,7,FALSE)) ->  | H50: =IF(G50="","",VLOOKUP(G50,#REF!,7,FALSE)) ->  | J50: =IF(I50="","",VLOOKUP(I50,#REF!,7,FALSE)) ->  | L50: =IF(K50="","",VLOOKUP(K50,#REF!,7,FALSE)) -> 
A51: =IF(ISNA(VLOOKUP(B51,#REF!,3,FALSE))=TRUE,"",VLOOKUP(B51,#REF!,3,FALSE)) ->  | B51: 24 | C51: =VLOOKUP(B51,#REF!,6,FALSE) ->  | D51: =IF(C51="","",VLOOKUP(C51,#REF!,7,FALSE)) ->  | F51: =IF(E51="","",VLOOKUP(E51,#REF!,7,FALSE)) ->  | H51: =IF(G51="","",VLOOKUP(G51,#REF!,7,FALSE)) ->  | J51: =IF(I51="","",VLOOKUP(I51,#REF!,7,FALSE)) ->  | L51: =IF(K51="","",VLOOKUP(K51,#REF!,7,FALSE)) -> 
A52: =IF(ISNA(VLOOKUP(B52,#REF!,3,FALSE))=TRUE,"",VLOOKUP(B52,#REF!,3,FALSE)) ->  | B52: 1 | C52: =VLOOKUP(B52,#REF!,6,FALSE) ->  | D52: =IF(C52="","",VLOOKUP(C52,#REF!,7,FALSE)) ->  | F52: =IF(E52="","",VLOOKUP(E52,#REF!,7,FALSE)) ->  | H52: =IF(G52="","",VLOOKUP(G52,#REF!,7,FALSE)) ->  | J52: =IF(I52="","",VLOOKUP(I52,#REF!,7,FALSE)) ->  | L52: =IF(K52="","",VLOOKUP(K52,#REF!,7,FALSE)) -> 
A53: =IF(ISNA(VLOOKUP(B53,#REF!,3,FALSE))=TRUE,"",VLOOKUP(B53,#REF!,3,FALSE)) ->  | B53: 29 | C53: =VLOOKUP(B53,#REF!,6,FALSE) ->  | D53: =IF(C53="","",VLOOKUP(C53,#REF!,7,FALSE)) ->  | F53: =IF(E53="","",VLOOKUP(E53,#REF!,7,FALSE)) ->  | H53: =IF(G53="","",VLOOKUP(G53,#REF!,7,FALSE)) ->  | J53: =IF(I53="","",VLOOKUP(I53,#REF!,7,FALSE)) ->  | L53: =IF(K53="","",VLOOKUP(K53,#REF!,7,FALSE)) -> 
A54: =IF(ISNA(VLOOKUP(B54,#REF!,3,FALSE))=TRUE,"",VLOOKUP(B54,#REF!,3,FALSE)) ->  | B54: 26 | C54: =VLOOKUP(B54,#REF!,6,FALSE) ->  | D54: =IF(C54="","",VLOOKUP(C54,#REF!,7,FALSE)) ->  | F54: =IF(E54="","",VLOOKUP(E54,#REF!,7,FALSE)) ->  | H54: =IF(G54="","",VLOOKUP(G54,#REF!,7,FALSE)) ->  | J54: =IF(I54="","",VLOOKUP(I54,#REF!,7,FALSE)) ->  | L54: =IF(K54="","",VLOOKUP(K54,#REF!,7,FALSE)) -> 
A55: =IF(ISNA(VLOOKUP(B55,#REF!,3,FALSE))=TRUE,"",VLOOKUP(B55,#REF!,3,FALSE)) ->  | B55: 14 | C55: =VLOOKUP(B55,#REF!,6,FALSE) ->  | D55: =IF(C55="","",VLOOKUP(C55,#REF!,7,FALSE)) ->  | F55: =IF(E55="","",VLOOKUP(E55,#REF!,7,FALSE)) ->  | H55: =IF(G55="","",VLOOKUP(G55,#REF!,7,FALSE)) ->  | J55: =IF(I55="","",VLOOKUP(I55,#REF!,7,FALSE)) ->  | L55: =IF(K55="","",VLOOKUP(K55,#REF!,7,FALSE)) -> 
A56: =IF(ISNA(VLOOKUP(B56,#REF!,3,FALSE))=TRUE,"",VLOOKUP(B56,#REF!,3,FALSE)) ->  | B56: 28 | C56: =VLOOKUP(B56,#REF!,6,FALSE) ->  | D56: =IF(C56="","",VLOOKUP(C56,#REF!,7,FALSE)) ->  | F56: =IF(E56="","",VLOOKUP(E56,#REF!,7,FALSE)) ->  | H56: =IF(G56="","",VLOOKUP(G56,#REF!,7,FALSE)) ->  | J56: =IF(I56="","",VLOOKUP(I56,#REF!,7,FALSE)) ->  | L56: =IF(K56="","",VLOOKUP(K56,#REF!,7,FALSE)) -> 
A57: =IF(ISNA(VLOOKUP(B57,#REF!,3,FALSE))=TRUE,"",VLOOKUP(B57,#REF!,3,FALSE)) ->  | B57: 4 | C57: =VLOOKUP(B57,#REF!,6,FALSE) ->  | D57: =IF(C57="","",VLOOKUP(C57,#REF!,7,FALSE)) ->  | F57: =IF(E57="","",VLOOKUP(E57,#REF!,7,FALSE)) ->  | H57: =IF(G57="","",VLOOKUP(G57,#REF!,7,FALSE)) ->  | J57: =IF(I57="","",VLOOKUP(I57,#REF!,7,FALSE)) ->  | L57: =IF(K57="","",VLOOKUP(K57,#REF!,7,FALSE)) -> 
A58: =IF(ISNA(VLOOKUP(B58,#REF!,3,FALSE))=TRUE,"",VLOOKUP(B58,#REF!,3,FALSE)) ->  | B58: 21 | C58: =VLOOKUP(B58,#REF!,6,FALSE) ->  | D58: =IF(C58="","",VLOOKUP(C58,#REF!,7,FALSE)) ->  | F58: =IF(E58="","",VLOOKUP(E58,#REF!,7,FALSE)) ->  | H58: =IF(G58="","",VLOOKUP(G58,#REF!,7,FALSE)) ->  | J58: =IF(I58="","",VLOOKUP(I58,#REF!,7,FALSE)) ->  | L58: =IF(K58="","",VLOOKUP(K58,#REF!,7,FALSE)) -> 
A59: =IF(ISNA(VLOOKUP(B59,#REF!,3,FALSE))=TRUE,"",VLOOKUP(B59,#REF!,3,FALSE)) ->  | B59: 17 | C59: =VLOOKUP(B59,#REF!,6,FALSE) ->  | D59: =IF(C59="","",VLOOKUP(C59,#REF!,7,FALSE)) ->  | F59: =IF(E59="","",VLOOKUP(E59,#REF!,7,FALSE)) ->  | H59: =IF(G59="","",VLOOKUP(G59,#REF!,7,FALSE)) ->  | J59: =IF(I59="","",VLOOKUP(I59,#REF!,7,FALSE)) ->  | L59: =IF(K59="","",VLOOKUP(K59,#REF!,7,FALSE)) -> 
A60: =IF(ISNA(VLOOKUP(B60,#REF!,3,FALSE))=TRUE,"",VLOOKUP(B60,#REF!,3,FALSE)) ->  | B60: 16 | C60: =VLOOKUP(B60,#REF!,6,FALSE) ->  | D60: =IF(C60="","",VLOOKUP(C60,#REF!,7,FALSE)) ->  | F60: =IF(E60="","",VLOOKUP(E60,#REF!,7,FALSE)) ->  | H60: =IF(G60="","",VLOOKUP(G60,#REF!,7,FALSE)) ->  | J60: =IF(I60="","",VLOOKUP(I60,#REF!,7,FALSE)) ->  | L60: =IF(K60="","",VLOOKUP(K60,#REF!,7,FALSE)) -> 
A61: =IF(ISNA(VLOOKUP(B61,#REF!,3,FALSE))=TRUE,"",VLOOKUP(B61,#REF!,3,FALSE)) ->  | B61: 25 | C61: =VLOOKUP(B61,#REF!,6,FALSE) ->  | D61: =IF(C61="","",VLOOKUP(C61,#REF!,7,FALSE)) ->  | F61: =IF(E61="","",VLOOKUP(E61,#REF!,7,FALSE)) ->  | H61: =IF(G61="","",VLOOKUP(G61,#REF!,7,FALSE)) ->  | J61: =IF(I61="","",VLOOKUP(I61,#REF!,7,FALSE)) ->  | L61: =IF(K61="","",VLOOKUP(K61,#REF!,7,FALSE)) -> 
A62: =IF(ISNA(VLOOKUP(B62,#REF!,3,FALSE))=TRUE,"",VLOOKUP(B62,#REF!,3,FALSE)) ->  | B62: 19 | C62: =VLOOKUP(B62,#REF!,6,FALSE) ->  | D62: =IF(C62="","",VLOOKUP(C62,#REF!,7,FALSE)) ->  | F62: =IF(E62="","",VLOOKUP(E62,#REF!,7,FALSE)) ->  | H62: =IF(G62="","",VLOOKUP(G62,#REF!,7,FALSE)) ->  | J62: =IF(I62="","",VLOOKUP(I62,#REF!,7,FALSE)) ->  | L62: =IF(K62="","",VLOOKUP(K62,#REF!,7,FALSE)) ->  | M62: =IF(B62="","",(D62+F62+H62+J62+L62)) -> 
A63: =IF(ISNA(VLOOKUP(B63,#REF!,3,FALSE))=TRUE,"",VLOOKUP(B63,#REF!,3,FALSE)) ->  | B63: 3 | C63: =VLOOKUP(B63,#REF!,6,FALSE) ->  | D63: =IF(C63="","",VLOOKUP(C63,#REF!,7,FALSE)) ->  | F63: =IF(E63="","",VLOOKUP(E63,#REF!,7,FALSE)) ->  | H63: =IF(G63="","",VLOOKUP(G63,#REF!,7,FALSE)) ->  | J63: =IF(I63="","",VLOOKUP(I63,#REF!,7,FALSE)) ->  | L63: =IF(K63="","",VLOOKUP(K63,#REF!,7,FALSE)) -> 
A64: =IF(ISNA(VLOOKUP(B64,#REF!,3,FALSE))=TRUE,"",VLOOKUP(B64,#REF!,3,FALSE)) ->  | B64: 5 | C64: =VLOOKUP(B64,#REF!,6,FALSE) ->  | D64: =IF(C64="","",VLOOKUP(C64,#REF!,7,FALSE)) ->  | F64: =IF(E64="","",VLOOKUP(E64,#REF!,7,FALSE)) ->  | H64: =IF(G64="","",VLOOKUP(G64,#REF!,7,FALSE)) ->  | J64: =IF(I64="","",VLOOKUP(I64,#REF!,7,FALSE)) ->  | L64: =IF(K64="","",VLOOKUP(K64,#REF!,7,FALSE)) -> 
A65: =IF(ISNA(VLOOKUP(B65,#REF!,3,FALSE))=TRUE,"",VLOOKUP(B65,#REF!,3,FALSE)) ->  | B65: 6 | C65: =VLOOKUP(B65,#REF!,6,FALSE) ->  | D65: =IF(C65="","",VLOOKUP(C65,#REF!,7,FALSE)) ->  | F65: =IF(E65="","",VLOOKUP(E65,#REF!,7,FALSE)) ->  | H65: =IF(G65="","",VLOOKUP(G65,#REF!,7,FALSE)) ->  | J65: =IF(I65="","",VLOOKUP(I65,#REF!,7,FALSE)) ->  | L65: =IF(K65="","",VLOOKUP(K65,#REF!,7,FALSE)) -> 
A66: =IF(ISNA(VLOOKUP(B66,#REF!,3,FALSE))=TRUE,"",VLOOKUP(B66,#REF!,3,FALSE)) ->  | B66: 7 | C66: =VLOOKUP(B66,#REF!,6,FALSE) ->  | D66: =IF(C66="","",VLOOKUP(C66,#REF!,7,FALSE)) ->  | F66: =IF(E66="","",VLOOKUP(E66,#REF!,7,FALSE)) ->  | H66: =IF(G66="","",VLOOKUP(G66,#REF!,7,FALSE)) ->  | J66: =IF(I66="","",VLOOKUP(I66,#REF!,7,FALSE)) ->  | L66: =IF(K66="","",VLOOKUP(K66,#REF!,7,FALSE)) -> 
A67: =IF(ISNA(VLOOKUP(B67,#REF!,3,FALSE))=TRUE,"",VLOOKUP(B67,#REF!,3,FALSE)) ->  | B67: 8 | C67: =VLOOKUP(B67,#REF!,6,FALSE) ->  | D67: =IF(C67="","",VLOOKUP(C67,#REF!,7,FALSE)) ->  | F67: =IF(E67="","",VLOOKUP(E67,#REF!,7,FALSE)) ->  | H67: =IF(G67="","",VLOOKUP(G67,#REF!,7,FALSE)) ->  | J67: =IF(I67="","",VLOOKUP(I67,#REF!,7,FALSE)) ->  | L67: =IF(K67="","",VLOOKUP(K67,#REF!,7,FALSE)) -> 
A68: =IF(ISNA(VLOOKUP(B68,#REF!,3,FALSE))=TRUE,"",VLOOKUP(B68,#REF!,3,FALSE)) ->  | B68: 13 | C68: =VLOOKUP(B68,#REF!,6,FALSE) ->  | D68: =IF(C68="","",VLOOKUP(C68,#REF!,7,FALSE)) ->  | F68: =IF(E68="","",VLOOKUP(E68,#REF!,7,FALSE)) ->  | H68: =IF(G68="","",VLOOKUP(G68,#REF!,7,FALSE)) ->  | J68: =IF(I68="","",VLOOKUP(I68,#REF!,7,FALSE)) ->  | L68: =IF(K68="","",VLOOKUP(K68,#REF!,7,FALSE)) -> 
A69: =IF(ISNA(VLOOKUP(B69,#REF!,3,FALSE))=TRUE,"",VLOOKUP(B69,#REF!,3,FALSE)) ->  | B69: 18 | C69: =VLOOKUP(B69,#REF!,6,FALSE) ->  | D69: =IF(C69="","",VLOOKUP(C69,#REF!,7,FALSE)) ->  | F69: =IF(E69="","",VLOOKUP(E69,#REF!,7,FALSE)) ->  | H69: =IF(G69="","",VLOOKUP(G69,#REF!,7,FALSE)) ->  | J69: =IF(I69="","",VLOOKUP(I69,#REF!,7,FALSE)) ->  | L69: =IF(K69="","",VLOOKUP(K69,#REF!,7,FALSE)) -> 
A70: =IF(ISNA(VLOOKUP(B70,#REF!,3,FALSE))=TRUE,"",VLOOKUP(B70,#REF!,3,FALSE)) ->  | B70: 23 | C70: =VLOOKUP(B70,#REF!,6,FALSE) ->  | D70: =IF(C70="","",VLOOKUP(C70,#REF!,7,FALSE)) ->  | F70: =IF(E70="","",VLOOKUP(E70,#REF!,7,FALSE)) ->  | H70: =IF(G70="","",VLOOKUP(G70,#REF!,7,FALSE)) ->  | J70: =IF(I70="","",VLOOKUP(I70,#REF!,7,FALSE)) ->  | L70: =IF(K70="","",VLOOKUP(K70,#REF!,7,FALSE)) -> 
A71: Day 2 Zone Winner | C71: A. PRICE | E71: DAVE READ | G71: FRANCIS JONES | I71: SIMON DRAYTON | K71: CRAIG BUY
A72: Day 2 Zone Winner | E72: A. HUTCHINGS
A73: Day 2 Zone Second | C73: IAN DAVIS | G73: BRADLEY BONE | I73: JOE ARCH | K73: ALLAN SMITH
A74: Day 2 Zone Third | C74: MARK SHARMAN | E74: RICHARD POTTS | G74: IAN BELLFIELD | I74: MARK VERINDER | K74: JAMES BROWN
A75: Day 2 Zone Third | C75: GERRY BELL
A76: SAMF 2006 National Sea League Final - Final Positions
A77: Team Name | B77: Team No. | C77: Day 1 Points | D77: Day 2 Points | E77: Total Points | F77: Overall Position
A79: =IF(ISNA(VLOOKUP(B79,#REF!,3,FALSE))=TRUE,"",VLOOKUP(B79,#REF!,3,FALSE)) ->  | B79: 12 | C79: =VLOOKUP(B79,$B$4:$M$32,12,FALSE) ->  | D79: =VLOOKUP(B79,$B$41:$M$70,12,FALSE) ->  | E79: =IF(B79="","",(C79+D79)) ->  | F79: =IF(E79="","",IF(E79=E78,F78,ROW()-78)) -> 
A80: =IF(ISNA(VLOOKUP(B80,#REF!,3,FALSE))=TRUE,"",VLOOKUP(B80,#REF!,3,FALSE)) ->  | B80: 11 | F80: =IF(E80="","",IF(E80=E79,F79,ROW()-78)) -> 
A81: =IF(ISNA(VLOOKUP(B81,#REF!,3,FALSE))=TRUE,"",VLOOKUP(B81,#REF!,3,FALSE)) ->  | B81: 9
A82: =IF(ISNA(VLOOKUP(B82,#REF!,3,FALSE))=TRUE,"",VLOOKUP(B82,#REF!,3,FALSE)) ->  | B82: 30
A83: =IF(ISNA(VLOOKUP(B83,#REF!,3,FALSE))=TRUE,"",VLOOKUP(B83,#REF!,3,FALSE)) ->  | B83: 10
A84: =IF(ISNA(VLOOKUP(B84,#REF!,3,FALSE))=TRUE,"",VLOOKUP(B84,#REF!,3,FALSE)) ->  | B84: 20
A85: =IF(ISNA(VLOOKUP(B85,#REF!,3,FALSE))=TRUE,"",VLOOKUP(B85,#REF!,3,FALSE)) ->  | B85: 27
A86: =IF(ISNA(VLOOKUP(B86,#REF!,3,FALSE))=TRUE,"",VLOOKUP(B86,#REF!,3,FALSE)) ->  | B86: 22
A87: =IF(ISNA(VLOOKUP(B87,#REF!,3,FALSE))=TRUE,"",VLOOKUP(B87,#REF!,3,FALSE)) ->  | B87: 26
A88: =IF(ISNA(VLOOKUP(B88,#REF!,3,FALSE))=TRUE,"",VLOOKUP(B88,#REF!,3,FALSE)) ->  | B88: 2
A89: =IF(ISNA(VLOOKUP(B89,#REF!,3,FALSE))=TRUE,"",VLOOKUP(B89,#REF!,3,FALSE)) ->  | B89: 4
A90: =IF(ISNA(VLOOKUP(B90,#REF!,3,FALSE))=TRUE,"",VLOOKUP(B90,#REF!,3,FALSE)) ->  | B90: 21
A91: =IF(ISNA(VLOOKUP(B91,#REF!,3,FALSE))=TRUE,"",VLOOKUP(B91,#REF!,3,FALSE)) ->  | B91: 1 | C91: =VLOOKUP(B91,$B$4:$M$32,12,FALSE) ->  | D91: =VLOOKUP(B91,$B$41:$M$70,12,FALSE) ->  | E91: =IF(B91="","",(C91+D91)) -> 
A92: =IF(ISNA(VLOOKUP(B92,#REF!,3,FALSE))=TRUE,"",VLOOKUP(B92,#REF!,3,FALSE)) ->  | B92: 28
A93: =IF(ISNA(VLOOKUP(B93,#REF!,3,FALSE))=TRUE,"",VLOOKUP(B93,#REF!,3,FALSE)) ->  | B93: 29 | D93: =VLOOKUP(B93,$B$41:$M$70,12,FALSE) ->  | E93: =IF(B93="","",(C93+D93)) -> 
A94: =IF(ISNA(VLOOKUP(B94,#REF!,3,FALSE))=TRUE,"",VLOOKUP(B94,#REF!,3,FALSE)) ->  | B94: 25
A95: =IF(ISNA(VLOOKUP(B95,#REF!,3,FALSE))=TRUE,"",VLOOKUP(B95,#REF!,3,FALSE)) ->  | B95: 17
A96: =IF(ISNA(VLOOKUP(B96,#REF!,3,FALSE))=TRUE,"",VLOOKUP(B96,#REF!,3,FALSE)) ->  | B96: 24
A97: =IF(ISNA(VLOOKUP(B97,#REF!,3,FALSE))=TRUE,"",VLOOKUP(B97,#REF!,3,FALSE)) ->  | B97: 15
A98: =IF(ISNA(VLOOKUP(B98,#REF!,3,FALSE))=TRUE,"",VLOOKUP(B98,#REF!,3,FALSE)) ->  | B98: 14
A99: =IF(ISNA(VLOOKUP(B99,#REF!,3,FALSE))=TRUE,"",VLOOKUP(B99,#REF!,3,FALSE)) ->  | B99: 16
A100: =IF(ISNA(VLOOKUP(B100,#REF!,3,FALSE))=TRUE,"",VLOOKUP(B100,#REF!,3,FALSE)) ->  | B100: 6
A101: =IF(ISNA(VLOOKUP(B101,#REF!,3,FALSE))=TRUE,"",VLOOKUP(B101,#REF!,3,FALSE)) ->  | B101: 19
A102: =IF(ISNA(VLOOKUP(B102,#REF!,3,FALSE))=TRUE,"",VLOOKUP(B102,#REF!,3,FALSE)) ->  | B102: 23
A103: =IF(ISNA(VLOOKUP(B103,#REF!,3,FALSE))=TRUE,"",VLOOKUP(B103,#REF!,3,FALSE)) ->  | B103: 18
A104: =IF(ISNA(VLOOKUP(B104,#REF!,3,FALSE))=TRUE,"",VLOOKUP(B104,#REF!,3,FALSE)) ->  | B104: 7
A105: =IF(ISNA(VLOOKUP(B105,#REF!,3,FALSE))=TRUE,"",VLOOKUP(B105,#REF!,3,FALSE)) ->  | B105: 3
A106: =IF(ISNA(VLOOKUP(B106,#REF!,3,FALSE))=TRUE,"",VLOOKUP(B106,#REF!,3,FALSE)) ->  | B106: 5
A107: =IF(ISNA(VLOOKUP(B107,#REF!,3,FALSE))=TRUE,"",VLOOKUP(B107,#REF!,3,FALSE)) ->  | B107: 8 | D107: =VLOOKUP(B107,$B$41:$M$70,12,FALSE) ->  | E107: =IF(B107="","",(C107+D107)) -> 
A108: =IF(ISNA(VLOOKUP(B108,#REF!,3,FALSE))=TRUE,"",VLOOKUP(B108,#REF!,3,FALSE)) ->  | B108: 13 | C108: =VLOOKUP(B108,$B$4:$M$33,12,FALSE) ->  | D108: =VLOOKUP(B108,$B$41:$M$70,12,FALSE) ->  | E108: =IF(B108="","",(C108+D108)) -> 
A109: =IF(ISNA(VLOOKUP(B109,#REF!,2,FALSE))=TRUE,"",VLOOKUP(B109,#REF!,2,FALSE)) -> 

Sheet Final team results (hidden)
A1: SAMF 2006 National Sea League Final - Final Positions
A2: Team Name | B2: Team No. | C2: Day 1 Points | D2: Day 2 Points | E2: Total Points | F2: Overall Position
A4: ='Auto Team results'!A79 ->  | B4: ='Auto Team results'!B79 -> 12 | C4: ='Auto Team results'!C79 ->  | D4: ='Auto Team results'!D79 ->  | E4: =IF(B4="","",(C4+D4)) ->  | F4: =IF(E4="","",IF(E4=E3,F3,ROW()-3)) -> 
A5: ='Auto Team results'!A80 ->  | B5: ='Auto Team results'!B80 -> 11 | C5: ='Auto Team results'!C80 ->  | D5: ='Auto Team results'!D80 ->  | E5: =IF(B5="","",(C5+D5)) ->  | F5: =IF(E5="","",IF(E5=E4,F4,ROW()-3)) -> 
A6: ='Auto Team results'!A81 ->  | B6: ='Auto Team results'!B81 -> 9 | C6: ='Auto Team results'!C81 ->  | D6: ='Auto Team results'!D81 -> 
A7: ='Auto Team results'!A82 ->  | B7: ='Auto Team results'!B82 -> 30 | C7: ='Auto Team results'!C82 ->  | D7: ='Auto Team results'!D82 -> 
A8: ='Auto Team results'!A83 ->  | B8: ='Auto Team results'!B83 -> 10 | C8: ='Auto Team results'!C83 ->  | D8: ='Auto Team results'!D83 -> 
A9: ='Auto Team results'!A84 ->  | B9: ='Auto Team results'!B84 -> 20 | C9: ='Auto Team results'!C84 ->  | D9: ='Auto Team results'!D84 -> 
A10: ='Auto Team results'!A85 ->  | B10: ='Auto Team results'!B85 -> 27 | C10: ='Auto Team results'!C85 ->  | D10: ='Auto Team results'!D85 -> 
A11: ='Auto Team results'!A86 ->  | B11: ='Auto Team results'!B86 -> 22 | C11: ='Auto Team results'!C86 ->  | D11: ='Auto Team results'!D86 -> 
A12: ='Auto Team results'!A87 ->  | B12: ='Auto Team results'!B87 -> 26 | C12: ='Auto Team results'!C87 ->  | D12: ='Auto Team results'!D87 -> 
A13: ='Auto Team results'!A88 ->  | B13: ='Auto Team results'!B88 -> 2 | C13: ='Auto Team results'!C88 ->  | D13: ='Auto Team results'!D88 -> 
A14: ='Auto Team results'!A89 ->  | B14: ='Auto Team results'!B89 -> 4 | C14: ='Auto Team results'!C89 ->  | D14: ='Auto Team results'!D89 -> 
A15: ='Auto Team results'!A90 ->  | B15: ='Auto Team results'!B90 -> 21 | C15: ='Auto Team results'!C90 ->  | D15: ='Auto Team results'!D90 -> 
A16: ='Auto Team results'!A91 ->  | B16: ='Auto Team results'!B91 -> 1 | C16: ='Auto Team results'!C91 ->  | D16: ='Auto Team results'!D91 -> 
A17: ='Auto Team results'!A92 ->  | B17: ='Auto Team results'!B92 -> 28 | C17: ='Auto Team results'!C92 ->  | D17: ='Auto Team results'!D92 -> 
A18: ='Auto Team results'!A93 ->  | B18: ='Auto Team results'!B93 -> 29 | C18: ='Auto Team results'!C93 ->  | D18: ='Auto Team results'!D93 -> 
A19: ='Auto Team results'!A94 ->  | B19: ='Auto Team results'!B94 -> 25 | C19: ='Auto Team results'!C94 ->  | D19: ='Auto Team results'!D94 -> 
A20: ='Auto Team results'!A95 ->  | B20: ='Auto Team results'!B95 -> 17 | C20: ='Auto Team results'!C95 ->  | D20: ='Auto Team results'!D95 -> 
A21: ='Auto Team results'!A96 ->  | B21: ='Auto Team results'!B96 -> 24 | C21: ='Auto Team results'!C96 ->  | D21: ='Auto Team results'!D96 -> 
A22: ='Auto Team results'!A97 ->  | B22: ='Auto Team results'!B97 -> 15 | C22: ='Auto Team results'!C97 ->  | D22: ='Auto Team results'!D97 -> 
A23: ='Auto Team results'!A98 ->  | B23: ='Auto Team results'!B98 -> 14 | C23: ='Auto Team results'!C98 ->  | D23: ='Auto Team results'!D98 -> 
A24: ='Auto Team results'!A99 ->  | B24: ='Auto Team results'!B99 -> 16 | C24: ='Auto Team results'!C99 ->  | D24: ='Auto Team results'!D99 -> 
A25: ='Auto Team results'!A100 ->  | B25: ='Auto Team results'!B100 -> 6 | C25: ='Auto Team results'!C100 ->  | D25: ='Auto Team results'!D100 -> 
A26: ='Auto Team results'!A101 ->  | B26: ='Auto Team results'!B101 -> 19 | C26: ='Auto Team results'!C101 ->  | D26: ='Auto Team results'!D101 -> 
A27: ='Auto Team results'!A102 ->  | B27: ='Auto Team results'!B102 -> 23 | C27: ='Auto Team results'!C102 ->  | D27: ='Auto Team results'!D102 -> 
A28: ='Auto Team results'!A103 ->  | B28: ='Auto Team results'!B103 -> 18 | C28: ='Auto Team results'!C103 ->  | D28: ='Auto Team results'!D103 -> 
A29: ='Auto Team results'!A104 ->  | B29: ='Auto Team results'!B104 -> 7 | C29: ='Auto Team results'!C104 ->  | D29: ='Auto Team results'!D104 ->  | E29: =IF(B29="","",(C29+D29)) ->  | F29: =IF(E29="","",IF(E29=E28,F28,ROW()-3)) -> 
A30: ='Auto Team results'!A105 ->  | B30: ='Auto Team results'!B105 -> 3 | C30: ='Auto Team results'!C105 ->  | D30: ='Auto Team results'!D105 ->  | E30: =IF(B30="","",(C30+D30)) ->  | F30: =IF(E30="","",IF(E30=E29,F29,ROW()-3)) -> 
A31: ='Auto Team results'!A106 ->  | B31: ='Auto Team results'!B106 -> 5 | C31: ='Auto Team results'!C106 ->  | D31: ='Auto Team results'!D106 ->  | E31: =IF(B31="","",(C31+D31)) ->  | F31: =IF(E31="","",IF(E31=E30,F30,ROW()-3)) -> 

Sheet Winners Detail
A1: Angler No. | B1: Angler | C1: BANK DETAILS RECEIVED | D1: PAID | E1: Total Winnings
A3: 1 | B3: TUCK, Rob | C3: a | D3: a | E3: 860
A4: 2 | B4: BOND, Darren | C4: a | D4: a | E4: 740
A5: 3 | B5: ROGERS, Mark | C5: a | D5: a | E5: 600
A6: 4 | B6: GARDINER, Gareth | C6: a | D6: a | E6: 425
A7: 5 | B7: WALES, Joe | C7: a | D7: a | E7: 365
A8: 6 | B8: FALK, Dave | C8: a | D8: a | E8: 220
A9: 7 | B9: ROYALL, Tony | C9: a | D9: a | E9: 220
A10: 8 | B10: GOOCH, Mark | C10: a | D10: a | E10: 210
A11: 9 | B11: ADAMS, Stephen | C11: a | D11: a | E11: 200
A12: 10 | B12: ADAMS, Graham | C12: a | D12: a | E12: 180
A13: 11 | B13: CROSBY, Colin | C13: a | D13: a | E13: 180
A14: 12 | B14: PRICE, Ben | C14: a | D14: a | E14: 170
A15: 13 | B15: CROSBY, Ralf | C15: a | D15: a | E15: 160
A16: 14 | B16: McCOY, Kenny | C16: a | D16: a | E16: 160
A17: 15 | B17: SMITH, George | C17: a | D17: a | E17: 155
A18: 16 | B18: DIAPER, Barry | C18: a | D18: a | E18: 130
A19: 17 | B19: TAYLOR, Mark | C19: a | D19: a | E19: 130
A20: 18 | B20: BURT, Richard | C20: a | D20: a | E20: 120
A21: 19 | B21: WICKS, Maralyn | C21: a | D21: a | E21: 120
A22: 20 | B22: WOOD, Gary | C22: a | D22: a | E22: 120
A23: 21 | B23: RUSSELL, Shane | C23: a | D23: a | E23: 110
A24: 22 | B24: DRAYTON, Simon | C24: a | D24: a | E24: 80
A25: 23 | B25: LINDFIELD, Bill | C25: a | D25: a | E25: 80
A26: 24 | B26: ROPER, Liam | C26: a | D26: a | E26: 80
A27: 25 | B27: TOPPING, Jack | C27: a | D27: a | E27: 75
A28: 26 | B28: LAY-FLURRIE, Matt | C28: a | D28: a | E28: 70
A29: 27 | B29: NANGLE, Karl | C29: a | D29: a | E29: 70
A30: 28 | B30: WRIGHT, Dave | C30: a | D30: a | E30: 70
A31: 29 | B31: LINDFIELD, Heather | C31: a | D31: a | E31: 60
A32: 30 | B32: BANHAM, Mark | C32: a | D32: a | E32: 55
A33: 31 | B33: DOY, Alan | C33: a | D33: a | E33: 55
A34: 32 | B34: COOPER, Sam | C34: a | D34: a | E34: 50
A35: 33 | B35: GALLACHER, Andy | C35: a | D35: a | E35: 50
A36: 34 | B36: JOHNSON, Billy | C36: a | D36: a | E36: 50
A37: 35 | B37: DENHOLM, Paul | C37: a | D37: a | E37: 40
A38: 36 | B38: MOORING, Luke | C38: a | D38: a | E38: 40
A39: 37 | B39: PAGE, Saul | C39: Donated to Lifeboat | E39: 40
A40: 38 | B40: SHORTHOUSE, Dave | C40: a | D40: a | E40: 40
A41: 39 | B41: TURNER, Cameron | C41: a | D41: a | E41: 40
A42: 40 | B42: WATTS, Mike | C42: a | D42: a | E42: 40
A43: 41 | B43: BROWN, Kay | C43: a | D43: a | E43: 35
A44: 42 | B44: CUTLER, Neil | C44: a | D44: a | E44: 30
A45: 43 | B45: FRENCH, Julian | C45: Cheque | E45: 30
A46: 44 | B46: GASCOIGNE, Robert | C46: a | D46: a | E46: 30
A47: 45 | B47: PLUMSTEAD, Joe | C47: a | D47: a | E47: 30
A48: 46 | B48: RYDER, Edde | C48: a | D48: a | E48: 30
A49: 47 | B49: YALLOP, Stephen | C49: a | D49: a | E49: 30
A50: 48 | B50: LEE, Louise | C50: a | D50: a | E50: 25
A51: 49 | B51: ALDOUS, Brayden | C51: a | D51: a | E51: 20
A52: 50 | B52: DAWBER, Simon | C52: a | D52: a | E52: 20
A53: 51 | B53: HUTSON, Garry | C53: a | D53: a | E53: 20
B54: TOTAL | E54: 6960

Sheet Winners table
A1: Winnings No. | B1: Event Category | C1: Prize Description | D1: Prize Amount/ Goods/Trophy (2021) | E1: Winner Name(s)
A2: 1 | B2: NORTH NORFOLK BASS FESTIVAL | C2: Day 1 - 3rd Zone A Optional Pools | D2: 30 | E2: LAY-FLURRIE, Matt
A3: 2 | B3: NORTH NORFOLK BASS FESTIVAL | C3: Day 1 - 2nd Zone A Optional Pools | D3: 40 | E3: BURT, Richard
A4: 3 | B4: NORTH NORFOLK BASS FESTIVAL | C4: Day 1 - 1st Zone A Optional Pools | D4: 70 | E4: WALES, Joe
A5: 4 | B5: NORTH NORFOLK BASS FESTIVAL | C5: Day 1 - 3rd Zone B Optional Pools | D5: 30 | E5: PLUMSTEAD, Joe
A6: 5 | B6: NORTH NORFOLK BASS FESTIVAL | C6: Day 1 - 2nd Zone B Optional Pools | D6: 40 | E6: GOOCH, Mark
A7: 6 | B7: NORTH NORFOLK BASS FESTIVAL | C7: Day 1 - 1st Zone B Optional Pools | D7: 70 | E7: ROGERS, Mark
A8: 7 | B8: NORTH NORFOLK BASS FESTIVAL | C8: Day 1 - 3rd Zone C Optional Pools | D8: 30 | E8: McCOY, Kenny
A9: 8 | B9: NORTH NORFOLK BASS FESTIVAL | C9: Day 1 - 2nd Zone C Optional Pools | D9: 40 | E9: DENHOLM, Paul
A10: 9 | B10: NORTH NORFOLK BASS FESTIVAL | C10: Day 1 - 1st Zone C Optional Pools | D10: 70 | E10: TUCK, Rob
A11: 10 | B11: NORTH NORFOLK BASS FESTIVAL | C11: Day 1 - 3rd Zone D Optional Pools | D11: 30 | E11: DRAYTON, Simon
A12: 11 | B12: NORTH NORFOLK BASS FESTIVAL | C12: Day 1 - 2nd Zone D Optional Pools | D12: 40 | E12: SMITH, George
A13: 12 | B13: NORTH NORFOLK BASS FESTIVAL | C13: Day 1 - 1st Zone D Optional Pools | D13: 70 | E13: BOND, Darren
A14: 13 | B14: NORTH NORFOLK BASS FESTIVAL | C14: Day 1 - 3rd Zone E Optional Pools | D14: 30 | E14: FRENCH, Julian
A15: 14 | B15: NORTH NORFOLK BASS FESTIVAL | C15: Day 1 - 2nd Zone E Optional Pools | D15: 40 | E15: NANGLE, Karl
A16: 15 | B16: NORTH NORFOLK BASS FESTIVAL | C16: Day 1 - 1st Zone E Optional Pools | D16: 70 | E16: RUSSELL, Shane
A17: 16 | B17: NORTH NORFOLK BASS FESTIVAL | C17: Day 1 - 3rd Zone F Optional Pools | D17: 30 | E17: RYDER, Eddie
A18: 17 | B18: NORTH NORFOLK BASS FESTIVAL | C18: Day 1 - 2nd Zone F Optional Pools | D18: 40 | E18: DOY, Alan
A19: 18 | B19: NORTH NORFOLK BASS FESTIVAL | C19: Day 1 - 1st Zone F Optional Pools | D19: 70 | E19: CROSBY, Ralf
A20: 19 | B20: NORTH NORFOLK BASS FESTIVAL | C20: Day 1 - 3rd Zone G Optional Pools | D20: 30 | E20: WOOD, Gary
A21: 20 | B21: NORTH NORFOLK BASS FESTIVAL | C21: Day 1 - 2nd Zone G Optional Pools | D21: 40 | E21: ROPER, Liam
A22: 21 | B22: NORTH NORFOLK BASS FESTIVAL | C22: Day 1 - 1st Zone G Optional Pools | D22: 70 | E22: FALK, Dave
A23: 22 | B23: NORTH NORFOLK BASS FESTIVAL | C23: Day 1 - 3rd Zone H Optional Pools | D23: 30 | E23: GARDINER, Gareth
A24: 23 | B24: NORTH NORFOLK BASS FESTIVAL | C24: Day 1 - 2nd Zone H Optional Pools | D24: 40 | E24: WRIGHT, Dave
A25: 24 | B25: NORTH NORFOLK BASS FESTIVAL | C25: Day 1 - 1st Zone H Optional Pools | D25: 70 | E25: ROYALL, Tony
A26: 25 | B26: NORTH NORFOLK JUNIORS TOURNAMENT | C26: Day 1 - Winner | D26: Holt SAC £25 prize | E26: TOPPING, Jack
A27: 26 | B27: UK LADIES CHAMPIONSHIPS | C27: Day 1 - Third Place | D27: 25 | E27: LINDFIELD, Heather
A28: 27 | B28: UK LADIES CHAMPIONSHIPS | C28: Day 1 - Runner Up | D28: 35 | E28: BROWN, Kay
A29: 28 | B29: UK LADIES CHAMPIONSHIPS | C29: Day 1 - Winner | D29: 60 | E29: WICKS, Maralyn
A30: =1+A29 -> 29 | B30: NORTH NORFOLK BASS FESTIVAL | C30: Day 1 - 1st Zone A | D30: 10 | E30: WALES, Joe
A31: =1+A30 -> 30 | B31: NORTH NORFOLK BASS FESTIVAL | C31: Day 1 - 1st Zone B | D31: 10 | E31: ROGERS, Mark
A32: 31 | B32: NORTH NORFOLK BASS FESTIVAL | C32: Day 1 - 1st Zone C | D32: 10 | E32: TUCK, Rob
A33: 32 | B33: NORTH NORFOLK BASS FESTIVAL | C33: Day 1 - 1st Zone D | D33: 10 | E33: BOND, Darren
A34: 33 | B34: NORTH NORFOLK BASS FESTIVAL | C34: Day 1 - 1st Zone E | D34: 10 | E34: RUSSELL, Shane
A35: 34 | B35: NORTH NORFOLK BASS FESTIVAL | C35: Day 1 - 1st Zone F | D35: 10 | E35: CROSBY, Ralf
A36: 35 | B36: NORTH NORFOLK BASS FESTIVAL | C36: Day 1 - 1st Zone G | D36: 10 | E36: FALK, Dave
A37: 36 | B37: NORTH NORFOLK BASS FESTIVAL | C37: Day 1 - 1st Zone H | D37: 10 | E37: ROYALL, Tony
A38: 37 | B38: NORTH NORFOLK BASS FESTIVAL | C38: Day 1 - 4th Heaviest Bass Total | D38: 30 | E38: BOND, Darren
A39: 38 | B39: NORTH NORFOLK BASS FESTIVAL | C39: Day 1 - 3rd Heaviest Bass Total | D39: 50 | E39: ROYALL, Tony
A40: 39 | B40: NORTH NORFOLK BASS FESTIVAL | C40: Day 1 - 2nd Heaviest Bass Total | D40: 70 | E40: ROGERS, Mark
A41: 40 | B41: NORTH NORFOLK BASS FESTIVAL | C41: Day 1 - 1st Heaviest Bass Total | D41: 100 | E41: WALES, Joe
A42: 41 | B42: NORTH NORFOLK BASS FESTIVAL | C42: Day 1 - 4th Heaviest All Fish Total | D42: 30 | E42: ROYALL, Tony
A43: 42 | B43: NORTH NORFOLK BASS FESTIVAL | C43: Day 1 - 3rd Heaviest All Fish Total | D43: 50 | E43: ROGERS, Mark
A44: 43 | B44: NORTH NORFOLK BASS FESTIVAL | C44: Day 1 - 2nd Heaviest All Fish Total | D44: 70 | E44: BOND, Darren
A45: 44 | B45: NORTH NORFOLK BASS FESTIVAL | C45: Day 1 - 1st Heaviest All Fish Total | D45: 100 | E45: WALES, Joe
A46: 45 | B46: NORTH NORFOLK BASS FESTIVAL | C46: Day 1 - 4th Heaviest Flattie Total | D46: 30 | E46: GOOCH, Mark
A47: 46 | B47: NORTH NORFOLK BASS FESTIVAL | C47: Day 1 - 3rd Heaviest Flattie Total | D47: 50 | E47: DRAYTON, Simon
A48: 47 | B48: NORTH NORFOLK BASS FESTIVAL | C48: Day 1 - 2nd Heaviest FlattieTotal | D48: 70 | E48: WALES, Joe
A49: 48 | B49: NORTH NORFOLK BASS FESTIVAL | C49: Day 1 -1st Heaviest Flattie Total | D49: 100 | E49: CROSBY, Colin
A50: 49 | B50: NORTH NORFOLK BASS FESTIVAL | C50: Day 1 - 3rd Heaviest Flat Fish= | D50: 15 | E50: GARDINER, Gareth
A51: 50 | B51: NORTH NORFOLK BASS FESTIVAL | C51: Day 1 - 3rd Heaviest Flat Fish= | D51: 15 | E51: WALES, Joe
A52: 51 | B52: NORTH NORFOLK BASS FESTIVAL | C52: Day 1 - Ist Heaviest Flat Fish= | D52: 50 | E52: JOHNSON, Billy
A53: 52 | B53: NORTH NORFOLK BASS FESTIVAL | C53: Day 1 - Ist Heaviest Flat Fish= | D53: 50 | E53: CROSBY, Colin
A54: 53 | B54: NORTH NORFOLK BASS FESTIVAL | C54: Day 1 - 3rd Heaviest Bass= | D54: 15 | E54: SMITH, George
A55: 54 | B55: NORTH NORFOLK BASS FESTIVAL | C55: Day 1 - 3rd Heaviest Bass= | D55: 15 | E55: DOY, Alan
A56: 55 | B56: NORTH NORFOLK BASS FESTIVAL | C56: Day 1 - 2nd Heaviest Bass | D56: 40 | E56: ROPER, Liam
A57: 56 | B57: NORTH NORFOLK BASS FESTIVAL | C57: Day 1 - 1st Heaviest Bass | D57: 60 | E57: ROYALL, Tony
A58: 57 | B58: NORTH NORFOLK BASS FESTIVAL | C58: Day 2 - 3rd Zone A Optional Pools | D58: 30 | E58: CROSBY, Ralf
A59: 58 | B59: NORTH NORFOLK BASS FESTIVAL | C59: Day 2 - 2nd Zone A Optional Pools | D59: 40 | E59: SHORTHOUSE, Dave
A60: 59 | B60: NORTH NORFOLK BASS FESTIVAL | C60: Day 2 - 1st Zone A Optional Pools | D60: 70 | E60: GARDINER, Gareth
A61: 60 | B61: NORTH NORFOLK BASS FESTIVAL | C61: Day 2 - 3rd Zone B Optional Pools | D61: 30 | E61: NANGLE, Karl
A62: 61 | B62: NORTH NORFOLK BASS FESTIVAL | C62: Day 2 - 2nd Zone B Optional Pools | D62: 40 | E62: FALK, Dave
A63: 62 | B63: NORTH NORFOLK BASS FESTIVAL | C63: Day 2 - 1st Zone B Optional Pools | D63: 70 | E63: ADAMS, Graham
A64: 63 | B64: NORTH NORFOLK BASS FESTIVAL | C64: Day 2 - 3rd Zone C Optional Pools | D64: 30 | E64: CUTLER, Neil
A65: 64 | B65: NORTH NORFOLK BASS FESTIVAL | C65: Day 2 - 2nd Zone C Optional Pools | D65: 40 | E65: TURNER, Cameron
A66: 65 | B66: NORTH NORFOLK BASS FESTIVAL | C66: Day 2 - 1st Zone C Optional Pools | D66: 70 | E66: PRICE, Ben
A67: 66 | B67: NORTH NORFOLK BASS FESTIVAL | C67: Day 2 - 3rd Zone D Optional Pools | D67: 30 | E67: RUSSELL, Shane
A68: 67 | B68: NORTH NORFOLK BASS FESTIVAL | C68: Day 2 - 2nd Zone D Optional Pools | D68: 40 | E68: MOORING, Luke
A69: 68 | B69: NORTH NORFOLK BASS FESTIVAL | C69: Day 2 - 1st Zone D Optional Pools | D69: 70 | E69: ADAMS, Stephen
A70: 69 | B70: NORTH NORFOLK BASS FESTIVAL | C70: Day 2 - 3rd Zone E Optional Pools | D70: 30 | E70: DIAPER, Barry
A71: 70 | B71: NORTH NORFOLK BASS FESTIVAL | C71: Day 2 - 2nd Zone E Optional Pools | D71: 40 | E71: PAGE, Saul
A72: 71 | B72: NORTH NORFOLK BASS FESTIVAL | C72: Day 2 - 1st Zone E Optional Pools | D72: 70 | E72: TUCK, Rob
A73: 72 | B73: NORTH NORFOLK BASS FESTIVAL | C73: Day 2 - 3rd Zone F Optional Pools | D73: 30 | E73: BURT, Richard
A74: 73 | B74: NORTH NORFOLK BASS FESTIVAL | C74: Day 2 - 2nd Zone F Optional Pools | D74: 40 | E74: GOOCH, Mark
A75: 74 | B75: NORTH NORFOLK BASS FESTIVAL | C75: Day 2 - 1st Zone F Optional Pools | D75: 70 | E75: LINDFIELD, Bill
A76: 75 | B76: NORTH NORFOLK BASS FESTIVAL | C76: Day 2 - 3rd Zone G Optional Pools | D76: 30 | E76: YALLOP, Stephen
A77: 76 | B77: NORTH NORFOLK BASS FESTIVAL | C77: Day 2 - 2nd Zone G Optional Pools | D77: 40 | E77: WATTS, Mike
A78: 77 | B78: NORTH NORFOLK BASS FESTIVAL | C78: Day 2 - 1st Zone G Optional Pools | D78: 70 | E78: ROGERS, Mark
A79: 78 | B79: NORTH NORFOLK BASS FESTIVAL | C79: Day 2 - 3rd Zone H Optional Pools | D79: 30 | E79: CROSBY, Colin
A80: 79 | B80: NORTH NORFOLK BASS FESTIVAL | C80: Day 2 - 2nd Zone H Optional Pools | D80: 40 | E80: SMITH, George
A81: 80 | B81: NORTH NORFOLK BASS FESTIVAL | C81: Day 2 - 1st Zone H Optional Pools | D81: 70 | E81: BOND, Darren
A82: 81 | B82: NORTH NORFOLK JUNIORS TOURNAMENT | C82: Day 2 - Winner | D82: Holt SAC £25 prize | E82: BANHAM, Mark
A83: 82 | B83: UK LADIES CHAMPIONSHIPS | C83: Day 2 - Third Place | D83: 25 | E83: LEE, Louise
A84: 83 | B84: UK LADIES CHAMPIONSHIPS | C84: Day 2 - Runner Up | D84: 35 | E84: LINDFIELD, Heather
A85: 84 | B85: UK LADIES CHAMPIONSHIPS | C85: Day 2 - Winner | D85: 60 | E85: WICKS, Maralyn
A86: 85 | B86: NORTH NORFOLK BASS FESTIVAL | C86: Day 2 - 1st Zone A | D86: 10 | E86: GARDINER, Gareth
A87: 86 | B87: NORTH NORFOLK BASS FESTIVAL | C87: Day 2 - 1st Zone B | D87: 10 | E87: ADAMS, Graham
A88: 87 | B88: NORTH NORFOLK BASS FESTIVAL | C88: Day 2 - 1st Zone C | D88: 10 | E88: PRICE, Ben
A89: 88 | B89: NORTH NORFOLK BASS FESTIVAL | C89: Day 2 - 1st Zone D | D89: 10 | E89: ADAMS, Stephen
A90: 89 | B90: NORTH NORFOLK BASS FESTIVAL | C90: Day 2 - 1st Zone E | D90: 10 | E90: TUCK, Rob
A91: 90 | B91: NORTH NORFOLK BASS FESTIVAL | C91: Day 2 - 1st Zone F | D91: 10 | E91: LINDFIELD, Bill
A92: =1+A91 -> 91 | B92: NORTH NORFOLK BASS FESTIVAL | C92: Day 2 - 1st Zone G | D92: 10 | E92: ROGERS, Mark
A93: 92 | B93: NORTH NORFOLK BASS FESTIVAL | C93: Day 2 - 1st Zone H | D93: 10 | E93: BOND, Darren
A94: 93 | B94: NORTH NORFOLK BASS FESTIVAL | C94: Day 2 - 4th Heaviest Bass Total | D94: 30 | E94: WRIGHT, Dave
A95: 94 | B95: NORTH NORFOLK BASS FESTIVAL | C95: Day 2 - 3rd Heaviest Bass Total | D95: 50 | E95: WOOD, Gary
A96: 95 | B96: NORTH NORFOLK BASS FESTIVAL | C96: Day 2 - 2nd Heaviest Bass Total | D96: 70 | E96: McCOY, Kenny
A97: 96 | B97: NORTH NORFOLK BASS FESTIVAL | C97: Day 2 - 1st Heaviest Bass Total | D97: 100 | E97: TAYLOR, Mark
A98: 97 | B98: NORTH NORFOLK BASS FESTIVAL | C98: Day 2 - 4th Heaviest All Fish Total | D98: 30 | E98: BOND, Darren
A99: 98 | B99: NORTH NORFOLK BASS FESTIVAL | C99: Day 2 - 3rd Heaviest All Fish Total | D99: 50 | E99: ADAMS, Graham
A100: 99 | B100: NORTH NORFOLK BASS FESTIVAL | C100: Day 2 - 2nd Heaviest All Fish Total | D100: 70 | E100: GARDINER, Gareth
A101: 100 | B101: NORTH NORFOLK BASS FESTIVAL | C101: Day 2 - 1st Heaviest All Fish Total | D101: 100 | E101: TUCK, Rob
A102: 101 | B102: NORTH NORFOLK BASS FESTIVAL | C102: Day 2 - 4th Heaviest Flattie Total | D102: 30 | E102: BOND, Darren
A103: 102 | B103: NORTH NORFOLK BASS FESTIVAL | C103: Day 2 - 3rd Heaviest Flattie Total | D103: 50 | E103: GALLACHER, Andy
A104: 103 | B104: NORTH NORFOLK BASS FESTIVAL | C104: Day 2 - 2nd Heaviest Flattie Total | D104: 70 | E104: GOOCH, Mark
A105: 104 | B105: NORTH NORFOLK BASS FESTIVAL | C105: Day 2 - 1st Heaviest Flattie Total | D105: 100 | E105: ROGERS, Mark
A106: 105 | B106: NORTH NORFOLK BASS FESTIVAL | C106: Day 2 - 3rd Heaviest Flat Fish | D106: 30 | E106: CROSBY, Ralf
A107: 106 | B107: NORTH NORFOLK BASS FESTIVAL | C107: Day 2 - 1st Heaviest Flat Fish = | D107: 50 | E107: TUCK, Rob
A108: 107 | B108: NORTH NORFOLK BASS FESTIVAL | C108: Day 2 - 1st Heaviest Flat Fish = | D108: 50 | E108: COOPER, Sam
A109: 108 | B109: NORTH NORFOLK BASS FESTIVAL | C109: Day 2 - 3rd Heaviest Bass | D109: 30 | E109: TAYLOR, Mark
A110: 109 | B110: NORTH NORFOLK BASS FESTIVAL | C110: Day 2 - 2nd Heaviest Bass | D110: 40 | E110: WOOD, Gary
A111: 110 | B111: NORTH NORFOLK BASS FESTIVAL | C111: Day 2 - 1st Heaviest Bass | D111: 60 | E111: McCOY, Kenny
A112: 111 | B112: NORTH NORFOLK BASS FESTIVAL EVENT | C112: Overall Heaviest Festival Catch | D112: 50 | E112: TUCK, Rob
A113: 112 | B113: NORTH NORFOLK BASS FESTIVAL EVENT | C113: Overall Heaviest Festival Fish | D113: 50 | E113: GARDINER, Gareth
A114: 113 | B114: NORTH NORFOLK BASS FESTIVAL EVENT | C114: Heaviest Festival Bass | D114: Kelling Heath Short Break Holiday | E114: ROYALL, Tony
A115: 114 | B115: NORTH NORFOLK JUNIORS TOURNAMENT | C115: Overall Junior Third Place | D115: Holt SAC £20 Prize plus Breakaway Goodies Bag | E115: ALDOUS, Brayden
A116: 115 | B116: NORTH NORFOLK JUNIORS TOURNAMENT | C116: Overall Junior Runner Up | D116: Holt SAC £30 Price plus Breakaway Goodies Bag | E116: BANHAM, Mark
A117: 116 | B117: NORTH NORFOLK JUNIORS TOURNAMENT | C117: Overall Festival Junior Champion | D117: Country Cars Perpetual Shield plus Holt SAC £50 Prize & Breakaway Goodies Bag | E117: TOPPING, Jack
A118: 117 | B118: UK LADIES CHAMPIONSHIPS | C118: Overall Ladies Eighth Place | D118: TronixPro Lead Bag | E118: HILLS, Amy
A119: 118 | B119: UK LADIES CHAMPIONSHIPS | C119: Overall Ladies Seventh Place | D119: TronixPro Lead Bag | E119: HANCOX, Karen
A120: 119 | B120: UK LADIES CHAMPIONSHIPS | C120: Overall Ladies Sixth Place | D120: TronixPro Lead Bag | E120: FRARY, June
A121: 120 | B121: UK LADIES CHAMPIONSHIPS | C121: Overall Ladies Fifth Place | D121: TronixPro Lead Bag | E121: LEE, Louise
A122: 121 | B122: UK LADIES CHAMPIONSHIPS | C122: Overall Ladies Fourth Place | D122: TronixPro Lead Bag | E122: METCALFE, Wendy
A123: 122 | B123: UK LADIES CHAMPIONSHIPS | C123: Overall Ladies Third Place | D123: TronixPro Lead Bag | E123: BROWN, Kay
A124: 123 | B124: UK LADIES CHAMPIONSHIPS | C124: Overall Ladies Runner Up | D124: TronixPro Reel & TronixPro Lead Bag | E124: LINDFIELD, Heather
A125: 124 | B125: UK LADIES CHAMPIONSHIPS | C125: Overall Festival Ladies Champion | D125: TronixPro Perpetual Shield plus TonixPro Rod & TronixPro Lead Bag | E125: WICKS, Maralyn
A126: 125 | B126: SHANNOCK QUADS | C126: Overall Fourth Place Team | D126: 50 | E126: SHEEP SHAGGERS (PRICE, Ben)
A127: 126 | B127: SHANNOCK QUADS | C127: Overall Third Place Team | D127: 60 | E127: ANYFISH ANYWHERE ASSO (SMITH, George)
A128: 127 | B128: SHANNOCK QUADS | C128: Overall Runners Up Team | D128: 70 | E128: THE MAGGOTS (BOND, Darren)
A129: 128 | B129: SHANNOCK QUADS | C129: Overall Champion Team | D129: £120 plus Sheringham Carnival Perpetual Shield | E129: TEAM BREAKAWAY (ADAMS, Stephen)
A130: 129 | B130: MYSTERY PAIRS | C130: Overall Sixth Place Pair (Share £40) | D130: 20 | E130: ROGERS, Mark
A131: 130 | B131: MYSTERY PAIRS | C131: Overall Sixth Place Pair (Share £40) | D131: 20 | E131: DAWBER, Simon
A132: 131 | B132: MYSTERY PAIRS | C132: Overall Fifth Place Pair (Share £40) | D132: 20 | E132: CROSBY, Ralf
A133: 132 | B133: MYSTERY PAIRS | C133: Overall Fifth Place Pair (Share £40) | D133: 20 | E133: HUTSON, Garry
A134: 133 | B134: MYSTERY PAIRS | C134: Overall Fourth Place Pair (Share£60) | D134: 30 | E134: GOOCH, Mark
A135: 134 | B135: MYSTERY PAIRS | C135: Overall Fourth Place Pair (Share£60) | D135: 30 | E135: GASCOIGNE, Robert
A136: 135 | B136: MYSTERY PAIRS | C136: Overall Third Place Pair (Share £80) | D136: 40 | E136: LAY-FLURRIE, Matt
A137: 136 | B137: MYSTERY PAIRS | C137: Overall Third Place Pair (Share £80) | D137: 40 | E137: PRICE, Ben
A138: 137 | B138: MYSTERY PAIRS | C138: Overall Runner Up Pair (Share £100) | D138: 50 | E138: BURT, Richard
A139: 138 | B139: MYSTERY PAIRS | C139: Overall Runner Up Pair (Share £100) | D139: 50 | E139: ADAMS, Graham
A140: 139 | B140: MYSTERY PAIRS | C140: Overall Festival Champion Pair (Share £200) | D140: 100 | E140: GARDINER, Gareth
A141: 140 | B141: MYSTERY PAIRS | C141: Overall Festival Champion Pair (Share £200) | D141: 100 | E141: DIAPER, Barry
A142: 141 | B142: NORTH NORFOLK BASS FESTIVAL EVENT | C142: Overall Fifth Place | D142: 80 | E142: GARDINER, Gareth
A143: 142 | B143: NORTH NORFOLK BASS FESTIVAL EVENT | C143: Overall Fourth Place | D143: 100 | E143: FALK, Dave
A144: 143 | B144: NORTH NORFOLK BASS FESTIVAL EVENT | C144: Overall Third Place | D144: 200 | E144: ROGERS, Mark
A145: 144 | B145: NORTH NORFOLK BASS FESTIVAL EVENT | C145: Overall Runner Up | D145: 350 | E145: BOND, Darren
A146: 145 | B146: NORTH NORFOLK BASS FESTIVAL EVENT | C146: Overall Festival Champion | D146: £500 plus Kelling Heath Perpetual Shield | E146: TUCK, Rob
C147: TOTAL | D147: 6960

Sheet Nth Nfk Bass Fest. (ALL)
A1: NORTH NORFOLK BASS FESTIVAL 2020-21 | B1: Overall - Final Positions
A2: Angler Name | B2: Total No. Fish Points | C2: Day 1 Points | D2: Day 2 Points | E2: Total Points | F2: Overall Position
A4: TUCK, Rob | B4: 1025 | C4: 1 | D4: 1 | E4: 1.897464 | F4: 1
A5: BOND, Darren | B5: 1022 | C5: 1 | D5: 1 | E5: 1.897726 | F5: 2
A6: ROGERS, Mark | B6: 878 | C6: 1 | D6: 1 | E6: 1.912134 | F6: 3
A7: FALK, Dave | B7: 765 | C7: 1 | D7: 2 | E7: 2.923444 | F7: 4
A8: GARDINER, Gareth | B8: 997 | C8: 3 | D8: 1 | E8: 3.900262 | F8: 5
A9: SMITH, George | B9: 882 | C9: 2 | D9: 2 | E9: 3.911738 | F9: 6
A10: CROSBY, Ralf | B10: 808 | C10: 1 | D10: 3 | E10: 3.919152 | F10: 7
A11: GOOCH, Mark | B11: 678 | C11: 2 | D11: 2 | E11: 3.93215 | F11: 8
A12: RUSSELL, Shane | B12: 678 | C12: 1 | D12: 3 | E12: 3.932174 | F12: 9
A13: BURT, Richard | B13: 760 | C13: 2 | D13: 3 | E13: 4.923946 | F13: 10
A14: NANGLE, Karl | B14: 656 | C14: 2 | D14: 3 | E14: 4.934363 | F14: 11
A15: SHORTHOUSE, Dave | B15: 748 | C15: 4 | D15: 2 | E15: 5.925158 | F15: 12
A16: ADAMS, Stephen | B16: 740 | C16: 5 | D16: 1 | E16: 5.925975 | F16: 13
A17: MOORING, Luke | B17: 624 | C17: 4 | D17: 2 | E17: 5.937562 | F17: 14
A18: CROSBY, Colin | B18: 736 | C18: 4 | D18: 3 | E18: 6.926348 | F18: 15
A19: PAGE, Saul | B19: 484 | C19: 5 | D19: 2 | E19: 6.951556 | F19: 16
A20: McCOY, Kenny | B20: 459 | C20: 3 | D20: 4 | E20: 6.954073 | F20: 17
A21: LAY-FLURRIE, Matt | B21: 458 | C21: 3 | D21: 5 | E21: 7.954167 | F21: 18
A22: ARCH, Joe | B22: 426 | C22: 4 | D22: 4 | E22: 7.95736 | F22: 19
A23: DENHOLM, Paul | B23: 360 | C23: 2 | D23: 6 | E23: 7.963972 | F23: 20
A24: TAYLOR, Mark | B24: 625 | C24: 5 | D24: 4 | E24: 8.937467 | F24: 21
A25: TURNER, Cameron | B25: 536 | C25: 7 | D25: 2 | E25: 8.946371 | F25: 22
A26: ELLIOTT, Nathan | B26: 513 | C26: 4 | D26: 5 | E26: 8.948663 | F26: 23
A27: RYDER, Edde | B27: 375 | C27: 3 | D27: 6 | E27: 8.962479 | F27: 24
A28: DOY, Alan | B28: 362 | C28: 2 | D28: 7 | E28: 8.963784 | F28: 25
A29: PERRY, Joe | B29: 617 | C29: 6 | D29: 4 | E29: 9.938259 | F29: 26
A30: BUY, Craig | B30: 546 | C30: 4 | D30: 6 | E30: 9.945361 | F30: 27
A31: WATTS, Mike | B31: 519 | C31: 8 | D31: 2 | E31: 9.94805 | F31: 28
A32: FRENCH, Julian | B32: 481 | C32: 3 | D32: 7 | E32: 9.95186 | F32: 29
A33: PRICE, Ben | B33: 560 | C33: 10 | D33: 1 | E33: 10.943975 | F33: 30
A34: PINDER, Mark | B34: 526 | C34: 7 | D34: 4 | E34: 10.947376 | F34: 31
A35: ROYALL, Tony | B35: 512 | C35: 1 | D35: 10 | E35: 10.948772 | F35: 32
A36: THORPE, Doug | B36: 508 | C36: 6 | D36: 5 | E36: 10.949155 | F36: 33
A37: CUTLER, Neil | B37: 466 | C37: 8 | D37: 3 | E37: 10.953369 | F37: 34
A38: WALES, Joe | B38: 620 | C38: 1 | D38: 11 | E38: 11.937968 | F38: 35
A39: LEE, Martin | B39: 522 | C39: 4 | D39: 8 | E39: 11.947771 | F39: 36
A40: SERBAN, Nelu | B40: 388 | C40: 6 | D40: 6 | E40: 11.961172 | F40: 37
A41: McGILLOWAY, Wayne | B41: 548 | C41: 6 | D41: 7 | E41: 12.945161 | F41: 38
A42: LINDFIELD, Bill | B42: 521 | C42: 12 | D42: 1 | E42: 12.947858 | F42: 39
A43: PLUMSTEAD, Joe | B43: 505 | C43: 3 | D43: 10 | E43: 12.949458 | F43: 40
A44: SPALL, Chris | B44: 471 | C44: 6 | D44: 7 | E44: 12.952856 | F44: 41
A45: FRARY, Charlie | B45: 353 | C45: 7 | D45: 6 | E45: 12.964671 | F45: 42
A46: DIAPER, Barry | B46: 311 | C46: 10 | D46: 3 | E46: 12.968874 | F46: 43
A47: COTTER, Brett | B47: 283 | C47: 6 | D47: 7 | E47: 12.971685 | F47: 44
A48: ADAMS, Graham | B48: 646 | C48: 13 | D48: 1 | E48: 13.935361 | F48: 45
A49: WELLS, Thomas | B49: 388 | C49: 5 | D49: 9 | E49: 13.961173 | F49: 46
A50: PRICE, Alan | B50: 381 | C50: 10 | D50: 4 | E50: 13.961885 | F50: 47
A51: CLEMENT, Alby | B51: 333 | C51: 9 | D51: 5 | E51: 13.966667 | F51: 48
A52: GALLACHER, Andy | B52: 537 | C52: 11 | D52: 4 | E52: 14.946247 | F52: 49
A53: EDWARDS, Lee | B53: 436 | C53: 4 | D53: 11 | E53: 14.956368 | F53: 50
A54: LEE, Phil | B54: 251 | C54: 7 | D54: 8 | E54: 14.974876 | F54: 51
A55: DRAYTON, Simon | B55: 429 | C55: 3 | D55: 13 | E55: 15.957064 | F55: 52
A56: GASCOIGNE, Robert | B56: 402 | C56: 10 | D56: 6 | E56: 15.959769 | F56: 53
A57: PROVINS, Colin | B57: 386 | C57: 7 | D57: 9 | E57: 15.961366 | F57: 54
A58: GREEN, Kevin | B58: 360 | C58: 7 | D58: 9 | E58: 15.963975 | F58: 55
A59: PRICE, Jimmy | B59: 358 | C59: 6 | D59: 10 | E59: 15.964174 | F59: 56
A60: ROBERTS, Steve | B60: 340 | C60: 5 | D60: 11 | E60: 15.965981 | F60: 57
A61: AKESTER, Jack | B61: 298 | C61: 11 | D61: 5 | E61: 15.970168 | F61: 58
A62: SMITH, Stephen | B62: 275 | C62: 8 | D62: 8 | E62: 15.97248 | F62: 59
A63: HUTSON, Garry | B63: 418 | C63: 9 | D63: 8 | E63: 16.958163 | F63: 60
A64: TOPPING, Mike | B64: 361 | C64: 7 | D64: 10 | E64: 16.96387 | F64: 61
A65: HIPPERSON, Richard | B65: 359 | C65: 10 | D65: 7 | E65: 16.964071 | F65: 62
A66: BORDIANU, Adrian | B66: 299 | C66: 11 | D66: 6 | E66: 16.970079 | F66: 63
A67: CARTER, John | B67: 271 | C67: 5 | D67: 12 | E67: 16.972875 | F67: 64
A68: HUTCHINSON, Dave | B68: 339 | C68: 5 | D68: 13 | E68: 17.966069 | F68: 65
A69: ROPER, Liam | B69: 182 | C69: 2 | D69: 16 | E69: 17.981795 | F69: 66
A70: HARRISON, Paul | B70: 346 | C70: 11 | D70: 8 | E70: 18.965378 | F70: 67
A71: STEBBINGS, Robert | B71: 342 | C71: 12 | D71: 7 | E71: 18.965773 | F71: 68
A72: SELF, Bevan | B72: 322 | C72: 14 | D72: 5 | E72: 18.967777 | F72: 69
A73: BOWELL, Ian | B73: 310 | C73: 8 | D73: 11 | E73: 18.968969 | F73: 70
A74: THORNTON, Lee | B74: 307 | C74: 11 | D74: 8 | E74: 18.969273 | F74: 71
A75: COOPER, Phillip | B75: 295 | C75: 7 | D75: 12 | E75: 18.970477 | F75: 72
A76: COOPER, Sam | B76: 277 | C76: 15 | D76: 4 | E76: 18.972279 | F76: 73
A77: NELSON, Ian | B77: 268 | C77: 12 | D77: 7 | E77: 18.973182 | F77: 74
A78: LINDFIELD, Heather | B78: 225 | C78: 10 | D78: 9 | E78: 18.977478 | F78: 75
A79: BROWN, Kay | B79: 204 | C79: 9 | D79: 10 | E79: 18.979583 | F79: 76
A80: BALL, Keith | B80: 386 | C80: 15 | D80: 5 | E80: 19.961373 | F80: 77
A81: BANHAM, Jason | B81: 340 | C81: 11 | D81: 9 | E81: 19.965972 | F81: 78
A82: DAWBER, Simon | B82: 208 | C82: 10 | D82: 10 | E82: 19.979183 | F82: 79
A83: THOMAS, Tony | B83: 166 | C83: 8 | D83: 12 | E83: 19.98339 | F83: 80
A84: ALDOUS, David | B84: 212 | C84: 6 | D84: 15 | E84: 20.97878 | F84: 81
A85: KINGDON, Adam | B85: 184 | C85: 13 | D85: 8 | E85: 20.981589 | F85: 82
A86: PARKER, Daniel | B86: 174 | C86: 8 | D86: 13 | E86: 20.982587 | F86: 83
A87: PEMBERTON, Andy | B87: 305 | C87: 10 | D87: 12 | E87: 21.969475 | F87: 84
A88: NICHOLSON, Steven | B88: 263 | C88: 8 | D88: 14 | E88: 21.973687 | F88: 85
A89: AUSTIN, John | B89: 210 | C89: 13 | D89: 9 | E89: 21.978987 | F89: 86
A90: HAZELGROVE, Gary | B90: 199 | C90: 11 | D90: 11 | E90: 21.980084 | F90: 87
A91: LAMBERT, Ian | B91: 98 | C91: 9 | D91: 13 | E91: 21.990196 | F91: 88
A92: PARKER, Gavin | B92: 80 | C92: 11 | D92: 11 | E92: 21.991993 | F92: 89
A93: TOPPING, Jack | B93: 269 | C93: 9 | D93: 14 | E93: 22.973079 | F93: 90
A94: BANCROFT, Dave | B94: 137 | C94: 8 | D94: 15 | E94: 22.986287 | F94: 91
A95: CREASEY, Shaun | B95: 128 | C95: 13 | D95: 10 | E95: 22.987197 | F95: 92
A96: PEARCE, Vic | B96: 283 | C96: 12 | D96: 12 | E96: 23.971677 | F96: 93
A97: LILL, Jarrod | B97: 202 | C97: 16 | D97: 8 | E97: 23.979782 | F97: 94
A98: METCALFE, Wendy | B98: 168 | C98: 13 | D98: 11 | E98: 23.983186 | F98: 95
A99: KNIGHT, Simon | B99: 149 | C99: 9 | D99: 15 | E99: 23.985088 | F99: 96
A100: BOTEZATO, Constantin | B100: 130 | C100: 12 | D100: 12 | E100: 23.986987 | F100: 97
A101: SMITH, Leon | B101: 319 | C101: 16 | D101: 9 | E101: 24.96807 | F101: 98
A102: HADDOCK, Roy | B102: 127 | C102: 11 | D102: 14 | E102: 24.987287 | F102: 99
A103: STORER, Paul | B103: 115 | C103: 16 | D103: 9 | E103: 24.988491 | F103: 100
A104: KIMBLE, John | B104: 260 | C104: 16 | D104: 11 | E104: 26.97398 | F104: 101
A105: SMART, Neil | B105: 250 | C105: 14 | D105: 13 | E105: 26.974978 | F105: 102
A106: JOHNSON, Billy | B106: 187 | C106: 13 | D106: 14 | E106: 26.981284 | F106: 103
A107: HIGHFIELD, Nik | B107: 173 | C107: 14 | D107: 13 | E107: 26.982685 | F107: 104
A108: DIAPER, Greg | B108: 165 | C108: 14 | D108: 13 | E108: 26.983485 | F108: 105
A109: HARVEY, Paul | B109: 42 | C109: 15 | D109: 12 | E109: 26.995796 | F109: 106
A110: PARKER, Al | B110: 39 | C110: 13 | D110: 14 | E110: 26.996097 | F110: 107
A111: MARTLAND, Kev | B111: 240 | C111: 14 | D111: 14 | E111: 27.97598 | F111: 108
A112: FRARY, June | B112: 141 | C112: 16 | D112: 12 | E112: 27.985884 | F112: 109
A113: BANHAM, Mark | B113: 167 | C113: 13 | D113: 16 | E113: 28.98329 | F113: 110
A114: HANCOX, Karen | B114: 137 | C114: 16 | D114: 13 | E114: 28.986283 | F114: 111
A115: BETTINSON, Charles | B115: 113 | C115: 15 | D115: 14 | E115: 28.988686 | F115: 112
A116: LEE, Louise | B116: 179 | C116: 16 | D116: 15 | E116: 30.982088 | F116: 113
A117: HENNEY, Jimmy | B117: 106 | C117: 16 | D117: 15 | E117: 30.98939 | F117: 114
A118: ALDOUS, Brayden | B118: 89 | C118: 15 | D118: 16 | E118: 30.991093 | F118: 115
A119: BROCK, Peter | B119: 0 | C119: 16 | D119: 16 | E119: 32 | F119: 116
A120: GIBBS, Tom (DID NOT FISH) | B120: 0 | C120: 16 | D120: 16 | E120: 32 | F120: 116
A121: HILLS, Amy | B121: 0 | C121: 16 | D121: 16 | E121: 32 | F121: 116
A122: HURCOMBE, Mark | B122: 0 | C122: 16 | D122: 16 | E122: 32 | F122: 116
A123: MURRAY, Luke (DID NOT FISH) | B123: 0 | C123: 16 | D123: 16 | E123: 32 | F123: 116

Sheet Overall Heaviest Bass
C1: NORTH NORFOLK BASS FESTIVAL 2020-21 | F1: Overall Heaviest Bass
A2: Overall Number | B2: Individual No. | C2: Angler Name | D2: Angler No. | E2: Peg | F2: Fish Points | G2: Weight | I2: Day | J2: Position
G3: lbs | H3: oz
A4: 1 | B4: 1 | C4: ROYALL, Tony | D4: 97-1 | E4: 123 | F4: 158 | G4: 3 | H4: 4.666666667 | I4: Day 1 | J4: 1
A5: 2 | B5: 2 | C5: ROPER, Liam | D5: 96-1 | E5: 107 | F5: 129 | G5: 2 | H5: 11 | I5: Day 1 | J5: 2
A6: 3 | B6: 3 | C6: McCOY, Kenny | D6: 74-2 | E6: 81 | F6: 122 | G6: 2 | H6: 8.666666667 | I6: Day 2 | J6: 3
A7: 4 | B7: 4 | C7: SMITH, George | D7: 104-1 | E7: 55 | F7: 116 | G7: 2 | H7: 6.666666667 | I7: Day 1 | J7: 4
A8: 5 | B8: 5 | C8: DOY, Alan | D8: 35-1 | E8: 95 | F8: 116 | G8: 2 | H8: 6.666666667 | I8: Day 1 | J8: 4
A9: 6 | B9: 6 | C9: WOOD, Gary | D9: 124-2 | E9: 31 | F9: 116 | G9: 2 | H9: 6.666666667 | I9: Day 2 | J9: 4
A10: 7 | B10: 7 | C10: Unused Pegs 2 | D10: 128-1 | E10: 1 | F10: 110 | G10: 2 | H10: 4.666666667 | I10: Day 1 | J10: 7
A11: 8 | B11: 8 | C11: WALES, Joe | D11: 118-1 | E11: 4 | F11: 110 | G11: 2 | H11: 4.666666667 | I11: Day 1 | J11: 7
A12: 9 | B12: 9 | C12: RUSSELL, Shane | D12: 98-1 | E12: 72 | F12: 110 | G12: 2 | H12: 4.666666667 | I12: Day 1 | J12: 7
A13: 10 | B13: 10 | C13: YALLOP, Oliver | D13: 125-1 | E13: 3 | F13: 104 | G13: 2 | H13: 2.666666667 | I13: Day 1 | J13: 10
A14: 11 | B14: 11 | C14: ROGERS, Mark | D14: 95-1 | E14: 21 | F14: 104 | G14: 2 | H14: 2.666666667 | I14: Day 1 | J14: 10
A15: 12 | B15: 12 | C15: BOND, Darren | D15: 13-1 | E15: 63 | F15: 104 | G15: 2 | H15: 2.666666667 | I15: Day 1 | J15: 10
A16: 13 | B16: 13 | C16: TAYLOR, Mark | D16: 110-2 | E16: 8 | F16: 104 | G16: 2 | H16: 2.666666667 | I16: Day 2 | J16: 10
A17: 14 | B17: 14 | C17: McGILLOWAY, Wayne | D17: 75-1 | E17: 6 | F17: 98 | G17: 2 | H17: 0.6666666667 | I17: Day 1 | J17: 14
A18: 15 | B18: 15 | C18: LEE, Martin | D18: 68-1 | E18: 120 | F18: 98 | G18: 2 | H18: 0.6666666667 | I18: Day 1 | J18: 14
A19: 16 | B19: 16 | C19: CROSBY, Ralf | D19: 29-1 | E19: 86 | F19: 92 | G19: 1 | H19: 14.66666667 | I19: Day 1 | J19: 16
A20: 17 | B20: 17 | C20: WRIGHT, Dave | D20: 123-1 | E20: 113 | F20: 92 | G20: 1 | H20: 14.66666667 | I20: Day 1 | J20: 16
A21: 18 | B21: 18 | C21: WRIGHT, Dave | D21: 123-2 | E21: 27 | F21: 80 | G21: 1 | H21: 10.66666667 | I21: Day 2 | J21: 18
A22: 19 | B22: 19 | C22: NANGLE, Karl | D22: 78-2 | E22: 18 | F22: 74 | G22: 1 | H22: 8.666666667 | I22: Day 2 | J22: 19
A23: 20 | B23: 20 | C23: BURT, Richard | D23: 20-1 | E23: 16 | F23: 68 | G23: 1 | H23: 6.666666667 | I23: Day 1 | J23: 20
A24: 21 | B24: 21 | C24: SERBAN, Nelu | D24: 101-1 | E24: 50 | F24: 68 | G24: 1 | H24: 6.666666667 | I24: Day 1 | J24: 20
A25: 22 | B25: 22 | C25: LAMBERT, Ian | D25: 65-1 | E25: 67 | F25: 68 | G25: 1 | H25: 6.666666667 | I25: Day 1 | J25: 20
A26: 23 | B26: 23 | C26: ADAMS, Stephen | D26: 2-1 | E26: 128 | F26: 68 | G26: 1 | H26: 6.666666667 | I26: Day 1 | J26: 20
A27: 24 | B27: 24 | C27: WELLS, Thomas | D27: 120-1 | E27: 52 | F27: 63 | G27: 1 | H27: 5 | I27: Day 1 | J27: 24
A28: 25 | B28: 25 | C28: WICKS, Maralyn | D28: 122-1 | E28: 112 | F28: 55 | G28: 1 | H28: 2.333333333 | I28: Day 1 | J28: 25
A29: 26 | B29: 26 | C29: TOPPING, Jack | D29: 114-1 | E29: 13 | F29: 51 | G29: 1 | H29: 1 | I29: Day 1 | J29: 26
A30: 27 | B30: 27 | C30: BUY, Craig | D30: 21-1 | E30: 49 | F30: 51 | G30: 1 | H30: 1 | I30: Day 1 | J30: 26
A31: 28 | B31: 28 | C31: NELSON, Ian | D31: 79-1 | E31: 73 | F31: 51 | G31: 1 | H31: 1 | I31: Day 1 | J31: 26
A32: 29 | B32: 29 | C32: LAY-FLURRIE, Matt | D32: 66-1 | E32: 12 | F32: 47 | G32: 0 | H32: 15.66666667 | I32: Day 1 | J32: 29
A33: 30 | B33: 30 | C33: RYDER, Edde | D33: 99-1 | E33: 87 | F33: 47 | G33: 0 | H33: 15.66666667 | I33: Day 1 | J33: 29
A34: 31 | B34: 31 | C34: GARDINER, Gareth | D34: 44-2 | E34: 1 | F34: 47 | G34: 0 | H34: 15.66666667 | I34: Day 2 | J34: 29
A35: 32 | B35: 32 | C35: GOOCH, Mark | D35: 47-1 | E35: 18 | F35: 43 | G35: 0 | H35: 14.33333333 | I35: Day 1 | J35: 32
A36: 33 | B36: 33 | C36: GREEN, Kevin | D36: 48-1 | E36: 122 | F36: 40 | G36: 0 | H36: 13.33333333 | I36: Day 1 | J36: 33
A37: 34 | B37: 34 | C37: DENHOLM, Paul | D37: 32-1 | E37: 38 | F37: 37 | G37: 0 | H37: 12.33333333 | I37: Day 1 | J37: 34
A38: 35 | B38: 35 | C38: FRENCH, Julian | D38: 42-2 | E38: 24 | F38: 16 | G38: 0 | H38: 5.333333333 | I38: Day 2 | J38: 35
A39: 36 | B39: 36 | C39: SELF, Bevan | D39: 100-2 | E39: 33 | F39: 16 | G39: 0 | H39: 5.333333333 | I39: Day 2 | J39: 35
A40: 37 | B40: 37
A41: 38 | B41: 38
A42: 39 | B42: 39
A43: 40 | B43: 40
A44: 41 | B44: 41
A45: 42 | B45: 42
A46: 43 | B46: 43
A47: 44 | B47: 44
A48: 45 | B48: 45
A49: 46 | B49: 46
A50: 47 | B50: 47
A51: 48 | B51: 48
A52: 49 | B52: 49
A53: 50 | B53: 50
A54: 51 | B54: 51
A55: 52 | B55: 52
A56: 53 | B56: 53
A57: 54 | B57: 54
A58: 55 | B58: 55
A59: 56 | B59: 56
A60: 57 | B60: 57
A61: 58 | B61: 58
A62: 59 | B62: 59
A63: 60 | B63: 60
A64: 61 | B64: 61
A65: 62 | B65: 62
A66: 63 | B66: 63
A67: 64 | B67: 64
A68: 65 | B68: 65
A69: 66 | B69: 66
A70: 67 | B70: 67
A71: 68 | B71: 68
A72: 69 | B72: 69
A73: 70 | B73: 70
A74: 71 | B74: 71
A75: 72 | B75: 72
A76: 73 | B76: 73
A77: 74 | B77: 74
A78: 75 | B78: 75
A79: 76 | B79: 76
A80: 77 | B80: 77
A81: 78 | B81: 78
A82: 79 | B82: 79
A83: 80 | B83: 80
A84: 81 | B84: 81
A85: 82 | B85: 82
A86: 83 | B86: 83
A87: 84 | B87: 84
A88: 85 | B88: 85
A89: 86 | B89: 86
A90: 87 | B90: 87
A91: 88 | B91: 88
A92: 89 | B92: 89
A93: 90 | B93: 90
A94: 91 | B94: 91
A95: 92 | B95: 92
A96: 93 | B96: 93
A97: 94 | B97: 94
A98: 95 | B98: 95
A99: 96 | B99: 96
A100: 97 | B100: 97
A101: 98 | B101: 98
A102: 99 | B102: 99
A103: 100 | B103: 100
A104: 101 | B104: 101
A105: 102 | B105: 102
A106: 103 | B106: 103
A107: 104 | B107: 104
A108: 105 | B108: 105
A109: 106 | B109: 106
A110: 107 | B110: 107
A111: 108 | B111: 108
A112: 109 | B112: 109
A113: 110 | B113: 110
A114: 111 | B114: 111
A115: 112 | B115: 112
A116: 113 | B116: 113
A117: 114 | B117: 114
A118: 115 | B118: 115
A119: 116 | B119: 116
A120: 117 | B120: 117
A121: 118 | B121: 118
A122: 119 | B122: 119
A123: 120 | B123: 120
A124: 121 | B124: 121
A125: 122 | B125: 122
A126: 123 | B126: 123
A127: 124 | B127: 124
A128: 125 | B128: 125
A129: 126 | B129: 126
A130: 127 | B130: 127
A131: 128 | B131: 128
A132: 129 | B132: 129
A133: 130 | B133: 130
A134: 131 | B134: 131
A135: 132 | B135: 132
A136: 133 | B136: 133
A137: 134 | B137: 134
A138: 135 | B138: 135
A139: 136 | B139: 136
A140: 137 | B140: 137
A141: 138 | B141: 138
A142: 139 | B142: 139
A143: 140 | B143: 140
A144: 141 | B144: 141
A145: 142 | B145: 142
A146: 143 | B146: 143
A147: 144 | B147: 144
A148: 145 | B148: 145
A149: 146 | B149: 146
A150: 147 | B150: 147
A151: 148 | B151: 148
A152: 149 | B152: 149
A153: 150 | B153: 150

Sheet Ladies Champs. Ind. result
B1: UK LADIES CHAMPIONSHIPS 2020-21 | E1: Overall - Final Positions
A2: Overall Number | B2: Angler Name | C2: Angler No | D2: Total No. Fish | E2: Total No. Fish Points | F2: Day 1 Points | G2: Day 2 Points | H2: Total Points | I2: Overall Position
A4: 1 | B4: WICKS, Maralyn | C4: 122 | D4: 20 | E4: 325 | F4: 1.000016661 | G4: 1.000003771 | H4: 1.967500432 | I4: 1
A5: 2 | B5: LINDFIELD, Heather | C5: 72 | D5: 22 | E5: 225 | F5: 3.000032237 | G5: 2.000005149 | H5: 4.977515387 | I5: 2
A6: 3 | B6: BROWN, Kay | C6: 18 | D6: 17 | E6: 204 | F6: 2.000022722 | G6: 4.000006244 | H6: 5.979611966 | I6: 3
A7: 4 | B7: METCALFE, Wendy | C7: 19 | D7: 14 | E7: 168 | F7: 4.000076864 | G7: 5.000006446 | H7: 8.98326931 | I7: 4
A8: 5 | B8: LEE, Louise | C8: 67 | D8: 12 | E8: 179 | F8: 8 | G8: 3.000005583 | H8: 10.98209358 | I8: 5
A9: 6 | B9: FRARY, June | C9: 41 | D9: 16 | E9: 141 | F9: 8 | G9: 6.000007084 | H9: 13.98589108 | I9: 6
A10: 7 | B10: HANCOX, Karen | C10: 50 | D10: 17 | E10: 137 | F10: 8 | G10: 7.00000729 | H10: 14.98629029 | I10: 7
A11: 8 | B11: HILLS, Amy | C11: 56 | D11: 0 | E11: 0 | F11: 8 | G11: 8 | H11: 32 | I11: 8

Sheet Juniors Ind. result
B1: NORTH NORFOLK JUNIORS TOURNAMENT 2020-21 | E1: Overall - Final Positions
A2: Overall Number | B2: Angler Name | C2: Angler No | D2: Total No. Fish | E2: Total No. Fish Points | F2: Day 1 Points | G2: Day 2 Points | H2: Total Points | I2: Overall Position
A4: 1 | B4: TOPPING, Jack | C4: 114 | D4: 21 | E4: 269 | F4: 1 | G4: 2 | H4: 2.973079 | I4: 1
A5: 2 | B5: BANHAM, Mark | C5: 11 | D5: 10 | E5: 167 | F5: 2 | G5: 1 | H5: 2.98329 | I5: 2
A6: 3 | B6: ALDOUS, Brayden | C6: 4 | D6: 7 | E6: 89 | F6: 3 | G6: 3 | H6: 5.991093 | I6: 3

Sheet Shannock Quads Overall
B1: SHANNOCK QUADS 2020-21 | E1: Overall (Teams)
A2: Team Count | B2: Overall Position | C2: Team No. | D2: Team Name | E2: No. Fish | F2: Fish Points | G2: Weight
G3: lbs | H3: oz
A4: 1 | B4: 1 | C4: 1 | D4: TEAM BREAKAWAY | E4: 154 | F4: 3071 | G4: 63 | H4: 15.66666667
A5: 2 | B5: 2 | C5: 4 | D5: THE MAGGOTS | E5: 192 | F5: 2662 | G5: 55 | H5: 7.333333333
A6: 3 | B6: 3 | C6: 10 | D6: ANYFISH ANYWHERE ASSO | E6: 172 | F6: 2385 | G6: 49 | H6: 11
A7: 4 | B7: 4 | C7: 7 | D7: SHEEP SHAGERS | E7: 130 | F7: 2212 | G7: 46 | H7: 1.333333333
A8: 5 | B8: 5 | C8: 12 | D8: NORTH NORFOLK LADS | E8: 118 | F8: 1767 | G8: 36 | H8: 13
A9: 6 | B9: 6 | C9: 2 | D9: TIDLER SQUAD | E9: 107 | F9: 1548 | G9: 32 | H9: 4
A10: 7 | B10: 7 | C10: 5 | D10: SAUL & CO | E10: 112 | F10: 1467 | G10: 30 | H10: 9
A11: 8 | B11: 8 | C11: 6 | D11: PRICEY'S GUYS & GAL | E11: 90 | F11: 1362 | G11: 28 | H11: 6
A12: 9 | B12: 9 | C12: 9 | D12: IPSWICH SEA ANGLERS | E12: 105 | F12: 1359 | G12: 28 | H12: 5
A13: 10 | B13: 10 | C13: 11 | D13: BENNET ROOFING | E13: 105 | F13: 1300 | G13: 27 | H13: 1.333333333
A14: 11 | B14: 11 | C14: 13 | D14: GORLESTON TACKLE | E14: 91 | F14: 1295 | G14: 26 | H14: 15.66666667
A15: 12 | B15: 12 | C15: 3 | D15: TEAM BIRDS | E15: 86 | F15: 1147 | G15: 23 | H15: 14.33333333
A16: 13 | B16: 13 | C16: 8 | D16: VETERANS + 1 | E16: 74 | F16: 1070 | G16: 22 | H16: 4.666666667

Sheet Mystery Pairs Overall
A1: BASS FESTIVAL MYSTERY PAIRS 2020-21 | C1: Overall (Pairs)
A2: Overall Position | B2: Team Name | C2: Day 1 Zone Points | D2: Day 2 Zone Points | E2: Total No. Fish | F2: Total Fish Points | G2: Total Weight | I2: Total Zone Points
G3: lbs | H3: oz
A4: 1 | B4: GARDINER, Gareth & DIAPER, Barry | C4: 13 | D4: 4 | E4: 51 | F4: 1308 | G4: 27 | H4: 4 | I4: 16.986869
A5: 2 | B5: BURT, Richard & ADAMS, Graham | C5: 15 | D5: 4 | E5: 72 | F5: 1406 | G5: 29 | H5: 4.666666667 | I5: 18.985868
A6: 3 | B6: LAY-FLURRIE, Matt & PRICE, Ben | C6: 13 | D6: 6 | E6: 74 | F6: 1018 | G6: 21 | H6: 3.333333333 | I6: 18.989746
A7: 4 | B7: GOOCH, Mark & GASCOIGNE, Robert | C7: 12 | D7: 8 | E7: 76 | F7: 1080 | G7: 22 | H7: 8 | I7: 19.989124
A8: 5 | B8: CROSBY, Ralf & HUTSON, Garry | C8: 10 | D8: 11 | E8: 58 | F8: 1226 | G8: 25 | H8: 8.666666667 | I8: 20.987682
A9: 6 | B9: ROGERS, Mark & DAWBER, Simon | C9: 11 | D9: 11 | E9: 56 | F9: 1086 | G9: 22 | H9: 10 | I9: 21.989084
A10: 7 | B10: TURNER, Cameron & LINDFIELD, Bill | C10: 19 | D10: 3 | E10: 67 | F10: 1057 | G10: 22 | H10: 0.3333333333 | I10: 21.989363
A11: 8 | B11: SHORTHOUSE, Dave & AKESTER, Jack | C11: 15 | D11: 7 | E11: 58 | F11: 1046 | G11: 21 | H11: 12.66666667 | I11: 21.989482
A12: 9 | B12: ARCH, Joe & CLEMENT, Alby | C12: 13 | D12: 9 | E12: 50 | F12: 759 | G12: 15 | H12: 13 | I12: 21.99236
A13: 10 | B13: BOND, Darren & HAZELGROVE, Gary | C13: 12 | D13: 12 | E13: 48 | F13: 1221 | G13: 25 | H13: 7 | I13: 23.987742
A14: 11 | B14: TUCK, Rob & KNIGHT, Simon | C14: 10 | D14: 16 | E14: 27 | F14: 1174 | G14: 24 | H14: 7.333333333 | I14: 25.988233
A15: 12 | B15: CROSBY, Colin & COOPER, Sam | C15: 19 | D15: 7 | E15: 46 | F15: 1013 | G15: 21 | H15: 1.666666667 | I15: 25.989824
A16: 13 | B16: TAYLOR, Mark & HARRISON, Paul | C16: 16 | D16: 12 | E16: 49 | F16: 971 | G16: 20 | H16: 3.666666667 | I16: 27.990241
A17: 14 | B17: ADAMS, Stephen & PARKER, Gavin | C17: 16 | D17: 12 | E17: 63 | F17: 820 | G17: 17 | H17: 1.333333333 | I17: 27.991737
A18: 15 | B18: NANGLE, Karl & CREASEY, Shaun | C18: 15 | D18: 13 | E18: 28 | F18: 784 | G18: 16 | H18: 5.333333333 | I18: 27.992132
A19: 16 | B19: PERRY, Joe & WICKS, Maralyn | C19: 15 | D19: 14 | E19: 48 | F19: 942 | G19: 19 | H19: 10 | I19: 28.990532
A20: 17 | B20: BOWELL, Ian & WATTS, Mike | C20: 16 | D20: 13 | E20: 80 | F20: 829 | G20: 17 | H20: 4.333333333 | I20: 28.99163
A21: 18 | B21: McCOY, Kenny & PEMBERTON, Andy | C21: 13 | D21: 16 | E21: 35 | F21: 764 | G21: 15 | H21: 14.66666667 | I21: 28.992325
A22: 19 | B22: RYDER, Edde & BALL, Keith | C22: 18 | D22: 11 | E22: 56 | F22: 761 | G22: 15 | H22: 13.66666667 | I22: 28.992334
A23: 20 | B23: FALK, Dave & SMART, Neil | C23: 15 | D23: 15 | E23: 87 | F23: 1015 | G23: 21 | H23: 2.333333333 | I23: 29.989763
A24: 21 | B24: SPALL, Chris & BORDIANU, Adrian | C24: 17 | D24: 13 | E24: 65 | F24: 770 | G24: 16 | H24: 0.6666666667 | I24: 29.992235
A25: 22 | B25: WALES, Joe & THORNTON, Lee | C25: 12 | D25: 19 | E25: 72 | F25: 927 | G25: 19 | H25: 5 | I25: 30.990658
A26: 23 | B26: SMITH, Stephen & YALLOP, Stephen | C26: 20 | D26: 11 | E26: 79 | F26: 665 | G26: 13 | H26: 13.66666667 | I26: 30.993271
A27: 24 | B27: TOPPING, Mike & GALLACHER, Andy | C27: 18 | D27: 14 | E27: 75 | F27: 898 | G27: 18 | H27: 11.33333333 | I27: 31.990945
A28: 25 | B28: McGILLOWAY, Wayne & SELF, Bevan | C28: 20 | D28: 12 | E28: 52 | F28: 870 | G28: 18 | H28: 2 | I28: 31.991248
A29: 26 | B29: RUSSELL, Shane & FRARY, June | C29: 17 | D29: 15 | E29: 39 | F29: 819 | G29: 17 | H29: 1 | I29: 31.991771
A30: 27 | B30: BUY, Craig & NICHOLSON, Steven | C30: 12 | D30: 20 | E30: 37 | F30: 809 | G30: 16 | H30: 13.66666667 | I30: 31.991873
A31: 28 | B31: HUTCHINSON, Dave & PRICE, Alan | C31: 15 | D31: 17 | E31: 55 | F31: 720 | G31: 15 | H31: 0 | I31: 31.992745
A32: 29 | B32: FRENCH, Julian & AUSTIN, John | C32: 16 | D32: 16 | E32: 24 | F32: 691 | G32: 14 | H32: 6.333333333 | I32: 31.993066
A33: 30 | B33: DENHOLM, Paul & BOTEZATO, Constantin | C33: 14 | D33: 18 | E33: 40 | F33: 490 | G33: 10 | H33: 3.333333333 | I33: 31.99506
A34: 31 | B34: DRAYTON, Simon & HIPPERSON, Richard | C34: 13 | D34: 20 | E34: 73 | F34: 788 | G34: 16 | H34: 6.666666667 | I34: 32.992047
A35: 32 | B35: FRARY, Charlie & THOMAS, Tony | C35: 15 | D35: 18 | E35: 38 | F35: 519 | G35: 10 | H35: 13 | I35: 32.994772
A36: 33 | B36: WOOD, Gary & HADDOCK, Roy | C36: 14 | D36: 20 | E36: 35 | F36: 613 | G36: 12 | H36: 12.33333333 | I36: 33.993835
A37: 34 | B37: CUTLER, Neil & WHITE, Alan | C37: 17 | D37: 17 | E37: 75 | F37: 599 | G37: 12 | H37: 7.666666667 | I37: 33.993935
A38: 35 | B38: COTTER, Brett & KINGDON, Adam | C38: 19 | D38: 15 | E38: 16 | F38: 467 | G38: 9 | H38: 11.66666667 | I38: 33.995314
A39: 36 | B39: SMITH, George & HENNEY, Jimmy | C39: 18 | D39: 17 | E39: 37 | F39: 988 | G39: 20 | H39: 9.333333333 | I39: 34.990083
A40: 37 | B40: SERBAN, Nelu & TOPPING, Jack | C40: 15 | D40: 20 | E40: 29 | F40: 657 | G40: 13 | H40: 11 | I40: 34.993401
A41: 38 | B41: PRICE, Jimmy & BANHAM, Jason | C41: 17 | D41: 19 | E41: 73 | F41: 698 | G41: 14 | H41: 8.666666667 | I41: 35.992947
A42: 39 | B42: PLUMSTEAD, Joe & BANCROFT, Dave | C42: 11 | D42: 25 | E42: 65 | F42: 642 | G42: 13 | H42: 6 | I42: 35.993515
A43: 40 | B43: DOY, Alan & KIMBLE, John | C43: 18 | D43: 18 | E43: 64 | F43: 622 | G43: 12 | H43: 15.33333333 | I43: 35.993716
A44: 41 | B44: PAGE, Saul & HANCOX, Karen | C44: 21 | D44: 15 | E44: 27 | F44: 621 | G44: 12 | H44: 15 | I44: 35.993763
A45: 42 | B45: ELLIOTT, Nathan & HARVEY, Paul | C45: 19 | D45: 17 | E45: 30 | F45: 555 | G45: 11 | H45: 9 | I45: 35.99442
A46: 43 | B46: LEE, Phil & PARKER, Daniel | C46: 15 | D46: 21 | E46: 39 | F46: 425 | G46: 8 | H46: 13.66666667 | I46: 35.995711
A47: 44 | B47: LEE, Martin & SMITH, Leon | C47: 20 | D47: 17 | E47: 48 | F47: 841 | G47: 17 | H47: 8.333333333 | I47: 36.991542
A48: 45 | B48: PINDER, Mark & HIGHFIELD, Nik | C48: 21 | D48: 17 | E48: 21 | F48: 699 | G48: 14 | H48: 9 | I48: 37.992989
A49: 46 | B49: MOORING, Luke & BROCK, Peter | C49: 20 | D49: 18 | E49: 29 | F49: 624 | G49: 13 | H49: 0 | I49: 37.993731
A50: 47 | B50: COOPER, Phillip & NELSON, Ian | C50: 19 | D50: 19 | E50: 24 | F50: 563 | G50: 11 | H50: 11.66666667 | I50: 37.994346
A51: 48 | B51: PROVINS, Colin & LAMBERT, Ian | C51: 16 | D51: 22 | E51: 27 | F51: 484 | G51: 10 | H51: 1.333333333 | I51: 37.995133
A52: 49 | B52: ROYALL, Tony & MARTLAND, Kev | C52: 15 | D52: 24 | E52: 72 | F52: 752 | G52: 15 | H52: 10.66666667 | I52: 38.992408
A53: 50 | B53: WRIGHT, Dave & HURCOMBE, Mark | C53: 18 | D53: 21 | E53: 27 | F53: 722 | G53: 15 | H53: 0.6666666667 | I53: 38.992753
A54: 51 | B54: EDWARDS, Lee & LILL, Jarrod | C54: 20 | D54: 19 | E54: 56 | F54: 638 | G54: 13 | H54: 4.666666667 | I54: 38.993564
A55: 52 | B55: THORPE, Doug & BETTINSON, Charles | C55: 21 | D55: 19 | E55: 43 | F55: 621 | G55: 12 | H55: 15 | I55: 39.993747
A56: 53 | B56: ALDOUS, David & STEBBINGS, Robert | C56: 18 | D56: 22 | E56: 65 | F56: 554 | G56: 11 | H56: 8.666666667 | I56: 39.994395
A57: 54 | B57: CARTER, John & PEARCE, Vic | C57: 17 | D57: 24 | E57: 49 | F57: 554 | G57: 11 | H57: 8.666666667 | I57: 40.994411
A58: 55 | B58: GREEN, Kevin & DIAPER, Greg | C58: 21 | D58: 22 | E58: 53 | F58: 525 | G58: 10 | H58: 15 | I58: 42.994697
A59: 56 | B59: ROBERTS, Steve & PARKER, Al | C59: 18 | D59: 25 | E59: 15 | F59: 379 | G59: 7 | H59: 14.33333333 | I59: 42.996195
A60: 57 | B60: WELLS, Thomas & LEE, Louise | C60: 21 | D60: 24 | E60: 27 | F60: 567 | G60: 11 | H60: 13 | I60: 44.994303
A61: 58 | B61: YALLOP, Oliver & STORER, Paul | C61: 21 | D61: 24 | E61: 36 | F61: 405 | G61: 8 | H61: 7 | I61: 44.995914
A62: 59 | B62: ROPER, Liam & JOHNSON, Billy | C62: 15 | D62: 30 | E62: 34 | F62: 369 | G62: 7 | H62: 11 | I62: 44.996276

Sheet SAMF Qualifiers
C1: Day 1 SAMF Qualifiers
A2: Qualifier Number | B2: Name | C2: Weight Points | D2: Weight | F2: Qualifiers | G2: Position
D3: (lbs) | E3: (ozs)
A4: 1 | B4: PLUMSTEAD, Joe | C4: 221 | D4: 4 | E4: 9.666666667 | F4: QUALIFIED | G4: 1
A5: 2 | B5: RUSSELL, Shane | C5: 194 | D5: 4 | E5: 0.6666666667 | F5: QUALIFIED | G5: 2
A6: 3 | B6: LEE, Martin | C6: 186 | D6: 3 | E6: 14 | F6: QUALIFIED | G6: 3
A7: 4 | B7: HUTCHINSON, Dave | C7: 118 | D7: 2 | E7: 7.333333333 | F7: QUALIFIED | G7: 4
A8: 5 | B8: ELLIOTT, Nathan | C8: 98 | D8: 2 | E8: 0.6666666667 | F8: QUALIFIED | G8: 5
A9: 6 | B9: ROBERTS, Steve | C9: 91 | D9: 1 | E9: 14.33333333 | G9: 6
A10: 7 | B10: KNIGHT, Simon | C10: 81 | D10: 1 | E10: 11 | G10: 7
A11: 8 | B11: HUTSON, Garry | C11: 79 | D11: 1 | E11: 10.33333333 | G11: 8
A12: 9 | B12: JOHNSON, Billy | C12: 75 | D12: 1 | E12: 9 | G12: 9
A13: 10 | B13: LAMBERT, Ian | C13: 74 | D13: 1 | E13: 8.666666667 | G13: 10
A14: 11 | B14: HARRISON, Paul | C14: 63 | D14: 1 | E14: 5 | G14: 11
A15: 12 | B15: PRICE, Ben | C15: 58 | D15: 1 | E15: 3.333333333 | G15: 12
A16: 13 | B16: COOPER, Sam | C16: 48 | D16: 1 | E16: 0 | G16: 13
A17: 14 | B17: LILL, Jarrod | C17: 0 | D17: 0 | E17: 0 | G17: 14
A18: 15
A19: 16
A20: 17
A21: 18
A22: 19
A23: 20
A24: 21
A25: 22
A26: 23
A27: 24
B28: (Please note … 1 IN 3 QUALIFY EACH DAY. FOR DAY 1, 5 ANGLERS OUT OF 14 QUALIFY. FOR DAY 2, THE 5 QUALIFIERS FOR DAY 1 ARE REMOVED SO 3 ANGLERS OUT OF 9 QUALIFY. ALTOGETHER 8 ANGLERS QUALIFY FROM THE BASS FESTIVAL)
C29: Day 2 SAMF Qualifiers
A30: Qualifier Number | B30: Name | C30: Weight Points | D30: Weight | F30: Qualifiers | G30: Position
D31: (lbs) | E31: (ozs)
A32: 1 | B32: PRICE, Ben | C32: 502 | D32: 10 | E32: 7.333333333 | F32: QUALIFIED | G32: 1
A33: 2 | B33: RUSSELL, Shane | C33: 484 | D33: 10 | E33: 1.333333333 | G33: 2
A34: 3 | B34: ELLIOTT, Nathan | C34: 415 | D34: 8 | E34: 10.33333333 | G34: 3
A35: 4 | B35: HUTSON, Garry | C35: 339 | D35: 7 | E35: 1 | F35: QUALIFIED | G35: 4
A36: 5 | B36: LEE, Martin | C36: 336 | D36: 7 | E36: 0 | G36: 5
A37: 6 | B37: PLUMSTEAD, Joe | C37: 284 | D37: 5 | E37: 14.66666667 | G37: 6
A38: 7 | B38: HARRISON, Paul | C38: 283 | D38: 5 | E38: 14.33333333 | F38: QUALIFIED | G38: 7
A39: 8 | B39: ROBERTS, Steve | C39: 249 | D39: 5 | E39: 3 | G39: 8
A40: 9 | B40: COOPER, Sam | C40: 229 | D40: 4 | E40: 12.33333333 | G40: 9
A41: 10 | B41: HUTCHINSON, Dave | C41: 221 | D41: 4 | E41: 9.666666667 | G41: 10
A42: 11 | B42: LILL, Jarrod | C42: 202 | D42: 4 | E42: 3.333333333 | G42: 11
A43: 12 | B43: JOHNSON, Billy | C43: 112 | D43: 2 | E43: 5.333333333 | G43: 12
A44: 13 | B44: KNIGHT, Simon | C44: 68 | D44: 1 | E44: 6.666666667 | G44: 13
A45: 14 | B45: LAMBERT, Ian | C45: 24 | D45: 0 | E45: 8 | G45: 14
A46: 15
A47: 16
A48: 17
A49: 18
A50: 19
A51: 20
A52: 21
A53: 22
A54: 23
A55: 24
A56: 25
A57: 26

Sheet Day 1 Zone results (All))
B1: NORTH NORFOLK BASS FESTIVAL 2020-21 | F1: Day 1 ZONE A
A2: Zone Number | B2: Peg | C2: Name | D2: No. Fish | E2: Total Weight Points | F2: Weight | H2: Optional Pools | I2: Day 1 Points | J2: Zone Position
F3: (lbs) | G3: (ozs)
A4: 1 | B4: 4 | C4: WALES, Joe | D4: 15 | E4: 448 | F4: 9 | G4: 5.333333333 | H4: X | I4: 1 | J4: 1
A5: 2 | B5: 16 | C5: BURT, Richard | D5: 21 | E5: 367 | F5: 7 | G5: 10.33333333 | H5: X | I5: 2 | J5: 2
A6: 3 | B6: 12 | C6: LAY-FLURRIE, Matt | D6: 15 | E6: 236 | F6: 4 | G6: 14.66666667 | H6: X | I6: 3 | J6: 3
A7: 4 | B7: 2 | C7: CROSBY, Colin | D7: 8 | E7: 214 | F7: 4 | G7: 7.333333333 | H7: X | I7: 4 | J7: 4
A8: 5 | B8: 3 | C8: YALLOP, Oliver | D8: 7 | E8: 213 | F8: 4 | G8: 7 | H8: X | I8: 5 | J8: 5
A9: 6 | B9: 6 | C9: McGILLOWAY, Wayne | D9: 7 | E9: 197 | F9: 4 | G9: 1.666666667 | H9: X | I9: 6 | J9: 6
A10: 7 | B10: 14 | C10: TOPPING, Mike | D10: 8 | E10: 140 | F10: 2 | G10: 14.66666667 | H10: X | I10: 7 | J10: 7
A11: 8 | B11: 15 | C11: BOWELL, Ian | D11: 12 | E11: 137 | F11: 2 | G11: 13.66666667 | H11: X | I11: 8 | J11: 8
A12: 9 | B12: 13 | C12: TOPPING, Jack | D12: 7 | E12: 135 | F12: 2 | G12: 13 | H12: X | I12: 9 | J12: 9
A13: 10 | B13: 7 | C13: HIPPERSON, Richard | D13: 7 | E13: 110 | F13: 2 | G13: 4.666666667 | H13: X | I13: 10 | J13: 10
A14: 11 | B14: 11 | C14: GALLACHER, Andy | D14: 7 | E14: 99 | F14: 2 | G14: 1 | H14: X | I14: 11 | J14: 11
A15: 12 | B15: 8 | C15: STEBBINGS, Robert | D15: 9 | E15: 84 | F15: 1 | G15: 12 | H15: X | I15: 12 | J15: 12
A16: 13 | B16: 5 | C16: JOHNSON, Billy | D16: 3 | E16: 75 | F16: 1 | G16: 9 | H16: X | I16: 13 | J16: 13
A17: 14 | B17: 9 | C17: HIGHFIELD, Nik | D17: 4 | E17: 53 | F17: 1 | G17: 1.666666667 | H17: X | I17: 14 | J17: 14
A18: 15 | B18: 10 | C18: COOPER, Sam | D18: 3 | E18: 48 | F18: 1 | G18: 0 | H18: X | I18: 15 | J18: 15
A19: 16
A20: 17
A21: 18
A22: 19
A23: 20
A24: 21
A25: 22
A26: 23
A27: 24
A28: 25
A29: 26
A30: 27
A31: 28
A32: 29
A33: 30
B34: NORTH NORFOLK BASS FESTIVAL 2020-21 | F34: Day 1 ZONE B
A35: Zone Number | B35: Peg | C35: Name | D35: No. Fish | E35: Total Weight Points | F35: Weight | H35: Optional Pools | I35: Day 1 Points | J35: Zone Position
F36: (lbs) | G36: (ozs)
A37: 1 | B37: 21 | C37: ROGERS, Mark | D37: 20 | E37: 374 | F37: 7 | G37: 12.66666667 | H37: X | I37: 1 | J37: 1
A38: 2 | B38: 18 | C38: GOOCH, Mark | D38: 18 | E38: 240 | F38: 5 | G38: 0 | H38: X | I38: 2 | J38: 2
A39: 3 | B39: 20 | C39: PLUMSTEAD, Joe | D39: 16 | E39: 221 | F39: 4 | G39: 9.666666667 | H39: X | I39: 3 | J39: 3
A40: 4 | B40: 17 | C40: EDWARDS, Lee | D40: 16 | E40: 217 | F40: 4 | G40: 8.333333333 | H40: X | I40: 4 | J40: 4
A41: 5 | B41: 26 | C41: CARTER, John | D41: 8 | E41: 123 | F41: 2 | G41: 9 | H41: X | I41: 5 | J41: 5
A42: 6 | B42: 19 | C42: THORPE, Doug | D42: 9 | E42: 110 | F42: 2 | G42: 4.666666667 | H42: X | I42: 6 | J42: 6
A43: 7 | B43: 27 | C43: FRARY, Charlie | D43: 6 | E43: 104 | F43: 2 | G43: 2.666666667 | H43: X | I43: 7 | J43: 7
A44: 8 | B44: 23 | C44: BANCROFT, Dave | D44: 5 | E44: 60 | F44: 1 | G44: 4 | H44: X | I44: 8 | J44: 8
A45: 9 | B45: 24 | C45: BROWN, Kay | D45: 1 | E45: 44 | F45: 0 | G45: 14.66666667 | I45: 9 | J45: 9
A46: 10 | B46: 31 | C46: LINDFIELD, Heather | D46: 2 | E46: 31 | F46: 0 | G46: 10.33333333 | I46: 10 | J46: 10
A47: 11 | B47: 22 | C47: AKESTER, Jack | D47: 3 | E47: 27 | F47: 0 | G47: 9 | H47: X | I47: 11 | J47: 11
A48: 12 | B48: 32 | C48: YALLOP, Stephen | D48: 2 | E48: 23 | F48: 0 | G48: 7.666666667 | H48: X | I48: 12 | J48: 12
A49: 13 | B49: 25 | C49: METCALFE, Wendy | D49: 1 | E49: 13 | F49: 0 | G49: 4.333333333 | I49: 13 | J49: 13
A50: 14 | B50: 28 | C50: FRARY, June | D50: 0 | E50: 0 | F50: 0 | G50: 0 | H50: X | I50: 16 | J50: 16
A51: 15 | B51: 29 | C51: HANCOX, Karen | D51: 0 | E51: 0 | F51: 0 | G51: 0 | H51: X | I51: 16 | J51: 16
A52: 16 | B52: 30 | C52: HENNEY, Jimmy | D52: 0 | E52: 0 | F52: 0 | G52: 0 | H52: X | I52: 16 | J52: 16
A53: 17
A54: 18
A55: 19
A56: 20
A57: 21
A58: 22
A59: 23
A60: 24
A61: 25
A62: 26
A63: 27
A64: 28
A65: 29
A66: 30
B67: NORTH NORFOLK BASS FESTIVAL 2020-21 | F67: Day 1 ZONE C
A68: Zone Number | B68: Peg | C68: Name | D68: No. Fish | E68: Total Weight Points | F68: Weight | H68: Optional Pools | I68: Day 1 Points | J68: Zone Position
F69: (lbs) | G69: (ozs)
A70: 1 | B70: 42 | C70: TUCK, Rob | D70: 13 | E70: 157 | F70: 3 | G70: 4.333333333 | H70: X | I70: 1 | J70: 1
A71: 2 | B71: 38 | C71: DENHOLM, Paul | D71: 10 | E71: 144 | F71: 3 | G71: 0 | H71: X | I71: 2 | J71: 2
A72: 3 | B72: 43 | C72: McCOY, Kenny | D72: 10 | E72: 103 | F72: 2 | G72: 2.333333333 | H72: X | I72: 3 | J72: 3
A73: 4 | B73: 39 | C73: ARCH, Joe | D73: 8 | E73: 101 | F73: 2 | G73: 1.666666667 | H73: X | I73: 4 | J73: 4
A74: 5 | B74: 46 | C74: PAGE, Saul | D74: 7 | E74: 80 | F74: 1 | G74: 10.66666667 | H74: X | I74: 5 | J74: 5
A75: 6 | B75: 45 | C75: COTTER, Brett | D75: 4 | E75: 73 | F75: 1 | G75: 8.333333333 | H75: X | I75: 6 | J75: 6
A76: 7 | B76: 33 | C76: LEE, Phil | D76: 6 | E76: 66 | F76: 1 | G76: 6 | H76: X | I76: 7 | J76: 7
A77: 8 | B77: 37 | C77: THOMAS, Tony | D77: 3 | E77: 33 | F77: 0 | G77: 11 | H77: X | I77: 8 | J77: 8
A78: 9 | B78: 41 | C78: CLEMENT, Alby | D78: 3 | E78: 31 | F78: 0 | G78: 10.33333333 | H78: X | I78: 9 | J78: 9
A79: 10 | B79: 35 | C79: DAWBER, Simon | D79: 2 | E79: 27 | F79: 0 | G79: 9 | H79: X | I79: 10 | J79: 10
A80: 11 | B80: 47 | C80: HADDOCK, Roy | D80: 2 | E80: 20 | F80: 0 | G80: 6.666666667 | H80: X | I80: 11 | J80: 11
A81: 12 | B81: 34 | C81: HILLS, Amy | D81: 0 | E81: 0 | F81: 0 | G81: 0 | I81: 16 | J81: 16
A82: 13 | B82: 36 | C82: MURRAY, Luke (DID NOT FISH) | D82: 0 | E82: 0 | F82: 0 | G82: 0 | I82: 16 | J82: 16
A83: 14 | B83: 40 | C83: LILL, Jarrod | D83: 0 | E83: 0 | F83: 0 | G83: 0 | H83: X | I83: 16 | J83: 16
A84: 15 | B84: 44 | C84: HURCOMBE, Mark | D84: 0 | E84: 0 | F84: 0 | G84: 0 | H84: X | I84: 16 | J84: 16
A85: 16 | B85: 48 | C85: Unused Pegs 1 | D85: 0 | E85: 0 | F85: 0 | G85: 0 | I85: 16 | J85: 16
A86: 17
A87: 18
A88: 19
A89: 20
A90: 21
A91: 22
A92: 23
A93: 24
A94: 25
A95: 26
A96: 27
A97: 28
A98: 29
A99: 30
B100: NORTH NORFOLK BASS FESTIVAL 2020-21 | F100: Day 1 ZONE D
A101: Zone Number | B101: Peg | C101: Name | D101: No. Fish | E101: Total Weight Points | F101: Weight | H101: Optional Pools | I101: Day 1 Points | J101: Zone Position
F102: (lbs) | G102: (ozs)
A103: 1 | B103: 63 | C103: BOND, Darren | D103: 20 | E103: 439 | F103: 9 | G103: 2.333333333 | H103: X | I103: 1 | J103: 1
A104: 2 | B104: 55 | C104: SMITH, George | D104: 15 | E104: 310 | F104: 6 | G104: 7.333333333 | H104: X | I104: 2 | J104: 2
A105: 3 | B105: 62 | C105: DRAYTON, Simon | D105: 17 | E105: 243 | F105: 5 | G105: 1 | H105: X | I105: 3 | J105: 3
A106: 4 | B106: 49 | C106: BUY, Craig | D106: 10 | E106: 160 | F106: 3 | G106: 5.333333333 | H106: X | I106: 4 | J106: 4
A107: 5 | B107: 52 | C107: WELLS, Thomas | D107: 9 | E107: 149 | F107: 3 | G107: 1.666666667 | H107: X | I107: 5 | J107: 5
A108: 6 | B108: 50 | C108: SERBAN, Nelu | D108: 3 | E108: 90 | F108: 1 | G108: 14 | H108: X | I108: 6 | J108: 6
A109: 7 | B109: 54 | C109: COOPER, Phillip | D109: 6 | E109: 85 | F109: 1 | G109: 12.33333333 | H109: X | I109: 7 | J109: 7
A110: 8 | B110: 61 | C110: WATTS, Mike | D110: 8 | E110: 84 | F110: 1 | G110: 12 | H110: X | I110: 8 | J110: 8
A111: 9 | B111: 53 | C111: HUTSON, Garry | D111: 6 | E111: 79 | F111: 1 | G111: 10.33333333 | H111: X | I111: 9 | J111: 9
A112: 10 | B112: 60 | C112: DIAPER, Barry | D112: 5 | E112: 59 | F112: 1 | G112: 3.666666667 | H112: X | I112: 10 | J112: 10
A113: 11 | B113: 56 | C113: THORNTON, Lee | D113: 5 | E113: 53 | F113: 1 | G113: 1.666666667 | H113: X | I113: 11 | J113: 11
A114: 12 | B114: 59 | C114: LINDFIELD, Bill | D114: 5 | E114: 42 | F114: 0 | G114: 14 | H114: X | I114: 12 | J114: 12
A115: 13 | B115: 51 | C115: AUSTIN, John | D115: 3 | E115: 25 | F115: 0 | G115: 8.333333333 | H115: X | I115: 13 | J115: 13
A116: 14 | B116: 58 | C116: DIAPER, Greg | D116: 2 | E116: 21 | F116: 0 | G116: 7 | H116: X | I116: 14 | J116: 14
A117: 15 | B117: 64 | C117: BETTINSON, Charles | D117: 1 | E117: 7 | F117: 0 | G117: 2.333333333 | H117: X | I117: 15 | J117: 15
A118: 16 | B118: 57 | C118: SMITH, Leon | D118: 0 | E118: 0 | F118: 0 | G118: 0 | H118: X | I118: 16 | J118: 16
A119: 17
A120: 18
A121: 19
A122: 20
A123: 21
A124: 22
A125: 23
A126: 24
A127: 25
A128: 26
A129: 27
A130: 28
A131: 29
A132: 30
B133: NORTH NORFOLK BASS FESTIVAL 2020-21 | F133: Day 1 ZONE E
A134: Zone Number | B134: Peg | C134: Name | D134: No. Fish | E134: Total Weight Points | F134: Weight | H134: Optional Pools | I134: Day 1 Points | J134: Zone Position
F135: (lbs) | G135: (ozs)
A136: 1 | B136: 72 | C136: RUSSELL, Shane | D136: 10 | E136: 194 | F136: 4 | G136: 0.6666666667 | H136: X | I136: 1 | J136: 1
A137: 2 | B137: 69 | C137: NANGLE, Karl | D137: 10 | E137: 154 | F137: 3 | G137: 3.333333333 | H137: X | I137: 2 | J137: 2
A138: 3 | B138: 79 | C138: FRENCH, Julian | D138: 11 | E138: 134 | F138: 2 | G138: 12.66666667 | H138: X | I138: 3 | J138: 3
A139: 4 | B139: 65 | C139: ELLIOTT, Nathan | D139: 8 | E139: 98 | F139: 2 | G139: 0.6666666667 | H139: X | I139: 4 | J139: 4
A140: 5 | B140: 68 | C140: ROBERTS, Steve | D140: 5 | E140: 91 | F140: 1 | G140: 14.33333333 | H140: X | I140: 5 | J140: 5
A141: 6 | B141: 66 | C141: PRICE, Jimmy | D141: 8 | E141: 89 | F141: 1 | G141: 13.66666667 | H141: X | I141: 6 | J141: 6
A142: 7 | B142: 71 | C142: TURNER, Cameron | D142: 7 | E142: 89 | F142: 1 | G142: 13.66666667 | H142: X | I142: 7 | J142: 7
A143: 8 | B143: 80 | C143: PARKER, Daniel | D143: 6 | E143: 77 | F143: 1 | G143: 9.666666667 | H143: X | I143: 8 | J143: 8
A144: 9 | B144: 67 | C144: LAMBERT, Ian | D144: 2 | E144: 74 | F144: 1 | G144: 8.666666667 | H144: X | I144: 9 | J144: 9
A145: 10 | B145: 77 | C145: PRICE, Alan | D145: 6 | E145: 68 | F145: 1 | G145: 6.666666667 | H145: X | I145: 10 | J145: 10
A146: 11 | B146: 78 | C146: HARRISON, Paul | D146: 5 | E146: 63 | F146: 1 | G146: 5 | H146: X | I146: 11 | J146: 11
A147: 12 | B147: 73 | C147: NELSON, Ian | D147: 2 | E147: 58 | F147: 1 | G147: 3.333333333 | H147: X | I147: 12 | J147: 12
A148: 13 | B148: 70 | C148: KINGDON, Adam | D148: 3 | E148: 37 | F148: 0 | G148: 12.33333333 | H148: X | I148: 13 | J148: 13
A149: 14 | B149: 75 | C149: MARTLAND, Kev | D149: 2 | E149: 26 | F149: 0 | G149: 8.666666667 | H149: X | I149: 14 | J149: 14
A150: 15 | B150: 74 | C150: HARVEY, Paul | D150: 1 | E150: 12 | F150: 0 | G150: 4 | H150: X | I150: 15 | J150: 15
A151: 16 | B151: 76 | C151: GIBBS, Tom (DID NOT FISH) | D151: 0 | E151: 0 | F151: 0 | G151: 0 | I151: 16 | J151: 16
A152: 17
A153: 18
A154: 19
A155: 20
A156: 21
A157: 22
A158: 23
A159: 24
A160: 25
A161: 26
A162: 27
A163: 28
A164: 29
A165: 30
B166: NORTH NORFOLK BASS FESTIVAL 2020-21 | F166: Day 1 ZONE F
A167: Zone Number | B167: Peg | C167: Name | D167: No. Fish | E167: Total Weight Points | F167: Weight | H167: Optional Pools | I167: Day 1 Points | J167: Zone Position
F168: (lbs) | G168: (ozs)
A169: 1 | B169: 86 | C169: CROSBY, Ralf | D169: 7 | E169: 184 | F169: 3 | G169: 13.33333333 | H169: X | I169: 1 | J169: 1
A170: 2 | B170: 95 | C170: DOY, Alan | D170: 7 | E170: 164 | F170: 3 | G170: 6.666666667 | H170: X | I170: 2 | J170: 2
A171: 3 | B171: 87 | C171: RYDER, Edde | D171: 7 | E171: 122 | F171: 2 | G171: 8.666666667 | H171: X | I171: 3 | J171: 3
A172: 4 | B172: 83 | C172: SHORTHOUSE, Dave | D172: 8 | E172: 97 | F172: 2 | G172: 0.3333333333 | H172: X | I172: 4 | J172: 4
A173: 5 | B173: 84 | C173: TAYLOR, Mark | D173: 8 | E173: 94 | F173: 1 | G173: 15.33333333 | H173: X | I173: 5 | J173: 5
A174: 6 | B174: 93 | C174: ALDOUS, David | D174: 8 | E174: 93 | F174: 1 | G174: 15 | H174: X | I174: 6 | J174: 6
A175: 7 | B175: 96 | C175: PINDER, Mark | D175: 6 | E175: 90 | F175: 1 | G175: 14 | H175: X | I175: 7 | J175: 7
A176: 8 | B176: 88 | C176: SMITH, Stephen | D176: 8 | E176: 85 | F176: 1 | G176: 12.33333333 | H176: X | I176: 8 | J176: 8
A177: 9 | B177: 81 | C177: WHITE, Alan | D177: 6 | E177: 61 | F177: 1 | G177: 4.333333333 | H177: X | I177: 9 | J177: 9
A178: 10 | B178: 85 | C178: PRICE, Ben | D178: 5 | E178: 58 | F178: 1 | G178: 3.333333333 | H178: X | I178: 10 | J178: 10
A179: 11 | B179: 90 | C179: PARKER, Gavin | D179: 4 | E179: 46 | F179: 0 | G179: 15.33333333 | H179: X | I179: 11 | J179: 11
A180: 12 | B180: 91 | C180: BORDIANU, Adrian | D180: 4 | E180: 46 | F180: 0 | G180: 15.33333333 | H180: X | I180: 11 | J180: 11
A181: 13 | B181: 92 | C181: PARKER, Al | D181: 2 | E181: 25 | F181: 0 | G181: 8.333333333 | H181: X | I181: 13 | J181: 13
A182: 14 | B182: 82 | C182: SMART, Neil | D182: 2 | E182: 16 | F182: 0 | G182: 5.333333333 | H182: X | I182: 14 | J182: 14
A183: 15 | B183: 94 | C183: ALDOUS, Brayden | D183: 1 | E183: 12 | F183: 0 | G183: 4 | I183: 15 | J183: 15
A184: 16 | B184: 89 | C184: STORER, Paul | D184: 0 | E184: 0 | F184: 0 | G184: 0 | H184: X | I184: 16 | J184: 16
A185: 30
B186: NORTH NORFOLK BASS FESTIVAL 2020-21 | F186: Day 1 ZONE G
A187: Zone Number | B187: Peg | C187: Name | D187: No. Fish | E187: Total Weight Points | F187: Weight | H187: Optional Pools | I187: Day 1 Points | J187: Zone Position
F188: (lbs) | G188: (ozs)
A189: 1 | B189: 99 | C189: FALK, Dave | D189: 19 | E189: 226 | F189: 4 | G189: 11.33333333 | H189: X | I189: 1 | J189: 1
A190: 2 | B190: 107 | C190: ROPER, Liam | D190: 5 | E190: 182 | F190: 3 | G190: 12.66666667 | H190: X | I190: 2 | J190: 2
A191: 3 | B191: 105 | C191: WOOD, Gary | D191: 9 | E191: 130 | F191: 2 | G191: 11.33333333 | H191: X | I191: 3 | J191: 3
A192: 4 | B192: 111 | C192: MOORING, Luke | D192: 11 | E192: 124 | F192: 2 | G192: 9.333333333 | H192: X | I192: 4 | J192: 4
A193: 5 | B193: 102 | C193: HUTCHINSON, Dave | D193: 11 | E193: 118 | F193: 2 | G193: 7.333333333 | H193: X | I193: 5 | J193: 5
A194: 6 | B194: 108 | C194: PERRY, Joe | D194: 6 | E194: 118 | F194: 2 | G194: 7.333333333 | H194: X | I194: 6 | J194: 6
A195: 7 | B195: 110 | C195: PROVINS, Colin | D195: 6 | E195: 63 | F195: 1 | G195: 5 | H195: X | I195: 7 | J195: 7
A196: 8 | B196: 104 | C196: NICHOLSON, Steven | D196: 5 | E196: 62 | F196: 1 | G196: 4.666666667 | H196: X | I196: 8 | J196: 8
A197: 9 | B197: 112 | C197: WICKS, Maralyn | D197: 2 | E197: 60 | F197: 1 | G197: 4 | H197: X | I197: 9 | J197: 9
A198: 10 | B198: 98 | C198: GASCOIGNE, Robert | D198: 7 | E198: 58 | F198: 1 | G198: 3.333333333 | H198: X | I198: 10 | J198: 10
A199: 11 | B199: 103 | C199: HAZELGROVE, Gary | D199: 4 | E199: 48 | F199: 1 | G199: 0 | H199: X | I199: 11 | J199: 11
A200: 12 | B200: 106 | C200: PEARCE, Vic | D200: 4 | E200: 45 | F200: 0 | G200: 15 | H200: X | I200: 12 | J200: 12
... 49 more rows

Sheet Day 2 Zone results (All)
B1: NORTH NORFOLK BASS FESTIVAL 2020-21 | F1: Day 2 ZONE A
A2: Zone Number | B2: Peg | C2: Name | D2: No. Fish | E2: Total Weight Points | F2: Weight | H2: Optional Pools | I2: Day 2 Points | J2: Zone Position
F3: (lbs) | G3: (ozs)
A4: 1 | B4: 1 | C4: GARDINER, Gareth | D4: 23 | E4: 754 | F4: 15 | G4: 11.33333333 | H4: X | I4: 1 | J4: 1
A5: 2 | B5: 12 | C5: SHORTHOUSE, Dave | D5: 34 | E5: 651 | F5: 13 | G5: 9 | H5: X | I5: 2 | J5: 2
A6: 3 | B6: 13 | C6: CROSBY, Ralf | D6: 41 | E6: 624 | F6: 13 | G6: 0 | H6: X | I6: 3 | J6: 3
A7: 4 | B7: 8 | C7: TAYLOR, Mark | D7: 25 | E7: 531 | F7: 11 | G7: 1 | H7: X | I7: 4 | J7: 4
A8: 5 | B8: 11 | C8: BALL, Keith | D8: 25 | E8: 365 | F8: 7 | G8: 9.666666667 | H8: X | I8: 5 | J8: 5
A9: 6 | B9: 9 | C9: GASCOIGNE, Robert | D9: 24 | E9: 344 | F9: 7 | G9: 2.666666667 | H9: X | I9: 6 | J9: 6
A10: 7 | B10: 4 | C10: SPALL, Chris | D10: 30 | E10: 294 | F10: 6 | G10: 2 | H10: X | I10: 7 | J10: 7
A11: 8 | B11: 2 | C11: HARRISON, Paul | D11: 17 | E11: 283 | F11: 5 | G11: 14.33333333 | H11: X | I11: 8 | J11: 8
A12: 9 | B12: 6 | C12: BANHAM, Jason | D12: 22 | E12: 275 | F12: 5 | G12: 11.66666667 | H12: X | I12: 9 | J12: 9
A13: 10 | B13: 15 | C13: PRICE, Jimmy | D13: 18 | E13: 269 | F13: 5 | G13: 9.666666667 | H13: X | I13: 10 | J13: 10
A14: 11 | B14: 14 | C14: ROBERTS, Steve | D14: 14 | E14: 249 | F14: 5 | G14: 3 | H14: X | I14: 11 | J14: 11
A15: 12 | B15: 5 | C15: PEMBERTON, Andy | D15: 20 | E15: 239 | F15: 4 | G15: 15.66666667 | H15: X | I15: 12 | J15: 12
A16: 13 | B16: 3 | C16: SMART, Neil | D16: 20 | E16: 234 | F16: 4 | G16: 14 | H16: X | I16: 13 | J16: 13
A17: 14 | B17: 10 | C17: MARTLAND, Kev | D17: 18 | E17: 214 | F17: 4 | G17: 7.333333333 | H17: X | I17: 14 | J17: 14
A18: 15 | B18: 16 | C18: LEE, Louise | D18: 12 | E18: 179 | F18: 3 | G18: 11.66666667 | H18: X | I18: 15 | J18: 15
A19: 16 | B19: 7 | C19: BANHAM, Mark | D19: 9 | E19: 151 | F19: 3 | G19: 2.333333333 | I19: 16 | J19: 16
A20: 17
A21: 18
A22: 19
A23: 20
A24: 21
A25: 22
A26: 23
A27: 24
A28: 25
A29: 26
A30: 27
A31: 28
A32: 29
A33: 30
B34: NORTH NORFOLK BASS FESTIVAL 2020-21 | F34: Day 2 ZONE B
A35: Zone Number | B35: Peg | C35: Name | D35: No. Fish | E35: Total Weight Points | F35: Weight | H35: Optional Pools | I35: Day 2 Points | J35: Zone Position
F36: (lbs) | G36: (ozs)
A37: 1 | B37: 20 | C37: ADAMS, Graham | D37: 36 | E37: 611 | F37: 12 | G37: 11.66666667 | H37: X | I37: 1 | J37: 1
A38: 2 | B38: 32 | C38: FALK, Dave | D38: 37 | E38: 539 | F38: 11 | G38: 3.666666667 | H38: X | I38: 2 | J38: 2
A39: 3 | B39: 18 | C39: NANGLE, Karl | D39: 27 | E39: 502 | F39: 10 | G39: 7.333333333 | H39: X | I39: 3 | J39: 3
A40: 4 | B40: 25 | C40: PERRY, Joe | D40: 35 | E40: 499 | F40: 10 | G40: 6.333333333 | H40: X | I40: 4 | J40: 4
A41: 5 | B41: 27 | C41: WRIGHT, Dave | D41: 22 | E41: 475 | F41: 9 | G41: 14.33333333 | H41: X | I41: 5 | J41: 5
A42: 6 | B42: 31 | C42: WOOD, Gary | D42: 23 | E42: 356 | F42: 7 | G42: 6.666666667 | H42: X | I42: 6 | J42: 6
A43: 7 | B43: 24 | C43: FRENCH, Julian | D43: 29 | E43: 347 | F43: 7 | G43: 3.666666667 | H43: X | I43: 7 | J43: 7
A44: 8 | B44: 17 | C44: LEE, Martin | D44: 22 | E44: 336 | F44: 7 | G44: 0 | H44: X | I44: 8 | J44: 8
A45: 9 | B45: 30 | C45: PROVINS, Colin | D45: 28 | E45: 323 | F45: 6 | G45: 11.66666667 | H45: X | I45: 9 | J45: 9
A46: 10 | B46: 26 | C46: WICKS, Maralyn | D46: 18 | E46: 265 | F46: 5 | G46: 8.333333333 | H46: X | I46: 10 | J46: 10
A47: 11 | B47: 19 | C47: KIMBLE, John | D47: 20 | E47: 260 | F47: 5 | G47: 6.666666667 | H47: X | I47: 11 | J47: 11
A48: 12 | B48: 21 | C48: PEARCE, Vic | D48: 19 | E48: 238 | F48: 4 | G48: 15.33333333 | H48: X | I48: 12 | J48: 12
A49: 13 | B49: 22 | C49: HUTCHINSON, Dave | D49: 20 | E49: 221 | F49: 4 | G49: 9.666666667 | H49: X | I49: 13 | J49: 13
A50: 14 | B50: 23 | C50: NICHOLSON, Steven | D50: 8 | E50: 201 | F50: 4 | G50: 3 | H50: X | I50: 14 | J50: 14
A51: 15 | B51: 28 | C51: ALDOUS, David | D51: 12 | E51: 119 | F51: 2 | G51: 7.666666667 | H51: X | I51: 15 | J51: 15
A52: 16 | B52: 29 | C52: ALDOUS, Brayden | D52: 6 | E52: 77 | F52: 1 | G52: 9.666666667 | I52: 16 | J52: 16
A53: 17
A54: 18
A55: 19
A56: 20
A57: 21
A58: 22
A59: 23
A60: 24
A61: 25
A62: 26
A63: 27
A64: 28
A65: 29
B66: NORTH NORFOLK BASS FESTIVAL 2020-21 | F66: Day 2 ZONE C
A67: Zone Number | B67: Peg | C67: Name | D67: No. Fish | E67: Total Weight Points | F67: Weight | H67: Optional Pools | I67: Day 2 Points | J67: Zone Position
F68: (lbs) | G68: (ozs)
A69: 1 | B69: 41 | C69: PRICE, Ben | D69: 20 | E69: 502 | F69: 10 | G69: 7.333333333 | H69: X | I69: 1 | J69: 1
A70: 2 | B70: 37 | C70: TURNER, Cameron | D70: 22 | E70: 447 | F70: 9 | G70: 5 | H70: X | I70: 2 | J70: 2
A71: 3 | B71: 40 | C71: CUTLER, Neil | D71: 22 | E71: 351 | F71: 7 | G71: 5 | H71: X | I71: 3 | J71: 3
A72: 4 | B72: 47 | C72: PRICE, Alan | D72: 9 | E72: 313 | F72: 6 | G72: 8.333333333 | H72: X | I72: 4 | J72: 4
A73: 5 | B73: 33 | C73: SELF, Bevan | D73: 20 | E73: 288 | F73: 6 | G73: 0 | H73: X | I73: 5 | J73: 5
A74: 6 | B74: 38 | C74: BORDIANU, Adrian | D74: 17 | E74: 253 | F74: 5 | G74: 4.333333333 | H74: X | I74: 6 | J74: 6
A75: 7 | B75: 39 | C75: DOY, Alan | D75: 9 | E75: 198 | F75: 4 | G75: 2 | H75: X | I75: 7 | J75: 7
A76: 8 | B76: 48 | C76: KINGDON, Adam | D76: 8 | E76: 147 | F76: 3 | G76: 1 | H76: X | I76: 8 | J76: 8
A77: 9 | B77: 35 | C77: STORER, Paul | D77: 9 | E77: 115 | F77: 2 | G77: 6.333333333 | H77: X | I77: 9 | J77: 9
A78: 10 | B78: 42 | C78: CREASEY, Shaun | D78: 2 | E78: 112 | F78: 2 | G78: 5.333333333 | H78: X | I78: 10 | J78: 10
A79: 11 | B79: 46 | C79: PARKER, Gavin | D79: 3 | E79: 34 | F79: 0 | G79: 11.33333333 | H79: X | I79: 11 | J79: 11
A80: 12 | B80: 44 | C80: HARVEY, Paul | D80: 3 | E80: 30 | F80: 0 | G80: 10 | H80: X | I80: 12 | J80: 12
A81: 13 | B81: 36 | C81: LAMBERT, Ian | D81: 2 | E81: 24 | F81: 0 | G81: 8 | H81: X | I81: 13 | J81: 13
A82: 14 | B82: 45 | C82: PARKER, Al | D82: 1 | E82: 14 | F82: 0 | G82: 4.666666667 | H82: X | I82: 14 | J82: 14
A83: 15 | B83: 34 | C83: BROCK, Peter | D83: 0 | E83: 0 | F83: 0 | G83: 0 | H83: X | I83: 16 | J83: 16
A84: 16 | B84: 43 | C84: GIBBS, Tom (DID NOT FISH) | D84: 0 | E84: 0 | F84: 0 | G84: 0 | I84: 16 | J84: 16
A85: 17
A86: 18
A87: 19
A88: 20
A89: 21
A90: 22
A91: 23
A92: 24
A93: 25
A94: 26
A95: 27
A96: 28
A97: 29
A98: 30
B99: NORTH NORFOLK BASS FESTIVAL 2020-21 | F99: Day 2 ZONE D
A100: Zone Number | B100: Peg | C100: Name | D100: No. Fish | E100: Total Weight Points | F100: Weight | H100: Optional Pools | I100: Day 2 Points | J100: Zone Position
F101: (lbs) | G101: (ozs)
A102: 1 | B102: 51 | C102: ADAMS, Stephen | D102: 16 | E102: 557 | F102: 11 | G102: 9.666666667 | H102: X | I102: 1 | J102: 1
A103: 2 | B103: 62 | C103: MOORING, Luke | D103: 27 | E103: 500 | F103: 10 | G103: 6.666666667 | H103: X | I103: 2 | J103: 2
A104: 3 | B104: 58 | C104: RUSSELL, Shane | D104: 16 | E104: 484 | F104: 10 | G104: 1.333333333 | H104: X | I104: 3 | J104: 3
A105: 4 | B105: 60 | C105: PINDER, Mark | D105: 18 | E105: 436 | F105: 9 | G105: 1.333333333 | H105: X | I105: 4 | J105: 4
A106: 5 | B106: 64 | C106: ELLIOTT, Nathan | D106: 29 | E106: 415 | F106: 8 | G106: 10.33333333 | H106: X | I106: 5 | J106: 5
A107: 6 | B107: 49 | C107: RYDER, Edde | D107: 14 | E107: 253 | F107: 5 | G107: 4.333333333 | H107: X | I107: 6 | J107: 6
A108: 7 | B108: 59 | C108: NELSON, Ian | D108: 16 | E108: 210 | F108: 4 | G108: 6 | H108: X | I108: 7 | J108: 7
A109: 8 | B109: 53 | C109: SMITH, Stephen | D109: 12 | E109: 190 | F109: 3 | G109: 15.33333333 | H109: X | I109: 8 | J109: 8
A110: 9 | B110: 61 | C110: GREEN, Kevin | D110: 16 | E110: 183 | F110: 3 | G110: 13 | H110: X | I110: 9 | J110: 9
A111: 10 | B111: 63 | C111: ROYALL, Tony | D111: 12 | E111: 177 | F111: 3 | G111: 11 | H111: X | I111: 10 | J111: 10
A112: 11 | B112: 55 | C112: HAZELGROVE, Gary | D112: 12 | E112: 151 | F112: 3 | G112: 2.333333333 | H112: X | I112: 11 | J112: 11
A113: 12 | B113: 56 | C113: BOTEZATO, Constantin | D113: 11 | E113: 112 | F113: 2 | G113: 5.333333333 | H113: X | I113: 12 | J113: 12
A114: 13 | B114: 57 | C114: PARKER, Daniel | D114: 7 | E114: 97 | F114: 2 | G114: 0.3333333333 | H114: X | I114: 13 | J114: 13
A115: 14 | B115: 52 | C115: WHITE, Alan | D115: 6 | E115: 72 | F115: 1 | G115: 8 | H115: X | I115: 14 | J115: 14
A116: 15 | B116: 50 | C116: KNIGHT, Simon | D116: 5 | E116: 68 | F116: 1 | G116: 6.666666667 | H116: X | I116: 15 | J116: 15
A117: 16 | B117: 54 | C117: ROPER, Liam | D117: 0 | E117: 0 | F117: 0 | G117: 0 | H117: X | I117: 16 | J117: 16
A118: 17
A119: 18
A120: 19
A121: 20
A122: 21
A123: 22
A124: 23
A125: 24
A126: 25
A127: 26
A128: 27
A129: 28
A130: 29
A131: 30
B132: NORTH NORFOLK BASS FESTIVAL 2020-21 | F132: Day 2 ZONE E
A133: Zone Number | B133: Peg | C133: Name | D133: No. Fish | E133: Total Weight Points | F133: Weight | H133: Optional Pools | I133: Day 2 Points | J133: Zone Position
F134: (lbs) | G134: (ozs)
A135: 1 | B135: 77 | C135: TUCK, Rob | D135: 23 | E135: 868 | F135: 18 | G135: 1.333333333 | H135: X | I135: 1 | J135: 1
A136: 2 | B136: 66 | C136: PAGE, Saul | D136: 37 | E136: 404 | F136: 8 | G136: 6.666666667 | H136: X | I136: 2 | J136: 2
A137: 3 | B137: 67 | C137: DIAPER, Barry | D137: 21 | E137: 252 | F137: 5 | G137: 4 | H137: X | I137: 3 | J137: 3
A138: 4 | B138: 65 | C138: COOPER, Sam | D138: 18 | E138: 229 | F138: 4 | G138: 12.33333333 | H138: X | I138: 4 | J138: 4
A139: 5 | B139: 76 | C139: LAY-FLURRIE, Matt | D139: 18 | E139: 222 | F139: 4 | G139: 10 | H139: X | I139: 5 | J139: 5
A140: 6 | B140: 80 | C140: DENHOLM, Paul | D140: 18 | E140: 216 | F140: 4 | G140: 8 | H140: X | I140: 6 | J140: 6
A141: 7 | B141: 73 | C141: COTTER, Brett | D141: 11 | E141: 210 | F141: 4 | G141: 6 | H141: X | I141: 7 | J141: 7
A142: 8 | B142: 71 | C142: LEE, Phil | D142: 18 | E142: 185 | F142: 3 | G142: 13.66666667 | H142: X | I142: 8 | J142: 8
A143: 9 | B143: 74 | C143: AUSTIN, John | D143: 10 | E143: 185 | F143: 3 | G143: 13.66666667 | H143: X | I143: 9 | J143: 9
A144: 10 | B144: 69 | C144: DAWBER, Simon | D144: 15 | E144: 181 | F144: 3 | G144: 12.33333333 | H144: X | I144: 10 | J144: 10
A145: 11 | B145: 75 | C145: BOWELL, Ian | D145: 19 | E145: 173 | F145: 3 | G145: 9.666666667 | H145: X | I145: 11 | J145: 11
A146: 12 | B146: 68 | C146: THOMAS, Tony | D146: 7 | E146: 133 | F146: 2 | G146: 12.33333333 | H146: X | I146: 12 | J146: 12
A147: 13 | B147: 78 | C147: HIGHFIELD, Nik | D147: 11 | E147: 120 | F147: 2 | G147: 8 | H147: X | I147: 13 | J147: 13
A148: 14 | B148: 72 | C148: JOHNSON, Billy | D148: 13 | E148: 112 | F148: 2 | G148: 5.333333333 | H148: X | I148: 14 | J148: 14
A149: 15 | B149: 70 | C149: Unused Pegs 1 | D149: 0 | E149: 0 | F149: 0 | G149: 0 | I149: 16 | J149: 16
A150: 16 | B150: 79 | C150: HILLS, Amy | D150: 0 | E150: 0 | F150: 0 | G150: 0 | I150: 16 | J150: 16
A151: 17
A152: 18
A153: 19
A154: 20
A155: 21
A156: 22
A157: 23
A158: 24
A159: 25
A160: 26
A161: 27
A162: 28
A163: 29
A164: 30
B165: NORTH NORFOLK BASS FESTIVAL 2020-21 | F165: Day 2 ZONE F
A166: Zone Number | B166: Peg | C166: Name | D166: No. Fish | E166: Total Weight Points | F166: Weight | H166: Optional Pools | I166: Day 2 Points | J166: Zone Position
F167: (lbs) | G167: (ozs)
A168: 1 | B168: 95 | C168: LINDFIELD, Bill | D168: 37 | E168: 479 | F168: 9 | G168: 15.66666667 | H168: X | I168: 1 | J168: 1
A169: 2 | B169: 82 | C169: GOOCH, Mark | D169: 32 | E169: 438 | F169: 9 | G169: 2 | H169: X | I169: 2 | J169: 2
A170: 3 | B170: 88 | C170: BURT, Richard | D170: 33 | E170: 393 | F170: 8 | G170: 3 | H170: X | I170: 3 | J170: 3
A171: 4 | B171: 81 | C171: McCOY, Kenny | D171: 17 | E171: 356 | F171: 7 | G171: 6.666666667 | H171: X | I171: 4 | J171: 4
A172: 5 | B172: 93 | C172: CLEMENT, Alby | D172: 30 | E172: 302 | F172: 6 | G172: 4.666666667 | H172: X | I172: 5 | J172: 5
A173: 6 | B173: 92 | C173: SERBAN, Nelu | D173: 25 | E173: 298 | F173: 6 | G173: 3.333333333 | H173: X | I173: 6 | J173: 6
A174: 7 | B174: 83 | C174: STEBBINGS, Robert | D174: 18 | E174: 258 | F174: 5 | G174: 6 | H174: X | I174: 7 | J174: 7
A175: 8 | B175: 94 | C175: THORNTON, Lee | D175: 22 | E175: 254 | F175: 5 | G175: 4.666666667 | H175: X | I175: 8 | J175: 8
A176: 9 | B176: 91 | C176: WELLS, Thomas | D176: 18 | E176: 239 | F176: 4 | G176: 15.66666667 | H176: X | I176: 9 | J176: 9
A177: 10 | B177: 87 | C177: TOPPING, Mike | D177: 22 | E177: 221 | F177: 4 | G177: 9.666666667 | H177: X | I177: 10 | J177: 10
A178: 11 | B178: 85 | C178: EDWARDS, Lee | D178: 16 | E178: 219 | F178: 4 | G178: 9 | H178: X | I178: 11 | J178: 11
A179: 12 | B179: 89 | C179: COOPER, Phillip | D179: 17 | E179: 210 | F179: 4 | G179: 6 | H179: X | I179: 12 | J179: 12
A180: 13 | B180: 84 | C180: DRAYTON, Simon | D180: 19 | E180: 186 | F180: 3 | G180: 14 | H180: X | I180: 13 | J180: 13
A181: 14 | B181: 86 | C181: TOPPING, Jack | D181: 14 | E181: 134 | F181: 2 | G181: 12.66666667 | H181: X | I181: 14 | J181: 14
A182: 15 | B182: 90 | C182: YALLOP, Oliver | D182: 7 | E182: 77 | F182: 1 | G182: 9.666666667 | H182: X | I182: 15 | J182: 15
A183: 16 | B183: 96 | C183: HURCOMBE, Mark | D183: 0 | E183: 0 | F183: 0 | G183: 0 | H183: X | I183: 16 | J183: 16
A184: 17
A185: 18
A186: 19
A187: 20
A188: 21
A189: 22
A190: 23
A191: 24
A192: 25
A193: 26
A194: 27
A195: 28
A196: 29
A197: 30
B198: NORTH NORFOLK BASS FESTIVAL 2020-21 | F198: Day 2 ZONE G
A199: Zone Number | B199: Peg | C199: Name | D199: No. Fish | E199: Total Weight Points | F199: Weight | H199: Optional Pools | I199: Day 2 Points | J199: Zone Position
F200: (lbs) | G200: (ozs)
... 61 more rows

Sheet Pairs list
A1: Pair No | B1: Pair Names | C1: Partner 1 Name | D1: Partner 2 Name | E1: Partner 1 No. | F1: Partner 2 No. | G1: Pair No
A2: 1 | B2: WALES, Joe & THORNTON, Lee | C2: WALES, Joe | D2: THORNTON, Lee | E2: 118 | F2: 112 | G2: 1
A3: 2 | B3: BOND, Darren & HAZELGROVE, Gary | C3: BOND, Darren | D3: HAZELGROVE, Gary | E3: 13 | F3: 53 | G3: 2
A4: 3 | B4: ROGERS, Mark & DAWBER, Simon | C4: ROGERS, Mark | D4: DAWBER, Simon | E4: 95 | F4: 31 | G4: 3
A5: 4 | B5: ROYALL, Tony & MARTLAND, Kev | C5: ROYALL, Tony | D5: MARTLAND, Kev | E5: 97 | F5: 73 | G5: 4
A6: 5 | B6: FALK, Dave & SMART, Neil | C6: FALK, Dave | D6: SMART, Neil | E6: 39 | F6: 103 | G6: 5
A7: 6 | B7: RUSSELL, Shane & FRARY, June | C7: RUSSELL, Shane | D7: FRARY, June | E7: 98 | F7: 41 | G7: 6
A8: 7 | B8: CROSBY, Ralf & HUTSON, Garry | C8: CROSBY, Ralf | D8: HUTSON, Garry | E8: 29 | F8: 60 | G8: 7
A9: 8 | B9: TUCK, Rob & KNIGHT, Simon | C9: TUCK, Rob | D9: KNIGHT, Simon | E9: 116 | F9: 64 | G9: 8
A10: 9 | B10: BURT, Richard & ADAMS, Graham | C10: BURT, Richard | D10: ADAMS, Graham | E10: 20 | F10: 1 | G10: 9
A11: 10 | B11: SMITH, George & HENNEY, Jimmy | C11: SMITH, George | D11: HENNEY, Jimmy | E11: 104 | F11: 54 | G11: 10
A12: 11 | B12: WRIGHT, Dave & HURCOMBE, Mark | C12: WRIGHT, Dave | D12: HURCOMBE, Mark | E12: 123 | F12: 58 | G12: 11
A13: 12 | B13: GOOCH, Mark & GASCOIGNE, Robert | C13: GOOCH, Mark | D13: GASCOIGNE, Robert | E13: 47 | F13: 45 | G13: 12
A14: 13 | B14: ROPER, Liam & JOHNSON, Billy | C14: ROPER, Liam | D14: JOHNSON, Billy | E14: 96 | F14: 61 | G14: 13
A15: 14 | B15: DOY, Alan & KIMBLE, John | C15: DOY, Alan | D15: KIMBLE, John | E15: 35 | F15: 62 | G15: 14
A16: 15 | B16: NANGLE, Karl & CREASEY, Shaun | C16: NANGLE, Karl | D16: CREASEY, Shaun | E16: 78 | F16: 27 | G16: 15
A17: 16 | B17: DENHOLM, Paul & BOTEZATO, Constantin | C17: DENHOLM, Paul | D17: BOTEZATO, Constantin | E17: 32 | F17: 15 | G17: 16
A18: 17 | B18: DRAYTON, Simon & HIPPERSON, Richard | C18: DRAYTON, Simon | D18: HIPPERSON, Richard | E18: 36 | F18: 57 | G18: 17
A19: 18 | B19: GARDINER, Gareth & DIAPER, Barry | C19: GARDINER, Gareth | D19: DIAPER, Barry | E19: 44 | F19: 33 | G19: 18
A20: 19 | B20: LAY-FLURRIE, Matt & PRICE, Ben | C20: LAY-FLURRIE, Matt | D20: PRICE, Ben | E20: 66 | F20: 91 | G20: 19
A21: 20 | B21: PLUMSTEAD, Joe & BANCROFT, Dave | C21: PLUMSTEAD, Joe | D21: BANCROFT, Dave | E21: 89 | F21: 9 | G21: 20
A22: 21 | B22: FRENCH, Julian & AUSTIN, John | C22: FRENCH, Julian | D22: AUSTIN, John | E22: 42 | F22: 7 | G22: 21
A23: 22 | B23: WOOD, Gary & HADDOCK, Roy | C23: WOOD, Gary | D23: HADDOCK, Roy | E23: 124 | F23: 49 | G23: 22
A24: 23 | B24: RYDER, Edde & BALL, Keith | C24: RYDER, Edde | D24: BALL, Keith | E24: 99 | F24: 8 | G24: 23
A25: 24 | B25: McCOY, Kenny & PEMBERTON, Andy | C25: McCOY, Kenny | D25: PEMBERTON, Andy | E25: 74 | F25: 86 | G25: 24
A26: 25 | B26: EDWARDS, Lee & LILL, Jarrod | C26: EDWARDS, Lee | D26: LILL, Jarrod | E26: 37 | F26: 70 | G26: 25
A27: 26 | B27: CROSBY, Colin & COOPER, Sam | C27: CROSBY, Colin | D27: COOPER, Sam | E27: 28 | F27: 25 | G27: 26
A28: 27 | B28: LEE, Martin & SMITH, Leon | C28: LEE, Martin | D28: SMITH, Leon | E28: 68 | F28: 105 | G28: 27
A29: 28 | B29: BUY, Craig & NICHOLSON, Steven | C29: BUY, Craig | D29: NICHOLSON, Steven | E29: 21 | F29: 80 | G29: 28
A30: 29 | B30: MOORING, Luke & BROCK, Peter | C30: MOORING, Luke | D30: BROCK, Peter | E30: 76 | F30: 17 | G30: 29
A31: 30 | B31: ARCH, Joe & CLEMENT, Alby | C31: ARCH, Joe | D31: CLEMENT, Alby | E31: 6 | F31: 23 | G31: 30
A32: 31 | B32: ELLIOTT, Nathan & HARVEY, Paul | C32: ELLIOTT, Nathan | D32: HARVEY, Paul | E32: 38 | F32: 52 | G32: 31
A33: 32 | B33: SHORTHOUSE, Dave & AKESTER, Jack | C33: SHORTHOUSE, Dave | D33: AKESTER, Jack | E33: 102 | F33: 3 | G33: 32
A34: 33 | B34: YALLOP, Oliver & STORER, Paul | C34: YALLOP, Oliver | D34: STORER, Paul | E34: 125 | F34: 109 | G34: 33
A35: 34 | B35: ADAMS, Stephen & PARKER, Gavin | C35: ADAMS, Stephen | D35: PARKER, Gavin | E35: 2 | F35: 84 | G35: 34
A36: 35 | B36: WELLS, Thomas & LEE, Louise | C36: WELLS, Thomas | D36: LEE, Louise | E36: 120 | F36: 67 | G36: 35
A37: 36 | B37: CARTER, John & PEARCE, Vic | C37: CARTER, John | D37: PEARCE, Vic | E37: 22 | F37: 85 | G37: 36
A38: 37 | B38: HUTCHINSON, Dave & PRICE, Alan | C38: HUTCHINSON, Dave | D38: PRICE, Alan | E38: 59 | F38: 90 | G38: 37
A39: 38 | B39: TAYLOR, Mark & HARRISON, Paul | C39: TAYLOR, Mark | D39: HARRISON, Paul | E39: 110 | F39: 51 | G39: 38
A40: 39 | B40: ROBERTS, Steve & PARKER, Al | C40: ROBERTS, Steve | D40: PARKER, Al | E40: 94 | F40: 82 | G40: 39
A41: 40 | B41: PAGE, Saul & HANCOX, Karen | C41: PAGE, Saul | D41: HANCOX, Karen | E41: 81 | F41: 50 | G41: 40
A42: 41 | B42: McGILLOWAY, Wayne & SELF, Bevan | C42: McGILLOWAY, Wayne | D42: SELF, Bevan | E42: 75 | F42: 100 | G42: 41
A43: 42 | B43: SPALL, Chris & BORDIANU, Adrian | C43: SPALL, Chris | D43: BORDIANU, Adrian | E43: 107 | F43: 14 | G43: 42
A44: 43 | B44: PERRY, Joe & WICKS, Maralyn | C44: PERRY, Joe | D44: WICKS, Maralyn | E44: 87 | F44: 122 | G44: 43
A45: 44 | B45: THORPE, Doug & BETTINSON, Charles | C45: THORPE, Doug | D45: BETTINSON, Charles | E45: 113 | F45: 12 | G45: 44
A46: 45 | B46: ALDOUS, David & STEBBINGS, Robert | C46: ALDOUS, David | D46: STEBBINGS, Robert | E46: 5 | F46: 108 | G46: 45
A47: 46 | B47: SERBAN, Nelu & TOPPING, Jack | C47: SERBAN, Nelu | D47: TOPPING, Jack | E47: 101 | F47: 114 | G47: 46
A48: 47 | B48: PRICE, Jimmy & BANHAM, Jason | C48: PRICE, Jimmy | D48: BANHAM, Jason | E48: 92 | F48: 10 | G48: 47
A49: 48 | B49: COTTER, Brett & KINGDON, Adam | C49: COTTER, Brett | D49: KINGDON, Adam | E49: 26 | F49: 63 | G49: 48
A50: 49 | B50: GREEN, Kevin & DIAPER, Greg | C50: GREEN, Kevin | D50: DIAPER, Greg | E50: 48 | F50: 34 | G50: 49
A51: 50 | B51: TOPPING, Mike & GALLACHER, Andy | C51: TOPPING, Mike | D51: GALLACHER, Andy | E51: 115 | F51: 43 | G51: 50
A52: 51 | B52: FRARY, Charlie & THOMAS, Tony | C52: FRARY, Charlie | D52: THOMAS, Tony | E52: 40 | F52: 111 | G52: 51
A53: 52 | B53: PINDER, Mark & HIGHFIELD, Nik | C53: PINDER, Mark | D53: HIGHFIELD, Nik | E53: 88 | F53: 55 | G53: 52
A54: 53 | B54: TURNER, Cameron & LINDFIELD, Bill | C54: TURNER, Cameron | D54: LINDFIELD, Bill | E54: 117 | F54: 71 | G54: 53
A55: 54 | B55: COOPER, Phillip & NELSON, Ian | C55: COOPER, Phillip | D55: NELSON, Ian | E55: 24 | F55: 79 | G55: 54
A56: 55 | B56: LEE, Phil & PARKER, Daniel | C56: LEE, Phil | D56: PARKER, Daniel | E56: 69 | F56: 83 | G56: 55
A57: 56 | B57: PROVINS, Colin & LAMBERT, Ian | C57: PROVINS, Colin | D57: LAMBERT, Ian | E57: 93 | F57: 65 | G57: 56
A58: 57 | B58: BOWELL, Ian & WATTS, Mike | C58: BOWELL, Ian | D58: WATTS, Mike | E58: 16 | F58: 119 | G58: 57
A59: 58 | B59: CUTLER, Neil & WHITE, Alan | C59: CUTLER, Neil | D59: WHITE, Alan | E59: 30 | F59: 121 | G59: 58
A60: 59 | B60: SMITH, Stephen & YALLOP, Stephen | C60: SMITH, Stephen | D60: YALLOP, Stephen | E60: 106 | F60: 126 | G60: 59

Sheet All Individuals Day 1 (ALL)
A1: NORTH NORFOLK BASS FESTIVAL 2020-21 | F1: Day 1 (All Fish)
A2: Individual No. | B2: Angler Name | C2: Angler No. | D2: Zone | E2: Peg | F2: No. Fish | G2: Fish Points | H2: Weight | J2: Day 1 Points | K2: Day 1 Position
H3: lbs | I3: oz
A4: 1 | B4: WALES, Joe | C4: 118 | D4: A | E4: 4 | F4: 15 | G4: 448 | H4: 9 | I4: 5.333333333 | J4: 1 | K4: 1
A5: 2 | B5: BOND, Darren | C5: 13 | D5: D | E5: 63 | F5: 20 | G5: 439 | H5: 9 | I5: 2.333333333 | J5: 1 | K5: 2
A6: 3 | B6: ROGERS, Mark | C6: 95 | D6: B | E6: 21 | F6: 20 | G6: 374 | H6: 7 | I6: 12.66666667 | J6: 1 | K6: 3
A7: 4 | B7: BURT, Richard | C7: 20 | D7: A | E7: 16 | F7: 21 | G7: 367 | H7: 7 | I7: 10.33333333 | J7: 2 | K7: 4
A8: 5 | B8: ROYALL, Tony | C8: 97 | D8: H | E8: 123 | F8: 16 | G8: 335 | H8: 6 | I8: 15.66666667 | J8: 1 | K8: 5
A9: 6 | B9: SMITH, George | C9: 104 | D9: D | E9: 55 | F9: 15 | G9: 310 | H9: 6 | I9: 7.333333333 | J9: 2 | K9: 6
A10: 7 | B10: WRIGHT, Dave | C10: 123 | D10: H | E10: 113 | F10: 11 | G10: 247 | H10: 5 | I10: 2.333333333 | J10: 2 | K10: 7
A11: 8 | B11: DRAYTON, Simon | C11: 36 | D11: D | E11: 62 | F11: 17 | G11: 243 | H11: 5 | I11: 1 | J11: 3 | K11: 8
A12: 9 | B12: GARDINER, Gareth | C12: 44 | D12: H | E12: 118 | F12: 15 | G12: 243 | H12: 5 | I12: 1 | J12: 3 | K12: 9
A13: 10 | B13: GOOCH, Mark | C13: 47 | D13: B | E13: 18 | F13: 18 | G13: 240 | H13: 5 | I13: 0 | J13: 2 | K13: 10
A14: 11 | B14: LAY-FLURRIE, Matt | C14: 66 | D14: A | E14: 12 | F14: 15 | G14: 236 | H14: 4 | I14: 14.66666667 | J14: 3 | K14: 11
A15: 12 | B15: FALK, Dave | C15: 39 | D15: G | E15: 99 | F15: 19 | G15: 226 | H15: 4 | I15: 11.33333333 | J15: 1 | K15: 12
A16: 13 | B16: PLUMSTEAD, Joe | C16: 89 | D16: B | E16: 20 | F16: 16 | G16: 221 | H16: 4 | I16: 9.666666667 | J16: 3 | K16: 13
A17: 14 | B17: EDWARDS, Lee | C17: 37 | D17: B | E17: 17 | F17: 16 | G17: 217 | H17: 4 | I17: 8.333333333 | J17: 4 | K17: 14
A18: 15 | B18: CROSBY, Colin | C18: 28 | D18: A | E18: 2 | F18: 8 | G18: 214 | H18: 4 | I18: 7.333333333 | J18: 4 | K18: 15
A19: 16 | B19: YALLOP, Oliver | C19: 125 | D19: A | E19: 3 | F19: 7 | G19: 213 | H19: 4 | I19: 7 | J19: 5 | K19: 16
A20: 17 | B20: McGILLOWAY, Wayne | C20: 75 | D20: A | E20: 6 | F20: 7 | G20: 197 | H20: 4 | I20: 1.666666667 | J20: 6 | K20: 17
A21: 18 | B21: RUSSELL, Shane | C21: 98 | D21: E | E21: 72 | F21: 10 | G21: 194 | H21: 4 | I21: 0.6666666667 | J21: 1 | K21: 18
A22: 19 | B22: LEE, Martin | C22: 68 | D22: H | E22: 120 | F22: 7 | G22: 186 | H22: 3 | I22: 14 | J22: 4 | K22: 19
A23: 20 | B23: CROSBY, Ralf | C23: 29 | D23: F | E23: 86 | F23: 7 | G23: 184 | H23: 3 | I23: 13.33333333 | J23: 1 | K23: 20
A24: 21 | B24: ADAMS, Stephen | C24: 2 | D24: H | E24: 128 | F24: 9 | G24: 183 | H24: 3 | I24: 13 | J24: 5 | K24: 21
A25: 22 | B25: ROPER, Liam | C25: 96 | D25: G | E25: 107 | F25: 5 | G25: 182 | H25: 3 | I25: 12.66666667 | J25: 2 | K25: 22
A26: 23 | B26: SPALL, Chris | C26: 107 | D26: H | E26: 125 | F26: 14 | G26: 177 | H26: 3 | I26: 11 | J26: 6 | K26: 23
A27: 24 | B27: GREEN, Kevin | C27: 48 | D27: H | E27: 122 | F27: 9 | G27: 177 | H27: 3 | I27: 11 | J27: 7 | K27: 24
A28: 25 | B28: DOY, Alan | C28: 35 | D28: F | E28: 95 | F28: 7 | G28: 164 | H28: 3 | I28: 6.666666667 | J28: 2 | K28: 25
A29: 26 | B29: BUY, Craig | C29: 21 | D29: D | E29: 49 | F29: 10 | G29: 160 | H29: 3 | I29: 5.333333333 | J29: 4 | K29: 26
A30: 27 | B30: TUCK, Rob | C30: 116 | D30: C | E30: 42 | F30: 13 | G30: 157 | H30: 3 | I30: 4.333333333 | J30: 1 | K30: 27
A31: 28 | B31: NANGLE, Karl | C31: 78 | D31: E | E31: 69 | F31: 10 | G31: 154 | H31: 3 | I31: 3.333333333 | J31: 2 | K31: 28
A32: 29 | B32: WELLS, Thomas | C32: 120 | D32: D | E32: 52 | F32: 9 | G32: 149 | H32: 3 | I32: 1.666666667 | J32: 5 | K32: 29
A33: 30 | B33: DENHOLM, Paul | C33: 32 | D33: C | E33: 38 | F33: 10 | G33: 144 | H33: 3 | I33: 0 | J33: 2 | K33: 30
A34: 31 | B34: TOPPING, Mike | C34: 115 | D34: A | E34: 14 | F34: 8 | G34: 140 | H34: 2 | I34: 14.66666667 | J34: 7 | K34: 31
A35: 32 | B35: BOWELL, Ian | C35: 16 | D35: A | E35: 15 | F35: 12 | G35: 137 | H35: 2 | I35: 13.66666667 | J35: 8 | K35: 32
A36: 33 | B36: TOPPING, Jack | C36: 114 | D36: A | E36: 13 | F36: 7 | G36: 135 | H36: 2 | I36: 13 | J36: 9 | K36: 33
A37: 34 | B37: FRENCH, Julian | C37: 42 | D37: E | E37: 79 | F37: 11 | G37: 134 | H37: 2 | I37: 12.66666667 | J37: 3 | K37: 34
A38: 35 | B38: WOOD, Gary | C38: 124 | D38: G | E38: 105 | F38: 9 | G38: 130 | H38: 2 | I38: 11.33333333 | J38: 3 | K38: 35
A39: 36 | B39: MOORING, Luke | C39: 76 | D39: G | E39: 111 | F39: 11 | G39: 124 | H39: 2 | I39: 9.333333333 | J39: 4 | K39: 36
A40: 37 | B40: CARTER, John | C40: 22 | D40: B | E40: 26 | F40: 8 | G40: 123 | H40: 2 | I40: 9 | J40: 5 | K40: 37
A41: 38 | B41: RYDER, Edde | C41: 99 | D41: F | E41: 87 | F41: 7 | G41: 122 | H41: 2 | I41: 8.666666667 | J41: 3 | K41: 38
A42: 39 | B42: HUTCHINSON, Dave | C42: 59 | D42: G | E42: 102 | F42: 11 | G42: 118 | H42: 2 | I42: 7.333333333 | J42: 5 | K42: 39
A43: 40 | B43: PERRY, Joe | C43: 87 | D43: G | E43: 108 | F43: 6 | G43: 118 | H43: 2 | I43: 7.333333333 | J43: 6 | K43: 40
A44: 41 | B44: CUTLER, Neil | C44: 30 | D44: H | E44: 127 | F44: 9 | G44: 115 | H44: 2 | I44: 6.333333333 | J44: 8 | K44: 41
A45: 42 | B45: THORPE, Doug | C45: 113 | D45: B | E45: 19 | F45: 9 | G45: 110 | H45: 2 | I45: 4.666666667 | J45: 6 | K45: 42
A46: 43 | B46: HIPPERSON, Richard | C46: 57 | D46: A | E46: 7 | F46: 7 | G46: 110 | H46: 2 | I46: 4.666666667 | J46: 10 | K46: 43
A47: 44 | B47: FRARY, Charlie | C47: 40 | D47: B | E47: 27 | F47: 6 | G47: 104 | H47: 2 | I47: 2.666666667 | J47: 7 | K47: 44
A48: 45 | B48: McCOY, Kenny | C48: 74 | D48: C | E48: 43 | F48: 10 | G48: 103 | H48: 2 | I48: 2.333333333 | J48: 3 | K48: 45
A49: 46 | B49: ARCH, Joe | C49: 6 | D49: C | E49: 39 | F49: 8 | G49: 101 | H49: 2 | I49: 1.666666667 | J49: 4 | K49: 46
A50: 47 | B50: GALLACHER, Andy | C50: 43 | D50: A | E50: 11 | F50: 7 | G50: 99 | H50: 2 | I50: 1 | J50: 11 | K50: 47
A51: 48 | B51: ELLIOTT, Nathan | C51: 38 | D51: E | E51: 65 | F51: 8 | G51: 98 | H51: 2 | I51: 0.6666666667 | J51: 4 | K51: 48
A52: 49 | B52: SHORTHOUSE, Dave | C52: 102 | D52: F | E52: 83 | F52: 8 | G52: 97 | H52: 2 | I52: 0.3333333333 | J52: 4 | K52: 49
A53: 50 | B53: TAYLOR, Mark | C53: 110 | D53: F | E53: 84 | F53: 8 | G53: 94 | H53: 1 | I53: 15.33333333 | J53: 5 | K53: 50
A54: 51 | B54: ALDOUS, David | C54: 5 | D54: F | E54: 93 | F54: 8 | G54: 93 | H54: 1 | I54: 15 | J54: 6 | K54: 51
A55: 52 | B55: ROBERTS, Steve | C55: 94 | D55: E | E55: 68 | F55: 5 | G55: 91 | H55: 1 | I55: 14.33333333 | J55: 5 | K55: 52
A56: 53 | B56: PINDER, Mark | C56: 88 | D56: F | E56: 96 | F56: 6 | G56: 90 | H56: 1 | I56: 14 | J56: 7 | K56: 53
A57: 54 | B57: SERBAN, Nelu | C57: 101 | D57: D | E57: 50 | F57: 3 | G57: 90 | H57: 1 | I57: 14 | J57: 6 | K57: 54
A58: 55 | B58: PRICE, Jimmy | C58: 92 | D58: E | E58: 66 | F58: 8 | G58: 89 | H58: 1 | I58: 13.66666667 | J58: 6 | K58: 55
A59: 56 | B59: TURNER, Cameron | C59: 117 | D59: E | E59: 71 | F59: 7 | G59: 89 | H59: 1 | I59: 13.66666667 | J59: 7 | K59: 56
A60: 57 | B60: SMITH, Stephen | C60: 106 | D60: F | E60: 88 | F60: 8 | G60: 85 | H60: 1 | I60: 12.33333333 | J60: 8 | K60: 57
A61: 58 | B61: COOPER, Phillip | C61: 24 | D61: D | E61: 54 | F61: 6 | G61: 85 | H61: 1 | I61: 12.33333333 | J61: 7 | K61: 58
A62: 59 | B62: STEBBINGS, Robert | C62: 108 | D62: A | E62: 8 | F62: 9 | G62: 84 | H62: 1 | I62: 12 | J62: 12 | K62: 59
A63: 60 | B63: WATTS, Mike | C63: 119 | D63: D | E63: 61 | F63: 8 | G63: 84 | H63: 1 | I63: 12 | J63: 8 | K63: 60
A64: 61 | B64: KNIGHT, Simon | C64: 64 | D64: H | E64: 121 | F64: 7 | G64: 81 | H64: 1 | I64: 11 | J64: 9 | K64: 61
A65: 62 | B65: PAGE, Saul | C65: 81 | D65: C | E65: 46 | F65: 7 | G65: 80 | H65: 1 | I65: 10.66666667 | J65: 5 | K65: 62
A66: 63 | B66: HUTSON, Garry | C66: 60 | D66: D | E66: 53 | F66: 6 | G66: 79 | H66: 1 | I66: 10.33333333 | J66: 9 | K66: 63
A67: 64 | B67: PARKER, Daniel | C67: 83 | D67: E | E67: 80 | F67: 6 | G67: 77 | H67: 1 | I67: 9.666666667 | J67: 8 | K67: 64
A68: 65 | B68: JOHNSON, Billy | C68: 61 | D68: A | E68: 5 | F68: 3 | G68: 75 | H68: 1 | I68: 9 | J68: 13 | K68: 65
A69: 66 | B69: LAMBERT, Ian | C69: 65 | D69: E | E69: 67 | F69: 2 | G69: 74 | H69: 1 | I69: 8.666666667 | J69: 9 | K69: 66
A70: 67 | B70: COTTER, Brett | C70: 26 | D70: C | E70: 45 | F70: 4 | G70: 73 | H70: 1 | I70: 8.333333333 | J70: 6 | K70: 67
A71: 68 | B71: PRICE, Alan | C71: 90 | D71: E | E71: 77 | F71: 6 | G71: 68 | H71: 1 | I71: 6.666666667 | J71: 10 | K71: 68
A72: 69 | B72: LEE, Phil | C72: 69 | D72: C | E72: 33 | F72: 6 | G72: 66 | H72: 1 | I72: 6 | J72: 7 | K72: 69
A73: 70 | B73: PEMBERTON, Andy | C73: 86 | D73: H | E73: 117 | F73: 5 | G73: 66 | H73: 1 | I73: 6 | J73: 10 | K73: 70
A74: 71 | B74: BANHAM, Jason | C74: 10 | D74: H | E74: 114 | F74: 6 | G74: 65 | H74: 1 | I74: 5.666666667 | J74: 11 | K74: 71
A75: 72 | B75: PROVINS, Colin | C75: 93 | D75: G | E75: 110 | F75: 6 | G75: 63 | H75: 1 | I75: 5 | J75: 7 | K75: 72
A76: 73 | B76: HARRISON, Paul | C76: 51 | D76: E | E76: 78 | F76: 5 | G76: 63 | H76: 1 | I76: 5 | J76: 11 | K76: 73
A77: 74 | B77: NICHOLSON, Steven | C77: 80 | D77: G | E77: 104 | F77: 5 | G77: 62 | H77: 1 | I77: 4.666666667 | J77: 8 | K77: 74
A78: 75 | B78: WHITE, Alan | C78: 121 | D78: F | E78: 81 | F78: 6 | G78: 61 | H78: 1 | I78: 4.333333333 | J78: 9 | K78: 75
A79: 76 | B79: BANCROFT, Dave | C79: 9 | D79: B | E79: 23 | F79: 5 | G79: 60 | H79: 1 | I79: 4 | J79: 8 | K79: 76
A80: 77 | B80: WICKS, Maralyn | C80: 122 | D80: G | E80: 112 | F80: 2 | G80: 60 | H80: 1 | I80: 4 | J80: 9 | K80: 77
A81: 78 | B81: DIAPER, Barry | C81: 33 | D81: D | E81: 60 | F81: 5 | G81: 59 | H81: 1 | I81: 3.666666667 | J81: 10 | K81: 78
A82: 79 | B82: GASCOIGNE, Robert | C82: 45 | D82: G | E82: 98 | F82: 7 | G82: 58 | H82: 1 | I82: 3.333333333 | J82: 10 | K82: 79
A83: 80 | B83: PRICE, Ben | C83: 91 | D83: F | E83: 85 | F83: 5 | G83: 58 | H83: 1 | I83: 3.333333333 | J83: 10 | K83: 80
A84: 81 | B84: NELSON, Ian | C84: 79 | D84: E | E84: 73 | F84: 2 | G84: 58 | H84: 1 | I84: 3.333333333 | J84: 12 | K84: 81
A85: 82 | B85: THORNTON, Lee | C85: 112 | D85: D | E85: 56 | F85: 5 | G85: 53 | H85: 1 | I85: 1.666666667 | J85: 11 | K85: 82
A86: 83 | B86: HIGHFIELD, Nik | C86: 55 | D86: A | E86: 9 | F86: 4 | G86: 53 | H86: 1 | I86: 1.666666667 | J86: 14 | K86: 83
A87: 84 | B87: HAZELGROVE, Gary | C87: 53 | D87: G | E87: 103 | F87: 4 | G87: 48 | H87: 1 | I87: 0 | J87: 11 | K87: 84
A88: 85 | B88: COOPER, Sam | C88: 25 | D88: A | E88: 10 | F88: 3 | G88: 48 | H88: 1 | I88: 0 | J88: 15 | K88: 85
A89: 86 | B89: PARKER, Gavin | C89: 84 | D89: F | E89: 90 | F89: 4 | G89: 46 | H89: 0 | I89: 15.33333333 | J89: 11 | K89: 86
A90: 87 | B90: BORDIANU, Adrian | C90: 14 | D90: F | E90: 91 | F90: 4 | G90: 46 | H90: 0 | I90: 15.33333333 | J90: 11 | K90: 86
A91: 88 | B91: PEARCE, Vic | C91: 85 | D91: G | E91: 106 | F91: 4 | G91: 45 | H91: 0 | I91: 15 | J91: 12 | K91: 88
A92: 89 | B92: BROWN, Kay | C92: 18 | D92: B | E92: 24 | F92: 1 | G92: 44 | H92: 0 | I92: 14.66666667 | J92: 9 | K92: 89
A93: 90 | B93: LINDFIELD, Bill | C93: 71 | D93: D | E93: 59 | F93: 5 | G93: 42 | H93: 0 | I93: 14 | J93: 12 | K93: 90
A94: 91 | B94: KINGDON, Adam | C94: 63 | D94: E | E94: 70 | F94: 3 | G94: 37 | H94: 0 | I94: 12.33333333 | J94: 13 | K94: 91
A95: 92 | B95: ADAMS, Graham | C95: 1 | D95: G | E95: 101 | F95: 3 | G95: 35 | H95: 0 | I95: 11.66666667 | J95: 13 | K95: 92
A96: 93 | B96: SELF, Bevan | C96: 100 | D96: G | E96: 100 | F96: 3 | G96: 34 | H96: 0 | I96: 11.33333333 | J96: 14 | K96: 93
A97: 94 | B97: THOMAS, Tony | C97: 111 | D97: C | E97: 37 | F97: 3 | G97: 33 | H97: 0 | I97: 11 | J97: 8 | K97: 94
A98: 95 | B98: CLEMENT, Alby | C98: 23 | D98: C | E98: 41 | F98: 3 | G98: 31 | H98: 0 | I98: 10.33333333 | J98: 9 | K98: 95
A99: 96 | B99: LINDFIELD, Heather | C99: 72 | D99: B | E99: 31 | F99: 2 | G99: 31 | H99: 0 | I99: 10.33333333 | J99: 10 | K99: 96
A100: 97 | B100: AKESTER, Jack | C100: 3 | D100: B | E100: 22 | F100: 3 | G100: 27 | H100: 0 | I100: 9 | J100: 11 | K100: 97
A101: 98 | B101: DAWBER, Simon | C101: 31 | D101: C | E101: 35 | F101: 2 | G101: 27 | H101: 0 | I101: 9 | J101: 10 | K101: 98
A102: 99 | B102: MARTLAND, Kev | C102: 73 | D102: E | E102: 75 | F102: 2 | G102: 26 | H102: 0 | I102: 8.666666667 | J102: 14 | K102: 99
A103: 100 | B103: AUSTIN, John | C103: 7 | D103: D | E103: 51 | F103: 3 | G103: 25 | H103: 0 | I103: 8.333333333 | J103: 13 | K103: 100
A104: 101 | B104: PARKER, Al | C104: 82 | D104: F | E104: 92 | F104: 2 | G104: 25 | H104: 0 | I104: 8.333333333 | J104: 13 | K104: 101
A105: 102 | B105: YALLOP, Stephen | C105: 126 | D105: B | E105: 32 | F105: 2 | G105: 23 | H105: 0 | I105: 7.666666667 | J105: 12 | K105: 102
A106: 103 | B106: DIAPER, Greg | C106: 34 | D106: D | E106: 58 | F106: 2 | G106: 21 | H106: 0 | I106: 7 | J106: 14 | K106: 103
A107: 104 | B107: BALL, Keith | C107: 8 | D107: G | E107: 97 | F107: 2 | G107: 21 | H107: 0 | I107: 7 | J107: 15 | K107: 103
A108: 105 | B108: HADDOCK, Roy | C108: 49 | D108: C | E108: 47 | F108: 2 | G108: 20 | H108: 0 | I108: 6.666666667 | J108: 11 | K108: 105
A109: 106 | B109: BOTEZATO, Constantin | C109: 15 | D109: H | E109: 116 | F109: 2 | G109: 18 | H109: 0 | I109: 6 | J109: 12 | K109: 106
A110: 107 | B110: SMART, Neil | C110: 103 | D110: F | E110: 82 | F110: 2 | G110: 16 | H110: 0 | I110: 5.333333333 | J110: 14 | K110: 107
A111: 108 | B111: BANHAM, Mark | C111: 11 | D111: H | E111: 115 | F111: 1 | G111: 16 | H111: 0 | I111: 5.333333333 | J111: 13 | K111: 108
A112: 109 | B112: CREASEY, Shaun | C112: 27 | D112: H | E112: 126 | F112: 1 | G112: 16 | H112: 0 | I112: 5.333333333 | J112: 13 | K112: 108
A113: 110 | B113: METCALFE, Wendy | C113: 19 | D113: B | E113: 25 | F113: 1 | G113: 13 | H113: 0 | I113: 4.333333333 | J113: 13 | K113: 110
A114: 111 | B114: HARVEY, Paul | C114: 52 | D114: E | E114: 74 | F114: 1 | G114: 12 | H114: 0 | I114: 4 | J114: 15 | K114: 111
A115: 112 | B115: ALDOUS, Brayden | C115: 4 | D115: F | E115: 94 | F115: 1 | G115: 12 | H115: 0 | I115: 4 | J115: 15 | K115: 111
A116: 113 | B116: BETTINSON, Charles | C116: 12 | D116: D | E116: 64 | F116: 1 | G116: 7 | H116: 0 | I116: 2.333333333 | J116: 15 | K116: 113
A117: 114 | B117: FRARY, June | C117: 41 | D117: B | E117: 28 | F117: 0 | G117: 0 | H117: 0 | I117: 0 | J117: 16 | K117: 114
A118: 115 | B118: HANCOX, Karen | C118: 50 | D118: B | E118: 29 | F118: 0 | G118: 0 | H118: 0 | I118: 0 | J118: 16 | K118: 114
A119: 116 | B119: HENNEY, Jimmy | C119: 54 | D119: B | E119: 30 | F119: 0 | G119: 0 | H119: 0 | I119: 0 | J119: 16 | K119: 114
A120: 117 | B120: HILLS, Amy | C120: 56 | D120: C | E120: 34 | F120: 0 | G120: 0 | H120: 0 | I120: 0 | J120: 16 | K120: 114
A121: 118 | B121: MURRAY, Luke (DID NOT FISH) | C121: 77 | D121: C | E121: 36 | F121: 0 | G121: 0 | H121: 0 | I121: 0 | J121: 16 | K121: 114
A122: 119 | B122: LILL, Jarrod | C122: 70 | D122: C | E122: 40 | F122: 0 | G122: 0 | H122: 0 | I122: 0 | J122: 16 | K122: 114
A123: 120 | B123: HURCOMBE, Mark | C123: 58 | D123: C | E123: 44 | F123: 0 | G123: 0 | H123: 0 | I123: 0 | J123: 16 | K123: 114
A124: 121 | B124: Unused Pegs 1 | C124: 127 | D124: C | E124: 48 | F124: 0 | G124: 0 | H124: 0 | I124: 0 | J124: 16 | K124: 114
A125: 122 | B125: SMITH, Leon | C125: 105 | D125: D | E125: 57 | F125: 0 | G125: 0 | H125: 0 | I125: 0 | J125: 16 | K125: 114
A126: 123 | B126: GIBBS, Tom (DID NOT FISH) | C126: 46 | D126: E | E126: 76 | F126: 0 | G126: 0 | H126: 0 | I126: 0 | J126: 16 | K126: 114
A127: 124 | B127: STORER, Paul | C127: 109 | D127: F | E127: 89 | F127: 0 | G127: 0 | H127: 0 | I127: 0 | J127: 16 | K127: 114
A128: 125 | B128: KIMBLE, John | C128: 62 | D128: G | E128: 109 | F128: 0 | G128: 0 | H128: 0 | I128: 0 | J128: 16 | K128: 114
A129: 126 | B129: LEE, Louise | C129: 67 | D129: H | E129: 119 | F129: 0 | G129: 0 | H129: 0 | I129: 0 | J129: 16 | K129: 114
A130: 127 | B130: BROCK, Peter | C130: 17 | D130: H | E130: 124 | F130: 0 | G130: 0 | H130: 0 | I130: 0 | J130: 16 | K130: 114

Sheet All Individuals Day 2 (ALL)
A1: NORTH NORFOLK BASS FESTIVAL 2020-21 | F1: Day 2 (All Fish)
A2: Individual No. | B2: Angler Name | C2: Angler No. | D2: Zone | E2: Peg | F2: No. Fish | G2: Fish Points | H2: Weight | J2: Day 2 Points | K2: Day 2 Position
H3: lbs | I3: oz
A4: 1 | B4: TUCK, Rob | C4: 116 | D4: E | E4: 77 | F4: 23 | G4: 868 | H4: 18 | I4: 1.333333333 | J4: 1 | K4: 1
A5: 2 | B5: GARDINER, Gareth | C5: 44 | D5: A | E5: 1 | F5: 23 | G5: 754 | H5: 15 | I5: 11.33333333 | J5: 1 | K5: 2
A6: 3 | B6: SHORTHOUSE, Dave | C6: 102 | D6: A | E6: 12 | F6: 34 | G6: 651 | H6: 13 | I6: 9 | J6: 2 | K6: 3
A7: 4 | B7: CROSBY, Ralf | C7: 29 | D7: A | E7: 13 | F7: 41 | G7: 624 | H7: 13 | I7: 0 | J7: 3 | K7: 4
A8: 5 | B8: ADAMS, Graham | C8: 1 | D8: B | E8: 20 | F8: 36 | G8: 611 | H8: 12 | I8: 11.66666667 | J8: 1 | K8: 5
A9: 6 | B9: BOND, Darren | C9: 13 | D9: H | E9: 127 | F9: 54 | G9: 583 | H9: 12 | I9: 2.333333333 | J9: 1 | K9: 6
A10: 7 | B10: SMITH, George | C10: 104 | D10: H | E10: 128 | F10: 47 | G10: 572 | H10: 11 | I10: 14.66666667 | J10: 2 | K10: 7
A11: 8 | B11: ADAMS, Stephen | C11: 2 | D11: D | E11: 51 | F11: 16 | G11: 557 | H11: 11 | I11: 9.666666667 | J11: 1 | K11: 8
A12: 9 | B12: FALK, Dave | C12: 39 | D12: B | E12: 32 | F12: 37 | G12: 539 | H12: 11 | I12: 3.666666667 | J12: 2 | K12: 9
A13: 10 | B13: TAYLOR, Mark | C13: 110 | D13: A | E13: 8 | F13: 25 | G13: 531 | H13: 11 | I13: 1 | J13: 4 | K13: 10
A14: 11 | B14: CROSBY, Colin | C14: 28 | D14: H | E14: 121 | F14: 44 | G14: 522 | H14: 10 | I14: 14 | J14: 3 | K14: 11
A15: 12 | B15: ROGERS, Mark | C15: 95 | D15: G | E15: 99 | F15: 46 | G15: 504 | H15: 10 | I15: 8 | J15: 1 | K15: 12
A16: 13 | B16: NANGLE, Karl | C16: 78 | D16: B | E16: 18 | F16: 27 | G16: 502 | H16: 10 | I16: 7.333333333 | J16: 3 | K16: 13
A17: 14 | B17: PRICE, Ben | C17: 91 | D17: C | E17: 41 | F17: 20 | G17: 502 | H17: 10 | I17: 7.333333333 | J17: 1 | K17: 14
A18: 15 | B18: MOORING, Luke | C18: 76 | D18: D | E18: 62 | F18: 27 | G18: 500 | H18: 10 | I18: 6.666666667 | J18: 2 | K18: 15
A19: 16 | B19: PERRY, Joe | C19: 87 | D19: B | E19: 25 | F19: 35 | G19: 499 | H19: 10 | I19: 6.333333333 | J19: 4 | K19: 16
A20: 17 | B20: RUSSELL, Shane | C20: 98 | D20: D | E20: 58 | F20: 16 | G20: 484 | H20: 10 | I20: 1.333333333 | J20: 3 | K20: 17
A21: 18 | B21: LINDFIELD, Bill | C21: 71 | D21: F | E21: 95 | F21: 37 | G21: 479 | H21: 9 | I21: 15.66666667 | J21: 1 | K21: 18
A22: 19 | B22: WRIGHT, Dave | C22: 123 | D22: B | E22: 27 | F22: 22 | G22: 475 | H22: 9 | I22: 14.33333333 | J22: 5 | K22: 19
A23: 20 | B23: TURNER, Cameron | C23: 117 | D23: C | E23: 37 | F23: 22 | G23: 447 | H23: 9 | I23: 5 | J23: 2 | K23: 20
A24: 21 | B24: GALLACHER, Andy | C24: 43 | D24: H | E24: 119 | F24: 46 | G24: 438 | H24: 9 | I24: 2 | J24: 4 | K24: 21
A25: 22 | B25: GOOCH, Mark | C25: 47 | D25: F | E25: 82 | F25: 32 | G25: 438 | H25: 9 | I25: 2 | J25: 2 | K25: 22
A26: 23 | B26: PINDER, Mark | C26: 88 | D26: D | E26: 60 | F26: 18 | G26: 436 | H26: 9 | I26: 1.333333333 | J26: 4 | K26: 23
A27: 24 | B27: WATTS, Mike | C27: 119 | D27: G | E27: 103 | F27: 42 | G27: 435 | H27: 9 | I27: 1 | J27: 2 | K27: 24
A28: 25 | B28: ELLIOTT, Nathan | C28: 38 | D28: D | E28: 64 | F28: 29 | G28: 415 | H28: 8 | I28: 10.33333333 | J28: 5 | K28: 25
A29: 26 | B29: PAGE, Saul | C29: 81 | D29: E | E29: 66 | F29: 37 | G29: 404 | H29: 8 | I29: 6.666666667 | J29: 2 | K29: 26
A30: 27 | B30: THORPE, Doug | C30: 113 | D30: H | E30: 123 | F30: 36 | G30: 398 | H30: 8 | I30: 4.666666667 | J30: 5 | K30: 27
A31: 28 | B31: BURT, Richard | C31: 20 | D31: F | E31: 88 | F31: 33 | G31: 393 | H31: 8 | I31: 3 | J31: 3 | K31: 28
A32: 29 | B32: BUY, Craig | C32: 21 | D32: H | E32: 122 | F32: 29 | G32: 386 | H32: 8 | I32: 0.6666666667 | J32: 6 | K32: 29
A33: 30 | B33: YALLOP, Stephen | C33: 126 | D33: G | E33: 100 | F33: 36 | G33: 367 | H33: 7 | I33: 10.33333333 | J33: 3 | K33: 30
A34: 31 | B34: BALL, Keith | C34: 8 | D34: A | E34: 11 | F34: 25 | G34: 365 | H34: 7 | I34: 9.666666667 | J34: 5 | K34: 31
A35: 32 | B35: WOOD, Gary | C35: 124 | D35: B | E35: 31 | F35: 23 | G35: 356 | H35: 7 | I35: 6.666666667 | J35: 6 | K35: 32
A36: 33 | B36: McCOY, Kenny | C36: 74 | D36: F | E36: 81 | F36: 17 | G36: 356 | H36: 7 | I36: 6.666666667 | J36: 4 | K36: 33
A37: 34 | B37: McGILLOWAY, Wayne | C37: 75 | D37: H | E37: 117 | F37: 32 | G37: 351 | H37: 7 | I37: 5 | J37: 7 | K37: 34
A38: 35 | B38: CUTLER, Neil | C38: 30 | D38: C | E38: 40 | F38: 22 | G38: 351 | H38: 7 | I38: 5 | J38: 3 | K38: 35
A39: 36 | B39: FRENCH, Julian | C39: 42 | D39: B | E39: 24 | F39: 29 | G39: 347 | H39: 7 | I39: 3.666666667 | J39: 7 | K39: 36
A40: 37 | B40: GASCOIGNE, Robert | C40: 45 | D40: A | E40: 9 | F40: 24 | G40: 344 | H40: 7 | I40: 2.666666667 | J40: 6 | K40: 37
A41: 38 | B41: HUTSON, Garry | C41: 60 | D41: H | E41: 126 | F41: 31 | G41: 339 | H41: 7 | I41: 1 | J41: 8 | K41: 38
A42: 39 | B42: LEE, Martin | C42: 68 | D42: B | E42: 17 | F42: 22 | G42: 336 | H42: 7 | I42: 0 | J42: 8 | K42: 39
A43: 40 | B43: ARCH, Joe | C43: 6 | D43: G | E43: 97 | F43: 32 | G43: 325 | H43: 6 | I43: 12.33333333 | J43: 4 | K43: 40
A44: 41 | B44: PROVINS, Colin | C44: 93 | D44: B | E44: 30 | F44: 28 | G44: 323 | H44: 6 | I44: 11.66666667 | J44: 9 | K44: 41
A45: 42 | B45: SMITH, Leon | C45: 105 | D45: H | E45: 125 | F45: 30 | G45: 319 | H45: 6 | I45: 10.33333333 | J45: 9 | K45: 42
A46: 43 | B46: PRICE, Alan | C46: 90 | D46: C | E46: 47 | F46: 9 | G46: 313 | H46: 6 | I46: 8.333333333 | J46: 4 | K46: 43
A47: 44 | B47: CLEMENT, Alby | C47: 23 | D47: F | E47: 93 | F47: 30 | G47: 302 | H47: 6 | I47: 4.666666667 | J47: 5 | K47: 44
A48: 45 | B48: SERBAN, Nelu | C48: 101 | D48: F | E48: 92 | F48: 25 | G48: 298 | H48: 6 | I48: 3.333333333 | J48: 6 | K48: 45
A49: 46 | B49: SPALL, Chris | C49: 107 | D49: A | E49: 4 | F49: 30 | G49: 294 | H49: 6 | I49: 2 | J49: 7 | K49: 46
A50: 47 | B50: SELF, Bevan | C50: 100 | D50: C | E50: 33 | F50: 20 | G50: 288 | H50: 6 | I50: 0 | J50: 5 | K50: 47
A51: 48 | B51: PLUMSTEAD, Joe | C51: 89 | D51: H | E51: 115 | F51: 26 | G51: 284 | H51: 5 | I51: 14.66666667 | J51: 10 | K51: 48
A52: 49 | B52: HARRISON, Paul | C52: 51 | D52: A | E52: 2 | F52: 17 | G52: 283 | H52: 5 | I52: 14.33333333 | J52: 8 | K52: 49
A53: 50 | B53: BANHAM, Jason | C53: 10 | D53: A | E53: 6 | F53: 22 | G53: 275 | H53: 5 | I53: 11.66666667 | J53: 9 | K53: 50
A54: 51 | B54: AKESTER, Jack | C54: 3 | D54: G | E54: 102 | F54: 29 | G54: 271 | H54: 5 | I54: 10.33333333 | J54: 5 | K54: 51
A55: 52 | B55: PRICE, Jimmy | C55: 92 | D55: A | E55: 15 | F55: 18 | G55: 269 | H55: 5 | I55: 9.666666667 | J55: 10 | K55: 52
A56: 53 | B56: WICKS, Maralyn | C56: 122 | D56: B | E56: 26 | F56: 18 | G56: 265 | H56: 5 | I56: 8.333333333 | J56: 10 | K56: 53
A57: 54 | B57: KIMBLE, John | C57: 62 | D57: B | E57: 19 | F57: 20 | G57: 260 | H57: 5 | I57: 6.666666667 | J57: 11 | K57: 54
A58: 55 | B58: STEBBINGS, Robert | C58: 108 | D58: F | E58: 83 | F58: 18 | G58: 258 | H58: 5 | I58: 6 | J58: 7 | K58: 55
A59: 56 | B59: THORNTON, Lee | C59: 112 | D59: F | E59: 94 | F59: 22 | G59: 254 | H59: 5 | I59: 4.666666667 | J59: 8 | K59: 56
A60: 57 | B60: BORDIANU, Adrian | C60: 14 | D60: C | E60: 38 | F60: 17 | G60: 253 | H60: 5 | I60: 4.333333333 | J60: 6 | K60: 57
A61: 58 | B61: RYDER, Edde | C61: 99 | D61: D | E61: 49 | F61: 14 | G61: 253 | H61: 5 | I61: 4.333333333 | J61: 6 | K61: 58
A62: 59 | B62: DIAPER, Barry | C62: 33 | D62: E | E62: 67 | F62: 21 | G62: 252 | H62: 5 | I62: 4 | J62: 3 | K62: 59
A63: 60 | B63: FRARY, Charlie | C63: 40 | D63: G | E63: 112 | F63: 23 | G63: 249 | H63: 5 | I63: 3 | J63: 6 | K63: 60
A64: 61 | B64: HIPPERSON, Richard | C64: 57 | D64: G | E64: 108 | F64: 22 | G64: 249 | H64: 5 | I64: 3 | J64: 7 | K64: 61
A65: 62 | B65: ROBERTS, Steve | C65: 94 | D65: A | E65: 14 | F65: 14 | G65: 249 | H65: 5 | I65: 3 | J65: 11 | K65: 62
A66: 63 | B66: PEMBERTON, Andy | C66: 86 | D66: A | E66: 5 | F66: 20 | G66: 239 | H66: 4 | I66: 15.66666667 | J66: 12 | K66: 63
A67: 64 | B67: WELLS, Thomas | C67: 120 | D67: F | E67: 91 | F67: 18 | G67: 239 | H67: 4 | I67: 15.66666667 | J67: 9 | K67: 64
A68: 65 | B68: PEARCE, Vic | C68: 85 | D68: B | E68: 21 | F68: 19 | G68: 238 | H68: 4 | I68: 15.33333333 | J68: 12 | K68: 65
A69: 66 | B69: SMART, Neil | C69: 103 | D69: A | E69: 3 | F69: 20 | G69: 234 | H69: 4 | I69: 14 | J69: 13 | K69: 66
A70: 67 | B70: COOPER, Sam | C70: 25 | D70: E | E70: 65 | F70: 18 | G70: 229 | H70: 4 | I70: 12.33333333 | J70: 4 | K70: 67
A71: 68 | B71: LAY-FLURRIE, Matt | C71: 66 | D71: E | E71: 76 | F71: 18 | G71: 222 | H71: 4 | I71: 10 | J71: 5 | K71: 68
A72: 69 | B72: TOPPING, Mike | C72: 115 | D72: F | E72: 87 | F72: 22 | G72: 221 | H72: 4 | I72: 9.666666667 | J72: 10 | K72: 69
A73: 70 | B73: HUTCHINSON, Dave | C73: 59 | D73: B | E73: 22 | F73: 20 | G73: 221 | H73: 4 | I73: 9.666666667 | J73: 13 | K73: 70
A74: 71 | B74: EDWARDS, Lee | C74: 37 | D74: F | E74: 85 | F74: 16 | G74: 219 | H74: 4 | I74: 9 | J74: 11 | K74: 71
A75: 72 | B75: DENHOLM, Paul | C75: 32 | D75: E | E75: 80 | F75: 18 | G75: 216 | H75: 4 | I75: 8 | J75: 6 | K75: 72
A76: 73 | B76: MARTLAND, Kev | C76: 73 | D76: A | E76: 10 | F76: 18 | G76: 214 | H76: 4 | I76: 7.333333333 | J76: 14 | K76: 73
A77: 74 | B77: COOPER, Phillip | C77: 24 | D77: F | E77: 89 | F77: 17 | G77: 210 | H77: 4 | I77: 6 | J77: 12 | K77: 74
A78: 75 | B78: NELSON, Ian | C78: 79 | D78: D | E78: 59 | F78: 16 | G78: 210 | H78: 4 | I78: 6 | J78: 7 | K78: 75
A79: 76 | B79: COTTER, Brett | C79: 26 | D79: E | E79: 73 | F79: 11 | G79: 210 | H79: 4 | I79: 6 | J79: 7 | K79: 76
A80: 77 | B80: LILL, Jarrod | C80: 70 | D80: G | E80: 111 | F80: 18 | G80: 202 | H80: 4 | I80: 3.333333333 | J80: 8 | K80: 77
A81: 78 | B81: NICHOLSON, Steven | C81: 80 | D81: B | E81: 23 | F81: 8 | G81: 201 | H81: 4 | I81: 3 | J81: 14 | K81: 78
A82: 79 | B82: DOY, Alan | C82: 35 | D82: C | E82: 39 | F82: 9 | G82: 198 | H82: 4 | I82: 2 | J82: 7 | K82: 79
A83: 80 | B83: LINDFIELD, Heather | C83: 72 | D83: G | E83: 104 | F83: 20 | G83: 194 | H83: 4 | I83: 0.6666666667 | J83: 9 | K83: 80
A84: 81 | B84: SMITH, Stephen | C84: 106 | D84: D | E84: 53 | F84: 12 | G84: 190 | H84: 3 | I84: 15.33333333 | J84: 8 | K84: 81
A85: 82 | B85: DRAYTON, Simon | C85: 36 | D85: F | E85: 84 | F85: 19 | G85: 186 | H85: 3 | I85: 14 | J85: 13 | K85: 82
A86: 83 | B86: LEE, Phil | C86: 69 | D86: E | E86: 71 | F86: 18 | G86: 185 | H86: 3 | I86: 13.66666667 | J86: 8 | K86: 83
A87: 84 | B87: AUSTIN, John | C87: 7 | D87: E | E87: 74 | F87: 10 | G87: 185 | H87: 3 | I87: 13.66666667 | J87: 9 | K87: 84
A88: 85 | B88: GREEN, Kevin | C88: 48 | D88: D | E88: 61 | F88: 16 | G88: 183 | H88: 3 | I88: 13 | J88: 9 | K88: 85
A89: 86 | B89: DAWBER, Simon | C89: 31 | D89: E | E89: 69 | F89: 15 | G89: 181 | H89: 3 | I89: 12.33333333 | J89: 10 | K89: 86
A90: 87 | B90: LEE, Louise | C90: 67 | D90: A | E90: 16 | F90: 12 | G90: 179 | H90: 3 | I90: 11.66666667 | J90: 15 | K90: 87
A91: 88 | B91: ROYALL, Tony | C91: 97 | D91: D | E91: 63 | F91: 12 | G91: 177 | H91: 3 | I91: 11 | J91: 10 | K91: 88
A92: 89 | B92: BOWELL, Ian | C92: 16 | D92: E | E92: 75 | F92: 19 | G92: 173 | H92: 3 | I92: 9.666666667 | J92: 11 | K92: 89
A93: 90 | B93: WALES, Joe | C93: 118 | D93: H | E93: 114 | F93: 17 | G93: 172 | H93: 3 | I93: 9.333333333 | J93: 11 | K93: 90
A94: 91 | B94: BROWN, Kay | C94: 18 | D94: G | E94: 106 | F94: 16 | G94: 160 | H94: 3 | I94: 5.333333333 | J94: 10 | K94: 91
A95: 92 | B95: METCALFE, Wendy | C95: 19 | D95: G | E95: 107 | F95: 13 | G95: 155 | H95: 3 | I95: 3.666666667 | J95: 11 | K95: 92
A96: 93 | B96: HAZELGROVE, Gary | C96: 53 | D96: D | E96: 55 | F96: 12 | G96: 151 | H96: 3 | I96: 2.333333333 | J96: 11 | K96: 93
A97: 94 | B97: BANHAM, Mark | C97: 11 | D97: A | E97: 7 | F97: 9 | G97: 151 | H97: 3 | I97: 2.333333333 | J97: 16 | K97: 94
A98: 95 | B98: CARTER, John | C98: 22 | D98: G | E98: 110 | F98: 17 | G98: 148 | H98: 3 | I98: 1.333333333 | J98: 12 | K98: 95
A99: 96 | B99: KINGDON, Adam | C99: 63 | D99: C | E99: 48 | F99: 8 | G99: 147 | H99: 3 | I99: 1 | J99: 8 | K99: 96
A100: 97 | B100: DIAPER, Greg | C100: 34 | D100: G | E100: 105 | F100: 13 | G100: 144 | H100: 3 | I100: 0 | J100: 13 | K100: 97
A101: 98 | B101: FRARY, June | C101: 41 | D101: H | E101: 113 | F101: 16 | G101: 141 | H101: 2 | I101: 15 | J101: 12 | K101: 98
A102: 99 | B102: HANCOX, Karen | C102: 50 | D102: H | E102: 116 | F102: 17 | G102: 137 | H102: 2 | I102: 13.66666667 | J102: 13 | K102: 99
A103: 100 | B103: TOPPING, Jack | C103: 114 | D103: F | E103: 86 | F103: 14 | G103: 134 | H103: 2 | I103: 12.66666667 | J103: 14 | K103: 100
A104: 101 | B104: THOMAS, Tony | C104: 111 | D104: E | E104: 68 | F104: 7 | G104: 133 | H104: 2 | I104: 12.33333333 | J104: 12 | K104: 101
A105: 102 | B105: HIGHFIELD, Nik | C105: 55 | D105: E | E105: 78 | F105: 11 | G105: 120 | H105: 2 | I105: 8 | J105: 13 | K105: 102
A106: 103 | B106: ALDOUS, David | C106: 5 | D106: B | E106: 28 | F106: 12 | G106: 119 | H106: 2 | I106: 7.666666667 | J106: 15 | K106: 103
A107: 104 | B107: STORER, Paul | C107: 109 | D107: C | E107: 35 | F107: 9 | G107: 115 | H107: 2 | I107: 6.333333333 | J107: 9 | K107: 104
A108: 105 | B108: JOHNSON, Billy | C108: 61 | D108: E | E108: 72 | F108: 13 | G108: 112 | H108: 2 | I108: 5.333333333 | J108: 14 | K108: 105
A109: 106 | B109: BOTEZATO, Constantin | C109: 15 | D109: D | E109: 56 | F109: 11 | G109: 112 | H109: 2 | I109: 5.333333333 | J109: 12 | K109: 106
A110: 107 | B110: CREASEY, Shaun | C110: 27 | D110: C | E110: 42 | F110: 2 | G110: 112 | H110: 2 | I110: 5.333333333 | J110: 10 | K110: 107
A111: 108 | B111: HADDOCK, Roy | C111: 49 | D111: H | E111: 120 | F111: 11 | G111: 107 | H111: 2 | I111: 3.666666667 | J111: 14 | K111: 108
A112: 109 | B112: BETTINSON, Charles | C112: 12 | D112: G | E112: 98 | F112: 13 | G112: 106 | H112: 2 | I112: 3.333333333 | J112: 14 | K112: 109
A113: 110 | B113: HENNEY, Jimmy | C113: 54 | D113: H | E113: 118 | F113: 10 | G113: 106 | H113: 2 | I113: 3.333333333 | J113: 15 | K113: 110
A114: 111 | B114: PARKER, Daniel | C114: 83 | D114: D | E114: 57 | F114: 7 | G114: 97 | H114: 2 | I114: 0.3333333333 | J114: 13 | K114: 111
A115: 112 | B115: BANCROFT, Dave | C115: 9 | D115: G | E115: 109 | F115: 8 | G115: 77 | H115: 1 | I115: 9.666666667 | J115: 15 | K115: 112
A116: 113 | B116: YALLOP, Oliver | C116: 125 | D116: F | E116: 90 | F116: 7 | G116: 77 | H116: 1 | I116: 9.666666667 | J116: 15 | K116: 113
A117: 114 | B117: ALDOUS, Brayden | C117: 4 | D117: B | E117: 29 | F117: 6 | G117: 77 | H117: 1 | I117: 9.666666667 | J117: 16 | K117: 114
A118: 115 | B118: WHITE, Alan | C118: 121 | D118: D | E118: 52 | F118: 6 | G118: 72 | H118: 1 | I118: 8 | J118: 14 | K118: 115
A119: 116 | B119: KNIGHT, Simon | C119: 64 | D119: D | E119: 50 | F119: 5 | G119: 68 | H119: 1 | I119: 6.666666667 | J119: 15 | K119: 116
A120: 117 | B120: PARKER, Gavin | C120: 84 | D120: C | E120: 46 | F120: 3 | G120: 34 | H120: 0 | I120: 11.33333333 | J120: 11 | K120: 117
A121: 118 | B121: HARVEY, Paul | C121: 52 | D121: C | E121: 44 | F121: 3 | G121: 30 | H121: 0 | I121: 10 | J121: 12 | K121: 118
A122: 119 | B122: LAMBERT, Ian | C122: 65 | D122: C | E122: 36 | F122: 2 | G122: 24 | H122: 0 | I122: 8 | J122: 13 | K122: 119
A123: 120 | B123: PARKER, Al | C123: 82 | D123: C | E123: 45 | F123: 1 | G123: 14 | H123: 0 | I123: 4.666666667 | J123: 14 | K123: 120
A124: 121 | B124: BROCK, Peter | C124: 17 | D124: C | E124: 34 | F124: 0 | G124: 0 | H124: 0 | I124: 0 | J124: 16 | K124: 121
A125: 122 | B125: GIBBS, Tom (DID NOT FISH) | C125: 46 | D125: C | E125: 43 | F125: 0 | G125: 0 | H125: 0 | I125: 0 | J125: 16 | K125: 121
A126: 123 | B126: ROPER, Liam | C126: 96 | D126: D | E126: 54 | F126: 0 | G126: 0 | H126: 0 | I126: 0 | J126: 16 | K126: 121
A127: 125 | B127: HILLS, Amy | C127: 56 | D127: E | E127: 79 | F127: 0 | G127: 0 | H127: 0 | I127: 0 | J127: 16 | K127: 121
A128: 126 | B128: HURCOMBE, Mark | C128: 58 | D128: F | E128: 96 | F128: 0 | G128: 0 | H128: 0 | I128: 0 | J128: 16 | K128: 121
A129: 127 | B129: MURRAY, Luke (DID NOT FISH) | C129: 77 | D129: G | E129: 101 | F129: 0 | G129: 0 | H129: 0 | I129: 0 | J129: 16 | K129: 121

Sheet Bass Festival Day 1 (Bass)
A1: NORTH NORFOLK BASS FESTIVAL 2020-21 | F1: Day 1 (Bass)
A2: Individual No. | B2: Angler Name | C2: Angler No. | D2: Zone | E2: Peg | F2: No. Fish | G2: Fish Points | H2: Weight | J2: Day 1 Position
H3: lbs | I3: oz
A4: 1 | B4: WALES, Joe | C4: 118 | D4: A | E4: 4 | F4: 3 | G4: 216 | H4: 4 | I4: 8 | J4: 1
A5: 2 | B5: ROGERS, Mark | C5: 95 | D5: B | E5: 21 | F5: 2 | G5: 184 | H5: 3 | I5: 13.33333333 | J5: 2
A6: 3 | B6: ROYALL, Tony | C6: 97 | D6: H | E6: 123 | F6: 1 | G6: 158 | H6: 3 | I6: 4.666666667 | J6: 3
A7: 4 | B7: BOND, Darren | C7: 13 | D7: D | E7: 63 | F7: 2 | G7: 151 | H7: 3 | I7: 2.333333333 | J7: 4
A8: 5 | B8: McGILLOWAY, Wayne | C8: 75 | D8: A | E8: 6 | F8: 2 | G8: 135 | H8: 2 | I8: 13 | J8: 5
A9: 6 | B9: ROPER, Liam | C9: 96 | D9: G | E9: 107 | F9: 1 | G9: 129 | H9: 2 | I9: 11 | J9: 6
A10: 7 | B10: YALLOP, Oliver | C10: 125 | D10: A | E10: 3 | F10: 2 | G10: 124 | H10: 2 | I10: 9.333333333 | J10: 7
A11: 8 | B11: BURT, Richard | C11: 20 | D11: A | E11: 16 | F11: 2 | G11: 119 | H11: 2 | I11: 7.666666667 | J11: 8
A12: 9 | B12: SMITH, George | C12: 104 | D12: D | E12: 55 | F12: 1 | G12: 116 | H12: 2 | I12: 6.666666667 | J12: 9
A13: 10 | B13: DOY, Alan | C13: 35 | D13: F | E13: 95 | F13: 1 | G13: 116 | H13: 2 | I13: 6.666666667 | J13: 9
A14: 11 | B14: RUSSELL, Shane | C14: 98 | D14: E | E14: 72 | F14: 1 | G14: 110 | H14: 2 | I14: 4.666666667 | J14: 11
A15: 12 | B15: LEE, Martin | C15: 68 | D15: H | E15: 120 | F15: 1 | G15: 98 | H15: 2 | I15: 0.6666666667 | J15: 12
A16: 13 | B16: CROSBY, Ralf | C16: 29 | D16: F | E16: 86 | F16: 1 | G16: 92 | H16: 1 | I16: 14.66666667 | J16: 13
A17: 14 | B17: WRIGHT, Dave | C17: 123 | D17: H | E17: 113 | F17: 1 | G17: 92 | H17: 1 | I17: 14.66666667 | J17: 13
A18: 15 | B18: SERBAN, Nelu | C18: 101 | D18: D | E18: 50 | F18: 1 | G18: 68 | H18: 1 | I18: 6.666666667 | J18: 15
A19: 16 | B19: LAMBERT, Ian | C19: 65 | D19: E | E19: 67 | F19: 1 | G19: 68 | H19: 1 | I19: 6.666666667 | J19: 15
A20: 17 | B20: ADAMS, Stephen | C20: 2 | D20: H | E20: 128 | F20: 1 | G20: 68 | H20: 1 | I20: 6.666666667 | J20: 15
A21: 18 | B21: WELLS, Thomas | C21: 120 | D21: D | E21: 52 | F21: 1 | G21: 63 | H21: 1 | I21: 5 | J21: 18
A22: 19 | B22: WICKS, Maralyn | C22: 122 | D22: G | E22: 112 | F22: 1 | G22: 55 | H22: 1 | I22: 2.333333333 | J22: 19
A23: 20 | B23: TOPPING, Jack | C23: 114 | D23: A | E23: 13 | F23: 1 | G23: 51 | H23: 1 | I23: 1 | J23: 20
A24: 21 | B24: BUY, Craig | C24: 21 | D24: D | E24: 49 | F24: 1 | G24: 51 | H24: 1 | I24: 1 | J24: 20
A25: 22 | B25: NELSON, Ian | C25: 79 | D25: E | E25: 73 | F25: 1 | G25: 51 | H25: 1 | I25: 1 | J25: 20
A26: 23 | B26: LAY-FLURRIE, Matt | C26: 66 | D26: A | E26: 12 | F26: 1 | G26: 47 | H26: 0 | I26: 15.66666667 | J26: 23
A27: 24 | B27: RYDER, Edde | C27: 99 | D27: F | E27: 87 | F27: 1 | G27: 47 | H27: 0 | I27: 15.66666667 | J27: 23
A28: 25 | B28: GOOCH, Mark | C28: 47 | D28: B | E28: 18 | F28: 1 | G28: 43 | H28: 0 | I28: 14.33333333 | J28: 25
A29: 26 | B29: GREEN, Kevin | C29: 48 | D29: H | E29: 122 | F29: 1 | G29: 40 | H29: 0 | I29: 13.33333333 | J29: 26
A30: 27 | B30: DENHOLM, Paul | C30: 32 | D30: C | E30: 38 | F30: 1 | G30: 37 | H30: 0 | I30: 12.33333333 | J30: 27

Sheet Bass Festival Day 2 (Bass)
A1: NORTH NORFOLK BASS FESTIVAL 2020-21 | F1: Day 2 (Bass)
A2: Individual No. | B2: Angler Name | C2: Angler No. | D2: Zone | E2: Peg | F2: No. Fish | G2: Fish Points | H2: Weight | J2: Day 2 Position
H3: lbs | I3: oz
A4: 1 | B4: TAYLOR, Mark | C4: 110 | D4: A | E4: 8 | F4: 2 | G4: 159 | H4: 3 | I4: 5 | J4: 1
A5: 2 | B5: McCOY, Kenny | C5: 74 | D5: F | E5: 81 | F5: 1 | G5: 122 | H5: 2 | I5: 8.666666667 | J5: 2
A6: 3 | B6: WOOD, Gary | C6: 124 | D6: B | E6: 31 | F6: 1 | G6: 116 | H6: 2 | I6: 6.666666667 | J6: 3
A7: 4 | B7: WRIGHT, Dave | C7: 123 | D7: B | E7: 27 | F7: 2 | G7: 98 | H7: 2 | I7: 0.6666666667 | J7: 4
A8: 5 | B8: NANGLE, Karl | C8: 78 | D8: B | E8: 18 | F8: 1 | G8: 74 | H8: 1 | I8: 8.666666667 | J8: 5
A9: 6 | B9: GARDINER, Gareth | C9: 44 | D9: A | E9: 1 | F9: 1 | G9: 47 | H9: 0 | I9: 15.66666667 | J9: 6
A10: 7 | B10: FRENCH, Julian | C10: 42 | D10: B | E10: 24 | F10: 1 | G10: 16 | H10: 0 | I10: 5.333333333 | J10: 7
A11: 8 | B11: SELF, Bevan | C11: 100 | D11: C | E11: 33 | F11: 1 | G11: 16 | H11: 0 | I11: 5.333333333 | J11: 7

Sheet Bass Festival Day 1 (Flattie)
A1: NORTH NORFOLK BASS FESTIVAL 2020-21 | F1: Day 1 (Flattie)
A2: Individual No. | B2: Angler Name | C2: Angler No. | D2: Zone | E2: Peg | F2: No. Fish | G2: Fish Points | H2: Weight | J2: Day 1 Position
H3: lbs | I3: oz
A4: 1 | B4: CROSBY, Colin | C4: 28 | D4: A | E4: 2 | F4: 8 | G4: 214 | H4: 4 | I4: 7.333333333 | J4: 1
A5: 2 | B5: WALES, Joe | C5: 118 | D5: A | E5: 4 | F5: 9 | G5: 184 | H5: 3 | I5: 13.33333333 | J5: 2
A6: 3 | B6: DRAYTON, Simon | C6: 36 | D6: D | E6: 62 | F6: 10 | G6: 172 | H6: 3 | I6: 9.333333333 | J6: 3
A7: 4 | B7: GOOCH, Mark | C7: 47 | D7: B | E7: 18 | F7: 15 | G7: 165 | H7: 3 | I7: 7 | J7: 4
A8: 5 | B8: PLUMSTEAD, Joe | C8: 89 | D8: B | E8: 20 | F8: 12 | G8: 163 | H8: 3 | I8: 6.333333333 | J8: 5
A9: 6 | B9: ROYALL, Tony | C9: 97 | D9: H | E9: 123 | F9: 13 | G9: 157 | H9: 3 | I9: 4.333333333 | J9: 6
A10: 7 | B10: LAY-FLURRIE, Matt | C10: 66 | D10: A | E10: 12 | F10: 11 | G10: 142 | H10: 2 | I10: 15.33333333 | J10: 7
A11: 8 | B11: BURT, Richard | C11: 20 | D11: A | E11: 16 | F11: 11 | G11: 139 | H11: 2 | I11: 14.33333333 | J11: 8
A12: 9 | B12: GARDINER, Gareth | C12: 44 | D12: H | E12: 118 | F12: 6 | G12: 139 | H12: 2 | I12: 14.33333333 | J12: 9
A13: 10 | B13: TOPPING, Mike | C13: 115 | D13: A | E13: 14 | F13: 6 | G13: 124 | H13: 2 | I13: 9.333333333 | J13: 10
A14: 11 | B14: EDWARDS, Lee | C14: 37 | D14: B | E14: 17 | F14: 7 | G14: 96 | H14: 2 | I14: 0 | J14: 11
A15: 12 | B15: GREEN, Kevin | C15: 48 | D15: H | E15: 122 | F15: 4 | G15: 93 | H15: 1 | I15: 15 | J15: 12
A16: 13 | B16: ROGERS, Mark | C16: 95 | D16: B | E16: 21 | F16: 9 | G16: 92 | H16: 1 | I16: 14.66666667 | J16: 13
A17: 14 | B17: THORPE, Doug | C17: 113 | D17: B | E17: 19 | F17: 7 | G17: 89 | H17: 1 | I17: 13.66666667 | J17: 14
A18: 15 | B18: YALLOP, Oliver | C18: 125 | D18: A | E18: 3 | F18: 5 | G18: 89 | H18: 1 | I18: 13.66666667 | J18: 15
A19: 16 | B19: BOWELL, Ian | C19: 16 | D19: A | E19: 15 | F19: 7 | G19: 83 | H19: 1 | I19: 11.66666667 | J19: 16
A20: 17 | B20: GALLACHER, Andy | C20: 43 | D20: A | E20: 11 | F20: 6 | G20: 81 | H20: 1 | I20: 11 | J20: 17
A21: 18 | B21: BOND, Darren | C21: 13 | D21: D | E21: 63 | F21: 7 | G21: 79 | H21: 1 | I21: 10.33333333 | J21: 18
A22: 19 | B22: CARTER, John | C22: 22 | D22: B | E22: 26 | F22: 4 | G22: 77 | H22: 1 | I22: 9.666666667 | J22: 19
A23: 20 | B23: PINDER, Mark | C23: 88 | D23: F | E23: 96 | F23: 4 | G23: 74 | H23: 1 | I23: 8.666666667 | J23: 20
A24: 21 | B24: SPALL, Chris | C24: 107 | D24: H | E24: 125 | F24: 6 | G24: 73 | H24: 1 | I24: 8.333333333 | J24: 21
A25: 22 | B25: WOOD, Gary | C25: 124 | D25: G | E25: 105 | F25: 4 | G25: 72 | H25: 1 | I25: 8 | J25: 22
A26: 23 | B26: JOHNSON, Billy | C26: 61 | D26: A | E26: 5 | F26: 2 | G26: 67 | H26: 1 | I26: 6.333333333 | J26: 23
A27: 24 | B27: CUTLER, Neil | C27: 30 | D27: H | E27: 127 | F27: 5 | G27: 62 | H27: 1 | I27: 4.666666667 | J27: 24
A28: 25 | B28: STEBBINGS, Robert | C28: 108 | D28: A | E28: 8 | F28: 7 | G28: 60 | H28: 1 | I28: 4 | J28: 25
A29: 26 | B29: ALDOUS, David | C29: 5 | D29: F | E29: 93 | F29: 5 | G29: 60 | H29: 1 | I29: 4 | J29: 26
A30: 27 | B30: MOORING, Luke | C30: 76 | D30: G | E30: 111 | F30: 5 | G30: 60 | H30: 1 | I30: 4 | J30: 26
A31: 28 | B31: TOPPING, Jack | C31: 114 | D31: A | E31: 13 | F31: 4 | G31: 56 | H31: 1 | I31: 2.666666667 | J31: 28
A32: 29 | B32: TUCK, Rob | C32: 116 | D32: C | E32: 42 | F32: 5 | G32: 55 | H32: 1 | I32: 2.333333333 | J32: 29
A33: 30 | B33: NANGLE, Karl | C33: 78 | D33: E | E33: 69 | F33: 3 | G33: 52 | H33: 1 | I33: 1.333333333 | J33: 30
A34: 31 | B34: WATTS, Mike | C34: 119 | D34: D | E34: 61 | F34: 4 | G34: 50 | H34: 1 | I34: 0.6666666667 | J34: 31
A35: 32 | B35: COOPER, Sam | C35: 25 | D35: A | E35: 10 | F35: 3 | G35: 48 | H35: 1 | I35: 0 | J35: 32
A36: 33 | B36: COOPER, Phillip | C36: 24 | D36: D | E36: 54 | F36: 3 | G36: 46 | H36: 0 | I36: 15.33333333 | J36: 33
A37: 34 | B37: ROBERTS, Steve | C37: 94 | D37: E | E37: 68 | F37: 1 | G37: 44 | H37: 0 | I37: 14.66666667 | J37: 34
A38: 35 | B38: SMITH, Stephen | C38: 106 | D38: F | E38: 88 | F38: 4 | G38: 43 | H38: 0 | I38: 14.33333333 | J38: 35
A39: 36 | B39: HUTSON, Garry | C39: 60 | D39: D | E39: 53 | F39: 2 | G39: 42 | H39: 0 | I39: 14 | J39: 36
A40: 37 | B40: RYDER, Edde | C40: 99 | D40: F | E40: 87 | F40: 4 | G40: 41 | H40: 0 | I40: 13.66666667 | J40: 37
A41: 38 | B41: WRIGHT, Dave | C41: 123 | D41: H | E41: 113 | F41: 5 | G41: 40 | H41: 0 | I41: 13.33333333 | J41: 38
A42: 39 | B42: CROSBY, Ralf | C42: 29 | D42: F | E42: 86 | F42: 1 | G42: 40 | H42: 0 | I42: 13.33333333 | J42: 39
A43: 40 | B43: SHORTHOUSE, Dave | C43: 102 | D43: F | E43: 83 | F43: 3 | G43: 38 | H43: 0 | I43: 12.66666667 | J43: 40
A44: 41 | B44: FALK, Dave | C44: 39 | D44: G | E44: 99 | F44: 3 | G44: 38 | H44: 0 | I44: 12.66666667 | J44: 40
A45: 42 | B45: HIPPERSON, Richard | C45: 57 | D45: A | E45: 7 | F45: 2 | G45: 36 | H45: 0 | I45: 12 | J45: 42
A46: 43 | B46: ARCH, Joe | C46: 6 | D46: C | E46: 39 | F46: 4 | G46: 35 | H46: 0 | I46: 11.66666667 | J46: 43
A47: 44 | B47: TURNER, Cameron | C47: 117 | D47: E | E47: 71 | F47: 2 | G47: 35 | H47: 0 | I47: 11.66666667 | J47: 44
A48: 45 | B48: ELLIOTT, Nathan | C48: 38 | D48: E | E48: 65 | F48: 3 | G48: 34 | H48: 0 | I48: 11.33333333 | J48: 45
A49: 46 | B49: BANHAM, Jason | C49: 10 | D49: H | E49: 114 | F49: 3 | G49: 34 | H49: 0 | I49: 11.33333333 | J49: 45
A50: 47 | B50: THORNTON, Lee | C50: 112 | D50: D | E50: 56 | F50: 3 | G50: 32 | H50: 0 | I50: 10.66666667 | J50: 47
A51: 48 | B51: WHITE, Alan | C51: 121 | D51: F | E51: 81 | F51: 3 | G51: 31 | H51: 0 | I51: 10.33333333 | J51: 48
A52: 49 | B52: ROPER, Liam | C52: 96 | D52: G | E52: 107 | F52: 3 | G52: 29 | H52: 0 | I52: 9.666666667 | J52: 49
A53: 50 | B53: LEE, Phil | C53: 69 | D53: C | E53: 33 | F53: 3 | G53: 28 | H53: 0 | I53: 9.333333333 | J53: 50
A54: 51 | B54: HUTCHINSON, Dave | C54: 59 | D54: G | E54: 102 | F54: 3 | G54: 28 | H54: 0 | I54: 9.333333333 | J54: 50
A55: 52 | B55: PRICE, Jimmy | C55: 92 | D55: E | E55: 66 | F55: 2 | G55: 28 | H55: 0 | I55: 9.333333333 | J55: 52
A56: 53 | B56: NICHOLSON, Steven | C56: 80 | D56: G | E56: 104 | F56: 2 | G56: 28 | H56: 0 | I56: 9.333333333 | J56: 52
A57: 54 | B57: GASCOIGNE, Robert | C57: 45 | D57: G | E57: 98 | F57: 4 | G57: 26 | H57: 0 | I57: 8.666666667 | J57: 54
A58: 55 | B58: HIGHFIELD, Nik | C58: 55 | D58: A | E58: 9 | F58: 2 | G58: 26 | H58: 0 | I58: 8.666666667 | J58: 55
A59: 56 | B59: FRARY, Charlie | C59: 40 | D59: B | E59: 27 | F59: 2 | G59: 26 | H59: 0 | I59: 8.666666667 | J59: 55
A60: 57 | B60: SELF, Bevan | C60: 100 | D60: G | E60: 100 | F60: 2 | G60: 26 | H60: 0 | I60: 8.666666667 | J60: 55
A61: 58 | B61: McCOY, Kenny | C61: 74 | D61: C | E61: 43 | F61: 3 | G61: 25 | H61: 0 | I61: 8.333333333 | J61: 58
A62: 59 | B62: PROVINS, Colin | C62: 93 | D62: G | E62: 110 | F62: 3 | G62: 25 | H62: 0 | I62: 8.333333333 | J62: 58
A63: 60 | B63: HARRISON, Paul | C63: 51 | D63: E | E63: 78 | F63: 2 | G63: 24 | H63: 0 | I63: 8 | J63: 60
A64: 61 | B64: RUSSELL, Shane | C64: 98 | D64: E | E64: 72 | F64: 3 | G64: 23 | H64: 0 | I64: 7.666666667 | J64: 61
A65: 62 | B65: PERRY, Joe | C65: 87 | D65: G | E65: 108 | F65: 2 | G65: 23 | H65: 0 | I65: 7.666666667 | J65: 62
A66: 63 | B66: PEMBERTON, Andy | C66: 86 | D66: H | E66: 117 | F66: 2 | G66: 22 | H66: 0 | I66: 7.333333333 | J66: 63
A67: 64 | B67: LEE, Martin | C67: 68 | D67: H | E67: 120 | F67: 1 | G67: 21 | H67: 0 | I67: 7 | J67: 64
A68: 65 | B68: McGILLOWAY, Wayne | C68: 75 | D68: A | E68: 6 | F68: 2 | G68: 20 | H68: 0 | I68: 6.666666667 | J68: 65
A69: 66 | B69: HAZELGROVE, Gary | C69: 53 | D69: G | E69: 103 | F69: 2 | G69: 20 | H69: 0 | I69: 6.666666667 | J69: 65
A70: 67 | B70: DOY, Alan | C70: 35 | D70: F | E70: 95 | F70: 3 | G70: 19 | H70: 0 | I70: 6.333333333 | J70: 67
A71: 68 | B71: KINGDON, Adam | C71: 63 | D71: E | E71: 70 | F71: 2 | G71: 19 | H71: 0 | I71: 6.333333333 | J71: 68
A72: 69 | B72: DAWBER, Simon | C72: 31 | D72: C | E72: 35 | F72: 1 | G72: 18 | H72: 0 | I72: 6 | J72: 69
A73: 70 | B73: ADAMS, Stephen | C73: 2 | D73: H | E73: 128 | F73: 2 | G73: 17 | H73: 0 | I73: 5.666666667 | J73: 70
A74: 71 | B74: PARKER, Daniel | C74: 83 | D74: E | E74: 80 | F74: 2 | G74: 16 | H74: 0 | I74: 5.333333333 | J74: 71
A75: 72 | B75: BORDIANU, Adrian | C75: 14 | D75: F | E75: 91 | F75: 2 | G75: 16 | H75: 0 | I75: 5.333333333 | J75: 71
A76: 73 | B76: BUY, Craig | C76: 21 | D76: D | E76: 49 | F76: 1 | G76: 16 | H76: 0 | I76: 5.333333333 | J76: 73
A77: 74 | B77: ADAMS, Graham | C77: 1 | D77: G | E77: 101 | F77: 1 | G77: 16 | H77: 0 | I77: 5.333333333 | J77: 73
A78: 75 | B78: PRICE, Ben | C78: 91 | D78: F | E78: 85 | F78: 2 | G78: 15 | H78: 0 | I78: 5 | J78: 75
A79: 76 | B79: KNIGHT, Simon | C79: 64 | D79: H | E79: 121 | F79: 2 | G79: 15 | H79: 0 | I79: 5 | J79: 75
A80: 77 | B80: WELLS, Thomas | C80: 120 | D80: D | E80: 52 | F80: 2 | G80: 14 | H80: 0 | I80: 4.666666667 | J80: 77
A81: 78 | B81: LINDFIELD, Bill | C81: 71 | D81: D | E81: 59 | F81: 2 | G81: 14 | H81: 0 | I81: 4.666666667 | J81: 77
A82: 79 | B82: PARKER, Al | C82: 82 | D82: F | E82: 92 | F82: 1 | G82: 14 | H82: 0 | I82: 4.666666667 | J82: 79
A83: 80 | B83: MARTLAND, Kev | C83: 73 | D83: E | E83: 75 | F83: 1 | G83: 12 | H83: 0 | I83: 4 | J83: 80
A84: 81 | B84: PRICE, Alan | C84: 90 | D84: E | E84: 77 | F84: 1 | G84: 12 | H84: 0 | I84: 4 | J84: 80
A85: 82 | B85: BANCROFT, Dave | C85: 9 | D85: B | E85: 23 | F85: 1 | G85: 10 | H85: 0 | I85: 3.333333333 | J85: 82
A86: 83 | B86: BALL, Keith | C86: 8 | D86: G | E86: 97 | F86: 1 | G86: 10 | H86: 0 | I86: 3.333333333 | J86: 82
A87: 84 | B87: PARKER, Gavin | C87: 84 | D87: F | E87: 90 | F87: 1 | G87: 8 | H87: 0 | I87: 2.666666667 | J87: 84
A88: 85 | B88: THOMAS, Tony | C88: 111 | D88: C | E88: 37 | F88: 1 | G88: 7 | H88: 0 | I88: 2.333333333 | J88: 85
A89: 86 | B89: BETTINSON, Charles | C89: 12 | D89: D | E89: 64 | F89: 1 | G89: 7 | H89: 0 | I89: 2.333333333 | J89: 85
A90: 87 | B90: NELSON, Ian | C90: 79 | D90: E | E90: 73 | F90: 1 | G90: 7 | H90: 0 | I90: 2.333333333 | J90: 85
A91: 88 | B91: DENHOLM, Paul | C91: 32 | D91: C | E91: 38 | F91: 1 | G91: 6 | H91: 0 | I91: 2 | J91: 88
A92: 89 | B92: FRENCH, Julian | C92: 42 | D92: E | E92: 79 | F92: 1 | G92: 6 | H92: 0 | I92: 2 | J92: 88
A93: 90 | B93: WICKS, Maralyn | C93: 122 | D93: G | E93: 112 | F93: 1 | G93: 5 | H93: 0 | I93: 1.666666667 | J93: 90

Sheet Bass Festival Day 2 (Flattie)
A1: NORTH NORFOLK BASS FESTIVAL 2020-21 | F1: Day 2 (Flattie)
A2: Individual No. | B2: Angler Name | C2: Angler No. | D2: Zone | E2: Peg | F2: No. Fish | G2: Fish Points | H2: Weight | J2: Day 2 Position
H3: lbs | I3: oz
A4: 1 | B4: ROGERS, Mark | C4: 95 | D4: G | E4: 99 | F4: 41 | G4: 440 | H4: 9 | I4: 2.666666667 | J4: 1
A5: 2 | B5: GOOCH, Mark | C5: 47 | D5: F | E5: 82 | F5: 31 | G5: 424 | H5: 8 | I5: 13.33333333 | J5: 2
A6: 3 | B6: GALLACHER, Andy | C6: 43 | D6: H | E6: 119 | F6: 44 | G6: 420 | H6: 8 | I6: 12 | J6: 3
A7: 4 | B7: BOND, Darren | C7: 13 | D7: H | E7: 127 | F7: 40 | G7: 408 | H7: 8 | I7: 8 | J7: 4
A8: 5 | B8: SHORTHOUSE, Dave | C8: 102 | D8: A | E8: 12 | F8: 28 | G8: 404 | H8: 8 | I8: 6.666666667 | J8: 5
A9: 6 | B9: CROSBY, Ralf | C9: 29 | D9: A | E9: 13 | F9: 33 | G9: 402 | H9: 8 | I9: 6 | J9: 6
A10: 7 | B10: CROSBY, Colin | C10: 28 | D10: H | E10: 121 | F10: 34 | G10: 389 | H10: 8 | I10: 1.666666667 | J10: 7
A11: 8 | B11: PERRY, Joe | C11: 87 | D11: B | E11: 25 | F11: 25 | G11: 376 | H11: 7 | I11: 13.33333333 | J11: 8
A12: 9 | B12: WATTS, Mike | C12: 119 | D12: G | E12: 103 | F12: 36 | G12: 359 | H12: 7 | I12: 7.666666667 | J12: 9
A13: 10 | B13: YALLOP, Stephen | C13: 126 | D13: G | E13: 100 | F13: 33 | G13: 318 | H13: 6 | I13: 10 | J13: 10
A14: 11 | B14: BUY, Craig | C14: 21 | D14: H | E14: 122 | F14: 24 | G14: 316 | H14: 6 | I14: 9.333333333 | J14: 11
A15: 12 | B15: SMITH, George | C15: 104 | D15: H | E15: 128 | F15: 26 | G15: 310 | H15: 6 | I15: 7.333333333 | J15: 12
A16: 13 | B16: THORPE, Doug | C16: 113 | D16: H | E16: 123 | F16: 29 | G16: 308 | H16: 6 | I16: 6.666666667 | J16: 13
A17: 14 | B17: ARCH, Joe | C17: 6 | D17: G | E17: 97 | F17: 30 | G17: 294 | H17: 6 | I17: 2 | J17: 14
A18: 15 | B18: NANGLE, Karl | C18: 78 | D18: B | E18: 18 | F18: 21 | G18: 291 | H18: 6 | I18: 1 | J18: 15
A19: 16 | B19: LINDFIELD, Bill | C19: 71 | D19: F | E19: 95 | F19: 26 | G19: 281 | H19: 5 | I19: 13.66666667 | J19: 16
A20: 17 | B20: MOORING, Luke | C20: 76 | D20: D | E20: 62 | F20: 18 | G20: 281 | H20: 5 | I20: 13.66666667 | J20: 17
A21: 18 | B21: FALK, Dave | C21: 39 | D21: B | E21: 32 | F21: 23 | G21: 275 | H21: 5 | I21: 11.66666667 | J21: 18
A22: 19 | B22: CLEMENT, Alby | C22: 23 | D22: F | E22: 93 | F22: 27 | G22: 274 | H22: 5 | I22: 11.33333333 | J22: 19
A23: 20 | B23: ADAMS, Graham | C23: 1 | D23: B | E23: 20 | F23: 23 | G23: 262 | H23: 5 | I23: 7.333333333 | J23: 20
A24: 21 | B24: FRENCH, Julian | C24: 42 | D24: B | E24: 24 | F24: 21 | G24: 262 | H24: 5 | I24: 7.333333333 | J24: 21
A25: 22 | B25: SPALL, Chris | C25: 107 | D25: A | E25: 4 | F25: 27 | G25: 253 | H25: 5 | I25: 4.333333333 | J25: 22
A26: 23 | B26: PAGE, Saul | C26: 81 | D26: E | E26: 66 | F26: 23 | G26: 250 | H26: 5 | I26: 3.333333333 | J26: 23
A27: 24 | B27: BANHAM, Jason | C27: 10 | D27: A | E27: 6 | F27: 19 | G27: 240 | H27: 5 | I27: 0 | J27: 24
A28: 25 | B28: BALL, Keith | C28: 8 | D28: A | E28: 11 | F28: 19 | G28: 239 | H28: 4 | I28: 15.66666667 | J28: 25
A29: 26 | B29: PLUMSTEAD, Joe | C29: 89 | D29: H | E29: 115 | F29: 22 | G29: 236 | H29: 4 | I29: 14.66666667 | J29: 26
A30: 27 | B30: BURT, Richard | C30: 20 | D30: F | E30: 88 | F30: 24 | G30: 230 | H30: 4 | I30: 12.66666667 | J30: 27
A31: 28 | B31: TUCK, Rob | C31: 116 | D31: E | E31: 77 | F31: 14 | G31: 227 | H31: 4 | I31: 11.66666667 | J31: 28
A32: 29 | B32: DIAPER, Barry | C32: 33 | D32: E | E32: 67 | F32: 19 | G32: 215 | H32: 4 | I32: 7.666666667 | J32: 29
A33: 30 | B33: TOPPING, Mike | C33: 115 | D33: F | E33: 87 | F33: 20 | G33: 198 | H33: 4 | I33: 2 | J33: 30
A34: 31 | B34: GASCOIGNE, Robert | C34: 45 | D34: A | E34: 9 | F34: 18 | G34: 195 | H34: 4 | I34: 1 | J34: 31
A35: 32 | B35: WOOD, Gary | C35: 124 | D35: B | E35: 31 | F35: 18 | G35: 195 | H35: 4 | I35: 1 | J35: 31
A36: 33 | B36: COOPER, Sam | C36: 25 | D36: E | E36: 65 | F36: 15 | G36: 193 | H36: 4 | I36: 0.3333333333 | J36: 33
A37: 34 | B37: SMITH, Leon | C37: 105 | D37: H | E37: 125 | F37: 20 | G37: 184 | H37: 3 | I37: 13.33333333 | J37: 34
A38: 35 | B38: McGILLOWAY, Wayne | C38: 75 | D38: H | E38: 117 | F38: 19 | G38: 183 | H38: 3 | I38: 13 | J38: 35
A39: 36 | B39: COOPER, Phillip | C39: 24 | D39: F | E39: 89 | F39: 14 | G39: 181 | H39: 3 | I39: 12.33333333 | J39: 36
A40: 37 | B40: TAYLOR, Mark | C40: 110 | D40: A | E40: 8 | F40: 15 | G40: 180 | H40: 3 | I40: 12 | J40: 37
A41: 38 | B41: STEBBINGS, Robert | C41: 108 | D41: F | E41: 83 | F41: 16 | G41: 178 | H41: 3 | I41: 11.33333333 | J41: 38
A42: 39 | B42: WELLS, Thomas | C42: 120 | D42: F | E42: 91 | F42: 14 | G42: 178 | H42: 3 | I42: 11.33333333 | J42: 39
A43: 40 | B43: THORNTON, Lee | C43: 112 | D43: F | E43: 94 | F43: 17 | G43: 174 | H43: 3 | I43: 10 | J43: 40
A44: 41 | B44: AKESTER, Jack | C44: 3 | D44: G | E44: 102 | F44: 20 | G44: 167 | H44: 3 | I44: 7.666666667 | J44: 41
A45: 42 | B45: KIMBLE, John | C45: 62 | D45: B | E45: 19 | F45: 18 | G45: 163 | H45: 3 | I45: 6.333333333 | J45: 42
A46: 43 | B46: SMART, Neil | C46: 103 | D46: A | E46: 3 | F46: 14 | G46: 155 | H46: 3 | I46: 3.666666667 | J46: 43
A47: 44 | B47: GARDINER, Gareth | C47: 44 | D47: A | E47: 1 | F47: 15 | G47: 153 | H47: 3 | I47: 3 | J47: 44
A48: 45 | B48: SERBAN, Nelu | C48: 101 | D48: F | E48: 92 | F48: 16 | G48: 152 | H48: 3 | I48: 2.666666667 | J48: 45
A49: 46 | B49: DRAYTON, Simon | C49: 36 | D49: F | E49: 84 | F49: 16 | G49: 150 | H49: 3 | I49: 2 | J49: 46
A50: 47 | B50: ELLIOTT, Nathan | C50: 38 | D50: D | E50: 64 | F50: 14 | G50: 150 | H50: 3 | I50: 2 | J50: 47
A51: 48 | B51: PEMBERTON, Andy | C51: 86 | D51: A | E51: 5 | F51: 16 | G51: 149 | H51: 3 | I51: 1.666666667 | J51: 48
A52: 49 | B52: DENHOLM, Paul | C52: 32 | D52: E | E52: 80 | F52: 13 | G52: 149 | H52: 3 | I52: 1.666666667 | J52: 49
A53: 50 | B53: HIPPERSON, Richard | C53: 57 | D53: G | E53: 108 | F53: 13 | G53: 146 | H53: 3 | I53: 0.6666666667 | J53: 50
A54: 51 | B54: LILL, Jarrod | C54: 70 | D54: G | E54: 111 | F54: 14 | G54: 144 | H54: 3 | I54: 0 | J54: 51
A55: 52 | B55: HUTSON, Garry | C55: 60 | D55: H | E55: 126 | F55: 16 | G55: 141 | H55: 2 | I55: 15 | J55: 52
A56: 53 | B56: WALES, Joe | C56: 118 | D56: H | E56: 114 | F56: 15 | G56: 141 | H56: 2 | I56: 15 | J56: 53
A57: 54 | B57: FRARY, Charlie | C57: 40 | D57: G | E57: 112 | F57: 14 | G57: 139 | H57: 2 | I57: 14.33333333 | J57: 54
A58: 55 | B58: MARTLAND, Kev | C58: 73 | D58: A | E58: 10 | F58: 14 | G58: 128 | H58: 2 | I58: 10.66666667 | J58: 55
A59: 56 | B59: BOWELL, Ian | C59: 16 | D59: E | E59: 75 | F59: 14 | G59: 128 | H59: 2 | I59: 10.66666667 | J59: 55
A60: 57 | B60: HARRISON, Paul | C60: 51 | D60: A | E60: 2 | F60: 12 | G60: 128 | H60: 2 | I60: 10.66666667 | J60: 57
A61: 58 | B61: LAY-FLURRIE, Matt | C61: 66 | D61: E | E61: 76 | F61: 14 | G61: 127 | H61: 2 | I61: 10.33333333 | J61: 58
A62: 59 | B62: PROVINS, Colin | C62: 93 | D62: B | E62: 30 | F62: 11 | G62: 127 | H62: 2 | I62: 10.33333333 | J62: 59
A63: 60 | B63: LEE, Phil | C63: 69 | D63: E | E63: 71 | F63: 14 | G63: 126 | H63: 2 | I63: 10 | J63: 60
A64: 61 | B64: CARTER, John | C64: 22 | D64: G | E64: 110 | F64: 14 | G64: 116 | H64: 2 | I64: 6.666666667 | J64: 61
A65: 62 | B65: COTTER, Brett | C65: 26 | D65: E | E65: 73 | F65: 10 | G65: 116 | H65: 2 | I65: 6.666666667 | J65: 62
A66: 63 | B66: DIAPER, Greg | C66: 34 | D66: G | E66: 105 | F66: 11 | G66: 115 | H66: 2 | I66: 6.333333333 | J66: 63
A67: 64 | B67: HANCOX, Karen | C67: 50 | D67: H | E67: 116 | F67: 15 | G67: 112 | H67: 2 | I67: 5.333333333 | J67: 64
A68: 65 | B68: PRICE, Ben | C68: 91 | D68: C | E68: 41 | F68: 9 | G68: 109 | H68: 2 | I68: 4.333333333 | J68: 65
A69: 66 | B69: PRICE, Jimmy | C69: 92 | D69: A | E69: 15 | F69: 11 | G69: 108 | H69: 2 | I69: 4 | J69: 66
A70: 67 | B70: DAWBER, Simon | C70: 31 | D70: E | E70: 69 | F70: 10 | G70: 108 | H70: 2 | I70: 4 | J70: 67
A71: 68 | B71: HUTCHINSON, Dave | C71: 59 | D71: B | E71: 22 | F71: 10 | G71: 107 | H71: 2 | I71: 3.666666667 | J71: 68
A72: 69 | B72: PEARCE, Vic | C72: 85 | D72: B | E72: 21 | F72: 8 | G72: 104 | H72: 2 | I72: 2.666666667 | J72: 69
A73: 70 | B73: WRIGHT, Dave | C73: 123 | D73: B | E73: 27 | F73: 9 | G73: 103 | H73: 2 | I73: 2.333333333 | J73: 70
A74: 71 | B74: GREEN, Kevin | C74: 48 | D74: D | E74: 61 | F74: 9 | G74: 102 | H74: 2 | I74: 2 | J74: 71
A75: 72 | B75: McCOY, Kenny | C75: 74 | D75: F | E75: 81 | F75: 10 | G75: 101 | H75: 2 | I75: 1.666666667 | J75: 72
A76: 73 | B76: SMITH, Stephen | C76: 106 | D76: D | E76: 53 | F76: 7 | G76: 100 | H76: 2 | I76: 1.333333333 | J76: 73
A77: 74 | B77: HAZELGROVE, Gary | C77: 53 | D77: D | E77: 55 | F77: 7 | G77: 100 | H77: 2 | I77: 1.333333333 | J77: 73
A78: 75 | B78: HIGHFIELD, Nik | C78: 55 | D78: E | E78: 78 | F78: 8 | G78: 95 | H78: 1 | I78: 15.66666667 | J78: 75
A79: 76 | B79: BORDIANU, Adrian | C79: 14 | D79: C | E79: 38 | F79: 9 | G79: 90 | H79: 1 | I79: 14 | J79: 76
A80: 77 | B80: CUTLER, Neil | C80: 30 | D80: C | E80: 40 | F80: 8 | G80: 90 | H80: 1 | I80: 14 | J80: 77
A81: 78 | B81: ROYALL, Tony | C81: 97 | D81: D | E81: 63 | F81: 6 | G81: 90 | H81: 1 | I81: 14 | J81: 78
A82: 79 | B82: ADAMS, Stephen | C82: 2 | D82: D | E82: 51 | F82: 6 | G82: 88 | H82: 1 | I82: 13.33333333 | J82: 79
A83: 80 | B83: EDWARDS, Lee | C83: 37 | D83: F | E83: 85 | F83: 11 | G83: 87 | H83: 1 | I83: 13 | J83: 80
A84: 81 | B84: JOHNSON, Billy | C84: 61 | D84: E | E84: 72 | F84: 10 | G84: 87 | H84: 1 | I84: 13 | J84: 81
A85: 82 | B85: NELSON, Ian | C85: 79 | D85: D | E85: 59 | F85: 8 | G85: 87 | H85: 1 | I85: 13 | J85: 82
A86: 83 | B86: AUSTIN, John | C86: 7 | D86: E | E86: 74 | F86: 6 | G86: 87 | H86: 1 | I86: 13 | J86: 83
A87: 84 | B87: HENNEY, Jimmy | C87: 54 | D87: H | E87: 118 | F87: 8 | G87: 84 | H87: 1 | I87: 12 | J87: 84
A88: 85 | B88: ROBERTS, Steve | C88: 94 | D88: A | E88: 14 | F88: 9 | G88: 83 | H88: 1 | I88: 11.66666667 | J88: 85
A89: 86 | B89: RYDER, Edde | C89: 99 | D89: D | E89: 49 | F89: 8 | G89: 81 | H89: 1 | I89: 11 | J89: 86
A90: 87 | B90: WICKS, Maralyn | C90: 122 | D90: B | E90: 26 | F90: 7 | G90: 79 | H90: 1 | I90: 10.33333333 | J90: 87
A91: 88 | B91: BANCROFT, Dave | C91: 9 | D91: G | E91: 109 | F91: 8 | G91: 77 | H91: 1 | I91: 9.666666667 | J91: 88
A92: 89 | B92: YALLOP, Oliver | C92: 125 | D92: F | E92: 90 | F92: 7 | G92: 77 | H92: 1 | I92: 9.666666667 | J92: 89
A93: 90 | B93: SELF, Bevan | C93: 100 | D93: C | E93: 33 | F93: 8 | G93: 76 | H93: 1 | I93: 9.333333333 | J93: 90
A94: 91 | B94: BETTINSON, Charles | C94: 12 | D94: G | E94: 98 | F94: 10 | G94: 75 | H94: 1 | I94: 9 | J94: 91
A95: 92 | B95: PINDER, Mark | C95: 88 | D95: D | E95: 60 | F95: 8 | G95: 73 | H95: 1 | I95: 8.333333333 | J95: 92
A96: 93 | B96: HADDOCK, Roy | C96: 49 | D96: H | E96: 120 | F96: 8 | G96: 73 | H96: 1 | I96: 8.333333333 | J96: 92
A97: 94 | B97: TURNER, Cameron | C97: 117 | D97: C | E97: 37 | F97: 7 | G97: 72 | H97: 1 | I97: 8 | J97: 94
A98: 95 | B98: LEE, Martin | C98: 68 | D98: B | E98: 17 | F98: 6 | G98: 72 | H98: 1 | I98: 8 | J98: 95
A99: 96 | B99: TOPPING, Jack | C99: 114 | D99: F | E99: 86 | F99: 9 | G99: 68 | H99: 1 | I99: 6.666666667 | J99: 96
A100: 97 | B100: PARKER, Daniel | C100: 83 | D100: D | E100: 57 | F100: 5 | G100: 67 | H100: 1 | I100: 6.333333333 | J100: 97
A101: 98 | B101: FRARY, June | C101: 41 | D101: H | E101: 113 | F101: 8 | G101: 65 | H101: 1 | I101: 5.666666667 | J101: 98
A102: 99 | B102: STORER, Paul | C102: 109 | D102: C | E102: 35 | F102: 4 | G102: 48 | H102: 1 | I102: 0 | J102: 99
A103: 100 | B103: ALDOUS, David | C103: 5 | D103: B | E103: 28 | F103: 6 | G103: 46 | H103: 0 | I103: 15.33333333 | J103: 100
A104: 101 | B104: BOTEZATO, Constantin | C104: 15 | D104: D | E104: 56 | F104: 5 | G104: 46 | H104: 0 | I104: 15.33333333 | J104: 101
A105: 102 | B105: THOMAS, Tony | C105: 111 | D105: E | E105: 68 | F105: 4 | G105: 45 | H105: 0 | I105: 15 | J105: 102
A106: 103 | B106: RUSSELL, Shane | C106: 98 | D106: D | E106: 58 | F106: 4 | G106: 43 | H106: 0 | I106: 14.33333333 | J106: 103
A107: 104 | B107: WHITE, Alan | C107: 121 | D107: D | E107: 52 | F107: 3 | G107: 40 | H107: 0 | I107: 13.33333333 | J107: 104
A108: 105 | B108: HARVEY, Paul | C108: 52 | D108: C | E108: 44 | F108: 3 | G108: 30 | H108: 0 | I108: 10 | J108: 105
A109: 106 | B109: KINGDON, Adam | C109: 63 | D109: C | E109: 48 | F109: 2 | G109: 24 | H109: 0 | I109: 8 | J109: 106
A110: 107 | B110: PRICE, Alan | C110: 90 | D110: C | E110: 47 | F110: 2 | G110: 18 | H110: 0 | I110: 6 | J110: 107
A111: 108 | B111: DOY, Alan | C111: 35 | D111: C | E111: 39 | F111: 1 | G111: 18 | H111: 0 | I111: 6 | J111: 108
A112: 109 | B112: LAMBERT, Ian | C112: 65 | D112: C | E112: 36 | F112: 1 | G112: 12 | H112: 0 | I112: 4 | J112: 109
A113: 110 | B113: NICHOLSON, Steven | C113: 80 | D113: B | E113: 23 | F113: 1 | G113: 10 | H113: 0 | I113: 3.333333333 | J113: 110
A114: 111 | B114: LEE, Louise | C114: 67 | D114: A | E114: 16 | F114: 1 | G114: 8 | H114: 0 | I114: 2.666666667 | J114: 111

Sheet Ladies Day 1
B1: UK LADIES CHAMPIONSHIPS 2020-21 | F1: Day 1 (Individuals)
A2: Individual No. | B2: Angler Name | C2: Angler No. | D2: Zone | E2: Peg | F2: No. Fish | G2: Fish Points | H2: Weight | J2: Day 1 Points | K2: Day 1 Position
H3: lbs | I3: oz
A4: 1 | B4: WICKS, Maralyn | C4: 122 | D4: G | E4: 112 | F4: 2 | G4: 60 | H4: 1 | I4: 4 | J4: 1 | K4: 1
A5: 2 | B5: BROWN, Kay | C5: 18 | D5: B | E5: 24 | F5: 1 | G5: 44 | H5: 0 | I5: 14.66666667 | J5: 2 | K5: 2
A6: 3 | B6: LINDFIELD, Heather | C6: 72 | D6: B | E6: 31 | F6: 2 | G6: 31 | H6: 0 | I6: 10.33333333 | J6: 3 | K6: 3
A7: 4 | B7: METCALFE, Wendy | C7: 19 | D7: B | E7: 25 | F7: 1 | G7: 13 | H7: 0 | I7: 4.333333333 | J7: 4 | K7: 4
A8: 5 | B8: FRARY, June | C8: 41 | D8: B | E8: 28 | F8: 0 | G8: 0 | H8: 0 | I8: 0 | J8: 5 | K8: 5
A9: 6 | B9: HANCOX, Karen | C9: 50 | D9: B | E9: 29 | F9: 0 | G9: 0 | H9: 0 | I9: 0 | J9: 5 | K9: 5
A10: 7 | B10: HILLS, Amy | C10: 56 | D10: C | E10: 34 | F10: 0 | G10: 0 | H10: 0 | I10: 0 | J10: 5 | K10: 5
A11: 8 | B11: LEE, Louise | C11: 67 | D11: H | E11: 119 | F11: 0 | G11: 0 | H11: 0 | I11: 0 | J11: 5 | K11: 5

Sheet Ladies Day 2
B1: UK LADIES CHAMPIONSHIPS 2020-21 | F1: Day 2 (Individuals)
A2: Individual No. | B2: Angler Name | C2: Angler No. | D2: Zone | E2: Peg | F2: No. Fish | G2: Fish Points | H2: Weight | J2: Day 2 Points | K2: Day 2 Position
H3: lbs | I3: oz
A4: 1 | B4: WICKS, Maralyn | C4: 122 | D4: B | E4: 26 | F4: 18 | G4: 265 | H4: 5 | I4: 8.333333333 | J4: 1 | K4: 1
A5: 2 | B5: LINDFIELD, Heather | C5: 72 | D5: G | E5: 104 | F5: 20 | G5: 194 | H5: 4 | I5: 0.6666666667 | J5: 2 | K5: 2
A6: 3 | B6: LEE, Louise | C6: 67 | D6: A | E6: 16 | F6: 12 | G6: 179 | H6: 3 | I6: 11.66666667 | J6: 3 | K6: 3
A7: 4 | B7: BROWN, Kay | C7: 18 | D7: G | E7: 106 | F7: 16 | G7: 160 | H7: 3 | I7: 5.333333333 | J7: 4 | K7: 4
A8: 5 | B8: METCALFE, Wendy | C8: 19 | D8: G | E8: 107 | F8: 13 | G8: 155 | H8: 3 | I8: 3.666666667 | J8: 5 | K8: 5
A9: 6 | B9: FRARY, June | C9: 41 | D9: H | E9: 113 | F9: 16 | G9: 141 | H9: 2 | I9: 15 | J9: 6 | K9: 6
A10: 7 | B10: HANCOX, Karen | C10: 50 | D10: H | E10: 116 | F10: 17 | G10: 137 | H10: 2 | I10: 13.66666667 | J10: 7 | K10: 7
A11: 8 | B11: HILLS, Amy | C11: 56 | D11: E | E11: 79 | F11: 0 | G11: 0 | H11: 0 | I11: 0 | J11: 8 | K11: 8

Sheet Juniors Day 1
B1: NORTH NORFOLK JUNIORS TOURNAMENT 2020-21 | F1: Day 1 (Juniors)
A2: Individual No. | B2: Angler Name | C2: Angler No. | D2: Zone | E2: Peg | F2: No. Fish | G2: Fish Points | H2: Weight | J2: Day 1 Position
H3: lbs | I3: oz
A4: 1 | B4: TOPPING, Jack | C4: 114 | D4: A | E4: 13 | F4: 7 | G4: 135 | H4: 2 | I4: 13 | J4: 1
A5: 2 | B5: BANHAM, Mark | C5: 11 | D5: H | E5: 115 | F5: 1 | G5: 16 | H5: 0 | I5: 5.333333333 | J5: 2
A6: 3 | B6: ALDOUS, Brayden | C6: 4 | D6: F | E6: 94 | F6: 1 | G6: 12 | H6: 0 | I6: 4 | J6: 3

Sheet Juniors Day 2
B1: NORTH NORFOLK JUNIORS TOURNAMENT 2020-21 | F1: Day 2 (Juniors)
A2: Individual No. | B2: Angler Name | C2: Angler No. | D2: Zone | E2: Peg | F2: No. Fish | G2: Fish Points | H2: Weight | J2: Day 2 Position
H3: lbs | I3: oz
A4: 1 | B4: BANHAM, Mark | C4: 11 | D4: A | E4: 7 | F4: 9 | G4: 151 | H4: 3 | I4: 2.333333333 | J4: 1
A5: 2 | B5: TOPPING, Jack | C5: 114 | D5: F | E5: 86 | F5: 14 | G5: 134 | H5: 2 | I5: 12.66666667 | J5: 2
A6: 3 | B6: ALDOUS, Brayden | C6: 4 | D6: B | E6: 29 | F6: 6 | G6: 77 | H6: 1 | I6: 9.666666667 | J6: 3

Sheet Shannock Quads Day 1
B1: SHANNOCK QUADS 2020-21 | E1: Day 1 (Teams)
A2: Team Count | B2: Day 1 Position | C2: Team No. | D2: Team Name | E2: No. Fish | F2: Fish Points | G2: Weight
G3: lbs | H3: oz
A4: 1 | B4: 1 | C4: 1 | D4: TEAM BREAKAWAY | E4: 53 | F4: 867 | G4: 18 | H4: 1
A5: 2 | B5: 2 | C5: 4 | D5: THE MAGGOTS | E5: 56 | F5: 855 | G5: 17 | H5: 13
A6: 3 | B6: 3 | C6: 10 | D6: ANYFISH ANYWHERE ASSO | E6: 48 | F6: 786 | G6: 16 | H6: 6
A7: 4 | B7: 4 | C7: 7 | D7: SHEEP SHAGERS | E7: 30 | F7: 550 | G7: 11 | H7: 7.333333333
A8: 5 | B8: 5 | C8: 12 | D8: NORTH NORFOLK LADS | E8: 31 | F8: 541 | G8: 11 | H8: 4.333333333
A9: 6 | B9: 6 | C9: 9 | D9: IPSWICH SEA ANGLERS | E9: 29 | F9: 512 | G9: 10 | H9: 10.66666667
A10: 7 | B10: 7 | C10: 13 | D10: GORLESTON TACKLE | E10: 20 | F10: 354 | G10: 7 | H10: 6
A11: 8 | B11: 8 | C11: 11 | D11: BENNET ROOFING | E11: 29 | F11: 334 | G11: 6 | H11: 15.33333333
A12: 9 | B12: 9 | C12: 5 | D12: SAUL & CO | E12: 22 | F12: 326 | G12: 6 | H12: 12.66666667
A13: 10 | B13: 10 | C13: 3 | D13: TEAM BIRDS | E13: 16 | F13: 318 | G13: 6 | H13: 10
A14: 11 | B14: 11 | C14: 2 | D14: TIDLER SQUAD | E14: 24 | F14: 297 | G14: 6 | H14: 3
A15: 12 | B15: 12 | C15: 6 | D15: PRICEY'S GUYS & GAL | E15: 23 | F15: 287 | G15: 5 | H15: 15.66666667
A16: 13 | B16: 13 | C16: 8 | D16: VETERANS + 1 | E16: 14 | F16: 203 | G16: 4 | H16: 3.666666667

Sheet Shannock Quads Day 2
B1: SHANNOCK QUADS 2020-21 | E1: Day 2 (Teams)
A2: Team Count | B2: Day 2 Position | C2: Team No. | D2: Team Name | E2: No. Fish | F2: Fish Points | G2: Weight
G3: lbs | H3: oz
A4: 1 | B4: 1 | C4: 1 | D4: TEAM BREAKAWAY | E4: 101 | F4: 2204 | G4: 45 | H4: 14.66666667
A5: 2 | B5: 2 | C5: 4 | D5: THE MAGGOTS | E5: 136 | F5: 1807 | G5: 37 | H5: 10.33333333
A6: 3 | B6: 3 | C6: 7 | D6: SHEEP SHAGERS | E6: 100 | F6: 1662 | G6: 34 | H6: 10
A7: 4 | B7: 4 | C7: 10 | D7: ANYFISH ANYWHERE ASSO | E7: 124 | F7: 1599 | G7: 33 | H7: 5
A8: 5 | B8: 5 | C8: 2 | D8: TIDLER SQUAD | E8: 83 | F8: 1251 | G8: 26 | H8: 1
A9: 6 | B9: 6 | C9: 12 | D9: NORTH NORFOLK LADS | E9: 87 | F9: 1226 | G9: 25 | H9: 8.666666667
A10: 7 | B10: 7 | C10: 5 | D10: SAUL & CO | E10: 90 | F10: 1141 | G10: 23 | H10: 12.33333333
A11: 8 | B11: 8 | C11: 6 | D11: PRICEY'S GUYS & GAL | E11: 67 | F11: 1075 | G11: 22 | H11: 6.333333333
A12: 9 | B12: 9 | C12: 11 | D12: BENNET ROOFING | E12: 76 | F12: 966 | G12: 20 | H12: 2
A13: 10 | B13: 10 | C13: 13 | D13: GORLESTON TACKLE | E13: 71 | F13: 941 | G13: 19 | H13: 9.666666667
A14: 11 | B14: 11 | C14: 8 | D14: VETERANS + 1 | E14: 60 | F14: 867 | G14: 18 | H14: 1
A15: 12 | B15: 12 | C15: 9 | D15: IPSWICH SEA ANGLERS | E15: 76 | F15: 847 | G15: 17 | H15: 10.33333333
A16: 13 | B16: 13 | C16: 3 | D16: TEAM BIRDS | E16: 70 | F16: 829 | G16: 17 | H16: 4.333333333

Sheet All Day 1 Heaviest Bass
A1: OVERALL 2020-21 | E1: Day 1 - Heaviest Bass
A2: Individual No. | B2: Angler Name | C2: Angler No. | D2: Peg | E2: Fish Points | F2: Weight | H2: Species | I2: Day 1 Position
F3: lbs | G3: oz
A4: 1 | B4: ROYALL, Tony | C4: 97 | D4: 123 | E4: 158 | F4: 3 | G4: 4.666666667 | H4: BASS | I4: 1
A5: 2 | B5: ROPER, Liam | C5: 96 | D5: 107 | E5: 129 | F5: 2 | G5: 11 | H5: BASS | I5: 2
A6: 3 | B6: SMITH, George | C6: 104 | D6: 55 | E6: 116 | F6: 2 | G6: 6.666666667 | H6: BASS | I6: 3
A7: 4 | B7: DOY, Alan | C7: 35 | D7: 95 | E7: 116 | F7: 2 | G7: 6.666666667 | H7: BASS | I7: 3
A8: 5 | B8: Unused Pegs 2 | C8: 128 | D8: 1 | E8: 110 | F8: 2 | G8: 4.666666667 | H8: BASS | I8: 5
A9: 6 | B9: WALES, Joe | C9: 118 | D9: 4 | E9: 110 | F9: 2 | G9: 4.666666667 | H9: BASS | I9: 5
A10: 7 | B10: RUSSELL, Shane | C10: 98 | D10: 72 | E10: 110 | F10: 2 | G10: 4.666666667 | H10: BASS | I10: 5
A11: 8 | B11: YALLOP, Oliver | C11: 125 | D11: 3 | E11: 104 | F11: 2 | G11: 2.666666667 | H11: BASS | I11: 8
A12: 9 | B12: ROGERS, Mark | C12: 95 | D12: 21 | E12: 104 | F12: 2 | G12: 2.666666667 | H12: BASS | I12: 8
A13: 10 | B13: BOND, Darren | C13: 13 | D13: 63 | E13: 104 | F13: 2 | G13: 2.666666667 | H13: BASS | I13: 8
A14: 11 | B14: McGILLOWAY, Wayne | C14: 75 | D14: 6 | E14: 98 | F14: 2 | G14: 0.6666666667 | H14: BASS | I14: 11
A15: 12 | B15: LEE, Martin | C15: 68 | D15: 120 | E15: 98 | F15: 2 | G15: 0.6666666667 | H15: BASS | I15: 11
A16: 13 | B16: CROSBY, Ralf | C16: 29 | D16: 86 | E16: 92 | F16: 1 | G16: 14.66666667 | H16: BASS | I16: 13
A17: 14 | B17: WRIGHT, Dave | C17: 123 | D17: 113 | E17: 92 | F17: 1 | G17: 14.66666667 | H17: BASS | I17: 13
A18: 15 | B18: BURT, Richard | C18: 20 | D18: 16 | E18: 68 | F18: 1 | G18: 6.666666667 | H18: BASS | I18: 15
A19: 16 | B19: SERBAN, Nelu | C19: 101 | D19: 50 | E19: 68 | F19: 1 | G19: 6.666666667 | H19: BASS | I19: 15
A20: 17 | B20: LAMBERT, Ian | C20: 65 | D20: 67 | E20: 68 | F20: 1 | G20: 6.666666667 | H20: BASS | I20: 15
A21: 18 | B21: ADAMS, Stephen | C21: 2 | D21: 128 | E21: 68 | F21: 1 | G21: 6.666666667 | H21: BASS | I21: 15
A22: 19 | B22: WELLS, Thomas | C22: 120 | D22: 52 | E22: 63 | F22: 1 | G22: 5 | H22: BASS | I22: 19
A23: 20 | B23: WICKS, Maralyn | C23: 122 | D23: 112 | E23: 55 | F23: 1 | G23: 2.333333333 | H23: BASS | I23: 20
A24: 21 | B24: TOPPING, Jack | C24: 114 | D24: 13 | E24: 51 | F24: 1 | G24: 1 | H24: BASS | I24: 21
A25: 22 | B25: BUY, Craig | C25: 21 | D25: 49 | E25: 51 | F25: 1 | G25: 1 | H25: BASS | I25: 21
A26: 23 | B26: NELSON, Ian | C26: 79 | D26: 73 | E26: 51 | F26: 1 | G26: 1 | H26: BASS | I26: 21
A27: 24 | B27: LAY-FLURRIE, Matt | C27: 66 | D27: 12 | E27: 47 | F27: 0 | G27: 15.66666667 | H27: BASS | I27: 24
A28: 25 | B28: RYDER, Edde | C28: 99 | D28: 87 | E28: 47 | F28: 0 | G28: 15.66666667 | H28: BASS | I28: 24
A29: 26 | B29: GOOCH, Mark | C29: 47 | D29: 18 | E29: 43 | F29: 0 | G29: 14.33333333 | H29: BASS | I29: 26
A30: 27 | B30: GREEN, Kevin | C30: 48 | D30: 122 | E30: 40 | F30: 0 | G30: 13.33333333 | H30: BASS | I30: 27
A31: 28 | B31: DENHOLM, Paul | C31: 32 | D31: 38 | E31: 37 | F31: 0 | G31: 12.33333333 | H31: BASS | I31: 28

Sheet All Day 2 Heaviest Bass
A1: OVERALL 2020-21 | E1: Day 2 - Heaviest Bass
A2: Individual No. | B2: Angler Name | C2: Angler No. | D2: Peg | E2: Fish Points | F2: Weight | H2: Species | I2: Day 2 Position
F3: lbs | G3: oz
A4: 1 | B4: McCOY, Kenny | C4: 74 | D4: 81 | E4: 122 | F4: 2 | G4: 8.666666667 | H4: BASS | I4: 1
A5: 2 | B5: WOOD, Gary | C5: 124 | D5: 31 | E5: 116 | F5: 2 | G5: 6.666666667 | H5: BASS | I5: 2
A6: 3 | B6: TAYLOR, Mark | C6: 110 | D6: 8 | E6: 104 | F6: 2 | G6: 2.666666667 | H6: BASS | I6: 3
A7: 4 | B7: WRIGHT, Dave | C7: 123 | D7: 27 | E7: 80 | F7: 1 | G7: 10.66666667 | H7: BASS | I7: 4
A8: 5 | B8: NANGLE, Karl | C8: 78 | D8: 18 | E8: 74 | F8: 1 | G8: 8.666666667 | H8: BASS | I8: 5
A9: 6 | B9: GARDINER, Gareth | C9: 44 | D9: 1 | E9: 47 | F9: 0 | G9: 15.66666667 | H9: BASS | I9: 6
A10: 7 | B10: FRENCH, Julian | C10: 42 | D10: 24 | E10: 16 | F10: 0 | G10: 5.333333333 | H10: BASS | I10: 7
A11: 8 | B11: SELF, Bevan | C11: 100 | D11: 33 | E11: 16 | F11: 0 | G11: 5.333333333 | H11: BASS | I11: 7

Sheet Bass Fest. Day 1 Heaviest Flat
B1: BASS FESTIVAL 2020-21 | E1: Day 1 - Heaviest Flat
A2: Individual No. | B2: Angler Name | C2: Angler No. | D2: Peg | E2: Fish Points | F2: Weight | H2: Species | I2: Day 1 Position
F3: lbs | G3: oz
A4: 1 | B4: =IF(I4="","",IF(ISNA(VLOOKUP($D4,'[2]Teams & Anglers'!$B$7:$F$156,1,FALSE))=TRUE,"",VLOOKUP($D4,'[2]Teams & Anglers'!$B$7:$F$1566,4,FALSE))) -> CROSBY, Colin | C4: =IF(ISNA(VLOOKUP($D4,'[2]Teams & Anglers'!$B$7:$F$156,1,FALSE))=TRUE,"",VLOOKUP($D4,'[2]Teams & Anglers'!$B$7:$F$1566,3,FALSE)) -> 28 | D4: =IF(I4="","",INDEX('[2]Day 1 (All)'!$AA$3:$AA$152,SMALL(IF('[2]Day 1 (All)'!$O$3:$O$152=$I4,ROW('[2]Day 1 (All)'!$O$3:$O$152)-ROW(I$4)+2),COUNTIF($I$4:$I4,$I4)))) -> 2 | E4: =IF($B4="","",IF(ISNA(VLOOKUP($C4,'[2]Day 1 (All)'!$Y$3:$Z$300,1,FALSE))=TRUE,0,VLOOKUP($D4,'[2]Day 1 data entry'!C$3:X$152,19,FALSE))) -> 60 | F4: 1 | G4: 4 | H4: =IF($B4="","",IF(ISNA(VLOOKUP($C4,'[2]Day 1 (All)'!$Y$3:$Z$300,1,FALSE))=TRUE,0,VLOOKUP($D4,'[2]Day 1 data entry'!C$3:X$152,22,FALSE))) -> FLOUNDER | I4: =IF(ISERROR(SMALL('[2]Day 1 (All)'!O$3:O$152,A4))=TRUE,"",(SMALL('[2]Day 1 (All)'!O$3:O$152,A4))) -> 1
A5: 2 | B5: =IF(I5="","",IF(ISNA(VLOOKUP($D5,'[2]Teams & Anglers'!$B$7:$F$156,1,FALSE))=TRUE,"",VLOOKUP($D5,'[2]Teams & Anglers'!$B$7:$F$1566,4,FALSE))) -> JOHNSON, Billy | C5: =IF(ISNA(VLOOKUP($D5,'[2]Teams & Anglers'!$B$7:$F$156,1,FALSE))=TRUE,"",VLOOKUP($D5,'[2]Teams & Anglers'!$B$7:$F$1566,3,FALSE)) -> 61 | D5: =IF(I5="","",INDEX('[2]Day 1 (All)'!$AA$3:$AA$152,SMALL(IF('[2]Day 1 (All)'!$O$3:$O$152=$I5,ROW('[2]Day 1 (All)'!$O$3:$O$152)-ROW(I$4)+2),COUNTIF($I$4:$I5,$I5)))) -> 5 | E5: =IF($B5="","",IF(ISNA(VLOOKUP($C5,'[2]Day 1 (All)'!$Y$3:$Z$300,1,FALSE))=TRUE,0,VLOOKUP($D5,'[2]Day 1 data entry'!C$3:X$152,19,FALSE))) -> 60 | F5: 1 | G5: 4 | H5: =IF($B5="","",IF(ISNA(VLOOKUP($C5,'[2]Day 1 (All)'!$Y$3:$Z$300,1,FALSE))=TRUE,0,VLOOKUP($D5,'[2]Day 1 data entry'!C$3:X$152,22,FALSE))) -> FLOUNDER | I5: =IF(ISERROR(SMALL('[2]Day 1 (All)'!O$3:O$152,A5))=TRUE,"",(SMALL('[2]Day 1 (All)'!O$3:O$152,A5))) -> 1
A6: 3 | B6: =IF(I6="","",IF(ISNA(VLOOKUP($D6,'[2]Teams & Anglers'!$B$7:$F$156,1,FALSE))=TRUE,"",VLOOKUP($D6,'[2]Teams & Anglers'!$B$7:$F$1566,4,FALSE))) -> WALES, Joe | C6: =IF(ISNA(VLOOKUP($D6,'[2]Teams & Anglers'!$B$7:$F$156,1,FALSE))=TRUE,"",VLOOKUP($D6,'[2]Teams & Anglers'!$B$7:$F$1566,3,FALSE)) -> 118 | D6: =IF(I6="","",INDEX('[2]Day 1 (All)'!$AA$3:$AA$152,SMALL(IF('[2]Day 1 (All)'!$O$3:$O$152=$I6,ROW('[2]Day 1 (All)'!$O$3:$O$152)-ROW(I$4)+2),COUNTIF($I$4:$I6,$I6)))) -> 4 | E6: =IF($B6="","",IF(ISNA(VLOOKUP($C6,'[2]Day 1 (All)'!$Y$3:$Z$300,1,FALSE))=TRUE,0,VLOOKUP($D6,'[2]Day 1 data entry'!C$3:X$152,19,FALSE))) -> 56 | F6: 1 | G6: 2.666666667 | H6: =IF($B6="","",IF(ISNA(VLOOKUP($C6,'[2]Day 1 (All)'!$Y$3:$Z$300,1,FALSE))=TRUE,0,VLOOKUP($D6,'[2]Day 1 data entry'!C$3:X$152,22,FALSE))) -> FLOUNDER | I6: =IF(ISERROR(SMALL('[2]Day 1 (All)'!O$3:O$152,A6))=TRUE,"",(SMALL('[2]Day 1 (All)'!O$3:O$152,A6))) -> 3
A7: 4 | B7: =IF(I7="","",IF(ISNA(VLOOKUP($D7,'[2]Teams & Anglers'!$B$7:$F$156,1,FALSE))=TRUE,"",VLOOKUP($D7,'[2]Teams & Anglers'!$B$7:$F$1566,4,FALSE))) -> GARDINER, Gareth | C7: =IF(ISNA(VLOOKUP($D7,'[2]Teams & Anglers'!$B$7:$F$156,1,FALSE))=TRUE,"",VLOOKUP($D7,'[2]Teams & Anglers'!$B$7:$F$1566,3,FALSE)) -> 44 | D7: =IF(I7="","",INDEX('[2]Day 1 (All)'!$AA$3:$AA$152,SMALL(IF('[2]Day 1 (All)'!$O$3:$O$152=$I7,ROW('[2]Day 1 (All)'!$O$3:$O$152)-ROW(I$4)+2),COUNTIF($I$4:$I7,$I7)))) -> 118 | E7: =IF($B7="","",IF(ISNA(VLOOKUP($C7,'[2]Day 1 (All)'!$Y$3:$Z$300,1,FALSE))=TRUE,0,VLOOKUP($D7,'[2]Day 1 data entry'!C$3:X$152,19,FALSE))) -> 56 | F7: 1 | G7: 2.666666667 | H7: =IF($B7="","",IF(ISNA(VLOOKUP($C7,'[2]Day 1 (All)'!$Y$3:$Z$300,1,FALSE))=TRUE,0,VLOOKUP($D7,'[2]Day 1 data entry'!C$3:X$152,22,FALSE))) -> FLOUNDER | I7: =IF(ISERROR(SMALL('[2]Day 1 (All)'!O$3:O$152,A7))=TRUE,"",(SMALL('[2]Day 1 (All)'!O$3:O$152,A7))) -> 3
A8: 5 | B8: =IF(I8="","",IF(ISNA(VLOOKUP($D8,'[2]Teams & Anglers'!$B$7:$F$156,1,FALSE))=TRUE,"",VLOOKUP($D8,'[2]Teams & Anglers'!$B$7:$F$1566,4,FALSE))) -> YALLOP, Oliver | C8: =IF(ISNA(VLOOKUP($D8,'[2]Teams & Anglers'!$B$7:$F$156,1,FALSE))=TRUE,"",VLOOKUP($D8,'[2]Teams & Anglers'!$B$7:$F$1566,3,FALSE)) -> 125 | D8: =IF(I8="","",INDEX('[2]Day 1 (All)'!$AA$3:$AA$152,SMALL(IF('[2]Day 1 (All)'!$O$3:$O$152=$I8,ROW('[2]Day 1 (All)'!$O$3:$O$152)-ROW(I$4)+2),COUNTIF($I$4:$I8,$I8)))) -> 3 | E8: =IF($B8="","",IF(ISNA(VLOOKUP($C8,'[2]Day 1 (All)'!$Y$3:$Z$300,1,FALSE))=TRUE,0,VLOOKUP($D8,'[2]Day 1 data entry'!C$3:X$152,19,FALSE))) -> 52 | F8: 1 | G8: 1.333333333 | H8: =IF($B8="","",IF(ISNA(VLOOKUP($C8,'[2]Day 1 (All)'!$Y$3:$Z$300,1,FALSE))=TRUE,0,VLOOKUP($D8,'[2]Day 1 data entry'!C$3:X$152,22,FALSE))) -> FLOUNDER | I8: =IF(ISERROR(SMALL('[2]Day 1 (All)'!O$3:O$152,A8))=TRUE,"",(SMALL('[2]Day 1 (All)'!O$3:O$152,A8))) -> 5
A9: 6 | B9: =IF(I9="","",IF(ISNA(VLOOKUP($D9,'[2]Teams & Anglers'!$B$7:$F$156,1,FALSE))=TRUE,"",VLOOKUP($D9,'[2]Teams & Anglers'!$B$7:$F$1566,4,FALSE))) -> DRAYTON, Simon | C9: =IF(ISNA(VLOOKUP($D9,'[2]Teams & Anglers'!$B$7:$F$156,1,FALSE))=TRUE,"",VLOOKUP($D9,'[2]Teams & Anglers'!$B$7:$F$1566,3,FALSE)) -> 36 | D9: =IF(I9="","",INDEX('[2]Day 1 (All)'!$AA$3:$AA$152,SMALL(IF('[2]Day 1 (All)'!$O$3:$O$152=$I9,ROW('[2]Day 1 (All)'!$O$3:$O$152)-ROW(I$4)+2),COUNTIF($I$4:$I9,$I9)))) -> 62 | E9: =IF($B9="","",IF(ISNA(VLOOKUP($C9,'[2]Day 1 (All)'!$Y$3:$Z$300,1,FALSE))=TRUE,0,VLOOKUP($D9,'[2]Day 1 data entry'!C$3:X$152,19,FALSE))) -> 52 | F9: 1 | G9: 1.333333333 | H9: =IF($B9="","",IF(ISNA(VLOOKUP($C9,'[2]Day 1 (All)'!$Y$3:$Z$300,1,FALSE))=TRUE,0,VLOOKUP($D9,'[2]Day 1 data entry'!C$3:X$152,22,FALSE))) -> FLOUNDER | I9: =IF(ISERROR(SMALL('[2]Day 1 (All)'!O$3:O$152,A9))=TRUE,"",(SMALL('[2]Day 1 (All)'!O$3:O$152,A9))) -> 5
A10: 7 | B10: =IF(I10="","",IF(ISNA(VLOOKUP($D10,'[2]Teams & Anglers'!$B$7:$F$156,1,FALSE))=TRUE,"",VLOOKUP($D10,'[2]Teams & Anglers'!$B$7:$F$1566,4,FALSE))) -> GREEN, Kevin | C10: =IF(ISNA(VLOOKUP($D10,'[2]Teams & Anglers'!$B$7:$F$156,1,FALSE))=TRUE,"",VLOOKUP($D10,'[2]Teams & Anglers'!$B$7:$F$1566,3,FALSE)) -> 48 | D10: =IF(I10="","",INDEX('[2]Day 1 (All)'!$AA$3:$AA$152,SMALL(IF('[2]Day 1 (All)'!$O$3:$O$152=$I10,ROW('[2]Day 1 (All)'!$O$3:$O$152)-ROW(I$4)+2),COUNTIF($I$4:$I10,$I10)))) -> 122 | E10: =IF($B10="","",IF(ISNA(VLOOKUP($C10,'[2]Day 1 (All)'!$Y$3:$Z$300,1,FALSE))=TRUE,0,VLOOKUP($D10,'[2]Day 1 data entry'!C$3:X$152,19,FALSE))) -> 52 | F10: 1 | G10: 1.333333333 | H10: =IF($B10="","",IF(ISNA(VLOOKUP($C10,'[2]Day 1 (All)'!$Y$3:$Z$300,1,FALSE))=TRUE,0,VLOOKUP($D10,'[2]Day 1 data entry'!C$3:X$152,22,FALSE))) -> FLOUNDER | I10: =IF(ISERROR(SMALL('[2]Day 1 (All)'!O$3:O$152,A10))=TRUE,"",(SMALL('[2]Day 1 (All)'!O$3:O$152,A10))) -> 5
A11: 8 | B11: =IF(I11="","",IF(ISNA(VLOOKUP($D11,'[2]Teams & Anglers'!$B$7:$F$156,1,FALSE))=TRUE,"",VLOOKUP($D11,'[2]Teams & Anglers'!$B$7:$F$1566,4,FALSE))) -> ROBERTS, Steve | C11: =IF(ISNA(VLOOKUP($D11,'[2]Teams & Anglers'!$B$7:$F$156,1,FALSE))=TRUE,"",VLOOKUP($D11,'[2]Teams & Anglers'!$B$7:$F$1566,3,FALSE)) -> 94 | D11: =IF(I11="","",INDEX('[2]Day 1 (All)'!$AA$3:$AA$152,SMALL(IF('[2]Day 1 (All)'!$O$3:$O$152=$I11,ROW('[2]Day 1 (All)'!$O$3:$O$152)-ROW(I$4)+2),COUNTIF($I$4:$I11,$I11)))) -> 68 | E11: =IF($B11="","",IF(ISNA(VLOOKUP($C11,'[2]Day 1 (All)'!$Y$3:$Z$300,1,FALSE))=TRUE,0,VLOOKUP($D11,'[2]Day 1 data entry'!C$3:X$152,19,FALSE))) -> 44 | F11: 0 | G11: 14.66666667 | H11: =IF($B11="","",IF(ISNA(VLOOKUP($C11,'[2]Day 1 (All)'!$Y$3:$Z$300,1,FALSE))=TRUE,0,VLOOKUP($D11,'[2]Day 1 data entry'!C$3:X$152,22,FALSE))) -> FLOUNDER | I11: =IF(ISERROR(SMALL('[2]Day 1 (All)'!O$3:O$152,A11))=TRUE,"",(SMALL('[2]Day 1 (All)'!O$3:O$152,A11))) -> 8
A12: 9 | B12: =IF(I12="","",IF(ISNA(VLOOKUP($D12,'[2]Teams & Anglers'!$B$7:$F$156,1,FALSE))=TRUE,"",VLOOKUP($D12,'[2]Teams & Anglers'!$B$7:$F$1566,4,FALSE))) -> CARTER, John | C12: =IF(ISNA(VLOOKUP($D12,'[2]Teams & Anglers'!$B$7:$F$156,1,FALSE))=TRUE,"",VLOOKUP($D12,'[2]Teams & Anglers'!$B$7:$F$1566,3,FALSE)) -> 22 | D12: =IF(I12="","",INDEX('[2]Day 1 (All)'!$AA$3:$AA$152,SMALL(IF('[2]Day 1 (All)'!$O$3:$O$152=$I12,ROW('[2]Day 1 (All)'!$O$3:$O$152)-ROW(I$4)+2),COUNTIF($I$4:$I12,$I12)))) -> 26 | E12: =IF($B12="","",IF(ISNA(VLOOKUP($C12,'[2]Day 1 (All)'!$Y$3:$Z$300,1,FALSE))=TRUE,0,VLOOKUP($D12,'[2]Day 1 data entry'!C$3:X$152,19,FALSE))) -> 40 | F12: 0 | G12: 13.33333333 | H12: =IF($B12="","",IF(ISNA(VLOOKUP($C12,'[2]Day 1 (All)'!$Y$3:$Z$300,1,FALSE))=TRUE,0,VLOOKUP($D12,'[2]Day 1 data entry'!C$3:X$152,22,FALSE))) -> FLOUNDER | I12: =IF(ISERROR(SMALL('[2]Day 1 (All)'!O$3:O$152,A12))=TRUE,"",(SMALL('[2]Day 1 (All)'!O$3:O$152,A12))) -> 9
A13: 10 | B13: =IF(I13="","",IF(ISNA(VLOOKUP($D13,'[2]Teams & Anglers'!$B$7:$F$156,1,FALSE))=TRUE,"",VLOOKUP($D13,'[2]Teams & Anglers'!$B$7:$F$1566,4,FALSE))) -> CROSBY, Ralf | C13: =IF(ISNA(VLOOKUP($D13,'[2]Teams & Anglers'!$B$7:$F$156,1,FALSE))=TRUE,"",VLOOKUP($D13,'[2]Teams & Anglers'!$B$7:$F$1566,3,FALSE)) -> 29 | D13: =IF(I13="","",INDEX('[2]Day 1 (All)'!$AA$3:$AA$152,SMALL(IF('[2]Day 1 (All)'!$O$3:$O$152=$I13,ROW('[2]Day 1 (All)'!$O$3:$O$152)-ROW(I$4)+2),COUNTIF($I$4:$I13,$I13)))) -> 86 | E13: =IF($B13="","",IF(ISNA(VLOOKUP($C13,'[2]Day 1 (All)'!$Y$3:$Z$300,1,FALSE))=TRUE,0,VLOOKUP($D13,'[2]Day 1 data entry'!C$3:X$152,19,FALSE))) -> 40 | F13: 0 | G13: 13.33333333 | H13: =IF($B13="","",IF(ISNA(VLOOKUP($C13,'[2]Day 1 (All)'!$Y$3:$Z$300,1,FALSE))=TRUE,0,VLOOKUP($D13,'[2]Day 1 data entry'!C$3:X$152,22,FALSE))) -> FLOUNDER | I13: =IF(ISERROR(SMALL('[2]Day 1 (All)'!O$3:O$152,A13))=TRUE,"",(SMALL('[2]Day 1 (All)'!O$3:O$152,A13))) -> 9
A14: 11 | B14: =IF(I14="","",IF(ISNA(VLOOKUP($D14,'[2]Teams & Anglers'!$B$7:$F$156,1,FALSE))=TRUE,"",VLOOKUP($D14,'[2]Teams & Anglers'!$B$7:$F$1566,4,FALSE))) -> PINDER, Mark | C14: =IF(ISNA(VLOOKUP($D14,'[2]Teams & Anglers'!$B$7:$F$156,1,FALSE))=TRUE,"",VLOOKUP($D14,'[2]Teams & Anglers'!$B$7:$F$1566,3,FALSE)) -> 88 | D14: =IF(I14="","",INDEX('[2]Day 1 (All)'!$AA$3:$AA$152,SMALL(IF('[2]Day 1 (All)'!$O$3:$O$152=$I14,ROW('[2]Day 1 (All)'!$O$3:$O$152)-ROW(I$4)+2),COUNTIF($I$4:$I14,$I14)))) -> 96 | E14: =IF($B14="","",IF(ISNA(VLOOKUP($C14,'[2]Day 1 (All)'!$Y$3:$Z$300,1,FALSE))=TRUE,0,VLOOKUP($D14,'[2]Day 1 data entry'!C$3:X$152,19,FALSE))) -> 40 | F14: 0 | G14: 13.33333333 | H14: =IF($B14="","",IF(ISNA(VLOOKUP($C14,'[2]Day 1 (All)'!$Y$3:$Z$300,1,FALSE))=TRUE,0,VLOOKUP($D14,'[2]Day 1 data entry'!C$3:X$152,22,FALSE))) -> FLOUNDER | I14: =IF(ISERROR(SMALL('[2]Day 1 (All)'!O$3:O$152,A14))=TRUE,"",(SMALL('[2]Day 1 (All)'!O$3:O$152,A14))) -> 9
A15: 12 | B15: =IF(I15="","",IF(ISNA(VLOOKUP($D15,'[2]Teams & Anglers'!$B$7:$F$156,1,FALSE))=TRUE,"",VLOOKUP($D15,'[2]Teams & Anglers'!$B$7:$F$1566,4,FALSE))) -> HUTSON, Garry | C15: =IF(ISNA(VLOOKUP($D15,'[2]Teams & Anglers'!$B$7:$F$156,1,FALSE))=TRUE,"",VLOOKUP($D15,'[2]Teams & Anglers'!$B$7:$F$1566,3,FALSE)) -> 60 | D15: =IF(I15="","",INDEX('[2]Day 1 (All)'!$AA$3:$AA$152,SMALL(IF('[2]Day 1 (All)'!$O$3:$O$152=$I15,ROW('[2]Day 1 (All)'!$O$3:$O$152)-ROW(I$4)+2),COUNTIF($I$4:$I15,$I15)))) -> 53 | E15: =IF($B15="","",IF(ISNA(VLOOKUP($C15,'[2]Day 1 (All)'!$Y$3:$Z$300,1,FALSE))=TRUE,0,VLOOKUP($D15,'[2]Day 1 data entry'!C$3:X$152,19,FALSE))) -> 36 | F15: 0 | G15: 12 | H15: =IF($B15="","",IF(ISNA(VLOOKUP($C15,'[2]Day 1 (All)'!$Y$3:$Z$300,1,FALSE))=TRUE,0,VLOOKUP($D15,'[2]Day 1 data entry'!C$3:X$152,22,FALSE))) -> FLOUNDER | I15: =IF(ISERROR(SMALL('[2]Day 1 (All)'!O$3:O$152,A15))=TRUE,"",(SMALL('[2]Day 1 (All)'!O$3:O$152,A15))) -> 12
A16: 13 | B16: =IF(I16="","",IF(ISNA(VLOOKUP($D16,'[2]Teams & Anglers'!$B$7:$F$156,1,FALSE))=TRUE,"",VLOOKUP($D16,'[2]Teams & Anglers'!$B$7:$F$1566,4,FALSE))) -> WOOD, Gary | C16: =IF(ISNA(VLOOKUP($D16,'[2]Teams & Anglers'!$B$7:$F$156,1,FALSE))=TRUE,"",VLOOKUP($D16,'[2]Teams & Anglers'!$B$7:$F$1566,3,FALSE)) -> 124 | D16: =IF(I16="","",INDEX('[2]Day 1 (All)'!$AA$3:$AA$152,SMALL(IF('[2]Day 1 (All)'!$O$3:$O$152=$I16,ROW('[2]Day 1 (All)'!$O$3:$O$152)-ROW(I$4)+2),COUNTIF($I$4:$I16,$I16)))) -> 105 | E16: =IF($B16="","",IF(ISNA(VLOOKUP($C16,'[2]Day 1 (All)'!$Y$3:$Z$300,1,FALSE))=TRUE,0,VLOOKUP($D16,'[2]Day 1 data entry'!C$3:X$152,19,FALSE))) -> 36 | F16: 0 | G16: 12 | H16: =IF($B16="","",IF(ISNA(VLOOKUP($C16,'[2]Day 1 (All)'!$Y$3:$Z$300,1,FALSE))=TRUE,0,VLOOKUP($D16,'[2]Day 1 data entry'!C$3:X$152,22,FALSE))) -> FLOUNDER | I16: =IF(ISERROR(SMALL('[2]Day 1 (All)'!O$3:O$152,A16))=TRUE,"",(SMALL('[2]Day 1 (All)'!O$3:O$152,A16))) -> 12
A17: 14 | B17: =IF(I17="","",IF(ISNA(VLOOKUP($D17,'[2]Teams & Anglers'!$B$7:$F$156,1,FALSE))=TRUE,"",VLOOKUP($D17,'[2]Teams & Anglers'!$B$7:$F$1566,4,FALSE))) -> COOPER, Sam | C17: =IF(ISNA(VLOOKUP($D17,'[2]Teams & Anglers'!$B$7:$F$156,1,FALSE))=TRUE,"",VLOOKUP($D17,'[2]Teams & Anglers'!$B$7:$F$1566,3,FALSE)) -> 25 | D17: =IF(I17="","",INDEX('[2]Day 1 (All)'!$AA$3:$AA$152,SMALL(IF('[2]Day 1 (All)'!$O$3:$O$152=$I17,ROW('[2]Day 1 (All)'!$O$3:$O$152)-ROW(I$4)+2),COUNTIF($I$4:$I17,$I17)))) -> 10 | E17: =IF($B17="","",IF(ISNA(VLOOKUP($C17,'[2]Day 1 (All)'!$Y$3:$Z$300,1,FALSE))=TRUE,0,VLOOKUP($D17,'[2]Day 1 data entry'!C$3:X$152,19,FALSE))) -> 32 | F17: 0 | G17: 10.66666667 | H17: =IF($B17="","",IF(ISNA(VLOOKUP($C17,'[2]Day 1 (All)'!$Y$3:$Z$300,1,FALSE))=TRUE,0,VLOOKUP($D17,'[2]Day 1 data entry'!C$3:X$152,22,FALSE))) -> FLOUNDER | I17: =IF(ISERROR(SMALL('[2]Day 1 (All)'!O$3:O$152,A17))=TRUE,"",(SMALL('[2]Day 1 (All)'!O$3:O$152,A17))) -> 14
A18: 15 | B18: =IF(I18="","",IF(ISNA(VLOOKUP($D18,'[2]Teams & Anglers'!$B$7:$F$156,1,FALSE))=TRUE,"",VLOOKUP($D18,'[2]Teams & Anglers'!$B$7:$F$1566,4,FALSE))) -> TOPPING, Mike | C18: =IF(ISNA(VLOOKUP($D18,'[2]Teams & Anglers'!$B$7:$F$156,1,FALSE))=TRUE,"",VLOOKUP($D18,'[2]Teams & Anglers'!$B$7:$F$1566,3,FALSE)) -> 115 | D18: =IF(I18="","",INDEX('[2]Day 1 (All)'!$AA$3:$AA$152,SMALL(IF('[2]Day 1 (All)'!$O$3:$O$152=$I18,ROW('[2]Day 1 (All)'!$O$3:$O$152)-ROW(I$4)+2),COUNTIF($I$4:$I18,$I18)))) -> 14 | E18: =IF($B18="","",IF(ISNA(VLOOKUP($C18,'[2]Day 1 (All)'!$Y$3:$Z$300,1,FALSE))=TRUE,0,VLOOKUP($D18,'[2]Day 1 data entry'!C$3:X$152,19,FALSE))) -> 32 | F18: 0 | G18: 10.66666667 | H18: =IF($B18="","",IF(ISNA(VLOOKUP($C18,'[2]Day 1 (All)'!$Y$3:$Z$300,1,FALSE))=TRUE,0,VLOOKUP($D18,'[2]Day 1 data entry'!C$3:X$152,22,FALSE))) -> FLOUNDER | I18: =IF(ISERROR(SMALL('[2]Day 1 (All)'!O$3:O$152,A18))=TRUE,"",(SMALL('[2]Day 1 (All)'!O$3:O$152,A18))) -> 14
A19: 16 | B19: =IF(I19="","",IF(ISNA(VLOOKUP($D19,'[2]Teams & Anglers'!$B$7:$F$156,1,FALSE))=TRUE,"",VLOOKUP($D19,'[2]Teams & Anglers'!$B$7:$F$1566,4,FALSE))) -> GOOCH, Mark | C19: =IF(ISNA(VLOOKUP($D19,'[2]Teams & Anglers'!$B$7:$F$156,1,FALSE))=TRUE,"",VLOOKUP($D19,'[2]Teams & Anglers'!$B$7:$F$1566,3,FALSE)) -> 47 | D19: =IF(I19="","",INDEX('[2]Day 1 (All)'!$AA$3:$AA$152,SMALL(IF('[2]Day 1 (All)'!$O$3:$O$152=$I19,ROW('[2]Day 1 (All)'!$O$3:$O$152)-ROW(I$4)+2),COUNTIF($I$4:$I19,$I19)))) -> 18 | E19: =IF($B19="","",IF(ISNA(VLOOKUP($C19,'[2]Day 1 (All)'!$Y$3:$Z$300,1,FALSE))=TRUE,0,VLOOKUP($D19,'[2]Day 1 data entry'!C$3:X$152,19,FALSE))) -> 32 | F19: 0 | G19: 10.66666667 | H19: =IF($B19="","",IF(ISNA(VLOOKUP($C19,'[2]Day 1 (All)'!$Y$3:$Z$300,1,FALSE))=TRUE,0,VLOOKUP($D19,'[2]Day 1 data entry'!C$3:X$152,22,FALSE))) -> FLOUNDER | I19: =IF(ISERROR(SMALL('[2]Day 1 (All)'!O$3:O$152,A19))=TRUE,"",(SMALL('[2]Day 1 (All)'!O$3:O$152,A19))) -> 14
A20: 17 | B20: =IF(I20="","",IF(ISNA(VLOOKUP($D20,'[2]Teams & Anglers'!$B$7:$F$156,1,FALSE))=TRUE,"",VLOOKUP($D20,'[2]Teams & Anglers'!$B$7:$F$1566,4,FALSE))) -> PLUMSTEAD, Joe | C20: =IF(ISNA(VLOOKUP($D20,'[2]Teams & Anglers'!$B$7:$F$156,1,FALSE))=TRUE,"",VLOOKUP($D20,'[2]Teams & Anglers'!$B$7:$F$1566,3,FALSE)) -> 89 | D20: =IF(I20="","",INDEX('[2]Day 1 (All)'!$AA$3:$AA$152,SMALL(IF('[2]Day 1 (All)'!$O$3:$O$152=$I20,ROW('[2]Day 1 (All)'!$O$3:$O$152)-ROW(I$4)+2),COUNTIF($I$4:$I20,$I20)))) -> 20 | E20: =IF($B20="","",IF(ISNA(VLOOKUP($C20,'[2]Day 1 (All)'!$Y$3:$Z$300,1,FALSE))=TRUE,0,VLOOKUP($D20,'[2]Day 1 data entry'!C$3:X$152,19,FALSE))) -> 32 | F20: 0 | G20: 10.66666667 | H20: =IF($B20="","",IF(ISNA(VLOOKUP($C20,'[2]Day 1 (All)'!$Y$3:$Z$300,1,FALSE))=TRUE,0,VLOOKUP($D20,'[2]Day 1 data entry'!C$3:X$152,22,FALSE))) -> FLOUNDER | I20: =IF(ISERROR(SMALL('[2]Day 1 (All)'!O$3:O$152,A20))=TRUE,"",(SMALL('[2]Day 1 (All)'!O$3:O$152,A20))) -> 14
A21: 18 | B21: =IF(I21="","",IF(ISNA(VLOOKUP($D21,'[2]Teams & Anglers'!$B$7:$F$156,1,FALSE))=TRUE,"",VLOOKUP($D21,'[2]Teams & Anglers'!$B$7:$F$1566,4,FALSE))) -> HIPPERSON, Richard | C21: =IF(ISNA(VLOOKUP($D21,'[2]Teams & Anglers'!$B$7:$F$156,1,FALSE))=TRUE,"",VLOOKUP($D21,'[2]Teams & Anglers'!$B$7:$F$1566,3,FALSE)) -> 57 | D21: =IF(I21="","",INDEX('[2]Day 1 (All)'!$AA$3:$AA$152,SMALL(IF('[2]Day 1 (All)'!$O$3:$O$152=$I21,ROW('[2]Day 1 (All)'!$O$3:$O$152)-ROW(I$4)+2),COUNTIF($I$4:$I21,$I21)))) -> 7 | E21: =IF($B21="","",IF(ISNA(VLOOKUP($C21,'[2]Day 1 (All)'!$Y$3:$Z$300,1,FALSE))=TRUE,0,VLOOKUP($D21,'[2]Day 1 data entry'!C$3:X$152,19,FALSE))) -> 28 | F21: 0 | G21: 9.333333333 | H21: =IF($B21="","",IF(ISNA(VLOOKUP($C21,'[2]Day 1 (All)'!$Y$3:$Z$300,1,FALSE))=TRUE,0,VLOOKUP($D21,'[2]Day 1 data entry'!C$3:X$152,22,FALSE))) -> FLOUNDER | I21: =IF(ISERROR(SMALL('[2]Day 1 (All)'!O$3:O$152,A21))=TRUE,"",(SMALL('[2]Day 1 (All)'!O$3:O$152,A21))) -> 18
A22: 19 | B22: =IF(I22="","",IF(ISNA(VLOOKUP($D22,'[2]Teams & Anglers'!$B$7:$F$156,1,FALSE))=TRUE,"",VLOOKUP($D22,'[2]Teams & Anglers'!$B$7:$F$1566,4,FALSE))) -> TOPPING, Jack | C22: =IF(ISNA(VLOOKUP($D22,'[2]Teams & Anglers'!$B$7:$F$156,1,FALSE))=TRUE,"",VLOOKUP($D22,'[2]Teams & Anglers'!$B$7:$F$1566,3,FALSE)) -> 114 | D22: =IF(I22="","",INDEX('[2]Day 1 (All)'!$AA$3:$AA$152,SMALL(IF('[2]Day 1 (All)'!$O$3:$O$152=$I22,ROW('[2]Day 1 (All)'!$O$3:$O$152)-ROW(I$4)+2),COUNTIF($I$4:$I22,$I22)))) -> 13 | E22: =IF($B22="","",IF(ISNA(VLOOKUP($C22,'[2]Day 1 (All)'!$Y$3:$Z$300,1,FALSE))=TRUE,0,VLOOKUP($D22,'[2]Day 1 data entry'!C$3:X$152,19,FALSE))) -> 28 | F22: 0 | G22: 9.333333333 | H22: =IF($B22="","",IF(ISNA(VLOOKUP($C22,'[2]Day 1 (All)'!$Y$3:$Z$300,1,FALSE))=TRUE,0,VLOOKUP($D22,'[2]Day 1 data entry'!C$3:X$152,22,FALSE))) -> FLOUNDER | I22: =IF(ISERROR(SMALL('[2]Day 1 (All)'!O$3:O$152,A22))=TRUE,"",(SMALL('[2]Day 1 (All)'!O$3:O$152,A22))) -> 18
A23: 20 | B23: =IF(I23="","",IF(ISNA(VLOOKUP($D23,'[2]Teams & Anglers'!$B$7:$F$156,1,FALSE))=TRUE,"",VLOOKUP($D23,'[2]Teams & Anglers'!$B$7:$F$1566,4,FALSE))) -> BURT, Richard | C23: =IF(ISNA(VLOOKUP($D23,'[2]Teams & Anglers'!$B$7:$F$156,1,FALSE))=TRUE,"",VLOOKUP($D23,'[2]Teams & Anglers'!$B$7:$F$1566,3,FALSE)) -> 20 | D23: =IF(I23="","",INDEX('[2]Day 1 (All)'!$AA$3:$AA$152,SMALL(IF('[2]Day 1 (All)'!$O$3:$O$152=$I23,ROW('[2]Day 1 (All)'!$O$3:$O$152)-ROW(I$4)+2),COUNTIF($I$4:$I23,$I23)))) -> 16 | E23: =IF($B23="","",IF(ISNA(VLOOKUP($C23,'[2]Day 1 (All)'!$Y$3:$Z$300,1,FALSE))=TRUE,0,VLOOKUP($D23,'[2]Day 1 data entry'!C$3:X$152,19,FALSE))) -> 28 | F23: 0 | G23: 9.333333333 | H23: =IF($B23="","",IF(ISNA(VLOOKUP($C23,'[2]Day 1 (All)'!$Y$3:$Z$300,1,FALSE))=TRUE,0,VLOOKUP($D23,'[2]Day 1 data entry'!C$3:X$152,22,FALSE))) -> FLOUNDER | I23: =IF(ISERROR(SMALL('[2]Day 1 (All)'!O$3:O$152,A23))=TRUE,"",(SMALL('[2]Day 1 (All)'!O$3:O$152,A23))) -> 18
A24: 21 | B24: =IF(I24="","",IF(ISNA(VLOOKUP($D24,'[2]Teams & Anglers'!$B$7:$F$156,1,FALSE))=TRUE,"",VLOOKUP($D24,'[2]Teams & Anglers'!$B$7:$F$1566,4,FALSE))) -> EDWARDS, Lee | C24: =IF(ISNA(VLOOKUP($D24,'[2]Teams & Anglers'!$B$7:$F$156,1,FALSE))=TRUE,"",VLOOKUP($D24,'[2]Teams & Anglers'!$B$7:$F$1566,3,FALSE)) -> 37 | D24: =IF(I24="","",INDEX('[2]Day 1 (All)'!$AA$3:$AA$152,SMALL(IF('[2]Day 1 (All)'!$O$3:$O$152=$I24,ROW('[2]Day 1 (All)'!$O$3:$O$152)-ROW(I$4)+2),COUNTIF($I$4:$I24,$I24)))) -> 17 | E24: =IF($B24="","",IF(ISNA(VLOOKUP($C24,'[2]Day 1 (All)'!$Y$3:$Z$300,1,FALSE))=TRUE,0,VLOOKUP($D24,'[2]Day 1 data entry'!C$3:X$152,19,FALSE))) -> 28 | F24: 0 | G24: 9.333333333 | H24: =IF($B24="","",IF(ISNA(VLOOKUP($C24,'[2]Day 1 (All)'!$Y$3:$Z$300,1,FALSE))=TRUE,0,VLOOKUP($D24,'[2]Day 1 data entry'!C$3:X$152,22,FALSE))) -> FLOUNDER | I24: =IF(ISERROR(SMALL('[2]Day 1 (All)'!O$3:O$152,A24))=TRUE,"",(SMALL('[2]Day 1 (All)'!O$3:O$152,A24))) -> 18
A25: 22 | B25: =IF(I25="","",IF(ISNA(VLOOKUP($D25,'[2]Teams & Anglers'!$B$7:$F$156,1,FALSE))=TRUE,"",VLOOKUP($D25,'[2]Teams & Anglers'!$B$7:$F$1566,4,FALSE))) -> THORPE, Doug | C25: =IF(ISNA(VLOOKUP($D25,'[2]Teams & Anglers'!$B$7:$F$156,1,FALSE))=TRUE,"",VLOOKUP($D25,'[2]Teams & Anglers'!$B$7:$F$1566,3,FALSE)) -> 113 | D25: =IF(I25="","",INDEX('[2]Day 1 (All)'!$AA$3:$AA$152,SMALL(IF('[2]Day 1 (All)'!$O$3:$O$152=$I25,ROW('[2]Day 1 (All)'!$O$3:$O$152)-ROW(I$4)+2),COUNTIF($I$4:$I25,$I25)))) -> 19 | E25: =IF($B25="","",IF(ISNA(VLOOKUP($C25,'[2]Day 1 (All)'!$Y$3:$Z$300,1,FALSE))=TRUE,0,VLOOKUP($D25,'[2]Day 1 data entry'!C$3:X$152,19,FALSE))) -> 24 | F25: 0 | G25: 8 | H25: =IF($B25="","",IF(ISNA(VLOOKUP($C25,'[2]Day 1 (All)'!$Y$3:$Z$300,1,FALSE))=TRUE,0,VLOOKUP($D25,'[2]Day 1 data entry'!C$3:X$152,22,FALSE))) -> DAB | I25: =IF(ISERROR(SMALL('[2]Day 1 (All)'!O$3:O$152,A25))=TRUE,"",(SMALL('[2]Day 1 (All)'!O$3:O$152,A25))) -> 22
A26: 23 | B26: =IF(I26="","",IF(ISNA(VLOOKUP($D26,'[2]Teams & Anglers'!$B$7:$F$156,1,FALSE))=TRUE,"",VLOOKUP($D26,'[2]Teams & Anglers'!$B$7:$F$1566,4,FALSE))) -> ROGERS, Mark | C26: =IF(ISNA(VLOOKUP($D26,'[2]Teams & Anglers'!$B$7:$F$156,1,FALSE))=TRUE,"",VLOOKUP($D26,'[2]Teams & Anglers'!$B$7:$F$1566,3,FALSE)) -> 95 | D26: =IF(I26="","",INDEX('[2]Day 1 (All)'!$AA$3:$AA$152,SMALL(IF('[2]Day 1 (All)'!$O$3:$O$152=$I26,ROW('[2]Day 1 (All)'!$O$3:$O$152)-ROW(I$4)+2),COUNTIF($I$4:$I26,$I26)))) -> 21 | E26: =IF($B26="","",IF(ISNA(VLOOKUP($C26,'[2]Day 1 (All)'!$Y$3:$Z$300,1,FALSE))=TRUE,0,VLOOKUP($D26,'[2]Day 1 data entry'!C$3:X$152,19,FALSE))) -> 21 | F26: 0 | G26: 7 | H26: =IF($B26="","",IF(ISNA(VLOOKUP($C26,'[2]Day 1 (All)'!$Y$3:$Z$300,1,FALSE))=TRUE,0,VLOOKUP($D26,'[2]Day 1 data entry'!C$3:X$152,22,FALSE))) -> FLOUNDER | I26: =IF(ISERROR(SMALL('[2]Day 1 (All)'!O$3:O$152,A26))=TRUE,"",(SMALL('[2]Day 1 (All)'!O$3:O$152,A26))) -> 23
A27: 24 | B27: =IF(I27="","",IF(ISNA(VLOOKUP($D27,'[2]Teams & Anglers'!$B$7:$F$156,1,FALSE))=TRUE,"",VLOOKUP($D27,'[2]Teams & Anglers'!$B$7:$F$1566,4,FALSE))) -> PRICE, Jimmy | C27: =IF(ISNA(VLOOKUP($D27,'[2]Teams & Anglers'!$B$7:$F$156,1,FALSE))=TRUE,"",VLOOKUP($D27,'[2]Teams & Anglers'!$B$7:$F$1566,3,FALSE)) -> 92 | D27: =IF(I27="","",INDEX('[2]Day 1 (All)'!$AA$3:$AA$152,SMALL(IF('[2]Day 1 (All)'!$O$3:$O$152=$I27,ROW('[2]Day 1 (All)'!$O$3:$O$152)-ROW(I$4)+2),COUNTIF($I$4:$I27,$I27)))) -> 66 | E27: =IF($B27="","",IF(ISNA(VLOOKUP($C27,'[2]Day 1 (All)'!$Y$3:$Z$300,1,FALSE))=TRUE,0,VLOOKUP($D27,'[2]Day 1 data entry'!C$3:X$152,19,FALSE))) -> 21 | F27: 0 | G27: 7 | H27: =IF($B27="","",IF(ISNA(VLOOKUP($C27,'[2]Day 1 (All)'!$Y$3:$Z$300,1,FALSE))=TRUE,0,VLOOKUP($D27,'[2]Day 1 data entry'!C$3:X$152,22,FALSE))) -> FLOUNDER | I27: =IF(ISERROR(SMALL('[2]Day 1 (All)'!O$3:O$152,A27))=TRUE,"",(SMALL('[2]Day 1 (All)'!O$3:O$152,A27))) -> 23
A28: 25 | B28: =IF(I28="","",IF(ISNA(VLOOKUP($D28,'[2]Teams & Anglers'!$B$7:$F$156,1,FALSE))=TRUE,"",VLOOKUP($D28,'[2]Teams & Anglers'!$B$7:$F$1566,4,FALSE))) -> NANGLE, Karl | C28: =IF(ISNA(VLOOKUP($D28,'[2]Teams & Anglers'!$B$7:$F$156,1,FALSE))=TRUE,"",VLOOKUP($D28,'[2]Teams & Anglers'!$B$7:$F$1566,3,FALSE)) -> 78 | D28: =IF(I28="","",INDEX('[2]Day 1 (All)'!$AA$3:$AA$152,SMALL(IF('[2]Day 1 (All)'!$O$3:$O$152=$I28,ROW('[2]Day 1 (All)'!$O$3:$O$152)-ROW(I$4)+2),COUNTIF($I$4:$I28,$I28)))) -> 69 | E28: =IF($B28="","",IF(ISNA(VLOOKUP($C28,'[2]Day 1 (All)'!$Y$3:$Z$300,1,FALSE))=TRUE,0,VLOOKUP($D28,'[2]Day 1 data entry'!C$3:X$152,19,FALSE))) -> 21 | F28: 0 | G28: 7 | H28: =IF($B28="","",IF(ISNA(VLOOKUP($C28,'[2]Day 1 (All)'!$Y$3:$Z$300,1,FALSE))=TRUE,0,VLOOKUP($D28,'[2]Day 1 data entry'!C$3:X$152,22,FALSE))) -> DAB | I28: =IF(ISERROR(SMALL('[2]Day 1 (All)'!O$3:O$152,A28))=TRUE,"",(SMALL('[2]Day 1 (All)'!O$3:O$152,A28))) -> 23
A29: 26 | B29: =IF(I29="","",IF(ISNA(VLOOKUP($D29,'[2]Teams & Anglers'!$B$7:$F$156,1,FALSE))=TRUE,"",VLOOKUP($D29,'[2]Teams & Anglers'!$B$7:$F$1566,4,FALSE))) -> TURNER, Cameron | C29: =IF(ISNA(VLOOKUP($D29,'[2]Teams & Anglers'!$B$7:$F$156,1,FALSE))=TRUE,"",VLOOKUP($D29,'[2]Teams & Anglers'!$B$7:$F$1566,3,FALSE)) -> 117 | D29: =IF(I29="","",INDEX('[2]Day 1 (All)'!$AA$3:$AA$152,SMALL(IF('[2]Day 1 (All)'!$O$3:$O$152=$I29,ROW('[2]Day 1 (All)'!$O$3:$O$152)-ROW(I$4)+2),COUNTIF($I$4:$I29,$I29)))) -> 71 | E29: =IF($B29="","",IF(ISNA(VLOOKUP($C29,'[2]Day 1 (All)'!$Y$3:$Z$300,1,FALSE))=TRUE,0,VLOOKUP($D29,'[2]Day 1 data entry'!C$3:X$152,19,FALSE))) -> 21 | F29: 0 | G29: 7 | H29: =IF($B29="","",IF(ISNA(VLOOKUP($C29,'[2]Day 1 (All)'!$Y$3:$Z$300,1,FALSE))=TRUE,0,VLOOKUP($D29,'[2]Day 1 data entry'!C$3:X$152,22,FALSE))) -> FLOUNDER | I29: =IF(ISERROR(SMALL('[2]Day 1 (All)'!O$3:O$152,A29))=TRUE,"",(SMALL('[2]Day 1 (All)'!O$3:O$152,A29))) -> 23
A30: 27 | B30: =IF(I30="","",IF(ISNA(VLOOKUP($D30,'[2]Teams & Anglers'!$B$7:$F$156,1,FALSE))=TRUE,"",VLOOKUP($D30,'[2]Teams & Anglers'!$B$7:$F$1566,4,FALSE))) -> FALK, Dave | C30: =IF(ISNA(VLOOKUP($D30,'[2]Teams & Anglers'!$B$7:$F$156,1,FALSE))=TRUE,"",VLOOKUP($D30,'[2]Teams & Anglers'!$B$7:$F$1566,3,FALSE)) -> 39 | D30: =IF(I30="","",INDEX('[2]Day 1 (All)'!$AA$3:$AA$152,SMALL(IF('[2]Day 1 (All)'!$O$3:$O$152=$I30,ROW('[2]Day 1 (All)'!$O$3:$O$152)-ROW(I$4)+2),COUNTIF($I$4:$I30,$I30)))) -> 99 | E30: =IF($B30="","",IF(ISNA(VLOOKUP($C30,'[2]Day 1 (All)'!$Y$3:$Z$300,1,FALSE))=TRUE,0,VLOOKUP($D30,'[2]Day 1 data entry'!C$3:X$152,19,FALSE))) -> 21 | F30: 0 | G30: 7 | H30: =IF($B30="","",IF(ISNA(VLOOKUP($C30,'[2]Day 1 (All)'!$Y$3:$Z$300,1,FALSE))=TRUE,0,VLOOKUP($D30,'[2]Day 1 data entry'!C$3:X$152,22,FALSE))) -> DAB | I30: =IF(ISERROR(SMALL('[2]Day 1 (All)'!O$3:O$152,A30))=TRUE,"",(SMALL('[2]Day 1 (All)'!O$3:O$152,A30))) -> 23
A31: 28 | B31: =IF(I31="","",IF(ISNA(VLOOKUP($D31,'[2]Teams & Anglers'!$B$7:$F$156,1,FALSE))=TRUE,"",VLOOKUP($D31,'[2]Teams & Anglers'!$B$7:$F$1566,4,FALSE))) -> LEE, Martin | C31: =IF(ISNA(VLOOKUP($D31,'[2]Teams & Anglers'!$B$7:$F$156,1,FALSE))=TRUE,"",VLOOKUP($D31,'[2]Teams & Anglers'!$B$7:$F$1566,3,FALSE)) -> 68 | D31: =IF(I31="","",INDEX('[2]Day 1 (All)'!$AA$3:$AA$152,SMALL(IF('[2]Day 1 (All)'!$O$3:$O$152=$I31,ROW('[2]Day 1 (All)'!$O$3:$O$152)-ROW(I$4)+2),COUNTIF($I$4:$I31,$I31)))) -> 120 | E31: =IF($B31="","",IF(ISNA(VLOOKUP($C31,'[2]Day 1 (All)'!$Y$3:$Z$300,1,FALSE))=TRUE,0,VLOOKUP($D31,'[2]Day 1 data entry'!C$3:X$152,19,FALSE))) -> 21 | F31: 0 | G31: 7 | H31: =IF($B31="","",IF(ISNA(VLOOKUP($C31,'[2]Day 1 (All)'!$Y$3:$Z$300,1,FALSE))=TRUE,0,VLOOKUP($D31,'[2]Day 1 data entry'!C$3:X$152,22,FALSE))) -> FLOUNDER | I31: =IF(ISERROR(SMALL('[2]Day 1 (All)'!O$3:O$152,A31))=TRUE,"",(SMALL('[2]Day 1 (All)'!O$3:O$152,A31))) -> 23
A32: 29 | B32: =IF(I32="","",IF(ISNA(VLOOKUP($D32,'[2]Teams & Anglers'!$B$7:$F$156,1,FALSE))=TRUE,"",VLOOKUP($D32,'[2]Teams & Anglers'!$B$7:$F$1566,4,FALSE))) -> ROYALL, Tony | C32: =IF(ISNA(VLOOKUP($D32,'[2]Teams & Anglers'!$B$7:$F$156,1,FALSE))=TRUE,"",VLOOKUP($D32,'[2]Teams & Anglers'!$B$7:$F$1566,3,FALSE)) -> 97 | D32: =IF(I32="","",INDEX('[2]Day 1 (All)'!$AA$3:$AA$152,SMALL(IF('[2]Day 1 (All)'!$O$3:$O$152=$I32,ROW('[2]Day 1 (All)'!$O$3:$O$152)-ROW(I$4)+2),COUNTIF($I$4:$I32,$I32)))) -> 123 | E32: =IF($B32="","",IF(ISNA(VLOOKUP($C32,'[2]Day 1 (All)'!$Y$3:$Z$300,1,FALSE))=TRUE,0,VLOOKUP($D32,'[2]Day 1 data entry'!C$3:X$152,19,FALSE))) -> 21 | F32: 0 | G32: 7 | H32: =IF($B32="","",IF(ISNA(VLOOKUP($C32,'[2]Day 1 (All)'!$Y$3:$Z$300,1,FALSE))=TRUE,0,VLOOKUP($D32,'[2]Day 1 data entry'!C$3:X$152,22,FALSE))) -> DAB | I32: =IF(ISERROR(SMALL('[2]Day 1 (All)'!O$3:O$152,A32))=TRUE,"",(SMALL('[2]Day 1 (All)'!O$3:O$152,A32))) -> 23
A33: 30 | B33: =IF(I33="","",IF(ISNA(VLOOKUP($D33,'[2]Teams & Anglers'!$B$7:$F$156,1,FALSE))=TRUE,"",VLOOKUP($D33,'[2]Teams & Anglers'!$B$7:$F$1566,4,FALSE))) -> CUTLER, Neil | C33: =IF(ISNA(VLOOKUP($D33,'[2]Teams & Anglers'!$B$7:$F$156,1,FALSE))=TRUE,"",VLOOKUP($D33,'[2]Teams & Anglers'!$B$7:$F$1566,3,FALSE)) -> 30 | D33: =IF(I33="","",INDEX('[2]Day 1 (All)'!$AA$3:$AA$152,SMALL(IF('[2]Day 1 (All)'!$O$3:$O$152=$I33,ROW('[2]Day 1 (All)'!$O$3:$O$152)-ROW(I$4)+2),COUNTIF($I$4:$I33,$I33)))) -> 127 | E33: =IF($B33="","",IF(ISNA(VLOOKUP($C33,'[2]Day 1 (All)'!$Y$3:$Z$300,1,FALSE))=TRUE,0,VLOOKUP($D33,'[2]Day 1 data entry'!C$3:X$152,19,FALSE))) -> 21 | F33: 0 | G33: 7 | H33: =IF($B33="","",IF(ISNA(VLOOKUP($C33,'[2]Day 1 (All)'!$Y$3:$Z$300,1,FALSE))=TRUE,0,VLOOKUP($D33,'[2]Day 1 data entry'!C$3:X$152,22,FALSE))) -> DAB | I33: =IF(ISERROR(SMALL('[2]Day 1 (All)'!O$3:O$152,A33))=TRUE,"",(SMALL('[2]Day 1 (All)'!O$3:O$152,A33))) -> 23
A34: 31 | B34: =IF(I34="","",IF(ISNA(VLOOKUP($D34,'[2]Teams & Anglers'!$B$7:$F$156,1,FALSE))=TRUE,"",VLOOKUP($D34,'[2]Teams & Anglers'!$B$7:$F$1566,4,FALSE))) -> GALLACHER, Andy | C34: =IF(ISNA(VLOOKUP($D34,'[2]Teams & Anglers'!$B$7:$F$156,1,FALSE))=TRUE,"",VLOOKUP($D34,'[2]Teams & Anglers'!$B$7:$F$1566,3,FALSE)) -> 43 | D34: =IF(I34="","",INDEX('[2]Day 1 (All)'!$AA$3:$AA$152,SMALL(IF('[2]Day 1 (All)'!$O$3:$O$152=$I34,ROW('[2]Day 1 (All)'!$O$3:$O$152)-ROW(I$4)+2),COUNTIF($I$4:$I34,$I34)))) -> 11 | E34: =IF($B34="","",IF(ISNA(VLOOKUP($C34,'[2]Day 1 (All)'!$Y$3:$Z$300,1,FALSE))=TRUE,0,VLOOKUP($D34,'[2]Day 1 data entry'!C$3:X$152,19,FALSE))) -> 18 | F34: 0 | G34: 6 | H34: =IF($B34="","",IF(ISNA(VLOOKUP($C34,'[2]Day 1 (All)'!$Y$3:$Z$300,1,FALSE))=TRUE,0,VLOOKUP($D34,'[2]Day 1 data entry'!C$3:X$152,22,FALSE))) -> DAB | I34: =IF(ISERROR(SMALL('[2]Day 1 (All)'!O$3:O$152,A34))=TRUE,"",(SMALL('[2]Day 1 (All)'!O$3:O$152,A34))) -> 31
A35: 32 | B35: =IF(I35="","",IF(ISNA(VLOOKUP($D35,'[2]Teams & Anglers'!$B$7:$F$156,1,FALSE))=TRUE,"",VLOOKUP($D35,'[2]Teams & Anglers'!$B$7:$F$1566,4,FALSE))) -> FRARY, Charlie | C35: =IF(ISNA(VLOOKUP($D35,'[2]Teams & Anglers'!$B$7:$F$156,1,FALSE))=TRUE,"",VLOOKUP($D35,'[2]Teams & Anglers'!$B$7:$F$1566,3,FALSE)) -> 40 | D35: =IF(I35="","",INDEX('[2]Day 1 (All)'!$AA$3:$AA$152,SMALL(IF('[2]Day 1 (All)'!$O$3:$O$152=$I35,ROW('[2]Day 1 (All)'!$O$3:$O$152)-ROW(I$4)+2),COUNTIF($I$4:$I35,$I35)))) -> 27 | E35: =IF($B35="","",IF(ISNA(VLOOKUP($C35,'[2]Day 1 (All)'!$Y$3:$Z$300,1,FALSE))=TRUE,0,VLOOKUP($D35,'[2]Day 1 data entry'!C$3:X$152,19,FALSE))) -> 18 | F35: 0 | G35: 6 | H35: =IF($B35="","",IF(ISNA(VLOOKUP($C35,'[2]Day 1 (All)'!$Y$3:$Z$300,1,FALSE))=TRUE,0,VLOOKUP($D35,'[2]Day 1 data entry'!C$3:X$152,22,FALSE))) -> DAB | I35: =IF(ISERROR(SMALL('[2]Day 1 (All)'!O$3:O$152,A35))=TRUE,"",(SMALL('[2]Day 1 (All)'!O$3:O$152,A35))) -> 31
A36: 33 | B36: =IF(I36="","",IF(ISNA(VLOOKUP($D36,'[2]Teams & Anglers'!$B$7:$F$156,1,FALSE))=TRUE,"",VLOOKUP($D36,'[2]Teams & Anglers'!$B$7:$F$1566,4,FALSE))) -> DAWBER, Simon | C36: =IF(ISNA(VLOOKUP($D36,'[2]Teams & Anglers'!$B$7:$F$156,1,FALSE))=TRUE,"",VLOOKUP($D36,'[2]Teams & Anglers'!$B$7:$F$1566,3,FALSE)) -> 31 | D36: =IF(I36="","",INDEX('[2]Day 1 (All)'!$AA$3:$AA$152,SMALL(IF('[2]Day 1 (All)'!$O$3:$O$152=$I36,ROW('[2]Day 1 (All)'!$O$3:$O$152)-ROW(I$4)+2),COUNTIF($I$4:$I36,$I36)))) -> 35 | E36: =IF($B36="","",IF(ISNA(VLOOKUP($C36,'[2]Day 1 (All)'!$Y$3:$Z$300,1,FALSE))=TRUE,0,VLOOKUP($D36,'[2]Day 1 data entry'!C$3:X$152,19,FALSE))) -> 18 | F36: 0 | G36: 6 | H36: =IF($B36="","",IF(ISNA(VLOOKUP($C36,'[2]Day 1 (All)'!$Y$3:$Z$300,1,FALSE))=TRUE,0,VLOOKUP($D36,'[2]Day 1 data entry'!C$3:X$152,22,FALSE))) -> DAB | I36: =IF(ISERROR(SMALL('[2]Day 1 (All)'!O$3:O$152,A36))=TRUE,"",(SMALL('[2]Day 1 (All)'!O$3:O$152,A36))) -> 31
A37: 34 | B37: =IF(I37="","",IF(ISNA(VLOOKUP($D37,'[2]Teams & Anglers'!$B$7:$F$156,1,FALSE))=TRUE,"",VLOOKUP($D37,'[2]Teams & Anglers'!$B$7:$F$1566,4,FALSE))) -> COOPER, Phillip | C37: =IF(ISNA(VLOOKUP($D37,'[2]Teams & Anglers'!$B$7:$F$156,1,FALSE))=TRUE,"",VLOOKUP($D37,'[2]Teams & Anglers'!$B$7:$F$1566,3,FALSE)) -> 24 | D37: =IF(I37="","",INDEX('[2]Day 1 (All)'!$AA$3:$AA$152,SMALL(IF('[2]Day 1 (All)'!$O$3:$O$152=$I37,ROW('[2]Day 1 (All)'!$O$3:$O$152)-ROW(I$4)+2),COUNTIF($I$4:$I37,$I37)))) -> 54 | E37: =IF($B37="","",IF(ISNA(VLOOKUP($C37,'[2]Day 1 (All)'!$Y$3:$Z$300,1,FALSE))=TRUE,0,VLOOKUP($D37,'[2]Day 1 data entry'!C$3:X$152,19,FALSE))) -> 18 | F37: 0 | G37: 6 | H37: =IF($B37="","",IF(ISNA(VLOOKUP($C37,'[2]Day 1 (All)'!$Y$3:$Z$300,1,FALSE))=TRUE,0,VLOOKUP($D37,'[2]Day 1 data entry'!C$3:X$152,22,FALSE))) -> DAB | I37: =IF(ISERROR(SMALL('[2]Day 1 (All)'!O$3:O$152,A37))=TRUE,"",(SMALL('[2]Day 1 (All)'!O$3:O$152,A37))) -> 31
A38: 35 | B38: =IF(I38="","",IF(ISNA(VLOOKUP($D38,'[2]Teams & Anglers'!$B$7:$F$156,1,FALSE))=TRUE,"",VLOOKUP($D38,'[2]Teams & Anglers'!$B$7:$F$1566,4,FALSE))) -> WATTS, Mike | C38: =IF(ISNA(VLOOKUP($D38,'[2]Teams & Anglers'!$B$7:$F$156,1,FALSE))=TRUE,"",VLOOKUP($D38,'[2]Teams & Anglers'!$B$7:$F$1566,3,FALSE)) -> 119 | D38: =IF(I38="","",INDEX('[2]Day 1 (All)'!$AA$3:$AA$152,SMALL(IF('[2]Day 1 (All)'!$O$3:$O$152=$I38,ROW('[2]Day 1 (All)'!$O$3:$O$152)-ROW(I$4)+2),COUNTIF($I$4:$I38,$I38)))) -> 61 | E38: =IF($B38="","",IF(ISNA(VLOOKUP($C38,'[2]Day 1 (All)'!$Y$3:$Z$300,1,FALSE))=TRUE,0,VLOOKUP($D38,'[2]Day 1 data entry'!C$3:X$152,19,FALSE))) -> 18 | F38: 0 | G38: 6 | H38: =IF($B38="","",IF(ISNA(VLOOKUP($C38,'[2]Day 1 (All)'!$Y$3:$Z$300,1,FALSE))=TRUE,0,VLOOKUP($D38,'[2]Day 1 data entry'!C$3:X$152,22,FALSE))) -> FLOUNDER | I38: =IF(ISERROR(SMALL('[2]Day 1 (All)'!O$3:O$152,A38))=TRUE,"",(SMALL('[2]Day 1 (All)'!O$3:O$152,A38))) -> 31
A39: 36 | B39: =IF(I39="","",IF(ISNA(VLOOKUP($D39,'[2]Teams & Anglers'!$B$7:$F$156,1,FALSE))=TRUE,"",VLOOKUP($D39,'[2]Teams & Anglers'!$B$7:$F$1566,4,FALSE))) -> BOND, Darren | C39: =IF(ISNA(VLOOKUP($D39,'[2]Teams & Anglers'!$B$7:$F$156,1,FALSE))=TRUE,"",VLOOKUP($D39,'[2]Teams & Anglers'!$B$7:$F$1566,3,FALSE)) -> 13 | D39: =IF(I39="","",INDEX('[2]Day 1 (All)'!$AA$3:$AA$152,SMALL(IF('[2]Day 1 (All)'!$O$3:$O$152=$I39,ROW('[2]Day 1 (All)'!$O$3:$O$152)-ROW(I$4)+2),COUNTIF($I$4:$I39,$I39)))) -> 63 | E39: =IF($B39="","",IF(ISNA(VLOOKUP($C39,'[2]Day 1 (All)'!$Y$3:$Z$300,1,FALSE))=TRUE,0,VLOOKUP($D39,'[2]Day 1 data entry'!C$3:X$152,19,FALSE))) -> 18 | F39: 0 | G39: 6 | H39: =IF($B39="","",IF(ISNA(VLOOKUP($C39,'[2]Day 1 (All)'!$Y$3:$Z$300,1,FALSE))=TRUE,0,VLOOKUP($D39,'[2]Day 1 data entry'!C$3:X$152,22,FALSE))) -> DAB | I39: =IF(ISERROR(SMALL('[2]Day 1 (All)'!O$3:O$152,A39))=TRUE,"",(SMALL('[2]Day 1 (All)'!O$3:O$152,A39))) -> 31
A40: 37 | B40: =IF(I40="","",IF(ISNA(VLOOKUP($D40,'[2]Teams & Anglers'!$B$7:$F$156,1,FALSE))=TRUE,"",VLOOKUP($D40,'[2]Teams & Anglers'!$B$7:$F$1566,4,FALSE))) -> WHITE, Alan | C40: =IF(ISNA(VLOOKUP($D40,'[2]Teams & Anglers'!$B$7:$F$156,1,FALSE))=TRUE,"",VLOOKUP($D40,'[2]Teams & Anglers'!$B$7:$F$1566,3,FALSE)) -> 121 | D40: =IF(I40="","",INDEX('[2]Day 1 (All)'!$AA$3:$AA$152,SMALL(IF('[2]Day 1 (All)'!$O$3:$O$152=$I40,ROW('[2]Day 1 (All)'!$O$3:$O$152)-ROW(I$4)+2),COUNTIF($I$4:$I40,$I40)))) -> 81 | E40: =IF($B40="","",IF(ISNA(VLOOKUP($C40,'[2]Day 1 (All)'!$Y$3:$Z$300,1,FALSE))=TRUE,0,VLOOKUP($D40,'[2]Day 1 data entry'!C$3:X$152,19,FALSE))) -> 18 | F40: 0 | G40: 6 | H40: =IF($B40="","",IF(ISNA(VLOOKUP($C40,'[2]Day 1 (All)'!$Y$3:$Z$300,1,FALSE))=TRUE,0,VLOOKUP($D40,'[2]Day 1 data entry'!C$3:X$152,22,FALSE))) -> DAB | I40: =IF(ISERROR(SMALL('[2]Day 1 (All)'!O$3:O$152,A40))=TRUE,"",(SMALL('[2]Day 1 (All)'!O$3:O$152,A40))) -> 31
A41: 38 | B41: =IF(I41="","",IF(ISNA(VLOOKUP($D41,'[2]Teams & Anglers'!$B$7:$F$156,1,FALSE))=TRUE,"",VLOOKUP($D41,'[2]Teams & Anglers'!$B$7:$F$1566,4,FALSE))) -> ALDOUS, David | C41: =IF(ISNA(VLOOKUP($D41,'[2]Teams & Anglers'!$B$7:$F$156,1,FALSE))=TRUE,"",VLOOKUP($D41,'[2]Teams & Anglers'!$B$7:$F$1566,3,FALSE)) -> 5 | D41: =IF(I41="","",INDEX('[2]Day 1 (All)'!$AA$3:$AA$152,SMALL(IF('[2]Day 1 (All)'!$O$3:$O$152=$I41,ROW('[2]Day 1 (All)'!$O$3:$O$152)-ROW(I$4)+2),COUNTIF($I$4:$I41,$I41)))) -> 93 | E41: =IF($B41="","",IF(ISNA(VLOOKUP($C41,'[2]Day 1 (All)'!$Y$3:$Z$300,1,FALSE))=TRUE,0,VLOOKUP($D41,'[2]Day 1 data entry'!C$3:X$152,19,FALSE))) -> 18 | F41: 0 | G41: 6 | H41: =IF($B41="","",IF(ISNA(VLOOKUP($C41,'[2]Day 1 (All)'!$Y$3:$Z$300,1,FALSE))=TRUE,0,VLOOKUP($D41,'[2]Day 1 data entry'!C$3:X$152,22,FALSE))) -> DAB | I41: =IF(ISERROR(SMALL('[2]Day 1 (All)'!O$3:O$152,A41))=TRUE,"",(SMALL('[2]Day 1 (All)'!O$3:O$152,A41))) -> 31
A42: 39 | B42: =IF(I42="","",IF(ISNA(VLOOKUP($D42,'[2]Teams & Anglers'!$B$7:$F$156,1,FALSE))=TRUE,"",VLOOKUP($D42,'[2]Teams & Anglers'!$B$7:$F$1566,4,FALSE))) -> PERRY, Joe | C42: =IF(ISNA(VLOOKUP($D42,'[2]Teams & Anglers'!$B$7:$F$156,1,FALSE))=TRUE,"",VLOOKUP($D42,'[2]Teams & Anglers'!$B$7:$F$1566,3,FALSE)) -> 87 | D42: =IF(I42="","",INDEX('[2]Day 1 (All)'!$AA$3:$AA$152,SMALL(IF('[2]Day 1 (All)'!$O$3:$O$152=$I42,ROW('[2]Day 1 (All)'!$O$3:$O$152)-ROW(I$4)+2),COUNTIF($I$4:$I42,$I42)))) -> 108 | E42: =IF($B42="","",IF(ISNA(VLOOKUP($C42,'[2]Day 1 (All)'!$Y$3:$Z$300,1,FALSE))=TRUE,0,VLOOKUP($D42,'[2]Day 1 data entry'!C$3:X$152,19,FALSE))) -> 18 | F42: 0 | G42: 6 | H42: =IF($B42="","",IF(ISNA(VLOOKUP($C42,'[2]Day 1 (All)'!$Y$3:$Z$300,1,FALSE))=TRUE,0,VLOOKUP($D42,'[2]Day 1 data entry'!C$3:X$152,22,FALSE))) -> DAB | I42: =IF(ISERROR(SMALL('[2]Day 1 (All)'!O$3:O$152,A42))=TRUE,"",(SMALL('[2]Day 1 (All)'!O$3:O$152,A42))) -> 31
A43: 40 | B43: =IF(I43="","",IF(ISNA(VLOOKUP($D43,'[2]Teams & Anglers'!$B$7:$F$156,1,FALSE))=TRUE,"",VLOOKUP($D43,'[2]Teams & Anglers'!$B$7:$F$1566,4,FALSE))) -> MOORING, Luke | C43: =IF(ISNA(VLOOKUP($D43,'[2]Teams & Anglers'!$B$7:$F$156,1,FALSE))=TRUE,"",VLOOKUP($D43,'[2]Teams & Anglers'!$B$7:$F$1566,3,FALSE)) -> 76 | D43: =IF(I43="","",INDEX('[2]Day 1 (All)'!$AA$3:$AA$152,SMALL(IF('[2]Day 1 (All)'!$O$3:$O$152=$I43,ROW('[2]Day 1 (All)'!$O$3:$O$152)-ROW(I$4)+2),COUNTIF($I$4:$I43,$I43)))) -> 111 | E43: =IF($B43="","",IF(ISNA(VLOOKUP($C43,'[2]Day 1 (All)'!$Y$3:$Z$300,1,FALSE))=TRUE,0,VLOOKUP($D43,'[2]Day 1 data entry'!C$3:X$152,19,FALSE))) -> 18 | F43: 0 | G43: 6 | H43: =IF($B43="","",IF(ISNA(VLOOKUP($C43,'[2]Day 1 (All)'!$Y$3:$Z$300,1,FALSE))=TRUE,0,VLOOKUP($D43,'[2]Day 1 data entry'!C$3:X$152,22,FALSE))) -> DAB | I43: =IF(ISERROR(SMALL('[2]Day 1 (All)'!O$3:O$152,A43))=TRUE,"",(SMALL('[2]Day 1 (All)'!O$3:O$152,A43))) -> 31
A44: 41 | B44: =IF(I44="","",IF(ISNA(VLOOKUP($D44,'[2]Teams & Anglers'!$B$7:$F$156,1,FALSE))=TRUE,"",VLOOKUP($D44,'[2]Teams & Anglers'!$B$7:$F$1566,4,FALSE))) -> HIGHFIELD, Nik | C44: =IF(ISNA(VLOOKUP($D44,'[2]Teams & Anglers'!$B$7:$F$156,1,FALSE))=TRUE,"",VLOOKUP($D44,'[2]Teams & Anglers'!$B$7:$F$1566,3,FALSE)) -> 55 | D44: =IF(I44="","",INDEX('[2]Day 1 (All)'!$AA$3:$AA$152,SMALL(IF('[2]Day 1 (All)'!$O$3:$O$152=$I44,ROW('[2]Day 1 (All)'!$O$3:$O$152)-ROW(I$4)+2),COUNTIF($I$4:$I44,$I44)))) -> 9 | E44: =IF($B44="","",IF(ISNA(VLOOKUP($C44,'[2]Day 1 (All)'!$Y$3:$Z$300,1,FALSE))=TRUE,0,VLOOKUP($D44,'[2]Day 1 data entry'!C$3:X$152,19,FALSE))) -> 16 | F44: 0 | G44: 5.333333333 | H44: =IF($B44="","",IF(ISNA(VLOOKUP($C44,'[2]Day 1 (All)'!$Y$3:$Z$300,1,FALSE))=TRUE,0,VLOOKUP($D44,'[2]Day 1 data entry'!C$3:X$152,22,FALSE))) -> DAB | I44: =IF(ISERROR(SMALL('[2]Day 1 (All)'!O$3:O$152,A44))=TRUE,"",(SMALL('[2]Day 1 (All)'!O$3:O$152,A44))) -> 41
A45: 42 | B45: =IF(I45="","",IF(ISNA(VLOOKUP($D45,'[2]Teams & Anglers'!$B$7:$F$156,1,FALSE))=TRUE,"",VLOOKUP($D45,'[2]Teams & Anglers'!$B$7:$F$1566,4,FALSE))) -> LAY-FLURRIE, Matt | C45: =IF(ISNA(VLOOKUP($D45,'[2]Teams & Anglers'!$B$7:$F$156,1,FALSE))=TRUE,"",VLOOKUP($D45,'[2]Teams & Anglers'!$B$7:$F$1566,3,FALSE)) -> 66 | D45: =IF(I45="","",INDEX('[2]Day 1 (All)'!$AA$3:$AA$152,SMALL(IF('[2]Day 1 (All)'!$O$3:$O$152=$I45,ROW('[2]Day 1 (All)'!$O$3:$O$152)-ROW(I$4)+2),COUNTIF($I$4:$I45,$I45)))) -> 12 | E45: =IF($B45="","",IF(ISNA(VLOOKUP($C45,'[2]Day 1 (All)'!$Y$3:$Z$300,1,FALSE))=TRUE,0,VLOOKUP($D45,'[2]Day 1 data entry'!C$3:X$152,19,FALSE))) -> 16 | F45: 0 | G45: 5.333333333 | H45: =IF($B45="","",IF(ISNA(VLOOKUP($C45,'[2]Day 1 (All)'!$Y$3:$Z$300,1,FALSE))=TRUE,0,VLOOKUP($D45,'[2]Day 1 data entry'!C$3:X$152,22,FALSE))) -> DAB | I45: =IF(ISERROR(SMALL('[2]Day 1 (All)'!O$3:O$152,A45))=TRUE,"",(SMALL('[2]Day 1 (All)'!O$3:O$152,A45))) -> 41
A46: 43 | B46: =IF(I46="","",IF(ISNA(VLOOKUP($D46,'[2]Teams & Anglers'!$B$7:$F$156,1,FALSE))=TRUE,"",VLOOKUP($D46,'[2]Teams & Anglers'!$B$7:$F$1566,4,FALSE))) -> BOWELL, Ian | C46: =IF(ISNA(VLOOKUP($D46,'[2]Teams & Anglers'!$B$7:$F$156,1,FALSE))=TRUE,"",VLOOKUP($D46,'[2]Teams & Anglers'!$B$7:$F$1566,3,FALSE)) -> 16 | D46: =IF(I46="","",INDEX('[2]Day 1 (All)'!$AA$3:$AA$152,SMALL(IF('[2]Day 1 (All)'!$O$3:$O$152=$I46,ROW('[2]Day 1 (All)'!$O$3:$O$152)-ROW(I$4)+2),COUNTIF($I$4:$I46,$I46)))) -> 15 | E46: =IF($B46="","",IF(ISNA(VLOOKUP($C46,'[2]Day 1 (All)'!$Y$3:$Z$300,1,FALSE))=TRUE,0,VLOOKUP($D46,'[2]Day 1 data entry'!C$3:X$152,19,FALSE))) -> 16 | F46: 0 | G46: 5.333333333 | H46: =IF($B46="","",IF(ISNA(VLOOKUP($C46,'[2]Day 1 (All)'!$Y$3:$Z$300,1,FALSE))=TRUE,0,VLOOKUP($D46,'[2]Day 1 data entry'!C$3:X$152,22,FALSE))) -> DAB | I46: =IF(ISERROR(SMALL('[2]Day 1 (All)'!O$3:O$152,A46))=TRUE,"",(SMALL('[2]Day 1 (All)'!O$3:O$152,A46))) -> 41
A47: 44 | B47: =IF(I47="","",IF(ISNA(VLOOKUP($D47,'[2]Teams & Anglers'!$B$7:$F$156,1,FALSE))=TRUE,"",VLOOKUP($D47,'[2]Teams & Anglers'!$B$7:$F$1566,4,FALSE))) -> TUCK, Rob | C47: =IF(ISNA(VLOOKUP($D47,'[2]Teams & Anglers'!$B$7:$F$156,1,FALSE))=TRUE,"",VLOOKUP($D47,'[2]Teams & Anglers'!$B$7:$F$1566,3,FALSE)) -> 116 | D47: =IF(I47="","",INDEX('[2]Day 1 (All)'!$AA$3:$AA$152,SMALL(IF('[2]Day 1 (All)'!$O$3:$O$152=$I47,ROW('[2]Day 1 (All)'!$O$3:$O$152)-ROW(I$4)+2),COUNTIF($I$4:$I47,$I47)))) -> 42 | E47: =IF($B47="","",IF(ISNA(VLOOKUP($C47,'[2]Day 1 (All)'!$Y$3:$Z$300,1,FALSE))=TRUE,0,VLOOKUP($D47,'[2]Day 1 data entry'!C$3:X$152,19,FALSE))) -> 16 | F47: 0 | G47: 5.333333333 | H47: =IF($B47="","",IF(ISNA(VLOOKUP($C47,'[2]Day 1 (All)'!$Y$3:$Z$300,1,FALSE))=TRUE,0,VLOOKUP($D47,'[2]Day 1 data entry'!C$3:X$152,22,FALSE))) -> DAB | I47: =IF(ISERROR(SMALL('[2]Day 1 (All)'!O$3:O$152,A47))=TRUE,"",(SMALL('[2]Day 1 (All)'!O$3:O$152,A47))) -> 41
A48: 45 | B48: =IF(I48="","",IF(ISNA(VLOOKUP($D48,'[2]Teams & Anglers'!$B$7:$F$156,1,FALSE))=TRUE,"",VLOOKUP($D48,'[2]Teams & Anglers'!$B$7:$F$1566,4,FALSE))) -> BUY, Craig | C48: =IF(ISNA(VLOOKUP($D48,'[2]Teams & Anglers'!$B$7:$F$156,1,FALSE))=TRUE,"",VLOOKUP($D48,'[2]Teams & Anglers'!$B$7:$F$1566,3,FALSE)) -> 21 | D48: =IF(I48="","",INDEX('[2]Day 1 (All)'!$AA$3:$AA$152,SMALL(IF('[2]Day 1 (All)'!$O$3:$O$152=$I48,ROW('[2]Day 1 (All)'!$O$3:$O$152)-ROW(I$4)+2),COUNTIF($I$4:$I48,$I48)))) -> 49 | E48: =IF($B48="","",IF(ISNA(VLOOKUP($C48,'[2]Day 1 (All)'!$Y$3:$Z$300,1,FALSE))=TRUE,0,VLOOKUP($D48,'[2]Day 1 data entry'!C$3:X$152,19,FALSE))) -> 16 | F48: 0 | G48: 5.333333333 | H48: =IF($B48="","",IF(ISNA(VLOOKUP($C48,'[2]Day 1 (All)'!$Y$3:$Z$300,1,FALSE))=TRUE,0,VLOOKUP($D48,'[2]Day 1 data entry'!C$3:X$152,22,FALSE))) -> DAB | I48: =IF(ISERROR(SMALL('[2]Day 1 (All)'!O$3:O$152,A48))=TRUE,"",(SMALL('[2]Day 1 (All)'!O$3:O$152,A48))) -> 41
A49: 46 | B49: =IF(I49="","",IF(ISNA(VLOOKUP($D49,'[2]Teams & Anglers'!$B$7:$F$156,1,FALSE))=TRUE,"",VLOOKUP($D49,'[2]Teams & Anglers'!$B$7:$F$1566,4,FALSE))) -> THORNTON, Lee | C49: =IF(ISNA(VLOOKUP($D49,'[2]Teams & Anglers'!$B$7:$F$156,1,FALSE))=TRUE,"",VLOOKUP($D49,'[2]Teams & Anglers'!$B$7:$F$1566,3,FALSE)) -> 112 | D49: =IF(I49="","",INDEX('[2]Day 1 (All)'!$AA$3:$AA$152,SMALL(IF('[2]Day 1 (All)'!$O$3:$O$152=$I49,ROW('[2]Day 1 (All)'!$O$3:$O$152)-ROW(I$4)+2),COUNTIF($I$4:$I49,$I49)))) -> 56 | E49: =IF($B49="","",IF(ISNA(VLOOKUP($C49,'[2]Day 1 (All)'!$Y$3:$Z$300,1,FALSE))=TRUE,0,VLOOKUP($D49,'[2]Day 1 data entry'!C$3:X$152,19,FALSE))) -> 16 | F49: 0 | G49: 5.333333333 | H49: =IF($B49="","",IF(ISNA(VLOOKUP($C49,'[2]Day 1 (All)'!$Y$3:$Z$300,1,FALSE))=TRUE,0,VLOOKUP($D49,'[2]Day 1 data entry'!C$3:X$152,22,FALSE))) -> FLOUNDER | I49: =IF(ISERROR(SMALL('[2]Day 1 (All)'!O$3:O$152,A49))=TRUE,"",(SMALL('[2]Day 1 (All)'!O$3:O$152,A49))) -> 41
A50: 47 | B50: =IF(I50="","",IF(ISNA(VLOOKUP($D50,'[2]Teams & Anglers'!$B$7:$F$156,1,FALSE))=TRUE,"",VLOOKUP($D50,'[2]Teams & Anglers'!$B$7:$F$1566,4,FALSE))) -> HARRISON, Paul | C50: =IF(ISNA(VLOOKUP($D50,'[2]Teams & Anglers'!$B$7:$F$156,1,FALSE))=TRUE,"",VLOOKUP($D50,'[2]Teams & Anglers'!$B$7:$F$1566,3,FALSE)) -> 51 | D50: =IF(I50="","",INDEX('[2]Day 1 (All)'!$AA$3:$AA$152,SMALL(IF('[2]Day 1 (All)'!$O$3:$O$152=$I50,ROW('[2]Day 1 (All)'!$O$3:$O$152)-ROW(I$4)+2),COUNTIF($I$4:$I50,$I50)))) -> 78 | E50: =IF($B50="","",IF(ISNA(VLOOKUP($C50,'[2]Day 1 (All)'!$Y$3:$Z$300,1,FALSE))=TRUE,0,VLOOKUP($D50,'[2]Day 1 data entry'!C$3:X$152,19,FALSE))) -> 16 | F50: 0 | G50: 5.333333333 | H50: =IF($B50="","",IF(ISNA(VLOOKUP($C50,'[2]Day 1 (All)'!$Y$3:$Z$300,1,FALSE))=TRUE,0,VLOOKUP($D50,'[2]Day 1 data entry'!C$3:X$152,22,FALSE))) -> DAB | I50: =IF(ISERROR(SMALL('[2]Day 1 (All)'!O$3:O$152,A50))=TRUE,"",(SMALL('[2]Day 1 (All)'!O$3:O$152,A50))) -> 41
A51: 48 | B51: =IF(I51="","",IF(ISNA(VLOOKUP($D51,'[2]Teams & Anglers'!$B$7:$F$156,1,FALSE))=TRUE,"",VLOOKUP($D51,'[2]Teams & Anglers'!$B$7:$F$1566,4,FALSE))) -> SELF, Bevan | C51: =IF(ISNA(VLOOKUP($D51,'[2]Teams & Anglers'!$B$7:$F$156,1,FALSE))=TRUE,"",VLOOKUP($D51,'[2]Teams & Anglers'!$B$7:$F$1566,3,FALSE)) -> 100 | D51: =IF(I51="","",INDEX('[2]Day 1 (All)'!$AA$3:$AA$152,SMALL(IF('[2]Day 1 (All)'!$O$3:$O$152=$I51,ROW('[2]Day 1 (All)'!$O$3:$O$152)-ROW(I$4)+2),COUNTIF($I$4:$I51,$I51)))) -> 100 | E51: =IF($B51="","",IF(ISNA(VLOOKUP($C51,'[2]Day 1 (All)'!$Y$3:$Z$300,1,FALSE))=TRUE,0,VLOOKUP($D51,'[2]Day 1 data entry'!C$3:X$152,19,FALSE))) -> 16 | F51: 0 | G51: 5.333333333 | H51: =IF($B51="","",IF(ISNA(VLOOKUP($C51,'[2]Day 1 (All)'!$Y$3:$Z$300,1,FALSE))=TRUE,0,VLOOKUP($D51,'[2]Day 1 data entry'!C$3:X$152,22,FALSE))) -> DAB | I51: =IF(ISERROR(SMALL('[2]Day 1 (All)'!O$3:O$152,A51))=TRUE,"",(SMALL('[2]Day 1 (All)'!O$3:O$152,A51))) -> 41
A52: 49 | B52: =IF(I52="","",IF(ISNA(VLOOKUP($D52,'[2]Teams & Anglers'!$B$7:$F$156,1,FALSE))=TRUE,"",VLOOKUP($D52,'[2]Teams & Anglers'!$B$7:$F$1566,4,FALSE))) -> NICHOLSON, Steven | C52: =IF(ISNA(VLOOKUP($D52,'[2]Teams & Anglers'!$B$7:$F$156,1,FALSE))=TRUE,"",VLOOKUP($D52,'[2]Teams & Anglers'!$B$7:$F$1566,3,FALSE)) -> 80 | D52: =IF(I52="","",INDEX('[2]Day 1 (All)'!$AA$3:$AA$152,SMALL(IF('[2]Day 1 (All)'!$O$3:$O$152=$I52,ROW('[2]Day 1 (All)'!$O$3:$O$152)-ROW(I$4)+2),COUNTIF($I$4:$I52,$I52)))) -> 104 | E52: =IF($B52="","",IF(ISNA(VLOOKUP($C52,'[2]Day 1 (All)'!$Y$3:$Z$300,1,FALSE))=TRUE,0,VLOOKUP($D52,'[2]Day 1 data entry'!C$3:X$152,19,FALSE))) -> 16 | F52: 0 | G52: 5.333333333 | H52: =IF($B52="","",IF(ISNA(VLOOKUP($C52,'[2]Day 1 (All)'!$Y$3:$Z$300,1,FALSE))=TRUE,0,VLOOKUP($D52,'[2]Day 1 data entry'!C$3:X$152,22,FALSE))) -> DAB | I52: =IF(ISERROR(SMALL('[2]Day 1 (All)'!O$3:O$152,A52))=TRUE,"",(SMALL('[2]Day 1 (All)'!O$3:O$152,A52))) -> 41
A53: 50 | B53: =IF(I53="","",IF(ISNA(VLOOKUP($D53,'[2]Teams & Anglers'!$B$7:$F$156,1,FALSE))=TRUE,"",VLOOKUP($D53,'[2]Teams & Anglers'!$B$7:$F$1566,4,FALSE))) -> ROPER, Liam | C53: =IF(ISNA(VLOOKUP($D53,'[2]Teams & Anglers'!$B$7:$F$156,1,FALSE))=TRUE,"",VLOOKUP($D53,'[2]Teams & Anglers'!$B$7:$F$1566,3,FALSE)) -> 96 | D53: =IF(I53="","",INDEX('[2]Day 1 (All)'!$AA$3:$AA$152,SMALL(IF('[2]Day 1 (All)'!$O$3:$O$152=$I53,ROW('[2]Day 1 (All)'!$O$3:$O$152)-ROW(I$4)+2),COUNTIF($I$4:$I53,$I53)))) -> 107 | E53: =IF($B53="","",IF(ISNA(VLOOKUP($C53,'[2]Day 1 (All)'!$Y$3:$Z$300,1,FALSE))=TRUE,0,VLOOKUP($D53,'[2]Day 1 data entry'!C$3:X$152,19,FALSE))) -> 16 | F53: 0 | G53: 5.333333333 | H53: =IF($B53="","",IF(ISNA(VLOOKUP($C53,'[2]Day 1 (All)'!$Y$3:$Z$300,1,FALSE))=TRUE,0,VLOOKUP($D53,'[2]Day 1 data entry'!C$3:X$152,22,FALSE))) -> DAB | I53: =IF(ISERROR(SMALL('[2]Day 1 (All)'!O$3:O$152,A53))=TRUE,"",(SMALL('[2]Day 1 (All)'!O$3:O$152,A53))) -> 41
A54: 51 | B54: =IF(I54="","",IF(ISNA(VLOOKUP($D54,'[2]Teams & Anglers'!$B$7:$F$156,1,FALSE))=TRUE,"",VLOOKUP($D54,'[2]Teams & Anglers'!$B$7:$F$1566,4,FALSE))) -> PEMBERTON, Andy | C54: =IF(ISNA(VLOOKUP($D54,'[2]Teams & Anglers'!$B$7:$F$156,1,FALSE))=TRUE,"",VLOOKUP($D54,'[2]Teams & Anglers'!$B$7:$F$1566,3,FALSE)) -> 86 | D54: =IF(I54="","",INDEX('[2]Day 1 (All)'!$AA$3:$AA$152,SMALL(IF('[2]Day 1 (All)'!$O$3:$O$152=$I54,ROW('[2]Day 1 (All)'!$O$3:$O$152)-ROW(I$4)+2),COUNTIF($I$4:$I54,$I54)))) -> 117 | E54: =IF($B54="","",IF(ISNA(VLOOKUP($C54,'[2]Day 1 (All)'!$Y$3:$Z$300,1,FALSE))=TRUE,0,VLOOKUP($D54,'[2]Day 1 data entry'!C$3:X$152,19,FALSE))) -> 16 | F54: 0 | G54: 5.333333333 | H54: =IF($B54="","",IF(ISNA(VLOOKUP($C54,'[2]Day 1 (All)'!$Y$3:$Z$300,1,FALSE))=TRUE,0,VLOOKUP($D54,'[2]Day 1 data entry'!C$3:X$152,22,FALSE))) -> DAB | I54: =IF(ISERROR(SMALL('[2]Day 1 (All)'!O$3:O$152,A54))=TRUE,"",(SMALL('[2]Day 1 (All)'!O$3:O$152,A54))) -> 41
A55: 52 | B55: =IF(I55="","",IF(ISNA(VLOOKUP($D55,'[2]Teams & Anglers'!$B$7:$F$156,1,FALSE))=TRUE,"",VLOOKUP($D55,'[2]Teams & Anglers'!$B$7:$F$1566,4,FALSE))) -> SPALL, Chris | C55: =IF(ISNA(VLOOKUP($D55,'[2]Teams & Anglers'!$B$7:$F$156,1,FALSE))=TRUE,"",VLOOKUP($D55,'[2]Teams & Anglers'!$B$7:$F$1566,3,FALSE)) -> 107 | D55: =IF(I55="","",INDEX('[2]Day 1 (All)'!$AA$3:$AA$152,SMALL(IF('[2]Day 1 (All)'!$O$3:$O$152=$I55,ROW('[2]Day 1 (All)'!$O$3:$O$152)-ROW(I$4)+2),COUNTIF($I$4:$I55,$I55)))) -> 125 | E55: =IF($B55="","",IF(ISNA(VLOOKUP($C55,'[2]Day 1 (All)'!$Y$3:$Z$300,1,FALSE))=TRUE,0,VLOOKUP($D55,'[2]Day 1 data entry'!C$3:X$152,19,FALSE))) -> 16 | F55: 0 | G55: 5.333333333 | H55: =IF($B55="","",IF(ISNA(VLOOKUP($C55,'[2]Day 1 (All)'!$Y$3:$Z$300,1,FALSE))=TRUE,0,VLOOKUP($D55,'[2]Day 1 data entry'!C$3:X$152,22,FALSE))) -> DAB | I55: =IF(ISERROR(SMALL('[2]Day 1 (All)'!O$3:O$152,A55))=TRUE,"",(SMALL('[2]Day 1 (All)'!O$3:O$152,A55))) -> 41
A56: 53 | B56: =IF(I56="","",IF(ISNA(VLOOKUP($D56,'[2]Teams & Anglers'!$B$7:$F$156,1,FALSE))=TRUE,"",VLOOKUP($D56,'[2]Teams & Anglers'!$B$7:$F$1566,4,FALSE))) -> ARCH, Joe | C56: =IF(ISNA(VLOOKUP($D56,'[2]Teams & Anglers'!$B$7:$F$156,1,FALSE))=TRUE,"",VLOOKUP($D56,'[2]Teams & Anglers'!$B$7:$F$1566,3,FALSE)) -> 6 | D56: =IF(I56="","",INDEX('[2]Day 1 (All)'!$AA$3:$AA$152,SMALL(IF('[2]Day 1 (All)'!$O$3:$O$152=$I56,ROW('[2]Day 1 (All)'!$O$3:$O$152)-ROW(I$4)+2),COUNTIF($I$4:$I56,$I56)))) -> 39 | E56: =IF($B56="","",IF(ISNA(VLOOKUP($C56,'[2]Day 1 (All)'!$Y$3:$Z$300,1,FALSE))=TRUE,0,VLOOKUP($D56,'[2]Day 1 data entry'!C$3:X$152,19,FALSE))) -> 14 | F56: 0 | G56: 4.666666667 | H56: =IF($B56="","",IF(ISNA(VLOOKUP($C56,'[2]Day 1 (All)'!$Y$3:$Z$300,1,FALSE))=TRUE,0,VLOOKUP($D56,'[2]Day 1 data entry'!C$3:X$152,22,FALSE))) -> DAB | I56: =IF(ISERROR(SMALL('[2]Day 1 (All)'!O$3:O$152,A56))=TRUE,"",(SMALL('[2]Day 1 (All)'!O$3:O$152,A56))) -> 53
A57: 54 | B57: =IF(I57="","",IF(ISNA(VLOOKUP($D57,'[2]Teams & Anglers'!$B$7:$F$156,1,FALSE))=TRUE,"",VLOOKUP($D57,'[2]Teams & Anglers'!$B$7:$F$1566,4,FALSE))) -> ELLIOTT, Nathan | C57: =IF(ISNA(VLOOKUP($D57,'[2]Teams & Anglers'!$B$7:$F$156,1,FALSE))=TRUE,"",VLOOKUP($D57,'[2]Teams & Anglers'!$B$7:$F$1566,3,FALSE)) -> 38 | D57: =IF(I57="","",INDEX('[2]Day 1 (All)'!$AA$3:$AA$152,SMALL(IF('[2]Day 1 (All)'!$O$3:$O$152=$I57,ROW('[2]Day 1 (All)'!$O$3:$O$152)-ROW(I$4)+2),COUNTIF($I$4:$I57,$I57)))) -> 65 | E57: =IF($B57="","",IF(ISNA(VLOOKUP($C57,'[2]Day 1 (All)'!$Y$3:$Z$300,1,FALSE))=TRUE,0,VLOOKUP($D57,'[2]Day 1 data entry'!C$3:X$152,19,FALSE))) -> 14 | F57: 0 | G57: 4.666666667 | H57: =IF($B57="","",IF(ISNA(VLOOKUP($C57,'[2]Day 1 (All)'!$Y$3:$Z$300,1,FALSE))=TRUE,0,VLOOKUP($D57,'[2]Day 1 data entry'!C$3:X$152,22,FALSE))) -> DAB | I57: =IF(ISERROR(SMALL('[2]Day 1 (All)'!O$3:O$152,A57))=TRUE,"",(SMALL('[2]Day 1 (All)'!O$3:O$152,A57))) -> 53
A58: 55 | B58: =IF(I58="","",IF(ISNA(VLOOKUP($D58,'[2]Teams & Anglers'!$B$7:$F$156,1,FALSE))=TRUE,"",VLOOKUP($D58,'[2]Teams & Anglers'!$B$7:$F$1566,4,FALSE))) -> KINGDON, Adam | C58: =IF(ISNA(VLOOKUP($D58,'[2]Teams & Anglers'!$B$7:$F$156,1,FALSE))=TRUE,"",VLOOKUP($D58,'[2]Teams & Anglers'!$B$7:$F$1566,3,FALSE)) -> 63 | D58: =IF(I58="","",INDEX('[2]Day 1 (All)'!$AA$3:$AA$152,SMALL(IF('[2]Day 1 (All)'!$O$3:$O$152=$I58,ROW('[2]Day 1 (All)'!$O$3:$O$152)-ROW(I$4)+2),COUNTIF($I$4:$I58,$I58)))) -> 70 | E58: =IF($B58="","",IF(ISNA(VLOOKUP($C58,'[2]Day 1 (All)'!$Y$3:$Z$300,1,FALSE))=TRUE,0,VLOOKUP($D58,'[2]Day 1 data entry'!C$3:X$152,19,FALSE))) -> 14 | F58: 0 | G58: 4.666666667 | H58: =IF($B58="","",IF(ISNA(VLOOKUP($C58,'[2]Day 1 (All)'!$Y$3:$Z$300,1,FALSE))=TRUE,0,VLOOKUP($D58,'[2]Day 1 data entry'!C$3:X$152,22,FALSE))) -> FLOUNDER | I58: =IF(ISERROR(SMALL('[2]Day 1 (All)'!O$3:O$152,A58))=TRUE,"",(SMALL('[2]Day 1 (All)'!O$3:O$152,A58))) -> 53
A59: 56 | B59: =IF(I59="","",IF(ISNA(VLOOKUP($D59,'[2]Teams & Anglers'!$B$7:$F$156,1,FALSE))=TRUE,"",VLOOKUP($D59,'[2]Teams & Anglers'!$B$7:$F$1566,4,FALSE))) -> SHORTHOUSE, Dave | C59: =IF(ISNA(VLOOKUP($D59,'[2]Teams & Anglers'!$B$7:$F$156,1,FALSE))=TRUE,"",VLOOKUP($D59,'[2]Teams & Anglers'!$B$7:$F$1566,3,FALSE)) -> 102 | D59: =IF(I59="","",INDEX('[2]Day 1 (All)'!$AA$3:$AA$152,SMALL(IF('[2]Day 1 (All)'!$O$3:$O$152=$I59,ROW('[2]Day 1 (All)'!$O$3:$O$152)-ROW(I$4)+2),COUNTIF($I$4:$I59,$I59)))) -> 83 | E59: =IF($B59="","",IF(ISNA(VLOOKUP($C59,'[2]Day 1 (All)'!$Y$3:$Z$300,1,FALSE))=TRUE,0,VLOOKUP($D59,'[2]Day 1 data entry'!C$3:X$152,19,FALSE))) -> 14 | F59: 0 | G59: 4.666666667 | H59: =IF($B59="","",IF(ISNA(VLOOKUP($C59,'[2]Day 1 (All)'!$Y$3:$Z$300,1,FALSE))=TRUE,0,VLOOKUP($D59,'[2]Day 1 data entry'!C$3:X$152,22,FALSE))) -> DAB | I59: =IF(ISERROR(SMALL('[2]Day 1 (All)'!O$3:O$152,A59))=TRUE,"",(SMALL('[2]Day 1 (All)'!O$3:O$152,A59))) -> 53
A60: 57 | B60: =IF(I60="","",IF(ISNA(VLOOKUP($D60,'[2]Teams & Anglers'!$B$7:$F$156,1,FALSE))=TRUE,"",VLOOKUP($D60,'[2]Teams & Anglers'!$B$7:$F$1566,4,FALSE))) -> SMITH, Stephen | C60: =IF(ISNA(VLOOKUP($D60,'[2]Teams & Anglers'!$B$7:$F$156,1,FALSE))=TRUE,"",VLOOKUP($D60,'[2]Teams & Anglers'!$B$7:$F$1566,3,FALSE)) -> 106 | D60: =IF(I60="","",INDEX('[2]Day 1 (All)'!$AA$3:$AA$152,SMALL(IF('[2]Day 1 (All)'!$O$3:$O$152=$I60,ROW('[2]Day 1 (All)'!$O$3:$O$152)-ROW(I$4)+2),COUNTIF($I$4:$I60,$I60)))) -> 88 | E60: =IF($B60="","",IF(ISNA(VLOOKUP($C60,'[2]Day 1 (All)'!$Y$3:$Z$300,1,FALSE))=TRUE,0,VLOOKUP($D60,'[2]Day 1 data entry'!C$3:X$152,19,FALSE))) -> 14 | F60: 0 | G60: 4.666666667 | H60: =IF($B60="","",IF(ISNA(VLOOKUP($C60,'[2]Day 1 (All)'!$Y$3:$Z$300,1,FALSE))=TRUE,0,VLOOKUP($D60,'[2]Day 1 data entry'!C$3:X$152,22,FALSE))) -> DAB | I60: =IF(ISERROR(SMALL('[2]Day 1 (All)'!O$3:O$152,A60))=TRUE,"",(SMALL('[2]Day 1 (All)'!O$3:O$152,A60))) -> 53
A61: 58 | B61: =IF(I61="","",IF(ISNA(VLOOKUP($D61,'[2]Teams & Anglers'!$B$7:$F$156,1,FALSE))=TRUE,"",VLOOKUP($D61,'[2]Teams & Anglers'!$B$7:$F$1566,4,FALSE))) -> PARKER, Al | C61: =IF(ISNA(VLOOKUP($D61,'[2]Teams & Anglers'!$B$7:$F$156,1,FALSE))=TRUE,"",VLOOKUP($D61,'[2]Teams & Anglers'!$B$7:$F$1566,3,FALSE)) -> 82 | D61: =IF(I61="","",INDEX('[2]Day 1 (All)'!$AA$3:$AA$152,SMALL(IF('[2]Day 1 (All)'!$O$3:$O$152=$I61,ROW('[2]Day 1 (All)'!$O$3:$O$152)-ROW(I$4)+2),COUNTIF($I$4:$I61,$I61)))) -> 92 | E61: =IF($B61="","",IF(ISNA(VLOOKUP($C61,'[2]Day 1 (All)'!$Y$3:$Z$300,1,FALSE))=TRUE,0,VLOOKUP($D61,'[2]Day 1 data entry'!C$3:X$152,19,FALSE))) -> 14 | F61: 0 | G61: 4.666666667 | H61: =IF($B61="","",IF(ISNA(VLOOKUP($C61,'[2]Day 1 (All)'!$Y$3:$Z$300,1,FALSE))=TRUE,0,VLOOKUP($D61,'[2]Day 1 data entry'!C$3:X$152,22,FALSE))) -> DAB | I61: =IF(ISERROR(SMALL('[2]Day 1 (All)'!O$3:O$152,A61))=TRUE,"",(SMALL('[2]Day 1 (All)'!O$3:O$152,A61))) -> 53
A62: 59 | B62: =IF(I62="","",IF(ISNA(VLOOKUP($D62,'[2]Teams & Anglers'!$B$7:$F$156,1,FALSE))=TRUE,"",VLOOKUP($D62,'[2]Teams & Anglers'!$B$7:$F$1566,4,FALSE))) -> HUTCHINSON, Dave | C62: =IF(ISNA(VLOOKUP($D62,'[2]Teams & Anglers'!$B$7:$F$156,1,FALSE))=TRUE,"",VLOOKUP($D62,'[2]Teams & Anglers'!$B$7:$F$1566,3,FALSE)) -> 59 | D62: =IF(I62="","",INDEX('[2]Day 1 (All)'!$AA$3:$AA$152,SMALL(IF('[2]Day 1 (All)'!$O$3:$O$152=$I62,ROW('[2]Day 1 (All)'!$O$3:$O$152)-ROW(I$4)+2),COUNTIF($I$4:$I62,$I62)))) -> 102 | E62: =IF($B62="","",IF(ISNA(VLOOKUP($C62,'[2]Day 1 (All)'!$Y$3:$Z$300,1,FALSE))=TRUE,0,VLOOKUP($D62,'[2]Day 1 data entry'!C$3:X$152,19,FALSE))) -> 14 | F62: 0 | G62: 4.666666667 | H62: =IF($B62="","",IF(ISNA(VLOOKUP($C62,'[2]Day 1 (All)'!$Y$3:$Z$300,1,FALSE))=TRUE,0,VLOOKUP($D62,'[2]Day 1 data entry'!C$3:X$152,22,FALSE))) -> DAB | I62: =IF(ISERROR(SMALL('[2]Day 1 (All)'!O$3:O$152,A62))=TRUE,"",(SMALL('[2]Day 1 (All)'!O$3:O$152,A62))) -> 53
A63: 60 | B63: =IF(I63="","",IF(ISNA(VLOOKUP($D63,'[2]Teams & Anglers'!$B$7:$F$156,1,FALSE))=TRUE,"",VLOOKUP($D63,'[2]Teams & Anglers'!$B$7:$F$1566,4,FALSE))) -> WRIGHT, Dave | C63: =IF(ISNA(VLOOKUP($D63,'[2]Teams & Anglers'!$B$7:$F$156,1,FALSE))=TRUE,"",VLOOKUP($D63,'[2]Teams & Anglers'!$B$7:$F$1566,3,FALSE)) -> 123 | D63: =IF(I63="","",INDEX('[2]Day 1 (All)'!$AA$3:$AA$152,SMALL(IF('[2]Day 1 (All)'!$O$3:$O$152=$I63,ROW('[2]Day 1 (All)'!$O$3:$O$152)-ROW(I$4)+2),COUNTIF($I$4:$I63,$I63)))) -> 113 | E63: =IF($B63="","",IF(ISNA(VLOOKUP($C63,'[2]Day 1 (All)'!$Y$3:$Z$300,1,FALSE))=TRUE,0,VLOOKUP($D63,'[2]Day 1 data entry'!C$3:X$152,19,FALSE))) -> 14 | F63: 0 | G63: 4.666666667 | H63: =IF($B63="","",IF(ISNA(VLOOKUP($C63,'[2]Day 1 (All)'!$Y$3:$Z$300,1,FALSE))=TRUE,0,VLOOKUP($D63,'[2]Day 1 data entry'!C$3:X$152,22,FALSE))) -> DAB | I63: =IF(ISERROR(SMALL('[2]Day 1 (All)'!O$3:O$152,A63))=TRUE,"",(SMALL('[2]Day 1 (All)'!O$3:O$152,A63))) -> 53
A64: 61 | B64: =IF(I64="","",IF(ISNA(VLOOKUP($D64,'[2]Teams & Anglers'!$B$7:$F$156,1,FALSE))=TRUE,"",VLOOKUP($D64,'[2]Teams & Anglers'!$B$7:$F$1566,4,FALSE))) -> McGILLOWAY, Wayne | C64: =IF(ISNA(VLOOKUP($D64,'[2]Teams & Anglers'!$B$7:$F$156,1,FALSE))=TRUE,"",VLOOKUP($D64,'[2]Teams & Anglers'!$B$7:$F$1566,3,FALSE)) -> 75 | D64: =IF(I64="","",INDEX('[2]Day 1 (All)'!$AA$3:$AA$152,SMALL(IF('[2]Day 1 (All)'!$O$3:$O$152=$I64,ROW('[2]Day 1 (All)'!$O$3:$O$152)-ROW(I$4)+2),COUNTIF($I$4:$I64,$I64)))) -> 6 | E64: =IF($B64="","",IF(ISNA(VLOOKUP($C64,'[2]Day 1 (All)'!$Y$3:$Z$300,1,FALSE))=TRUE,0,VLOOKUP($D64,'[2]Day 1 data entry'!C$3:X$152,19,FALSE))) -> 12 | F64: 0 | G64: 4 | H64: =IF($B64="","",IF(ISNA(VLOOKUP($C64,'[2]Day 1 (All)'!$Y$3:$Z$300,1,FALSE))=TRUE,0,VLOOKUP($D64,'[2]Day 1 data entry'!C$3:X$152,22,FALSE))) -> FLOUNDER | I64: =IF(ISERROR(SMALL('[2]Day 1 (All)'!O$3:O$152,A64))=TRUE,"",(SMALL('[2]Day 1 (All)'!O$3:O$152,A64))) -> 61
A65: 62 | B65: =IF(I65="","",IF(ISNA(VLOOKUP($D65,'[2]Teams & Anglers'!$B$7:$F$156,1,FALSE))=TRUE,"",VLOOKUP($D65,'[2]Teams & Anglers'!$B$7:$F$1566,4,FALSE))) -> STEBBINGS, Robert | C65: =IF(ISNA(VLOOKUP($D65,'[2]Teams & Anglers'!$B$7:$F$156,1,FALSE))=TRUE,"",VLOOKUP($D65,'[2]Teams & Anglers'!$B$7:$F$1566,3,FALSE)) -> 108 | D65: =IF(I65="","",INDEX('[2]Day 1 (All)'!$AA$3:$AA$152,SMALL(IF('[2]Day 1 (All)'!$O$3:$O$152=$I65,ROW('[2]Day 1 (All)'!$O$3:$O$152)-ROW(I$4)+2),COUNTIF($I$4:$I65,$I65)))) -> 8 | E65: =IF($B65="","",IF(ISNA(VLOOKUP($C65,'[2]Day 1 (All)'!$Y$3:$Z$300,1,FALSE))=TRUE,0,VLOOKUP($D65,'[2]Day 1 data entry'!C$3:X$152,19,FALSE))) -> 12 | F65: 0 | G65: 4 | H65: =IF($B65="","",IF(ISNA(VLOOKUP($C65,'[2]Day 1 (All)'!$Y$3:$Z$300,1,FALSE))=TRUE,0,VLOOKUP($D65,'[2]Day 1 data entry'!C$3:X$152,22,FALSE))) -> FLOUNDER | I65: =IF(ISERROR(SMALL('[2]Day 1 (All)'!O$3:O$152,A65))=TRUE,"",(SMALL('[2]Day 1 (All)'!O$3:O$152,A65))) -> 61
A66: 63 | B66: =IF(I66="","",IF(ISNA(VLOOKUP($D66,'[2]Teams & Anglers'!$B$7:$F$156,1,FALSE))=TRUE,"",VLOOKUP($D66,'[2]Teams & Anglers'!$B$7:$F$1566,4,FALSE))) -> McCOY, Kenny | C66: =IF(ISNA(VLOOKUP($D66,'[2]Teams & Anglers'!$B$7:$F$156,1,FALSE))=TRUE,"",VLOOKUP($D66,'[2]Teams & Anglers'!$B$7:$F$1566,3,FALSE)) -> 74 | D66: =IF(I66="","",INDEX('[2]Day 1 (All)'!$AA$3:$AA$152,SMALL(IF('[2]Day 1 (All)'!$O$3:$O$152=$I66,ROW('[2]Day 1 (All)'!$O$3:$O$152)-ROW(I$4)+2),COUNTIF($I$4:$I66,$I66)))) -> 43 | E66: =IF($B66="","",IF(ISNA(VLOOKUP($C66,'[2]Day 1 (All)'!$Y$3:$Z$300,1,FALSE))=TRUE,0,VLOOKUP($D66,'[2]Day 1 data entry'!C$3:X$152,19,FALSE))) -> 12 | F66: 0 | G66: 4 | H66: =IF($B66="","",IF(ISNA(VLOOKUP($C66,'[2]Day 1 (All)'!$Y$3:$Z$300,1,FALSE))=TRUE,0,VLOOKUP($D66,'[2]Day 1 data entry'!C$3:X$152,22,FALSE))) -> DAB | I66: =IF(ISERROR(SMALL('[2]Day 1 (All)'!O$3:O$152,A66))=TRUE,"",(SMALL('[2]Day 1 (All)'!O$3:O$152,A66))) -> 61
A67: 64 | B67: =IF(I67="","",IF(ISNA(VLOOKUP($D67,'[2]Teams & Anglers'!$B$7:$F$156,1,FALSE))=TRUE,"",VLOOKUP($D67,'[2]Teams & Anglers'!$B$7:$F$1566,4,FALSE))) -> MARTLAND, Kev | C67: =IF(ISNA(VLOOKUP($D67,'[2]Teams & Anglers'!$B$7:$F$156,1,FALSE))=TRUE,"",VLOOKUP($D67,'[2]Teams & Anglers'!$B$7:$F$1566,3,FALSE)) -> 73 | D67: =IF(I67="","",INDEX('[2]Day 1 (All)'!$AA$3:$AA$152,SMALL(IF('[2]Day 1 (All)'!$O$3:$O$152=$I67,ROW('[2]Day 1 (All)'!$O$3:$O$152)-ROW(I$4)+2),COUNTIF($I$4:$I67,$I67)))) -> 75 | E67: =IF($B67="","",IF(ISNA(VLOOKUP($C67,'[2]Day 1 (All)'!$Y$3:$Z$300,1,FALSE))=TRUE,0,VLOOKUP($D67,'[2]Day 1 data entry'!C$3:X$152,19,FALSE))) -> 12 | F67: 0 | G67: 4 | H67: =IF($B67="","",IF(ISNA(VLOOKUP($C67,'[2]Day 1 (All)'!$Y$3:$Z$300,1,FALSE))=TRUE,0,VLOOKUP($D67,'[2]Day 1 data entry'!C$3:X$152,22,FALSE))) -> DAB | I67: =IF(ISERROR(SMALL('[2]Day 1 (All)'!O$3:O$152,A67))=TRUE,"",(SMALL('[2]Day 1 (All)'!O$3:O$152,A67))) -> 61
A68: 65 | B68: =IF(I68="","",IF(ISNA(VLOOKUP($D68,'[2]Teams & Anglers'!$B$7:$F$156,1,FALSE))=TRUE,"",VLOOKUP($D68,'[2]Teams & Anglers'!$B$7:$F$1566,4,FALSE))) -> PRICE, Alan | C68: =IF(ISNA(VLOOKUP($D68,'[2]Teams & Anglers'!$B$7:$F$156,1,FALSE))=TRUE,"",VLOOKUP($D68,'[2]Teams & Anglers'!$B$7:$F$1566,3,FALSE)) -> 90 | D68: =IF(I68="","",INDEX('[2]Day 1 (All)'!$AA$3:$AA$152,SMALL(IF('[2]Day 1 (All)'!$O$3:$O$152=$I68,ROW('[2]Day 1 (All)'!$O$3:$O$152)-ROW(I$4)+2),COUNTIF($I$4:$I68,$I68)))) -> 77 | E68: =IF($B68="","",IF(ISNA(VLOOKUP($C68,'[2]Day 1 (All)'!$Y$3:$Z$300,1,FALSE))=TRUE,0,VLOOKUP($D68,'[2]Day 1 data entry'!C$3:X$152,19,FALSE))) -> 12 | F68: 0 | G68: 4 | H68: =IF($B68="","",IF(ISNA(VLOOKUP($C68,'[2]Day 1 (All)'!$Y$3:$Z$300,1,FALSE))=TRUE,0,VLOOKUP($D68,'[2]Day 1 data entry'!C$3:X$152,22,FALSE))) -> DAB | I68: =IF(ISERROR(SMALL('[2]Day 1 (All)'!O$3:O$152,A68))=TRUE,"",(SMALL('[2]Day 1 (All)'!O$3:O$152,A68))) -> 61
A69: 66 | B69: =IF(I69="","",IF(ISNA(VLOOKUP($D69,'[2]Teams & Anglers'!$B$7:$F$156,1,FALSE))=TRUE,"",VLOOKUP($D69,'[2]Teams & Anglers'!$B$7:$F$1566,4,FALSE))) -> RYDER, Edde | C69: =IF(ISNA(VLOOKUP($D69,'[2]Teams & Anglers'!$B$7:$F$156,1,FALSE))=TRUE,"",VLOOKUP($D69,'[2]Teams & Anglers'!$B$7:$F$1566,3,FALSE)) -> 99 | D69: =IF(I69="","",INDEX('[2]Day 1 (All)'!$AA$3:$AA$152,SMALL(IF('[2]Day 1 (All)'!$O$3:$O$152=$I69,ROW('[2]Day 1 (All)'!$O$3:$O$152)-ROW(I$4)+2),COUNTIF($I$4:$I69,$I69)))) -> 87 | E69: =IF($B69="","",IF(ISNA(VLOOKUP($C69,'[2]Day 1 (All)'!$Y$3:$Z$300,1,FALSE))=TRUE,0,VLOOKUP($D69,'[2]Day 1 data entry'!C$3:X$152,19,FALSE))) -> 12 | F69: 0 | G69: 4 | H69: =IF($B69="","",IF(ISNA(VLOOKUP($C69,'[2]Day 1 (All)'!$Y$3:$Z$300,1,FALSE))=TRUE,0,VLOOKUP($D69,'[2]Day 1 data entry'!C$3:X$152,22,FALSE))) -> DAB | I69: =IF(ISERROR(SMALL('[2]Day 1 (All)'!O$3:O$152,A69))=TRUE,"",(SMALL('[2]Day 1 (All)'!O$3:O$152,A69))) -> 61
A70: 67 | B70: =IF(I70="","",IF(ISNA(VLOOKUP($D70,'[2]Teams & Anglers'!$B$7:$F$156,1,FALSE))=TRUE,"",VLOOKUP($D70,'[2]Teams & Anglers'!$B$7:$F$1566,4,FALSE))) -> HAZELGROVE, Gary | C70: =IF(ISNA(VLOOKUP($D70,'[2]Teams & Anglers'!$B$7:$F$156,1,FALSE))=TRUE,"",VLOOKUP($D70,'[2]Teams & Anglers'!$B$7:$F$1566,3,FALSE)) -> 53 | D70: =IF(I70="","",INDEX('[2]Day 1 (All)'!$AA$3:$AA$152,SMALL(IF('[2]Day 1 (All)'!$O$3:$O$152=$I70,ROW('[2]Day 1 (All)'!$O$3:$O$152)-ROW(I$4)+2),COUNTIF($I$4:$I70,$I70)))) -> 103 | E70: =IF($B70="","",IF(ISNA(VLOOKUP($C70,'[2]Day 1 (All)'!$Y$3:$Z$300,1,FALSE))=TRUE,0,VLOOKUP($D70,'[2]Day 1 data entry'!C$3:X$152,19,FALSE))) -> 12 | F70: 0 | G70: 4 | H70: =IF($B70="","",IF(ISNA(VLOOKUP($C70,'[2]Day 1 (All)'!$Y$3:$Z$300,1,FALSE))=TRUE,0,VLOOKUP($D70,'[2]Day 1 data entry'!C$3:X$152,22,FALSE))) -> DAB | I70: =IF(ISERROR(SMALL('[2]Day 1 (All)'!O$3:O$152,A70))=TRUE,"",(SMALL('[2]Day 1 (All)'!O$3:O$152,A70))) -> 61
A71: 68 | B71: =IF(I71="","",IF(ISNA(VLOOKUP($D71,'[2]Teams & Anglers'!$B$7:$F$156,1,FALSE))=TRUE,"",VLOOKUP($D71,'[2]Teams & Anglers'!$B$7:$F$1566,4,FALSE))) -> BANHAM, Jason | C71: =IF(ISNA(VLOOKUP($D71,'[2]Teams & Anglers'!$B$7:$F$156,1,FALSE))=TRUE,"",VLOOKUP($D71,'[2]Teams & Anglers'!$B$7:$F$1566,3,FALSE)) -> 10 | D71: =IF(I71="","",INDEX('[2]Day 1 (All)'!$AA$3:$AA$152,SMALL(IF('[2]Day 1 (All)'!$O$3:$O$152=$I71,ROW('[2]Day 1 (All)'!$O$3:$O$152)-ROW(I$4)+2),COUNTIF($I$4:$I71,$I71)))) -> 114 | E71: =IF($B71="","",IF(ISNA(VLOOKUP($C71,'[2]Day 1 (All)'!$Y$3:$Z$300,1,FALSE))=TRUE,0,VLOOKUP($D71,'[2]Day 1 data entry'!C$3:X$152,19,FALSE))) -> 12 | F71: 0 | G71: 4 | H71: =IF($B71="","",IF(ISNA(VLOOKUP($C71,'[2]Day 1 (All)'!$Y$3:$Z$300,1,FALSE))=TRUE,0,VLOOKUP($D71,'[2]Day 1 data entry'!C$3:X$152,22,FALSE))) -> DAB | I71: =IF(ISERROR(SMALL('[2]Day 1 (All)'!O$3:O$152,A71))=TRUE,"",(SMALL('[2]Day 1 (All)'!O$3:O$152,A71))) -> 61
A72: 69 | B72: =IF(I72="","",IF(ISNA(VLOOKUP($D72,'[2]Teams & Anglers'!$B$7:$F$156,1,FALSE))=TRUE,"",VLOOKUP($D72,'[2]Teams & Anglers'!$B$7:$F$1566,4,FALSE))) -> ADAMS, Stephen | C72: =IF(ISNA(VLOOKUP($D72,'[2]Teams & Anglers'!$B$7:$F$156,1,FALSE))=TRUE,"",VLOOKUP($D72,'[2]Teams & Anglers'!$B$7:$F$1566,3,FALSE)) -> 2 | D72: =IF(I72="","",INDEX('[2]Day 1 (All)'!$AA$3:$AA$152,SMALL(IF('[2]Day 1 (All)'!$O$3:$O$152=$I72,ROW('[2]Day 1 (All)'!$O$3:$O$152)-ROW(I$4)+2),COUNTIF($I$4:$I72,$I72)))) -> 128 | E72: =IF($B72="","",IF(ISNA(VLOOKUP($C72,'[2]Day 1 (All)'!$Y$3:$Z$300,1,FALSE))=TRUE,0,VLOOKUP($D72,'[2]Day 1 data entry'!C$3:X$152,19,FALSE))) -> 12 | F72: 0 | G72: 4 | H72: =IF($B72="","",IF(ISNA(VLOOKUP($C72,'[2]Day 1 (All)'!$Y$3:$Z$300,1,FALSE))=TRUE,0,VLOOKUP($D72,'[2]Day 1 data entry'!C$3:X$152,22,FALSE))) -> DAB | I72: =IF(ISERROR(SMALL('[2]Day 1 (All)'!O$3:O$152,A72))=TRUE,"",(SMALL('[2]Day 1 (All)'!O$3:O$152,A72))) -> 61
A73: 70 | B73: =IF(I73="","",IF(ISNA(VLOOKUP($D73,'[2]Teams & Anglers'!$B$7:$F$156,1,FALSE))=TRUE,"",VLOOKUP($D73,'[2]Teams & Anglers'!$B$7:$F$1566,4,FALSE))) -> BANCROFT, Dave | C73: =IF(ISNA(VLOOKUP($D73,'[2]Teams & Anglers'!$B$7:$F$156,1,FALSE))=TRUE,"",VLOOKUP($D73,'[2]Teams & Anglers'!$B$7:$F$1566,3,FALSE)) -> 9 | D73: =IF(I73="","",INDEX('[2]Day 1 (All)'!$AA$3:$AA$152,SMALL(IF('[2]Day 1 (All)'!$O$3:$O$152=$I73,ROW('[2]Day 1 (All)'!$O$3:$O$152)-ROW(I$4)+2),COUNTIF($I$4:$I73,$I73)))) -> 23 | E73: =IF($B73="","",IF(ISNA(VLOOKUP($C73,'[2]Day 1 (All)'!$Y$3:$Z$300,1,FALSE))=TRUE,0,VLOOKUP($D73,'[2]Day 1 data entry'!C$3:X$152,19,FALSE))) -> 10 | F73: 0 | G73: 3.333333333 | H73: =IF($B73="","",IF(ISNA(VLOOKUP($C73,'[2]Day 1 (All)'!$Y$3:$Z$300,1,FALSE))=TRUE,0,VLOOKUP($D73,'[2]Day 1 data entry'!C$3:X$152,22,FALSE))) -> DAB | I73: =IF(ISERROR(SMALL('[2]Day 1 (All)'!O$3:O$152,A73))=TRUE,"",(SMALL('[2]Day 1 (All)'!O$3:O$152,A73))) -> 70
A74: 71 | B74: =IF(I74="","",IF(ISNA(VLOOKUP($D74,'[2]Teams & Anglers'!$B$7:$F$156,1,FALSE))=TRUE,"",VLOOKUP($D74,'[2]Teams & Anglers'!$B$7:$F$1566,4,FALSE))) -> LEE, Phil | C74: =IF(ISNA(VLOOKUP($D74,'[2]Teams & Anglers'!$B$7:$F$156,1,FALSE))=TRUE,"",VLOOKUP($D74,'[2]Teams & Anglers'!$B$7:$F$1566,3,FALSE)) -> 69 | D74: =IF(I74="","",INDEX('[2]Day 1 (All)'!$AA$3:$AA$152,SMALL(IF('[2]Day 1 (All)'!$O$3:$O$152=$I74,ROW('[2]Day 1 (All)'!$O$3:$O$152)-ROW(I$4)+2),COUNTIF($I$4:$I74,$I74)))) -> 33 | E74: =IF($B74="","",IF(ISNA(VLOOKUP($C74,'[2]Day 1 (All)'!$Y$3:$Z$300,1,FALSE))=TRUE,0,VLOOKUP($D74,'[2]Day 1 data entry'!C$3:X$152,19,FALSE))) -> 10 | F74: 0 | G74: 3.333333333 | H74: =IF($B74="","",IF(ISNA(VLOOKUP($C74,'[2]Day 1 (All)'!$Y$3:$Z$300,1,FALSE))=TRUE,0,VLOOKUP($D74,'[2]Day 1 data entry'!C$3:X$152,22,FALSE))) -> DAB | I74: =IF(ISERROR(SMALL('[2]Day 1 (All)'!O$3:O$152,A74))=TRUE,"",(SMALL('[2]Day 1 (All)'!O$3:O$152,A74))) -> 70
A75: 72 | B75: =IF(I75="","",IF(ISNA(VLOOKUP($D75,'[2]Teams & Anglers'!$B$7:$F$156,1,FALSE))=TRUE,"",VLOOKUP($D75,'[2]Teams & Anglers'!$B$7:$F$1566,4,FALSE))) -> RUSSELL, Shane | C75: =IF(ISNA(VLOOKUP($D75,'[2]Teams & Anglers'!$B$7:$F$156,1,FALSE))=TRUE,"",VLOOKUP($D75,'[2]Teams & Anglers'!$B$7:$F$1566,3,FALSE)) -> 98 | D75: =IF(I75="","",INDEX('[2]Day 1 (All)'!$AA$3:$AA$152,SMALL(IF('[2]Day 1 (All)'!$O$3:$O$152=$I75,ROW('[2]Day 1 (All)'!$O$3:$O$152)-ROW(I$4)+2),COUNTIF($I$4:$I75,$I75)))) -> 72 | E75: =IF($B75="","",IF(ISNA(VLOOKUP($C75,'[2]Day 1 (All)'!$Y$3:$Z$300,1,FALSE))=TRUE,0,VLOOKUP($D75,'[2]Day 1 data entry'!C$3:X$152,19,FALSE))) -> 10 | F75: 0 | G75: 3.333333333 | H75: =IF($B75="","",IF(ISNA(VLOOKUP($C75,'[2]Day 1 (All)'!$Y$3:$Z$300,1,FALSE))=TRUE,0,VLOOKUP($D75,'[2]Day 1 data entry'!C$3:X$152,22,FALSE))) -> DAB | I75: =IF(ISERROR(SMALL('[2]Day 1 (All)'!O$3:O$152,A75))=TRUE,"",(SMALL('[2]Day 1 (All)'!O$3:O$152,A75))) -> 70
A76: 73 | B76: =IF(I76="","",IF(ISNA(VLOOKUP($D76,'[2]Teams & Anglers'!$B$7:$F$156,1,FALSE))=TRUE,"",VLOOKUP($D76,'[2]Teams & Anglers'!$B$7:$F$1566,4,FALSE))) -> PARKER, Daniel | C76: =IF(ISNA(VLOOKUP($D76,'[2]Teams & Anglers'!$B$7:$F$156,1,FALSE))=TRUE,"",VLOOKUP($D76,'[2]Teams & Anglers'!$B$7:$F$1566,3,FALSE)) -> 83 | D76: =IF(I76="","",INDEX('[2]Day 1 (All)'!$AA$3:$AA$152,SMALL(IF('[2]Day 1 (All)'!$O$3:$O$152=$I76,ROW('[2]Day 1 (All)'!$O$3:$O$152)-ROW(I$4)+2),COUNTIF($I$4:$I76,$I76)))) -> 80 | E76: =IF($B76="","",IF(ISNA(VLOOKUP($C76,'[2]Day 1 (All)'!$Y$3:$Z$300,1,FALSE))=TRUE,0,VLOOKUP($D76,'[2]Day 1 data entry'!C$3:X$152,19,FALSE))) -> 10 | F76: 0 | G76: 3.333333333 | H76: =IF($B76="","",IF(ISNA(VLOOKUP($C76,'[2]Day 1 (All)'!$Y$3:$Z$300,1,FALSE))=TRUE,0,VLOOKUP($D76,'[2]Day 1 data entry'!C$3:X$152,22,FALSE))) -> DAB | I76: =IF(ISERROR(SMALL('[2]Day 1 (All)'!O$3:O$152,A76))=TRUE,"",(SMALL('[2]Day 1 (All)'!O$3:O$152,A76))) -> 70
A77: 74 | B77: =IF(I77="","",IF(ISNA(VLOOKUP($D77,'[2]Teams & Anglers'!$B$7:$F$156,1,FALSE))=TRUE,"",VLOOKUP($D77,'[2]Teams & Anglers'!$B$7:$F$1566,4,FALSE))) -> BORDIANU, Adrian | C77: =IF(ISNA(VLOOKUP($D77,'[2]Teams & Anglers'!$B$7:$F$156,1,FALSE))=TRUE,"",VLOOKUP($D77,'[2]Teams & Anglers'!$B$7:$F$1566,3,FALSE)) -> 14 | D77: =IF(I77="","",INDEX('[2]Day 1 (All)'!$AA$3:$AA$152,SMALL(IF('[2]Day 1 (All)'!$O$3:$O$152=$I77,ROW('[2]Day 1 (All)'!$O$3:$O$152)-ROW(I$4)+2),COUNTIF($I$4:$I77,$I77)))) -> 91 | E77: =IF($B77="","",IF(ISNA(VLOOKUP($C77,'[2]Day 1 (All)'!$Y$3:$Z$300,1,FALSE))=TRUE,0,VLOOKUP($D77,'[2]Day 1 data entry'!C$3:X$152,19,FALSE))) -> 10 | F77: 0 | G77: 3.333333333 | H77: =IF($B77="","",IF(ISNA(VLOOKUP($C77,'[2]Day 1 (All)'!$Y$3:$Z$300,1,FALSE))=TRUE,0,VLOOKUP($D77,'[2]Day 1 data entry'!C$3:X$152,22,FALSE))) -> DAB | I77: =IF(ISERROR(SMALL('[2]Day 1 (All)'!O$3:O$152,A77))=TRUE,"",(SMALL('[2]Day 1 (All)'!O$3:O$152,A77))) -> 70
A78: 75 | B78: =IF(I78="","",IF(ISNA(VLOOKUP($D78,'[2]Teams & Anglers'!$B$7:$F$156,1,FALSE))=TRUE,"",VLOOKUP($D78,'[2]Teams & Anglers'!$B$7:$F$1566,4,FALSE))) -> BALL, Keith | C78: =IF(ISNA(VLOOKUP($D78,'[2]Teams & Anglers'!$B$7:$F$156,1,FALSE))=TRUE,"",VLOOKUP($D78,'[2]Teams & Anglers'!$B$7:$F$1566,3,FALSE)) -> 8 | D78: =IF(I78="","",INDEX('[2]Day 1 (All)'!$AA$3:$AA$152,SMALL(IF('[2]Day 1 (All)'!$O$3:$O$152=$I78,ROW('[2]Day 1 (All)'!$O$3:$O$152)-ROW(I$4)+2),COUNTIF($I$4:$I78,$I78)))) -> 97 | E78: =IF($B78="","",IF(ISNA(VLOOKUP($C78,'[2]Day 1 (All)'!$Y$3:$Z$300,1,FALSE))=TRUE,0,VLOOKUP($D78,'[2]Day 1 data entry'!C$3:X$152,19,FALSE))) -> 10 | F78: 0 | G78: 3.333333333 | H78: =IF($B78="","",IF(ISNA(VLOOKUP($C78,'[2]Day 1 (All)'!$Y$3:$Z$300,1,FALSE))=TRUE,0,VLOOKUP($D78,'[2]Day 1 data entry'!C$3:X$152,22,FALSE))) -> DAB | I78: =IF(ISERROR(SMALL('[2]Day 1 (All)'!O$3:O$152,A78))=TRUE,"",(SMALL('[2]Day 1 (All)'!O$3:O$152,A78))) -> 70
A79: 76 | B79: =IF(I79="","",IF(ISNA(VLOOKUP($D79,'[2]Teams & Anglers'!$B$7:$F$156,1,FALSE))=TRUE,"",VLOOKUP($D79,'[2]Teams & Anglers'!$B$7:$F$1566,4,FALSE))) -> PROVINS, Colin | C79: =IF(ISNA(VLOOKUP($D79,'[2]Teams & Anglers'!$B$7:$F$156,1,FALSE))=TRUE,"",VLOOKUP($D79,'[2]Teams & Anglers'!$B$7:$F$1566,3,FALSE)) -> 93 | D79: =IF(I79="","",INDEX('[2]Day 1 (All)'!$AA$3:$AA$152,SMALL(IF('[2]Day 1 (All)'!$O$3:$O$152=$I79,ROW('[2]Day 1 (All)'!$O$3:$O$152)-ROW(I$4)+2),COUNTIF($I$4:$I79,$I79)))) -> 110 | E79: =IF($B79="","",IF(ISNA(VLOOKUP($C79,'[2]Day 1 (All)'!$Y$3:$Z$300,1,FALSE))=TRUE,0,VLOOKUP($D79,'[2]Day 1 data entry'!C$3:X$152,19,FALSE))) -> 10 | F79: 0 | G79: 3.333333333 | H79: =IF($B79="","",IF(ISNA(VLOOKUP($C79,'[2]Day 1 (All)'!$Y$3:$Z$300,1,FALSE))=TRUE,0,VLOOKUP($D79,'[2]Day 1 data entry'!C$3:X$152,22,FALSE))) -> DAB | I79: =IF(ISERROR(SMALL('[2]Day 1 (All)'!O$3:O$152,A79))=TRUE,"",(SMALL('[2]Day 1 (All)'!O$3:O$152,A79))) -> 70
A80: 77 | B80: =IF(I80="","",IF(ISNA(VLOOKUP($D80,'[2]Teams & Anglers'!$B$7:$F$156,1,FALSE))=TRUE,"",VLOOKUP($D80,'[2]Teams & Anglers'!$B$7:$F$1566,4,FALSE))) -> WELLS, Thomas | C80: =IF(ISNA(VLOOKUP($D80,'[2]Teams & Anglers'!$B$7:$F$156,1,FALSE))=TRUE,"",VLOOKUP($D80,'[2]Teams & Anglers'!$B$7:$F$1566,3,FALSE)) -> 120 | D80: =IF(I80="","",INDEX('[2]Day 1 (All)'!$AA$3:$AA$152,SMALL(IF('[2]Day 1 (All)'!$O$3:$O$152=$I80,ROW('[2]Day 1 (All)'!$O$3:$O$152)-ROW(I$4)+2),COUNTIF($I$4:$I80,$I80)))) -> 52 | E80: =IF($B80="","",IF(ISNA(VLOOKUP($C80,'[2]Day 1 (All)'!$Y$3:$Z$300,1,FALSE))=TRUE,0,VLOOKUP($D80,'[2]Day 1 data entry'!C$3:X$152,19,FALSE))) -> 8 | F80: 0 | G80: 2.666666667 | H80: =IF($B80="","",IF(ISNA(VLOOKUP($C80,'[2]Day 1 (All)'!$Y$3:$Z$300,1,FALSE))=TRUE,0,VLOOKUP($D80,'[2]Day 1 data entry'!C$3:X$152,22,FALSE))) -> DAB | I80: =IF(ISERROR(SMALL('[2]Day 1 (All)'!O$3:O$152,A80))=TRUE,"",(SMALL('[2]Day 1 (All)'!O$3:O$152,A80))) -> 77
A81: 78 | B81: =IF(I81="","",IF(ISNA(VLOOKUP($D81,'[2]Teams & Anglers'!$B$7:$F$156,1,FALSE))=TRUE,"",VLOOKUP($D81,'[2]Teams & Anglers'!$B$7:$F$1566,4,FALSE))) -> PRICE, Ben | C81: =IF(ISNA(VLOOKUP($D81,'[2]Teams & Anglers'!$B$7:$F$156,1,FALSE))=TRUE,"",VLOOKUP($D81,'[2]Teams & Anglers'!$B$7:$F$1566,3,FALSE)) -> 91 | D81: =IF(I81="","",INDEX('[2]Day 1 (All)'!$AA$3:$AA$152,SMALL(IF('[2]Day 1 (All)'!$O$3:$O$152=$I81,ROW('[2]Day 1 (All)'!$O$3:$O$152)-ROW(I$4)+2),COUNTIF($I$4:$I81,$I81)))) -> 85 | E81: =IF($B81="","",IF(ISNA(VLOOKUP($C81,'[2]Day 1 (All)'!$Y$3:$Z$300,1,FALSE))=TRUE,0,VLOOKUP($D81,'[2]Day 1 data entry'!C$3:X$152,19,FALSE))) -> 8 | F81: 0 | G81: 2.666666667 | H81: =IF($B81="","",IF(ISNA(VLOOKUP($C81,'[2]Day 1 (All)'!$Y$3:$Z$300,1,FALSE))=TRUE,0,VLOOKUP($D81,'[2]Day 1 data entry'!C$3:X$152,22,FALSE))) -> DAB | I81: =IF(ISERROR(SMALL('[2]Day 1 (All)'!O$3:O$152,A81))=TRUE,"",(SMALL('[2]Day 1 (All)'!O$3:O$152,A81))) -> 77
A82: 79 | B82: =IF(I82="","",IF(ISNA(VLOOKUP($D82,'[2]Teams & Anglers'!$B$7:$F$156,1,FALSE))=TRUE,"",VLOOKUP($D82,'[2]Teams & Anglers'!$B$7:$F$1566,4,FALSE))) -> PARKER, Gavin | C82: =IF(ISNA(VLOOKUP($D82,'[2]Teams & Anglers'!$B$7:$F$156,1,FALSE))=TRUE,"",VLOOKUP($D82,'[2]Teams & Anglers'!$B$7:$F$1566,3,FALSE)) -> 84 | D82: =IF(I82="","",INDEX('[2]Day 1 (All)'!$AA$3:$AA$152,SMALL(IF('[2]Day 1 (All)'!$O$3:$O$152=$I82,ROW('[2]Day 1 (All)'!$O$3:$O$152)-ROW(I$4)+2),COUNTIF($I$4:$I82,$I82)))) -> 90 | E82: =IF($B82="","",IF(ISNA(VLOOKUP($C82,'[2]Day 1 (All)'!$Y$3:$Z$300,1,FALSE))=TRUE,0,VLOOKUP($D82,'[2]Day 1 data entry'!C$3:X$152,19,FALSE))) -> 8 | F82: 0 | G82: 2.666666667 | H82: =IF($B82="","",IF(ISNA(VLOOKUP($C82,'[2]Day 1 (All)'!$Y$3:$Z$300,1,FALSE))=TRUE,0,VLOOKUP($D82,'[2]Day 1 data entry'!C$3:X$152,22,FALSE))) -> DAB | I82: =IF(ISERROR(SMALL('[2]Day 1 (All)'!O$3:O$152,A82))=TRUE,"",(SMALL('[2]Day 1 (All)'!O$3:O$152,A82))) -> 77
A83: 80 | B83: =IF(I83="","",IF(ISNA(VLOOKUP($D83,'[2]Teams & Anglers'!$B$7:$F$156,1,FALSE))=TRUE,"",VLOOKUP($D83,'[2]Teams & Anglers'!$B$7:$F$1566,4,FALSE))) -> DOY, Alan | C83: =IF(ISNA(VLOOKUP($D83,'[2]Teams & Anglers'!$B$7:$F$156,1,FALSE))=TRUE,"",VLOOKUP($D83,'[2]Teams & Anglers'!$B$7:$F$1566,3,FALSE)) -> 35 | D83: =IF(I83="","",INDEX('[2]Day 1 (All)'!$AA$3:$AA$152,SMALL(IF('[2]Day 1 (All)'!$O$3:$O$152=$I83,ROW('[2]Day 1 (All)'!$O$3:$O$152)-ROW(I$4)+2),COUNTIF($I$4:$I83,$I83)))) -> 95 | E83: =IF($B83="","",IF(ISNA(VLOOKUP($C83,'[2]Day 1 (All)'!$Y$3:$Z$300,1,FALSE))=TRUE,0,VLOOKUP($D83,'[2]Day 1 data entry'!C$3:X$152,19,FALSE))) -> 8 | F83: 0 | G83: 2.666666667 | H83: =IF($B83="","",IF(ISNA(VLOOKUP($C83,'[2]Day 1 (All)'!$Y$3:$Z$300,1,FALSE))=TRUE,0,VLOOKUP($D83,'[2]Day 1 data entry'!C$3:X$152,22,FALSE))) -> DAB | I83: =IF(ISERROR(SMALL('[2]Day 1 (All)'!O$3:O$152,A83))=TRUE,"",(SMALL('[2]Day 1 (All)'!O$3:O$152,A83))) -> 77
A84: 81 | B84: =IF(I84="","",IF(ISNA(VLOOKUP($D84,'[2]Teams & Anglers'!$B$7:$F$156,1,FALSE))=TRUE,"",VLOOKUP($D84,'[2]Teams & Anglers'!$B$7:$F$1566,4,FALSE))) -> GASCOIGNE, Robert | C84: =IF(ISNA(VLOOKUP($D84,'[2]Teams & Anglers'!$B$7:$F$156,1,FALSE))=TRUE,"",VLOOKUP($D84,'[2]Teams & Anglers'!$B$7:$F$1566,3,FALSE)) -> 45 | D84: =IF(I84="","",INDEX('[2]Day 1 (All)'!$AA$3:$AA$152,SMALL(IF('[2]Day 1 (All)'!$O$3:$O$152=$I84,ROW('[2]Day 1 (All)'!$O$3:$O$152)-ROW(I$4)+2),COUNTIF($I$4:$I84,$I84)))) -> 98 | E84: =IF($B84="","",IF(ISNA(VLOOKUP($C84,'[2]Day 1 (All)'!$Y$3:$Z$300,1,FALSE))=TRUE,0,VLOOKUP($D84,'[2]Day 1 data entry'!C$3:X$152,19,FALSE))) -> 8 | F84: 0 | G84: 2.666666667 | H84: =IF($B84="","",IF(ISNA(VLOOKUP($C84,'[2]Day 1 (All)'!$Y$3:$Z$300,1,FALSE))=TRUE,0,VLOOKUP($D84,'[2]Day 1 data entry'!C$3:X$152,22,FALSE))) -> DAB | I84: =IF(ISERROR(SMALL('[2]Day 1 (All)'!O$3:O$152,A84))=TRUE,"",(SMALL('[2]Day 1 (All)'!O$3:O$152,A84))) -> 77
A85: 82 | B85: =IF(I85="","",IF(ISNA(VLOOKUP($D85,'[2]Teams & Anglers'!$B$7:$F$156,1,FALSE))=TRUE,"",VLOOKUP($D85,'[2]Teams & Anglers'!$B$7:$F$1566,4,FALSE))) -> KNIGHT, Simon | C85: =IF(ISNA(VLOOKUP($D85,'[2]Teams & Anglers'!$B$7:$F$156,1,FALSE))=TRUE,"",VLOOKUP($D85,'[2]Teams & Anglers'!$B$7:$F$1566,3,FALSE)) -> 64 | D85: =IF(I85="","",INDEX('[2]Day 1 (All)'!$AA$3:$AA$152,SMALL(IF('[2]Day 1 (All)'!$O$3:$O$152=$I85,ROW('[2]Day 1 (All)'!$O$3:$O$152)-ROW(I$4)+2),COUNTIF($I$4:$I85,$I85)))) -> 121 | E85: =IF($B85="","",IF(ISNA(VLOOKUP($C85,'[2]Day 1 (All)'!$Y$3:$Z$300,1,FALSE))=TRUE,0,VLOOKUP($D85,'[2]Day 1 data entry'!C$3:X$152,19,FALSE))) -> 8 | F85: 0 | G85: 2.666666667 | H85: =IF($B85="","",IF(ISNA(VLOOKUP($C85,'[2]Day 1 (All)'!$Y$3:$Z$300,1,FALSE))=TRUE,0,VLOOKUP($D85,'[2]Day 1 data entry'!C$3:X$152,22,FALSE))) -> DAB | I85: =IF(ISERROR(SMALL('[2]Day 1 (All)'!O$3:O$152,A85))=TRUE,"",(SMALL('[2]Day 1 (All)'!O$3:O$152,A85))) -> 77
A86: 83 | B86: =IF(I86="","",IF(ISNA(VLOOKUP($D86,'[2]Teams & Anglers'!$B$7:$F$156,1,FALSE))=TRUE,"",VLOOKUP($D86,'[2]Teams & Anglers'!$B$7:$F$1566,4,FALSE))) -> THOMAS, Tony | C86: =IF(ISNA(VLOOKUP($D86,'[2]Teams & Anglers'!$B$7:$F$156,1,FALSE))=TRUE,"",VLOOKUP($D86,'[2]Teams & Anglers'!$B$7:$F$1566,3,FALSE)) -> 111 | D86: =IF(I86="","",INDEX('[2]Day 1 (All)'!$AA$3:$AA$152,SMALL(IF('[2]Day 1 (All)'!$O$3:$O$152=$I86,ROW('[2]Day 1 (All)'!$O$3:$O$152)-ROW(I$4)+2),COUNTIF($I$4:$I86,$I86)))) -> 37 | E86: =IF($B86="","",IF(ISNA(VLOOKUP($C86,'[2]Day 1 (All)'!$Y$3:$Z$300,1,FALSE))=TRUE,0,VLOOKUP($D86,'[2]Day 1 data entry'!C$3:X$152,19,FALSE))) -> 7 | F86: 0 | G86: 2.333333333 | H86: =IF($B86="","",IF(ISNA(VLOOKUP($C86,'[2]Day 1 (All)'!$Y$3:$Z$300,1,FALSE))=TRUE,0,VLOOKUP($D86,'[2]Day 1 data entry'!C$3:X$152,22,FALSE))) -> DAB | I86: =IF(ISERROR(SMALL('[2]Day 1 (All)'!O$3:O$152,A86))=TRUE,"",(SMALL('[2]Day 1 (All)'!O$3:O$152,A86))) -> 83
A87: 84 | B87: =IF(I87="","",IF(ISNA(VLOOKUP($D87,'[2]Teams & Anglers'!$B$7:$F$156,1,FALSE))=TRUE,"",VLOOKUP($D87,'[2]Teams & Anglers'!$B$7:$F$1566,4,FALSE))) -> LINDFIELD, Bill | C87: =IF(ISNA(VLOOKUP($D87,'[2]Teams & Anglers'!$B$7:$F$156,1,FALSE))=TRUE,"",VLOOKUP($D87,'[2]Teams & Anglers'!$B$7:$F$1566,3,FALSE)) -> 71 | D87: =IF(I87="","",INDEX('[2]Day 1 (All)'!$AA$3:$AA$152,SMALL(IF('[2]Day 1 (All)'!$O$3:$O$152=$I87,ROW('[2]Day 1 (All)'!$O$3:$O$152)-ROW(I$4)+2),COUNTIF($I$4:$I87,$I87)))) -> 59 | E87: =IF($B87="","",IF(ISNA(VLOOKUP($C87,'[2]Day 1 (All)'!$Y$3:$Z$300,1,FALSE))=TRUE,0,VLOOKUP($D87,'[2]Day 1 data entry'!C$3:X$152,19,FALSE))) -> 7 | F87: 0 | G87: 2.333333333 | H87: =IF($B87="","",IF(ISNA(VLOOKUP($C87,'[2]Day 1 (All)'!$Y$3:$Z$300,1,FALSE))=TRUE,0,VLOOKUP($D87,'[2]Day 1 data entry'!C$3:X$152,22,FALSE))) -> DAB | I87: =IF(ISERROR(SMALL('[2]Day 1 (All)'!O$3:O$152,A87))=TRUE,"",(SMALL('[2]Day 1 (All)'!O$3:O$152,A87))) -> 83
A88: 85 | B88: =IF(I88="","",IF(ISNA(VLOOKUP($D88,'[2]Teams & Anglers'!$B$7:$F$156,1,FALSE))=TRUE,"",VLOOKUP($D88,'[2]Teams & Anglers'!$B$7:$F$1566,4,FALSE))) -> BETTINSON, Charles | C88: =IF(ISNA(VLOOKUP($D88,'[2]Teams & Anglers'!$B$7:$F$156,1,FALSE))=TRUE,"",VLOOKUP($D88,'[2]Teams & Anglers'!$B$7:$F$1566,3,FALSE)) -> 12 | D88: =IF(I88="","",INDEX('[2]Day 1 (All)'!$AA$3:$AA$152,SMALL(IF('[2]Day 1 (All)'!$O$3:$O$152=$I88,ROW('[2]Day 1 (All)'!$O$3:$O$152)-ROW(I$4)+2),COUNTIF($I$4:$I88,$I88)))) -> 64 | E88: =IF($B88="","",IF(ISNA(VLOOKUP($C88,'[2]Day 1 (All)'!$Y$3:$Z$300,1,FALSE))=TRUE,0,VLOOKUP($D88,'[2]Day 1 data entry'!C$3:X$152,19,FALSE))) -> 7 | F88: 0 | G88: 2.333333333 | H88: =IF($B88="","",IF(ISNA(VLOOKUP($C88,'[2]Day 1 (All)'!$Y$3:$Z$300,1,FALSE))=TRUE,0,VLOOKUP($D88,'[2]Day 1 data entry'!C$3:X$152,22,FALSE))) -> DAB | I88: =IF(ISERROR(SMALL('[2]Day 1 (All)'!O$3:O$152,A88))=TRUE,"",(SMALL('[2]Day 1 (All)'!O$3:O$152,A88))) -> 83
A89: 86 | B89: =IF(I89="","",IF(ISNA(VLOOKUP($D89,'[2]Teams & Anglers'!$B$7:$F$156,1,FALSE))=TRUE,"",VLOOKUP($D89,'[2]Teams & Anglers'!$B$7:$F$1566,4,FALSE))) -> NELSON, Ian | C89: =IF(ISNA(VLOOKUP($D89,'[2]Teams & Anglers'!$B$7:$F$156,1,FALSE))=TRUE,"",VLOOKUP($D89,'[2]Teams & Anglers'!$B$7:$F$1566,3,FALSE)) -> 79 | D89: =IF(I89="","",INDEX('[2]Day 1 (All)'!$AA$3:$AA$152,SMALL(IF('[2]Day 1 (All)'!$O$3:$O$152=$I89,ROW('[2]Day 1 (All)'!$O$3:$O$152)-ROW(I$4)+2),COUNTIF($I$4:$I89,$I89)))) -> 73 | E89: =IF($B89="","",IF(ISNA(VLOOKUP($C89,'[2]Day 1 (All)'!$Y$3:$Z$300,1,FALSE))=TRUE,0,VLOOKUP($D89,'[2]Day 1 data entry'!C$3:X$152,19,FALSE))) -> 7 | F89: 0 | G89: 2.333333333 | H89: =IF($B89="","",IF(ISNA(VLOOKUP($C89,'[2]Day 1 (All)'!$Y$3:$Z$300,1,FALSE))=TRUE,0,VLOOKUP($D89,'[2]Day 1 data entry'!C$3:X$152,22,FALSE))) -> DAB | I89: =IF(ISERROR(SMALL('[2]Day 1 (All)'!O$3:O$152,A89))=TRUE,"",(SMALL('[2]Day 1 (All)'!O$3:O$152,A89))) -> 83
A90: 87 | B90: =IF(I90="","",IF(ISNA(VLOOKUP($D90,'[2]Teams & Anglers'!$B$7:$F$156,1,FALSE))=TRUE,"",VLOOKUP($D90,'[2]Teams & Anglers'!$B$7:$F$1566,4,FALSE))) -> DENHOLM, Paul | C90: =IF(ISNA(VLOOKUP($D90,'[2]Teams & Anglers'!$B$7:$F$156,1,FALSE))=TRUE,"",VLOOKUP($D90,'[2]Teams & Anglers'!$B$7:$F$1566,3,FALSE)) -> 32 | D90: =IF(I90="","",INDEX('[2]Day 1 (All)'!$AA$3:$AA$152,SMALL(IF('[2]Day 1 (All)'!$O$3:$O$152=$I90,ROW('[2]Day 1 (All)'!$O$3:$O$152)-ROW(I$4)+2),COUNTIF($I$4:$I90,$I90)))) -> 38 | E90: =IF($B90="","",IF(ISNA(VLOOKUP($C90,'[2]Day 1 (All)'!$Y$3:$Z$300,1,FALSE))=TRUE,0,VLOOKUP($D90,'[2]Day 1 data entry'!C$3:X$152,19,FALSE))) -> 6 | F90: 0 | G90: 2 | H90: =IF($B90="","",IF(ISNA(VLOOKUP($C90,'[2]Day 1 (All)'!$Y$3:$Z$300,1,FALSE))=TRUE,0,VLOOKUP($D90,'[2]Day 1 data entry'!C$3:X$152,22,FALSE))) -> DAB | I90: =IF(ISERROR(SMALL('[2]Day 1 (All)'!O$3:O$152,A90))=TRUE,"",(SMALL('[2]Day 1 (All)'!O$3:O$152,A90))) -> 87
A91: 88 | B91: =IF(I91="","",IF(ISNA(VLOOKUP($D91,'[2]Teams & Anglers'!$B$7:$F$156,1,FALSE))=TRUE,"",VLOOKUP($D91,'[2]Teams & Anglers'!$B$7:$F$1566,4,FALSE))) -> FRENCH, Julian | C91: =IF(ISNA(VLOOKUP($D91,'[2]Teams & Anglers'!$B$7:$F$156,1,FALSE))=TRUE,"",VLOOKUP($D91,'[2]Teams & Anglers'!$B$7:$F$1566,3,FALSE)) -> 42 | D91: =IF(I91="","",INDEX('[2]Day 1 (All)'!$AA$3:$AA$152,SMALL(IF('[2]Day 1 (All)'!$O$3:$O$152=$I91,ROW('[2]Day 1 (All)'!$O$3:$O$152)-ROW(I$4)+2),COUNTIF($I$4:$I91,$I91)))) -> 79 | E91: =IF($B91="","",IF(ISNA(VLOOKUP($C91,'[2]Day 1 (All)'!$Y$3:$Z$300,1,FALSE))=TRUE,0,VLOOKUP($D91,'[2]Day 1 data entry'!C$3:X$152,19,FALSE))) -> 6 | F91: 0 | G91: 2 | H91: =IF($B91="","",IF(ISNA(VLOOKUP($C91,'[2]Day 1 (All)'!$Y$3:$Z$300,1,FALSE))=TRUE,0,VLOOKUP($D91,'[2]Day 1 data entry'!C$3:X$152,22,FALSE))) -> DAB | I91: =IF(ISERROR(SMALL('[2]Day 1 (All)'!O$3:O$152,A91))=TRUE,"",(SMALL('[2]Day 1 (All)'!O$3:O$152,A91))) -> 87
A92: 89 | B92: =IF(I92="","",IF(ISNA(VLOOKUP($D92,'[2]Teams & Anglers'!$B$7:$F$156,1,FALSE))=TRUE,"",VLOOKUP($D92,'[2]Teams & Anglers'!$B$7:$F$1566,4,FALSE))) -> WICKS, Maralyn | C92: =IF(ISNA(VLOOKUP($D92,'[2]Teams & Anglers'!$B$7:$F$156,1,FALSE))=TRUE,"",VLOOKUP($D92,'[2]Teams & Anglers'!$B$7:$F$1566,3,FALSE)) -> 122 | D92: =IF(I92="","",INDEX('[2]Day 1 (All)'!$AA$3:$AA$152,SMALL(IF('[2]Day 1 (All)'!$O$3:$O$152=$I92,ROW('[2]Day 1 (All)'!$O$3:$O$152)-ROW(I$4)+2),COUNTIF($I$4:$I92,$I92)))) -> 112 | E92: =IF($B92="","",IF(ISNA(VLOOKUP($C92,'[2]Day 1 (All)'!$Y$3:$Z$300,1,FALSE))=TRUE,0,VLOOKUP($D92,'[2]Day 1 data entry'!C$3:X$152,19,FALSE))) -> 5 | F92: 0 | G92: 1.666666667 | H92: =IF($B92="","",IF(ISNA(VLOOKUP($C92,'[2]Day 1 (All)'!$Y$3:$Z$300,1,FALSE))=TRUE,0,VLOOKUP($D92,'[2]Day 1 data entry'!C$3:X$152,22,FALSE))) -> DAB | I92: =IF(ISERROR(SMALL('[2]Day 1 (All)'!O$3:O$152,A92))=TRUE,"",(SMALL('[2]Day 1 (All)'!O$3:O$152,A92))) -> 89

Sheet Bass Fest. Day 2 Heaviest Flat
B1: BASS FESTIVAL 2020-21 | E1: Day 2 - Heaviest Flat
A2: Individual No. | B2: Angler Name | C2: Angler No. | D2: Peg | E2: Fish Points | F2: Weight | H2: Species | I2: Day 2 Position
F3: lbs | G3: oz
A4: 1 | B4: COOPER, Sam | C4: 25 | D4: 65 | E4: 64 | F4: 1 | G4: 5.333333333 | H4: FLOUNDER | I4: 1
A5: 2 | B5: TUCK, Rob | C5: 116 | D5: 77 | E5: 64 | F5: 1 | G5: 5.333333333 | H5: FLOUNDER | I5: 1
A6: 3 | B6: CROSBY, Ralf | C6: 29 | D6: 13 | E6: 56 | F6: 1 | G6: 2.666666667 | H6: FLOUNDER | I6: 3
A7: 4 | B7: STEBBINGS, Robert | C7: 108 | D7: 83 | E7: 52 | F7: 1 | G7: 1.333333333 | H7: FLOUNDER | I7: 4
A8: 5 | B8: BALL, Keith | C8: 8 | D8: 11 | E8: 48 | F8: 1 | G8: 0 | H8: FLOUNDER | I8: 5
A9: 6 | B9: MOORING, Luke | C9: 76 | D9: 62 | E9: 48 | F9: 1 | G9: 0 | H9: FLOUNDER | I9: 5
A10: 7 | B10: SHORTHOUSE, Dave | C10: 102 | D10: 12 | E10: 44 | F10: 0 | G10: 14.66666667 | H10: FLOUNDER | I10: 7
A11: 8 | B11: PEARCE, Vic | C11: 85 | D11: 21 | E11: 44 | F11: 0 | G11: 14.66666667 | H11: FLOUNDER | I11: 7
A12: 9 | B12: LINDFIELD, Bill | C12: 71 | D12: 95 | E12: 44 | F12: 0 | G12: 14.66666667 | H12: FLOUNDER | I12: 7
A13: 10 | B13: FRENCH, Julian | C13: 42 | D13: 24 | E13: 40 | F13: 0 | G13: 13.33333333 | H13: FLOUNDER | I13: 10
A14: 11 | B14: PERRY, Joe | C14: 87 | D14: 25 | E14: 40 | F14: 0 | G14: 13.33333333 | H14: FLOUNDER | I14: 10
A15: 12 | B15: TAYLOR, Mark | C15: 110 | D15: 8 | E15: 36 | F15: 0 | G15: 12 | H15: FLOUNDER | I15: 12
A16: 13 | B16: SMITH, George | C16: 104 | D16: 128 | E16: 36 | F16: 0 | G16: 12 | H16: SOLE | I16: 12
A17: 14 | B17: BANHAM, Jason | C17: 10 | D17: 6 | E17: 32 | F17: 0 | G17: 10.66666667 | H17: DAB | I17: 14
A18: 15 | B18: NANGLE, Karl | C18: 78 | D18: 18 | E18: 32 | F18: 0 | G18: 10.66666667 | H18: FLOUNDER | I18: 14
A19: 16 | B19: DAWBER, Simon | C19: 31 | D19: 69 | E19: 32 | F19: 0 | G19: 10.66666667 | H19: FLOUNDER | I19: 14
A20: 17 | B20: GOOCH, Mark | C20: 47 | D20: 82 | E20: 32 | F20: 0 | G20: 10.66666667 | H20: FLOUNDER | I20: 14
A21: 18 | B21: GARDINER, Gareth | C21: 44 | D21: 1 | E21: 28 | F21: 0 | G21: 9.333333333 | H21: FLOUNDER | I21: 18
A22: 19 | B22: FALK, Dave | C22: 39 | D22: 32 | E22: 28 | F22: 0 | G22: 9.333333333 | H22: FLOUNDER | I22: 18
A23: 20 | B23: GREEN, Kevin | C23: 48 | D23: 61 | E23: 28 | F23: 0 | G23: 9.333333333 | H23: FLOUNDER | I23: 18
A24: 21 | B24: ELLIOTT, Nathan | C24: 38 | D24: 64 | E24: 28 | F24: 0 | G24: 9.333333333 | H24: FLOUNDER | I24: 18
A25: 22 | B25: PAGE, Saul | C25: 81 | D25: 66 | E25: 28 | F25: 0 | G25: 9.333333333 | H25: FLOUNDER | I25: 18
A26: 23 | B26: AUSTIN, John | C26: 7 | D26: 74 | E26: 28 | F26: 0 | G26: 9.333333333 | H26: DAB | I26: 18
A27: 24 | B27: HIGHFIELD, Nik | C27: 55 | D27: 78 | E27: 28 | F27: 0 | G27: 9.333333333 | H27: DAB | I27: 18
A28: 25 | B28: GALLACHER, Andy | C28: 43 | D28: 119 | E28: 28 | F28: 0 | G28: 9.333333333 | H28: DAB | I28: 18
A29: 26 | B29: PEMBERTON, Andy | C29: 86 | D29: 5 | E29: 24 | F29: 0 | G29: 8 | H29: FLOUNDER | I29: 26
A30: 27 | B30: PRICE, Ben | C30: 91 | D30: 41 | E30: 24 | F30: 0 | G30: 8 | H30: DAB | I30: 26
A31: 28 | B31: SMITH, Stephen | C31: 106 | D31: 53 | E31: 24 | F31: 0 | G31: 8 | H31: FLOUNDER | I31: 26
A32: 29 | B32: HAZELGROVE, Gary | C32: 53 | D32: 55 | E32: 24 | F32: 0 | G32: 8 | H32: DAB | I32: 26
A33: 30 | B33: PARKER, Daniel | C33: 83 | D33: 57 | E33: 24 | F33: 0 | G33: 8 | H33: FLOUNDER | I33: 26
A34: 31 | B34: ROYALL, Tony | C34: 97 | D34: 63 | E34: 24 | F34: 0 | G34: 8 | H34: DAB | I34: 26
A35: 32 | B35: COTTER, Brett | C35: 26 | D35: 73 | E35: 24 | F35: 0 | G35: 8 | H35: DAB | I35: 26
A36: 33 | B36: DENHOLM, Paul | C36: 32 | D36: 80 | E36: 24 | F36: 0 | G36: 8 | H36: DAB | I36: 26
A37: 34 | B37: WELLS, Thomas | C37: 120 | D37: 91 | E37: 24 | F37: 0 | G37: 8 | H37: FLOUNDER | I37: 26
A38: 35 | B38: THORNTON, Lee | C38: 112 | D38: 94 | E38: 24 | F38: 0 | G38: 8 | H38: DAB | I38: 26
A39: 36 | B39: CROSBY, Colin | C39: 28 | D39: 121 | E39: 24 | F39: 0 | G39: 8 | H39: DAB | I39: 26
A40: 37 | B40: BUY, Craig | C40: 21 | D40: 122 | E40: 24 | F40: 0 | G40: 8 | H40: DAB | I40: 26
A41: 38 | B41: BOND, Darren | C41: 13 | D41: 127 | E41: 24 | F41: 0 | G41: 8 | H41: DAB | I41: 26
A42: 39 | B42: GASCOIGNE, Robert | C42: 45 | D42: 9 | E42: 21 | F42: 0 | G42: 7 | H42: FLOUNDER | I42: 39
A43: 40 | B43: MARTLAND, Kev | C43: 73 | D43: 10 | E43: 21 | F43: 0 | G43: 7 | H43: FLOUNDER | I43: 39
A44: 41 | B44: WRIGHT, Dave | C44: 123 | D44: 27 | E44: 21 | F44: 0 | G44: 7 | H44: FLOUNDER | I44: 39
A45: 42 | B45: WOOD, Gary | C45: 124 | D45: 31 | E45: 21 | F45: 0 | G45: 7 | H45: DAB | I45: 39
A46: 43 | B46: ADAMS, Stephen | C46: 2 | D46: 51 | E46: 21 | F46: 0 | G46: 7 | H46: FLOUNDER | I46: 39
A47: 44 | B47: LEE, Phil | C47: 69 | D47: 71 | E47: 21 | F47: 0 | G47: 7 | H47: FLOUNDER | I47: 39
A48: 45 | B48: DRAYTON, Simon | C48: 36 | D48: 84 | E48: 21 | F48: 0 | G48: 7 | H48: DAB | I48: 39
A49: 46 | B49: BURT, Richard | C49: 20 | D49: 88 | E49: 21 | F49: 0 | G49: 7 | H49: FLOUNDER | I49: 39
A50: 47 | B50: COOPER, Phillip | C50: 24 | D50: 89 | E50: 21 | F50: 0 | G50: 7 | H50: DAB | I50: 39
A51: 48 | B51: CLEMENT, Alby | C51: 23 | D51: 93 | E51: 21 | F51: 0 | G51: 7 | H51: DAB | I51: 39
A52: 49 | B52: ARCH, Joe | C52: 6 | D52: 97 | E52: 21 | F52: 0 | G52: 7 | H52: DAB | I52: 39
A53: 50 | B53: ROGERS, Mark | C53: 95 | D53: 99 | E53: 21 | F53: 0 | G53: 7 | H53: DAB | I53: 39
A54: 51 | B54: YALLOP, Stephen | C54: 126 | D54: 100 | E54: 21 | F54: 0 | G54: 7 | H54: DAB | I54: 39
A55: 52 | B55: DIAPER, Greg | C55: 34 | D55: 105 | E55: 21 | F55: 0 | G55: 7 | H55: DAB | I55: 39
A56: 53 | B56: LILL, Jarrod | C56: 70 | D56: 111 | E56: 21 | F56: 0 | G56: 7 | H56: FLOUNDER | I56: 39
A57: 54 | B57: McGILLOWAY, Wayne | C57: 75 | D57: 117 | E57: 21 | F57: 0 | G57: 7 | H57: DAB | I57: 39
A58: 55 | B58: SMART, Neil | C58: 103 | D58: 3 | E58: 18 | F58: 0 | G58: 6 | H58: FLOUNDER | I58: 55
A59: 56 | B59: SPALL, Chris | C59: 107 | D59: 4 | E59: 18 | F59: 0 | G59: 6 | H59: DAB | I59: 55
A60: 57 | B60: LEE, Martin | C60: 68 | D60: 17 | E60: 18 | F60: 0 | G60: 6 | H60: DAB | I60: 55
A61: 58 | B61: HUTCHINSON, Dave | C61: 59 | D61: 22 | E61: 18 | F61: 0 | G61: 6 | H61: DAB | I61: 55
A62: 59 | B62: DOY, Alan | C62: 35 | D62: 39 | E62: 18 | F62: 0 | G62: 6 | H62: DAB | I62: 55
A63: 60 | B63: CUTLER, Neil | C63: 30 | D63: 40 | E63: 18 | F63: 0 | G63: 6 | H63: DAB | I63: 55
A64: 61 | B64: HARVEY, Paul | C64: 52 | D64: 44 | E64: 18 | F64: 0 | G64: 6 | H64: DAB | I64: 55
A65: 62 | B65: NELSON, Ian | C65: 79 | D65: 59 | E65: 18 | F65: 0 | G65: 6 | H65: DAB | I65: 55
A66: 63 | B66: DIAPER, Barry | C66: 33 | D66: 67 | E66: 18 | F66: 0 | G66: 6 | H66: DAB | I66: 55
A67: 64 | B67: THOMAS, Tony | C67: 111 | D67: 68 | E67: 18 | F67: 0 | G67: 6 | H67: DAB | I67: 55
A68: 65 | B68: JOHNSON, Billy | C68: 61 | D68: 72 | E68: 18 | F68: 0 | G68: 6 | H68: FLOUNDER | I68: 55
A69: 66 | B69: McCOY, Kenny | C69: 74 | D69: 81 | E69: 18 | F69: 0 | G69: 6 | H69: DAB | I69: 55
A70: 67 | B70: TOPPING, Mike | C70: 115 | D70: 87 | E70: 18 | F70: 0 | G70: 6 | H70: FLOUNDER | I70: 55
A71: 68 | B71: WATTS, Mike | C71: 119 | D71: 103 | E71: 18 | F71: 0 | G71: 6 | H71: DAB | I71: 55
A72: 69 | B72: BANCROFT, Dave | C72: 9 | D72: 109 | E72: 18 | F72: 0 | G72: 6 | H72: DAB | I72: 55
A73: 70 | B73: FRARY, Charlie | C73: 40 | D73: 112 | E73: 18 | F73: 0 | G73: 6 | H73: DAB | I73: 55
A74: 71 | B74: PLUMSTEAD, Joe | C74: 89 | D74: 115 | E74: 18 | F74: 0 | G74: 6 | H74: DAB | I74: 55
A75: 72 | B75: HENNEY, Jimmy | C75: 54 | D75: 118 | E75: 18 | F75: 0 | G75: 6 | H75: DAB | I75: 55
A76: 73 | B76: THORPE, Doug | C76: 113 | D76: 123 | E76: 18 | F76: 0 | G76: 6 | H76: DAB | I76: 55
A77: 74 | B77: SMITH, Leon | C77: 105 | D77: 125 | E77: 18 | F77: 0 | G77: 6 | H77: DAB | I77: 55
A78: 75 | B78: HARRISON, Paul | C78: 51 | D78: 2 | E78: 16 | F78: 0 | G78: 5.333333333 | H78: DAB | I78: 75
A79: 76 | B79: PRICE, Jimmy | C79: 92 | D79: 15 | E79: 16 | F79: 0 | G79: 5.333333333 | H79: DAB | I79: 75
A80: 77 | B80: KIMBLE, John | C80: 62 | D80: 19 | E80: 16 | F80: 0 | G80: 5.333333333 | H80: DAB | I80: 75
A81: 78 | B81: WICKS, Maralyn | C81: 122 | D81: 26 | E81: 16 | F81: 0 | G81: 5.333333333 | H81: DAB | I81: 75
A82: 79 | B82: PROVINS, Colin | C82: 93 | D82: 30 | E82: 16 | F82: 0 | G82: 5.333333333 | H82: DAB | I82: 75
A83: 80 | B83: SELF, Bevan | C83: 100 | D83: 33 | E83: 16 | F83: 0 | G83: 5.333333333 | H83: BASS | I83: 75
A84: 81 | B84: TURNER, Cameron | C84: 117 | D84: 37 | E84: 16 | F84: 0 | G84: 5.333333333 | H84: DAB | I84: 75
A85: 82 | B85: WHITE, Alan | C85: 121 | D85: 52 | E85: 16 | F85: 0 | G85: 5.333333333 | H85: DAB | I85: 75
A86: 83 | B86: RUSSELL, Shane | C86: 98 | D86: 58 | E86: 16 | F86: 0 | G86: 5.333333333 | H86: DAB | I86: 75
A87: 84 | B87: BOWELL, Ian | C87: 16 | D87: 75 | E87: 16 | F87: 0 | G87: 5.333333333 | H87: FLOUNDER | I87: 75
A88: 85 | B88: TOPPING, Jack | C88: 114 | D88: 86 | E88: 16 | F88: 0 | G88: 5.333333333 | H88: DAB | I88: 75
A89: 86 | B89: SERBAN, Nelu | C89: 101 | D89: 92 | E89: 16 | F89: 0 | G89: 5.333333333 | H89: FLOUNDER | I89: 75
A90: 87 | B90: AKESTER, Jack | C90: 3 | D90: 102 | E90: 16 | F90: 0 | G90: 5.333333333 | H90: DAB | I90: 75
A91: 88 | B91: HIPPERSON, Richard | C91: 57 | D91: 108 | E91: 16 | F91: 0 | G91: 5.333333333 | H91: DAB | I91: 75
A92: 89 | B92: WALES, Joe | C92: 118 | D92: 114 | E92: 16 | F92: 0 | G92: 5.333333333 | H92: DAB | I92: 75
A93: 90 | B93: HANCOX, Karen | C93: 50 | D93: 116 | E93: 16 | F93: 0 | G93: 5.333333333 | H93: DAB | I93: 75
A94: 91 | B94: HADDOCK, Roy | C94: 49 | D94: 120 | E94: 16 | F94: 0 | G94: 5.333333333 | H94: DAB | I94: 75
A95: 92 | B95: HUTSON, Garry | C95: 60 | D95: 126 | E95: 16 | F95: 0 | G95: 5.333333333 | H95: DAB | I95: 75
A96: 93 | B96: ROBERTS, Steve | C96: 94 | D96: 14 | E96: 14 | F96: 0 | G96: 4.666666667 | H96: DAB | I96: 93
A97: 94 | B97: STORER, Paul | C97: 109 | D97: 35 | E97: 14 | F97: 0 | G97: 4.666666667 | H97: DAB | I97: 93
A98: 95 | B98: BORDIANU, Adrian | C98: 14 | D98: 38 | E98: 14 | F98: 0 | G98: 4.666666667 | H98: DAB | I98: 93
A99: 96 | B99: RYDER, Edde | C99: 99 | D99: 49 | E99: 14 | F99: 0 | G99: 4.666666667 | H99: DAB | I99: 93
A100: 97 | B100: PINDER, Mark | C100: 88 | D100: 60 | E100: 14 | F100: 0 | G100: 4.666666667 | H100: DAB | I100: 93
A101: 98 | B101: LAY-FLURRIE, Matt | C101: 66 | D101: 76 | E101: 14 | F101: 0 | G101: 4.666666667 | H101: DAB | I101: 93
A102: 99 | B102: EDWARDS, Lee | C102: 37 | D102: 85 | E102: 14 | F102: 0 | G102: 4.666666667 | H102: DAB | I102: 93
A103: 100 | B103: YALLOP, Oliver | C103: 125 | D103: 90 | E103: 14 | F103: 0 | G103: 4.666666667 | H103: DAB | I103: 93
A104: 101 | B104: FRARY, June | C104: 41 | D104: 113 | E104: 14 | F104: 0 | G104: 4.666666667 | H104: DAB | I104: 93
A105: 102 | B105: LAMBERT, Ian | C105: 65 | D105: 36 | E105: 12 | F105: 0 | G105: 4 | H105: DAB | I105: 102
A106: 103 | B106: PRICE, Alan | C106: 90 | D106: 47 | E106: 12 | F106: 0 | G106: 4 | H106: DAB | I106: 102
A107: 104 | B107: KINGDON, Adam | C107: 63 | D107: 48 | E107: 12 | F107: 0 | G107: 4 | H107: SOLE | I107: 102
A108: 105 | B108: BOTEZATO, Constantin | C108: 15 | D108: 56 | E108: 12 | F108: 0 | G108: 4 | H108: DAB | I108: 102
A109: 106 | B109: CARTER, John | C109: 22 | D109: 110 | E109: 12 | F109: 0 | G109: 4 | H109: DAB | I109: 102
A110: 107 | B110: NICHOLSON, Steven | C110: 80 | D110: 23 | E110: 10 | F110: 0 | G110: 3.333333333 | H110: DAB | I110: 107
A111: 108 | B111: ALDOUS, David | C111: 5 | D111: 28 | E111: 10 | F111: 0 | G111: 3.333333333 | H111: DAB | I111: 107
A112: 109 | B112: BETTINSON, Charles | C112: 12 | D112: 98 | E112: 10 | F112: 0 | G112: 3.333333333 | H112: DAB | I112: 107
A113: 110 | B113: LEE, Louise | C113: 67 | D113: 16 | E113: 8 | F113: 0 | G113: 2.666666667 | H113: DAB | I113: 110

Sheet Final Individual results (hidden)
A1: HSAC North Norfolk Bass Festival 2013 - Final Positions | K1: Individuals data extraction calculations
A2: Angler Name | B2: Angler No | C2: Total No. Fish | D2: Total No. Fish Points | E2: Day 1 Points | F2: Day 2 Points | G2: Total Points | H2: Overall Position | K2: Overall Position | L2: Angler No | M2: Total No. Fish | N2: Total No. Fish Points | O2: Day 1 Points | P2: Day 2 Points | Q2: Total Points
A4: =VLOOKUP($B4,#REF!,2,FALSE) ->  | B4: =VLOOKUP($H4,$K$4:$Q$300,2,FALSE) ->  | C4: =VLOOKUP($H4,$K$4:$Q$300,3,FALSE) ->  | D4: =VLOOKUP($H4,$K$4:$Q$300,4,FALSE) ->  | E4: =VLOOKUP($H4,$K$4:$Q$300,5,FALSE) ->  | F4: =VLOOKUP($H4,$K$4:$Q$300,6,FALSE) ->  | G4: =VLOOKUP($H4,$K$4:$Q$300,7,FALSE) ->  | H4: =IF(ISERROR(H3+1)=TRUE,1,H3+1) -> 1 | K4: =IF(Q4=NpZ*NoZ*2,NpZ*NoZ,RANK(Q4,Q$4:Q$300,1)) ->  | L4: 1 | M4: =IF(ISNA(VLOOKUP($L4,'All Individuals Day 1 (ALL)'!$C$3:$G$277,4,FALSE)+VLOOKUP($L4,#REF!,4,FALSE))=TRUE,"",VLOOKUP($L4,'All Individuals Day 1 (ALL)'!$C$3:$G$277,4,FALSE)+VLOOKUP($L4,#REF!,4,FALSE)) ->  | N4: =IF(ISNA(VLOOKUP($L4,'All Individuals Day 1 (ALL)'!$C$3:$G$277,5,FALSE)+VLOOKUP($L4,#REF!,5,FALSE))=TRUE,"",VLOOKUP($L4,'All Individuals Day 1 (ALL)'!$C$3:$G$277,5,FALSE)+VLOOKUP($L4,#REF!,5,FALSE)) ->  | O4: =IF(ISNA(VLOOKUP($L4,'All Individuals Day 1 (ALL)'!$C$3:$K$277,8,FALSE))=TRUE,"",VLOOKUP($L4,'All Individuals Day 1 (ALL)'!$C$3:$K$277,8,FALSE)) -> 13 | P4: =IF(ISNA(VLOOKUP($L4,#REF!,8,FALSE))=TRUE,"",VLOOKUP($L4,#REF!,8,FALSE)) ->  | Q4: =IF(OR(M4="",M4=0),NpZ*2,(O4+P4)-N4/100000-M4/1000000) -> 
A5: =VLOOKUP($B5,#REF!,2,FALSE) ->  | H5: =IF(ISERROR(H4+1)=TRUE,1,H4+1) -> 2 | L5: 2 | M5: =IF(ISNA(VLOOKUP($L5,'All Individuals Day 1 (ALL)'!$C$3:$G$277,4,FALSE)+VLOOKUP($L5,#REF!,4,FALSE))=TRUE,"",VLOOKUP($L5,'All Individuals Day 1 (ALL)'!$C$3:$G$277,4,FALSE)+VLOOKUP($L5,#REF!,4,FALSE)) ->  | N5: =IF(ISNA(VLOOKUP($L5,'All Individuals Day 1 (ALL)'!$C$3:$G$277,5,FALSE)+VLOOKUP($L5,#REF!,5,FALSE))=TRUE,"",VLOOKUP($L5,'All Individuals Day 1 (ALL)'!$C$3:$G$277,5,FALSE)+VLOOKUP($L5,#REF!,5,FALSE)) ->  | O5: =IF(ISNA(VLOOKUP($L5,'All Individuals Day 1 (ALL)'!$C$3:$K$277,8,FALSE))=TRUE,"",VLOOKUP($L5,'All Individuals Day 1 (ALL)'!$C$3:$K$277,8,FALSE)) -> 5 | P5: =IF(ISNA(VLOOKUP($L5,#REF!,8,FALSE))=TRUE,"",VLOOKUP($L5,#REF!,8,FALSE)) -> 
A6: =VLOOKUP($B6,#REF!,2,FALSE) ->  | H6: 3 | L6: 3 | M6: =IF(ISNA(VLOOKUP($L6,'All Individuals Day 1 (ALL)'!$C$3:$G$277,4,FALSE)+VLOOKUP($L6,#REF!,4,FALSE))=TRUE,"",VLOOKUP($L6,'All Individuals Day 1 (ALL)'!$C$3:$G$277,4,FALSE)+VLOOKUP($L6,#REF!,4,FALSE)) ->  | N6: =IF(ISNA(VLOOKUP($L6,'All Individuals Day 1 (ALL)'!$C$3:$G$277,5,FALSE)+VLOOKUP($L6,#REF!,5,FALSE))=TRUE,"",VLOOKUP($L6,'All Individuals Day 1 (ALL)'!$C$3:$G$277,5,FALSE)+VLOOKUP($L6,#REF!,5,FALSE)) ->  | O6: =IF(ISNA(VLOOKUP($L6,'All Individuals Day 1 (ALL)'!$C$3:$K$277,8,FALSE))=TRUE,"",VLOOKUP($L6,'All Individuals Day 1 (ALL)'!$C$3:$K$277,8,FALSE)) -> 11 | P6: =IF(ISNA(VLOOKUP($L6,#REF!,8,FALSE))=TRUE,"",VLOOKUP($L6,#REF!,8,FALSE)) -> 
A7: =VLOOKUP($B7,#REF!,2,FALSE) ->  | H7: 4 | L7: 4 | M7: =IF(ISNA(VLOOKUP($L7,'All Individuals Day 1 (ALL)'!$C$3:$G$277,4,FALSE)+VLOOKUP($L7,#REF!,4,FALSE))=TRUE,"",VLOOKUP($L7,'All Individuals Day 1 (ALL)'!$C$3:$G$277,4,FALSE)+VLOOKUP($L7,#REF!,4,FALSE)) ->  | N7: =IF(ISNA(VLOOKUP($L7,'All Individuals Day 1 (ALL)'!$C$3:$G$277,5,FALSE)+VLOOKUP($L7,#REF!,5,FALSE))=TRUE,"",VLOOKUP($L7,'All Individuals Day 1 (ALL)'!$C$3:$G$277,5,FALSE)+VLOOKUP($L7,#REF!,5,FALSE)) ->  | O7: =IF(ISNA(VLOOKUP($L7,'All Individuals Day 1 (ALL)'!$C$3:$K$277,8,FALSE))=TRUE,"",VLOOKUP($L7,'All Individuals Day 1 (ALL)'!$C$3:$K$277,8,FALSE)) -> 15 | P7: =IF(ISNA(VLOOKUP($L7,#REF!,8,FALSE))=TRUE,"",VLOOKUP($L7,#REF!,8,FALSE)) -> 
A8: =VLOOKUP($B8,#REF!,2,FALSE) ->  | H8: 5 | L8: 5 | M8: =IF(ISNA(VLOOKUP($L8,'All Individuals Day 1 (ALL)'!$C$3:$G$277,4,FALSE)+VLOOKUP($L8,#REF!,4,FALSE))=TRUE,"",VLOOKUP($L8,'All Individuals Day 1 (ALL)'!$C$3:$G$277,4,FALSE)+VLOOKUP($L8,#REF!,4,FALSE)) ->  | N8: =IF(ISNA(VLOOKUP($L8,'All Individuals Day 1 (ALL)'!$C$3:$G$277,5,FALSE)+VLOOKUP($L8,#REF!,5,FALSE))=TRUE,"",VLOOKUP($L8,'All Individuals Day 1 (ALL)'!$C$3:$G$277,5,FALSE)+VLOOKUP($L8,#REF!,5,FALSE)) ->  | O8: =IF(ISNA(VLOOKUP($L8,'All Individuals Day 1 (ALL)'!$C$3:$K$277,8,FALSE))=TRUE,"",VLOOKUP($L8,'All Individuals Day 1 (ALL)'!$C$3:$K$277,8,FALSE)) -> 6 | P8: =IF(ISNA(VLOOKUP($L8,#REF!,8,FALSE))=TRUE,"",VLOOKUP($L8,#REF!,8,FALSE)) -> 
A9: =VLOOKUP($B9,#REF!,2,FALSE) ->  | H9: 6 | L9: 6 | M9: =IF(ISNA(VLOOKUP($L9,'All Individuals Day 1 (ALL)'!$C$3:$G$277,4,FALSE)+VLOOKUP($L9,#REF!,4,FALSE))=TRUE,"",VLOOKUP($L9,'All Individuals Day 1 (ALL)'!$C$3:$G$277,4,FALSE)+VLOOKUP($L9,#REF!,4,FALSE)) ->  | N9: =IF(ISNA(VLOOKUP($L9,'All Individuals Day 1 (ALL)'!$C$3:$G$277,5,FALSE)+VLOOKUP($L9,#REF!,5,FALSE))=TRUE,"",VLOOKUP($L9,'All Individuals Day 1 (ALL)'!$C$3:$G$277,5,FALSE)+VLOOKUP($L9,#REF!,5,FALSE)) ->  | O9: =IF(ISNA(VLOOKUP($L9,'All Individuals Day 1 (ALL)'!$C$3:$K$277,8,FALSE))=TRUE,"",VLOOKUP($L9,'All Individuals Day 1 (ALL)'!$C$3:$K$277,8,FALSE)) -> 4 | P9: =IF(ISNA(VLOOKUP($L9,#REF!,8,FALSE))=TRUE,"",VLOOKUP($L9,#REF!,8,FALSE)) -> 
A10: =VLOOKUP($B10,#REF!,2,FALSE) ->  | H10: 7 | L10: 7 | M10: =IF(ISNA(VLOOKUP($L10,'All Individuals Day 1 (ALL)'!$C$3:$G$277,4,FALSE)+VLOOKUP($L10,#REF!,4,FALSE))=TRUE,"",VLOOKUP($L10,'All Individuals Day 1 (ALL)'!$C$3:$G$277,4,FALSE)+VLOOKUP($L10,#REF!,4,FALSE)) ->  | N10: =IF(ISNA(VLOOKUP($L10,'All Individuals Day 1 (ALL)'!$C$3:$G$277,5,FALSE)+VLOOKUP($L10,#REF!,5,FALSE))=TRUE,"",VLOOKUP($L10,'All Individuals Day 1 (ALL)'!$C$3:$G$277,5,FALSE)+VLOOKUP($L10,#REF!,5,FALSE)) ->  | O10: =IF(ISNA(VLOOKUP($L10,'All Individuals Day 1 (ALL)'!$C$3:$K$277,8,FALSE))=TRUE,"",VLOOKUP($L10,'All Individuals Day 1 (ALL)'!$C$3:$K$277,8,FALSE)) -> 13 | P10: =IF(ISNA(VLOOKUP($L10,#REF!,8,FALSE))=TRUE,"",VLOOKUP($L10,#REF!,8,FALSE)) -> 
A11: =VLOOKUP($B11,#REF!,2,FALSE) ->  | H11: 8 | L11: 8 | M11: =IF(ISNA(VLOOKUP($L11,'All Individuals Day 1 (ALL)'!$C$3:$G$277,4,FALSE)+VLOOKUP($L11,#REF!,4,FALSE))=TRUE,"",VLOOKUP($L11,'All Individuals Day 1 (ALL)'!$C$3:$G$277,4,FALSE)+VLOOKUP($L11,#REF!,4,FALSE)) ->  | N11: =IF(ISNA(VLOOKUP($L11,'All Individuals Day 1 (ALL)'!$C$3:$G$277,5,FALSE)+VLOOKUP($L11,#REF!,5,FALSE))=TRUE,"",VLOOKUP($L11,'All Individuals Day 1 (ALL)'!$C$3:$G$277,5,FALSE)+VLOOKUP($L11,#REF!,5,FALSE)) ->  | O11: =IF(ISNA(VLOOKUP($L11,'All Individuals Day 1 (ALL)'!$C$3:$K$277,8,FALSE))=TRUE,"",VLOOKUP($L11,'All Individuals Day 1 (ALL)'!$C$3:$K$277,8,FALSE)) -> 15 | P11: =IF(ISNA(VLOOKUP($L11,#REF!,8,FALSE))=TRUE,"",VLOOKUP($L11,#REF!,8,FALSE)) -> 
A12: =VLOOKUP($B12,#REF!,2,FALSE) ->  | H12: 9 | L12: 9 | M12: =IF(ISNA(VLOOKUP($L12,'All Individuals Day 1 (ALL)'!$C$3:$G$277,4,FALSE)+VLOOKUP($L12,#REF!,4,FALSE))=TRUE,"",VLOOKUP($L12,'All Individuals Day 1 (ALL)'!$C$3:$G$277,4,FALSE)+VLOOKUP($L12,#REF!,4,FALSE)) ->  | N12: =IF(ISNA(VLOOKUP($L12,'All Individuals Day 1 (ALL)'!$C$3:$G$277,5,FALSE)+VLOOKUP($L12,#REF!,5,FALSE))=TRUE,"",VLOOKUP($L12,'All Individuals Day 1 (ALL)'!$C$3:$G$277,5,FALSE)+VLOOKUP($L12,#REF!,5,FALSE)) ->  | O12: =IF(ISNA(VLOOKUP($L12,'All Individuals Day 1 (ALL)'!$C$3:$K$277,8,FALSE))=TRUE,"",VLOOKUP($L12,'All Individuals Day 1 (ALL)'!$C$3:$K$277,8,FALSE)) -> 8 | P12: =IF(ISNA(VLOOKUP($L12,#REF!,8,FALSE))=TRUE,"",VLOOKUP($L12,#REF!,8,FALSE)) -> 
A13: =VLOOKUP($B13,#REF!,2,FALSE) ->  | H13: 10 | L13: 10 | M13: =IF(ISNA(VLOOKUP($L13,'All Individuals Day 1 (ALL)'!$C$3:$G$277,4,FALSE)+VLOOKUP($L13,#REF!,4,FALSE))=TRUE,"",VLOOKUP($L13,'All Individuals Day 1 (ALL)'!$C$3:$G$277,4,FALSE)+VLOOKUP($L13,#REF!,4,FALSE)) ->  | N13: =IF(ISNA(VLOOKUP($L13,'All Individuals Day 1 (ALL)'!$C$3:$G$277,5,FALSE)+VLOOKUP($L13,#REF!,5,FALSE))=TRUE,"",VLOOKUP($L13,'All Individuals Day 1 (ALL)'!$C$3:$G$277,5,FALSE)+VLOOKUP($L13,#REF!,5,FALSE)) ->  | O13: =IF(ISNA(VLOOKUP($L13,'All Individuals Day 1 (ALL)'!$C$3:$K$277,8,FALSE))=TRUE,"",VLOOKUP($L13,'All Individuals Day 1 (ALL)'!$C$3:$K$277,8,FALSE)) -> 11 | P13: =IF(ISNA(VLOOKUP($L13,#REF!,8,FALSE))=TRUE,"",VLOOKUP($L13,#REF!,8,FALSE)) -> 
A14: =VLOOKUP($B14,#REF!,2,FALSE) ->  | H14: 11 | L14: 11 | M14: =IF(ISNA(VLOOKUP($L14,'All Individuals Day 1 (ALL)'!$C$3:$G$277,4,FALSE)+VLOOKUP($L14,#REF!,4,FALSE))=TRUE,"",VLOOKUP($L14,'All Individuals Day 1 (ALL)'!$C$3:$G$277,4,FALSE)+VLOOKUP($L14,#REF!,4,FALSE)) ->  | N14: =IF(ISNA(VLOOKUP($L14,'All Individuals Day 1 (ALL)'!$C$3:$G$277,5,FALSE)+VLOOKUP($L14,#REF!,5,FALSE))=TRUE,"",VLOOKUP($L14,'All Individuals Day 1 (ALL)'!$C$3:$G$277,5,FALSE)+VLOOKUP($L14,#REF!,5,FALSE)) ->  | O14: =IF(ISNA(VLOOKUP($L14,'All Individuals Day 1 (ALL)'!$C$3:$K$277,8,FALSE))=TRUE,"",VLOOKUP($L14,'All Individuals Day 1 (ALL)'!$C$3:$K$277,8,FALSE)) -> 13 | P14: =IF(ISNA(VLOOKUP($L14,#REF!,8,FALSE))=TRUE,"",VLOOKUP($L14,#REF!,8,FALSE)) -> 
A15: =VLOOKUP($B15,#REF!,2,FALSE) ->  | H15: 12 | L15: 12 | M15: =IF(ISNA(VLOOKUP($L15,'All Individuals Day 1 (ALL)'!$C$3:$G$277,4,FALSE)+VLOOKUP($L15,#REF!,4,FALSE))=TRUE,"",VLOOKUP($L15,'All Individuals Day 1 (ALL)'!$C$3:$G$277,4,FALSE)+VLOOKUP($L15,#REF!,4,FALSE)) ->  | N15: =IF(ISNA(VLOOKUP($L15,'All Individuals Day 1 (ALL)'!$C$3:$G$277,5,FALSE)+VLOOKUP($L15,#REF!,5,FALSE))=TRUE,"",VLOOKUP($L15,'All Individuals Day 1 (ALL)'!$C$3:$G$277,5,FALSE)+VLOOKUP($L15,#REF!,5,FALSE)) ->  | O15: =IF(ISNA(VLOOKUP($L15,'All Individuals Day 1 (ALL)'!$C$3:$K$277,8,FALSE))=TRUE,"",VLOOKUP($L15,'All Individuals Day 1 (ALL)'!$C$3:$K$277,8,FALSE)) -> 15 | P15: =IF(ISNA(VLOOKUP($L15,#REF!,8,FALSE))=TRUE,"",VLOOKUP($L15,#REF!,8,FALSE)) -> 
A16: =VLOOKUP($B16,#REF!,2,FALSE) ->  | H16: 13 | L16: 13 | M16: =IF(ISNA(VLOOKUP($L16,'All Individuals Day 1 (ALL)'!$C$3:$G$277,4,FALSE)+VLOOKUP($L16,#REF!,4,FALSE))=TRUE,"",VLOOKUP($L16,'All Individuals Day 1 (ALL)'!$C$3:$G$277,4,FALSE)+VLOOKUP($L16,#REF!,4,FALSE)) ->  | N16: =IF(ISNA(VLOOKUP($L16,'All Individuals Day 1 (ALL)'!$C$3:$G$277,5,FALSE)+VLOOKUP($L16,#REF!,5,FALSE))=TRUE,"",VLOOKUP($L16,'All Individuals Day 1 (ALL)'!$C$3:$G$277,5,FALSE)+VLOOKUP($L16,#REF!,5,FALSE)) ->  | O16: =IF(ISNA(VLOOKUP($L16,'All Individuals Day 1 (ALL)'!$C$3:$K$277,8,FALSE))=TRUE,"",VLOOKUP($L16,'All Individuals Day 1 (ALL)'!$C$3:$K$277,8,FALSE)) -> 1 | P16: =IF(ISNA(VLOOKUP($L16,#REF!,8,FALSE))=TRUE,"",VLOOKUP($L16,#REF!,8,FALSE)) -> 
A17: =VLOOKUP($B17,#REF!,2,FALSE) ->  | H17: 14 | L17: 14 | M17: =IF(ISNA(VLOOKUP($L17,'All Individuals Day 1 (ALL)'!$C$3:$G$277,4,FALSE)+VLOOKUP($L17,#REF!,4,FALSE))=TRUE,"",VLOOKUP($L17,'All Individuals Day 1 (ALL)'!$C$3:$G$277,4,FALSE)+VLOOKUP($L17,#REF!,4,FALSE)) ->  | N17: =IF(ISNA(VLOOKUP($L17,'All Individuals Day 1 (ALL)'!$C$3:$G$277,5,FALSE)+VLOOKUP($L17,#REF!,5,FALSE))=TRUE,"",VLOOKUP($L17,'All Individuals Day 1 (ALL)'!$C$3:$G$277,5,FALSE)+VLOOKUP($L17,#REF!,5,FALSE)) ->  | O17: =IF(ISNA(VLOOKUP($L17,'All Individuals Day 1 (ALL)'!$C$3:$K$277,8,FALSE))=TRUE,"",VLOOKUP($L17,'All Individuals Day 1 (ALL)'!$C$3:$K$277,8,FALSE)) -> 11 | P17: =IF(ISNA(VLOOKUP($L17,#REF!,8,FALSE))=TRUE,"",VLOOKUP($L17,#REF!,8,FALSE)) -> 
A18: =VLOOKUP($B18,#REF!,2,FALSE) ->  | H18: 15 | L18: 15 | M18: =IF(ISNA(VLOOKUP($L18,'All Individuals Day 1 (ALL)'!$C$3:$G$277,4,FALSE)+VLOOKUP($L18,#REF!,4,FALSE))=TRUE,"",VLOOKUP($L18,'All Individuals Day 1 (ALL)'!$C$3:$G$277,4,FALSE)+VLOOKUP($L18,#REF!,4,FALSE)) ->  | N18: =IF(ISNA(VLOOKUP($L18,'All Individuals Day 1 (ALL)'!$C$3:$G$277,5,FALSE)+VLOOKUP($L18,#REF!,5,FALSE))=TRUE,"",VLOOKUP($L18,'All Individuals Day 1 (ALL)'!$C$3:$G$277,5,FALSE)+VLOOKUP($L18,#REF!,5,FALSE)) ->  | O18: =IF(ISNA(VLOOKUP($L18,'All Individuals Day 1 (ALL)'!$C$3:$K$277,8,FALSE))=TRUE,"",VLOOKUP($L18,'All Individuals Day 1 (ALL)'!$C$3:$K$277,8,FALSE)) -> 12 | P18: =IF(ISNA(VLOOKUP($L18,#REF!,8,FALSE))=TRUE,"",VLOOKUP($L18,#REF!,8,FALSE)) -> 
A19: =VLOOKUP($B19,#REF!,2,FALSE) ->  | H19: 16 | L19: 16 | M19: =IF(ISNA(VLOOKUP($L19,'All Individuals Day 1 (ALL)'!$C$3:$G$277,4,FALSE)+VLOOKUP($L19,#REF!,4,FALSE))=TRUE,"",VLOOKUP($L19,'All Individuals Day 1 (ALL)'!$C$3:$G$277,4,FALSE)+VLOOKUP($L19,#REF!,4,FALSE)) ->  | N19: =IF(ISNA(VLOOKUP($L19,'All Individuals Day 1 (ALL)'!$C$3:$G$277,5,FALSE)+VLOOKUP($L19,#REF!,5,FALSE))=TRUE,"",VLOOKUP($L19,'All Individuals Day 1 (ALL)'!$C$3:$G$277,5,FALSE)+VLOOKUP($L19,#REF!,5,FALSE)) ->  | O19: =IF(ISNA(VLOOKUP($L19,'All Individuals Day 1 (ALL)'!$C$3:$K$277,8,FALSE))=TRUE,"",VLOOKUP($L19,'All Individuals Day 1 (ALL)'!$C$3:$K$277,8,FALSE)) -> 8 | P19: =IF(ISNA(VLOOKUP($L19,#REF!,8,FALSE))=TRUE,"",VLOOKUP($L19,#REF!,8,FALSE)) -> 
A20: =VLOOKUP($B20,#REF!,2,FALSE) ->  | H20: 17 | L20: 17 | M20: =IF(ISNA(VLOOKUP($L20,'All Individuals Day 1 (ALL)'!$C$3:$G$277,4,FALSE)+VLOOKUP($L20,#REF!,4,FALSE))=TRUE,"",VLOOKUP($L20,'All Individuals Day 1 (ALL)'!$C$3:$G$277,4,FALSE)+VLOOKUP($L20,#REF!,4,FALSE)) ->  | N20: =IF(ISNA(VLOOKUP($L20,'All Individuals Day 1 (ALL)'!$C$3:$G$277,5,FALSE)+VLOOKUP($L20,#REF!,5,FALSE))=TRUE,"",VLOOKUP($L20,'All Individuals Day 1 (ALL)'!$C$3:$G$277,5,FALSE)+VLOOKUP($L20,#REF!,5,FALSE)) ->  | O20: =IF(ISNA(VLOOKUP($L20,'All Individuals Day 1 (ALL)'!$C$3:$K$277,8,FALSE))=TRUE,"",VLOOKUP($L20,'All Individuals Day 1 (ALL)'!$C$3:$K$277,8,FALSE)) -> 16 | P20: =IF(ISNA(VLOOKUP($L20,#REF!,8,FALSE))=TRUE,"",VLOOKUP($L20,#REF!,8,FALSE)) -> 
A21: =VLOOKUP($B21,#REF!,2,FALSE) ->  | H21: 18 | L21: 18 | M21: =IF(ISNA(VLOOKUP($L21,'All Individuals Day 1 (ALL)'!$C$3:$G$277,4,FALSE)+VLOOKUP($L21,#REF!,4,FALSE))=TRUE,"",VLOOKUP($L21,'All Individuals Day 1 (ALL)'!$C$3:$G$277,4,FALSE)+VLOOKUP($L21,#REF!,4,FALSE)) ->  | N21: =IF(ISNA(VLOOKUP($L21,'All Individuals Day 1 (ALL)'!$C$3:$G$277,5,FALSE)+VLOOKUP($L21,#REF!,5,FALSE))=TRUE,"",VLOOKUP($L21,'All Individuals Day 1 (ALL)'!$C$3:$G$277,5,FALSE)+VLOOKUP($L21,#REF!,5,FALSE)) ->  | O21: =IF(ISNA(VLOOKUP($L21,'All Individuals Day 1 (ALL)'!$C$3:$K$277,8,FALSE))=TRUE,"",VLOOKUP($L21,'All Individuals Day 1 (ALL)'!$C$3:$K$277,8,FALSE)) -> 9 | P21: =IF(ISNA(VLOOKUP($L21,#REF!,8,FALSE))=TRUE,"",VLOOKUP($L21,#REF!,8,FALSE)) -> 
